Workbook

Sheet General
D3: v. 3.1
B4: PREV | D4: =IF(Settings!B48,"bridges+","") ->  | G4: Rozšířeno pro :
B7: Modul: | C7: Pre-Generation Simulation Pattern
B9: Project Risk Evaluation
G16: Řešitelský tým
G17: ČVUT v Praze, Fakulta stavební
B18: Verze 3.1
B19: - modul předgenerace simulačního vzorku PreGEN:1000 | G19: Zdrojová základna | J19: Identifikace
B20: - volba typu rozdělení pro simulaci | G20: Ing. Z. Prostějovská, Ph.D. | J20: FSv ČVUT v Praze
B21: - implementace rovnoměrného rozdělení | G21: Ing. E. Hromada | J21: FSv ČVUT v Praze
B22: - lokalizace doplněných textů
B23: - uživatelská funkce solveru GETRANDPREV(…)
G24: Aplikační zpracování
G25: Doc. Ing. P. Dlask, Ph.D. v. 1.1, 1.2, 2.0 | J25: FSv ČVUT v Praze
B26: Verze 3.0 | G26: Fine s.r.o. v. 3.0, 2011 | J26: Fine s.r.o.
B27: - vytvoření podpory MS Office 2007
B28: - oprava generace grafů pro MS Office 2007
B29: - doplnění posterové prezentace úlohy | G29: Koncepce vývoje
B30: - grafy ve stromové struktuře projektu | G30: Doc. Ing. V. Beran, DrSc. | J30: FSv ČVUT v Praze
B31: - lokalizace aplikace do EN jazyka
B32: - lokalizace výstupů do EN jazyka | G32: Jazyková lokalizace
G33: CZE - Doc. Ing. P. Dlask, Ph.D. | J33: FSv ČVUT v Praze
B35: Verze 2.0
B36: - navržení struktury generátoru typických úloh
B37: - volba typických úloh stromu kritérií
B38: - naplnění banky typických úloh
B39: - testování generovaných úloh Mosaic
B41: Verze 1.2
B42: - doplnění/rozšíření hodnotících charakteristik
B43: - grafická interpretace hodnotících charakteristik
B44: - navržení postupu Hodnocení, Rozptylu, Trendu
B45: - grafické zobrazení hodnocení
B46: - předání hodnocení do struktury stromu
B47: - dosažení vyšší výtěžnosti expertů
B49: Verze 1.1
B50: - navržení struktury stromu kritérií
B51: - dekompozice úlohy na jednotlivá kritéria
B52: - generátor stromu kritérií, design Generátoru
B53: - ověření zadané struktury grafickou kontrolou
B54: - vytvoření výpočetní struktury
B55: - generace výstupního protokolu
B56: - design Aplikačního jádra - Řešitele
B57: - definice Nastavení
B59: Další směr vývoje:
B60: - implementace nových grafických funkcí
B61: - kontrola konzistence vstupů
B62: - doplnění možnosti generování Beta rozložení

Sheet TranslApp
A1: Není vybrána žádná položka pro tuto operaci. | B1: No selected item for this operation.
A2: Opravte zadání! | B2: Correct the input!
A3: Roky pro výběr dat nejsou správně zadány! | B3: The years for data selection aren't correct.
A4: Nelze provést generaci výpočtu pro položku na řádku: | B4: Cannot generate calculation for Item od row index:
A5: Nelze zobrazit list : | B5: Cannot show sheet :
A6: Nelze skrýt list : | B6: Cannot hide sheet :
A7: Smazat všechny položky na hladině : | B7: Delete all items on level :
A8: PREV application | B8: PREV application
A9: Základní hladinu není možné smazat! | B9: Cannot delete basic level!
A10: Nepodařilo se vygenerovat nové ID položky : | B10: Cannot generate new ID item :
A11: Nová položka ID : | B11: New item ID :
A12: Popis položky ID : | B12: Item description ID :
A13: Smazat položku : | B13: Delete item :
A14: Nelze smazat kořen stromu kritérií. | B14: Cannot delete the tree root.
A15: Opravdu smazat projekt z archivu? | B15: Really delete project from the archive?
A16: Opravdu načíst nový projekt z archivu? | B16: Really load new project from the archive?
A17: Projekt byl úspěšně nahrán z archivu. | B17: Project was succesfully loaded from the archive.
A18: Název : | B18: Title :
A19: Neplatné ID pro zapsání položky! | B19: Invalid ID for item writing!
A20: Neplatná hladina pro zapsání položky! | B20: Invalid level for item writing!
A21: ID položky : | B21: Item ID :
A22: nedefinováno | B22: undefined
A23: Špatný index pro tuto operaci! | B23: Wrong index for this operation!
A24: Chyba výpočtu na listu : | B24: Calculation error on the sheet :
A25: Vygenerujte znovu stukturu výpočtu. | B25: Regenerate calculation structure.
A26: Po importu: | B26: After import:
A27: Sestavte znovu report výsledků. | B27: Create new report result.
A28: Chyba při tvorbě grafu : | B28: Chart creating error :
A29: Název grafu : | B29: Chart's name :
A30: Název listu : | B30: Sheet's name :
A31: Přihlášení do aplikace | B31: Login to program
A32: Uživatel | B32: User
A33: Heslo | B33: Password
A34: Login | B34: Login
A35: Vývoj | B35: Development
A36: O aplikaci… | B36: About…
A37: Řešitelé | B37: Authors
A38: Zdrojová základna : | B38: Source basement :
A39: Koncepce vývoje : | B39: Development concept :
A40: Aplikační zpracování : | B40: Application :
A41: Verze 3.0 | B41: Version 3.0
A42: Jazyková lokalizace : | B42: Language localization :
A43: Základní | B43: Basic
A44: Generátor | B44: Generator
A45: Vstupy | B45: Inputs
A46: Řešitel | B46: Solver
A47: Výstupy | B47: Results
A48: Log | B48: Log
A49: Nastavení | B49: Settings
A50: Archivace | B50: Archive
A51: Pozice položky | B51: Item's position
A52: Hladina : | B52: Level :
A53: Předchozí položka : | B53: Previous item :
A54: Zapsat | B54: Write
A55: Atributy | B55: Attributes
A56: Popis : | B56: Description :
A57: Významnost : | B57: Weight :
A58: Hodnocení : | B58: Evaluation :
A59: Riziko : | B59: Stand. deviation :
A60: Trend : | B60: Skew :
A61: Editace položek | B61: Item's edit
A62: Položka : | B62: Item :
A63: Přidat | B63: Add
A64: Smazat aktuální | B64: Delete current item
A65: Generace | B65: Generation
A66: Schéma | B66: Scheme
A67: Výpočet | B67: Calculation
A68: Smazat aktuální projekt | B68: Delete current project
A69: Zpracováno v rámci CIDEAS | B69: Created as a part of CIDEAS
A70: Centrum integrovaného navrhování progresivních stav. konstrukcí | B70: Centre for Intergrated Design of Advanced Structures
A71: Vynulovat | B71: Clear
A72: Zavři | B72: Close
A73: Projekt | B73: Project
A74: Název projektu : | B74: Project name :
A75: Počet simulací : | B75: Number of simulation :
A76: Počet parametrizací : | B76: Number of parameterisation :
A77: Statistika | B77: Statistics
A78: Hodnocení (střední hodnota) : | B78: Evaluation (average) :
A79: Sigma hodnocení (směr. odchylka) : | B79: Sigma eval. (standard eval) :
A80: Minimum : | B80: Minimum :
A81: Maximum : | B81: Maximum :
A82: Median : | B82: Median :
A83: Špičatost : | B83: Kurtosis :
A84: Šikmost : | B84: Skew :
A85: Report výsledků | B85: Report results
A86: Provázat se zdrojem : | B86: Link to source
A87: Grafické výstupy | B87: Graphic outputs
A88: Graf DF | B88: Chart DF
A89: Graf 3D celkový DF | B89: Chart 3D total DF
A90: Výstupy pro globální maxima | B90: Results for global maximum
A91: Graf (četnosti) | B91: Chart (frequency)
A92: Graf 3D celkový (četnosti) | B92: Chart 3D total (frequency)
A93: Grafické zobrazení projektu | B93: Graphic report of project
A94: Max. měřítka | B94: Max. scale
A95: Okraj grafu | B95: Chart border
A96: Logaritmické | B96: Logaritmic
A97: Legenda grafu | B97: Legend of chart
A98: Výplň grafu | B98: Fill of chart
A99: Dvě osy | B99: Two axis
A100: Max. hodn. : | B100: Max. value :
A101: Názvy prvků ve stromu | B101: Items title in tree
A102: Levý horní X : | B102: Left top X :
A103: Levý horní Y : | B103: Left top Y :
A104: Šířka X : | B104: Width X :
A105: Výška Y : | B105: Height Y :
A106: Rotace : | B106: Rotation :
A107: Základna světle | B107: Base light
A108: Popis os tučně | B108: Descr. of axis bold
A109: Nadpis pouze název | B109: In title only name
A110: Stupnice 0-1 | B110: Scale 0-1
A111: Mezera X : | B111: Space X :
A112: Mezera Y : | B112: Space Y :
A113: Max. poč. grafů v řadě : | B113: Max. No chart in row :
A114: Typ grafu : | B114: Chart type :
A115: Export grafu : | B115: Export chart :
A116: Hloub. 3D : | B116: Depth 3D :
A117: Mezera 3D : | B117: Space 3D :
A118: Mezi hodnotami 3D : | B118: Between values 3D :
A119: Jazyk aplikace : | B119: Application language :
A120: Seznam projektů | B120: List of projects
A121: Správa archivu | B121: Project administration
A122: Uložit projekt do archivu | B122: Save project to archive
A123: Načíst projekt z archivu | B123: Load project from archive
A124: Smazat projekt z archivu | B124: Delete project from archive
A125: Jazyk výstupů : | B125: Output language :
A126: Předgenerace simulačního vzorku | B126: Pre-Generation of the Simulation Pattern
A127: Rozdělení : | B127: Distribution :
A128: rovnoměrné | B128: uniform
A129: normální | B129: normal
A130: Minimum : | B130: Minimum :
A131: Maximum : | B131: Maximum :

Sheet Version
V2: Další nástroj PREV vychází ze základní verze zpracované v rámci výzkumného centra CIDEAS. Jedná se o softwarovou podporu při vyhodnocování projektových řešení:
B3: Verze 3.0 | V3: - umožňuje porovnávat alternativy řešení stejně jako různé projektové návrhy (hodnocená úloha je dekomponována na strom hodnotících kritérií),
C4: - vytvoření podpory MS Office 2007
C5: - oprava generace grafů pro MS Office 2007
C6: - doplnění posterové prezentace úlohy
C7: - grafy ve stromové struktuře projektu
C8: - lokalizace aplikace do EN jazyk | V8: - jedná se o otevřený nástroj pro různé aplikační obory (stejně pojmenovaná kritéria je možné použít pro různé projekty),
C9: - doplněnní možnosti generování Beta rozložení
B11: Verze 2.0 | V11: - je možné rozvinout prostor porovnávání projektů (volba hodnotících kritérií závisí na autorovi dekompozice),
C12: - navržení struktury generátoru typických úloh | V12: - umožňuje archivovat vstupy hodnocení projektů,
C13: - volba typických úloh stromu kritérií
C14: - naplnění banky typických úloh
C15: - testování generovaných úloh Mosaic
B17: Verze 1.2 | V17: - nabízí možnost propracovat grafické výstupy ze simulačních výpočtů.
C18: - doplnění/rozšíření hodnotících charakteristik
C19: - grafická interpretace hodnotících charakteristik
C20: - navržení postupu Hodnocení, Rozptylu, Trendu
C21: - grafické zobrazení hodnocení
C22: - předání hodnocení do struktury stromu
C23: - dosažení vyšší výtěžnosti expertů
B25: Verze 1.1
C26: - navržení struktury stromu kritérií
C27: - dekompozice úlohy na jednotlivá kritéria | V27: Ahoj Petře,
C28: - generátor stromu kritérií | V28: v příloze zasílám příslušná rozložení.
C29: - ověření zadané struktury grafickou kontrolou | V29: V prvním sloupci je kód rozložení.
C30: - vytvoření výpočetní struktury | V30: Písmeno znamená:
C31: - generace výstupního protokolu | V31: A - absolutně nejlepší
V32: V - velmi dobré
V33: D - dobré
V34: P - průměrné
V35: H - horší
V36: Z - značně horší
V37: S - špatné
V39: Číslo uprostřed vyjadřuje riziko hodnocení(rozptyl 2-téměř žádné ....
V40: 8-téměř největší) a číslo na konci vývojový trend(šikmost 2-velmi silně negativní .... 8-velmi silně pozitivní).
V42: Dan

Sheet Distribution
A1: Vyšší -> Lepší | B1: 1 | C1: 2 | D1: 3 | E1: 4 | F1: 5 | G1: 6 | H1: 7 | I1: 8 | J1: 9 | K1: 10 | N1: stredni hodnota | O1: rozptyl | P1: sikmost | Q1: 1 | R1: 2 | S1: 3 | T1: 4 | U1: 5 | V1: 6 | W1: 7 | X1: 8 | Y1: 9 | Z1: 10 | AC1: Vyšší -> Horší | AD1: =Q1 -> 1 | AE1: =R1 -> 2 | AF1: 3 | AG1: 4 | AH1: 5 | AI1: 6 | AJ1: 7 | AK1: 8 | AL1: 9 | AM1: 10 | AP1: stredni hodnota | AQ1: rozptyl | AS1: 10 | AT1: 9 | AU1: 8 | AV1: 7 | AW1: 6 | AX1: 5 | AY1: 4 | AZ1: 3 | BA1: 2 | BB1: 1
A2: A22 | B2: 0 | C2: 0 | D2: 0 | E2: 0 | F2: 0 | G2: 0 | H2: 0 | I2: 0.725 | J2: 0.2 | K2: 0.075 | L2: =SUM(B2:K2) -> 1 | N2: =SUMPRODUCT(B2:K2,$B$1:$K$1) -> 8.35 | O2: =SUM(Q2:Z2) -> 0.3775 | Q2: =B2*(B$1-$N2)^2 -> 0 | R2: =C2*(C$1-$N2)^2 -> 0 | S2: 0 | T2: 0 | U2: 0 | V2: 0 | W2: 0 | X2: 0.0888125 | Y2: 0.0845 | Z2: 0.2041875 | AC2: A22 | AD2: =K2 -> 0.075 | AE2: =J2 -> 0.2 | AF2: =I2 -> 0.725 | AG2: =H2 -> 0 | AH2: =G2 -> 0 | AI2: =F2 -> 0 | AJ2: =E2 -> 0 | AK2: =D2 -> 0 | AL2: =C2 -> 0 | AM2: =B2 -> 0 | AN2: =SUM(AD2:AM2) -> 1 | AP2: =SUMPRODUCT(AD2:AM2,$AD$1:$AM$1) -> 2.65 | AQ2: =SUM(AS2:BB2) -> 0.3775 | AS2: =AD2*(AD$1-$AP2)^2 -> 0.2041875 | AT2: =AE2*(AE$1-$AP2)^2 -> 0.0845 | AU2: 0.0888125 | AV2: 0 | AW2: 0 | AX2: 0 | AY2: 0 | AZ2: 0 | BA2: 0 | BB2: 0
A3: A23 | B3: 0 | C3: 0 | D3: 0 | E3: 0 | F3: 0 | G3: 0 | H3: 0 | I3: 0.625 | J3: 0.2499999995 | K3: 0.1250000005 | L3: 1 | N3: =SUMPRODUCT(B3:K3,$B$1:$K$1) -> 8.5 | O3: =SUM(Q3:Z3) -> 0.5000000009 | Q3: =B3*(B$1-$N3)^2 -> 0 | R3: =C3*(C$1-$N3)^2 -> 0 | S3: 0 | T3: 0 | U3: 0 | V3: 0 | W3: 0 | X3: 0.1562500003 | Y3: 0.06249999976 | Z3: 0.2812500009 | AC3: A23 | AD3: =K3 -> 0.1250000005 | AE3: =J3 -> 0.2499999995 | AF3: =I3 -> 0.625 | AG3: =H3 -> 0 | AH3: =G3 -> 0 | AI3: =F3 -> 0 | AJ3: =E3 -> 0 | AK3: =D3 -> 0 | AL3: =C3 -> 0 | AM3: =B3 -> 0 | AN3: 1 | AP3: =SUMPRODUCT(AD3:AM3,$AD$1:$AM$1) -> 2.5 | AQ3: =SUM(AS3:BB3) -> 0.5000000009 | AS3: =AD3*(AD$1-$AP3)^2 -> 0.2812500009 | AT3: =AE3*(AE$1-$AP3)^2 -> 0.06249999976 | AU3: =AF3*(AF$1-$AP3)^2 -> 0.1562500003 | AV3: =AG3*(AG$1-$AP3)^2 -> 0 | AW3: =AH3*(AH$1-$AP3)^2 -> 0 | AX3: =AI3*(AI$1-$AP3)^2 -> 0 | AY3: =AJ3*(AJ$1-$AP3)^2 -> 0 | AZ3: =AK3*(AK$1-$AP3)^2 -> 0 | BA3: =AL3*(AL$1-$AP3)^2 -> 0 | BB3: =AM3*(AM$1-$AP3)^2 -> 0
A4: A24 | B4: 0 | C4: 0 | D4: 0 | E4: 0 | F4: 0 | G4: 0 | H4: 0.006893046072 | I4: 0.5836417236 | J4: 0.3051443686 | K4: 0.1043208618 | L4: 1 | N4: =SUMPRODUCT(B4:K4,$B$1:$K$1) -> 8.506893046 | O4: =SUM(Q4:Z4) -> 0.4723803016 | Q4: =B4*(B$1-$N4)^2 -> 0 | R4: 0 | S4: 0 | T4: 0 | U4: 0 | V4: 0 | W4: 0.01565222343 | X4: 0.1499612314 | Y4: 0.07419721661 | Z4: 0.2325696302 | AC4: A24 | AD4: 0.1043208618 | AE4: 0.3051443686 | AF4: 0.5836417236 | AG4: 0.006893046072 | AH4: 0 | AI4: 0 | AJ4: 0 | AK4: 0 | AL4: 0 | AM4: 0 | AN4: 1 | AP4: 2.493106954 | AQ4: =SUM(AS4:BB4) -> 0.4723803016 | AS4: 0.2325696302 | AT4: 0.07419721661 | AU4: 0.1499612314 | AV4: 0.01565222343 | AW4: 0 | AX4: 0 | AY4: 0 | AZ4: 0 | BA4: 0 | BB4: 0
A5: A25 | B5: 0 | C5: 0 | D5: 0 | E5: 0 | F5: 0 | G5: 0 | H5: 0.0625 | I5: 0.4375 | J5: 0.4375 | K5: 0.0625 | L5: 1 | N5: =SUMPRODUCT(B5:K5,$B$1:$K$1) -> 8.5 | O5: =SUM(Q5:Z5) -> 0.5 | Q5: =B5*(B$1-$N5)^2 -> 0 | R5: =C5*(C$1-$N5)^2 -> 0 | S5: =D5*(D$1-$N5)^2 -> 0 | T5: =E5*(E$1-$N5)^2 -> 0 | U5: =F5*(F$1-$N5)^2 -> 0 | V5: =G5*(G$1-$N5)^2 -> 0 | W5: =H5*(H$1-$N5)^2 -> 0.140625 | X5: =I5*(I$1-$N5)^2 -> 0.109375 | Y5: =J5*(J$1-$N5)^2 -> 0.109375 | Z5: =K5*(K$1-$N5)^2 -> 0.140625 | AC5: A25 | AD5: 0.0625 | AE5: 0.4375 | AF5: 0.4375 | AG5: 0.0625 | AH5: 0 | AI5: 0 | AJ5: 0 | AK5: 0 | AL5: 0 | AM5: 0 | AN5: 1 | AP5: 2.5 | AQ5: =SUM(AS5:BB5) -> 0.5 | AS5: 0.140625 | AT5: 0.109375 | AU5: 0.109375 | AV5: 0.140625 | AW5: 0 | AX5: 0 | AY5: 0 | AZ5: 0 | BA5: 0 | BB5: 0
A6: A26 | B6: 0 | C6: 0 | D6: 0 | E6: 0 | F6: 0 | G6: 0 | H6: 0.1043208618 | I6: 0.3051443686 | J6: 0.5836417236 | K6: 0.006893046072 | L6: 1 | N6: 8.493106954 | O6: 0.4723803016 | Q6: 0 | R6: 0 | S6: 0 | T6: 0 | U6: 0 | V6: 0 | W6: 0.2325696302 | X6: 0.07419721661 | Y6: 0.1499612314 | Z6: 0.01565222343 | AC6: A26 | AD6: 0.006893046072 | AE6: 0.5836417236 | AF6: 0.3051443686 | AG6: 0.1043208618 | AH6: 0 | AI6: 0 | AJ6: 0 | AK6: 0 | AL6: 0 | AM6: 0 | AN6: 1 | AP6: 2.506893046 | AQ6: 0.4723803016 | AS6: 0.01565222343 | AT6: 0.1499612314 | AU6: 0.07419721661 | AV6: 0.2325696302 | AW6: 0 | AX6: 0 | AY6: 0 | AZ6: 0 | BA6: 0 | BB6: 0
A7: A27 | B7: 0 | C7: 0 | D7: 0 | E7: 0 | F7: 0 | G7: 0 | H7: 0.1250000005 | I7: 0.2499999995 | J7: 0.625 | K7: 0 | L7: 1 | N7: 8.5 | O7: 0.5000000009 | Q7: 0 | R7: 0 | S7: 0 | T7: 0 | U7: 0 | V7: 0 | W7: 0.2812500009 | X7: 0.06249999976 | Y7: 0.1562500003 | Z7: 0 | AC7: A27 | AD7: 0 | AE7: 0.625 | AF7: 0.2499999995 | AG7: 0.1250000005 | AH7: 0 | AI7: 0 | AJ7: 0 | AK7: 0 | AL7: 0 | AM7: 0 | AN7: 1 | AP7: 2.5 | AQ7: 0.5000000009 | AS7: 0 | AT7: 0.1562500003 | AU7: 0.06249999976 | AV7: 0.2812500009 | AW7: 0 | AX7: 0 | AY7: 0 | AZ7: 0 | BA7: 0 | BB7: 0
A8: A28 | B8: 0 | C8: 0 | D8: 0 | E8: 0 | F8: 0 | G8: 0 | H8: 0.075 | I8: 0.2 | J8: 0.725 | K8: 0 | L8: 1 | N8: 8.65 | O8: 0.3775 | Q8: 0 | R8: 0 | S8: 0 | T8: 0 | U8: 0 | V8: 0 | W8: 0.2041875 | X8: 0.0845 | Y8: 0.0888125 | Z8: 0 | AC8: A28 | AD8: 0 | AE8: 0.725 | AF8: 0.2 | AG8: 0.075 | AH8: 0 | AI8: 0 | AJ8: 0 | AK8: 0 | AL8: 0 | AM8: 0 | AN8: 1 | AP8: 2.35 | AQ8: 0.3775 | AS8: 0 | AT8: 0.0888125 | AU8: 0.0845 | AV8: 0.2041875 | AW8: 0 | AX8: 0 | AY8: 0 | AZ8: 0 | BA8: 0 | BB8: 0
A9: A32 | B9: 0 | C9: 0 | D9: 0 | E9: 0 | F9: 0.004 | G9: 0.00683 | H9: 0.01516011475 | I9: 0.6928495747 | J9: 0.2128267413 | K9: 0.06833708529 | L9: 1.000003516 | N9: 8.308708926 | O9: 0.4693716986 | Q9: 0 | R9: 0 | S9: 0 | T9: 0 | U9: 0.04379021902 | V9: 0.03640483506 | W9: 0.02596501737 | X9: 0.0660293965 | Y9: 0.1017063559 | Z9: 0.1954758747 | AC9: A32 | AD9: 0.06833708529 | AE9: 0.2128267413 | AF9: 0.6928495747 | AG9: 0.01516011475 | AH9: 0.00683 | AI9: 0.004 | AJ9: 0 | AK9: 0 | AL9: 0 | AM9: 0 | AN9: 1.000003516 | AP9: 2.691329751 | AQ9: 0.4693716978 | AS9: 0.1954848152 | AT9: 0.101717737 | AU9: 0.06601285241 | AV9: 0.02596348267 | AW9: 0.03640361531 | AX9: 0.04378919526 | AY9: 0 | AZ9: 0 | BA9: 0 | BB9: 0
A10: A33 | B10: 0 | C10: 0 | D10: 0.00035 | E10: 0.00055 | F10: 0.001733375926 | G10: 0.002591276469 | H10: 0.04923024936 | I10: 0.5645732591 | J10: 0.264573458 | K10: 0.1163967615 | L10: 0.9999983804 | N10: 8.433791094 | O10: 0.6347199834 | Q10: 0 | R10: 0 | S10: 0.01033412998 | T10: 0.01081217691 | U10: 0.02043809908 | V10: 0.0153490092 | W10: 0.1012054249 | X10: 0.1062384112 | Y10: 0.08482027298 | Z10: 0.2855224591 | AC10: A33 | AD10: 0.1163967615 | AE10: 0.264573458 | AF10: 0.5645732591 | AG10: 0.04923024936 | AH10: 0.002591276469 | AI10: 0.001733375926 | AJ10: 0.00055 | AK10: 0.00035 | AL10: 0 | AM10: 0 | AN10: 0.9999983804 | AP10: 2.56619109 | AQ10: 0.6347199832 | AS10: 0.2855159635 | AT10: 0.08481493537 | AU10: 0.1062471377 | AV10: 0.10120794 | AW10: 0.01534923392 | AX10: 0.02043831116 | AY10: 0.0108122638 | AZ10: 0.01033419774 | BA10: 0 | BB10: 0
A11: A34 | B11: 0 | C11: 0 | D11: 0 | E11: 0.003 | F11: 0.00511 | G11: 0.02540023727 | H11: 0.02808327202 | I11: 0.5193629661 | J11: 0.3192767982 | K11: 0.09977061731 | L11: 1.000003891 | N11: 8.412635414 | O11: 0.771791855 | Q11: 0 | R11: 0 | S11: 0 | T11: 0.05841405388 | U11: 0.05951147119 | V11: 0.1478499459 | W11: 0.0560412593 | X11: 0.08843088557 | Y11: 0.1101495877 | Z11: 0.2513946513 | AC11: A34 | AD11: 0.09977061731 | AE11: 0.3192767982 | AF11: 0.5193629661 | AG11: 0.02808327202 | AH11: 0.02540023727 | AI11: 0.00511 | AJ11: 0.003 | AK11: 0 | AL11: 0 | AM11: 0 | AN11: 1.000003891 | AP11: 2.587407387 | AQ11: 0.771791854 | AS11: 0.2514082083 | AT11: 0.1101656412 | AU11: 0.08841254166 | AV11: 0.05603786345 | AW11: 0.1478447003 | AX11: 0.05950997845 | AY11: 0.05841292072 | AZ11: 0 | BA11: 0 | BB11: 0
A12: A35 | B12: 0 | C12: 0 | D12: 0.00185 | E12: 0.00294 | F12: 0.004889805978 | G12: 0.01569774208 | H12: 0.06958348292 | I12: 0.4186751739 | J12: 0.4186664243 | K12: 0.06769279769 | L12: 0.9999954269 | N12: 8.41735705 | O12: 0.7848920786 | Q12: 0 | R12: 0 | S12: 0.0542933512 | T12: 0.05736834732 | U12: 0.05710476397 | V12: 0.09173156277 | W12: 0.1397863289 | X12: 0.07292773357 | Y12: 0.1421258665 | Z12: 0.1695541245 | AC12: A35 | AD12: 0.06769279769 | AE12: 0.4186664243 | AF12: 0.4186751739 | AG12: 0.06958348292 | AH12: 0.01569774208 | AI12: 0.004889805978 | AJ12: 0.00294 | AK12: 0.00185 | AL12: 0 | AM12: 0 | AN12: 0.9999954269 | AP12: 2.582592646 | AQ12: 0.7848920773 | AS12: 0.1695433461 | AT12: 0.1421013258 | AU12: 0.07294531467 | AV12: 0.1397962515 | AW12: 0.0917353806 | AX12: 0.05710644517 | AY12: 0.05736965393 | AZ12: 0.05429435951 | BA12: 0 | BB12: 0
A13: A36 | B13: 0 | C13: 0 | D13: 0 | E13: 0.0029 | F13: 0.005113418683 | G13: 0.01505128074 | H13: 0.1102117308 | I13: 0.3192767982 | J13: 0.5193629661 | K13: 0.02808327202 | L13: 0.9999994666 | N13: 8.408270694 | O13: 0.7278451427 | Q13: 0 | R13: 0 | S13: 0 | T13: 0.0563552665 | U13: 0.05939905211 | V13: 0.08729393242 | W13: 0.2185748085 | X13: 0.05321864034 | Y13: 0.1818516036 | Z13: 0.07115183928 | AC13: A36 | AD13: 0.02808327202 | AE13: 0.5193629661 | AF13: 0.3192767982 | AG13: 0.1102117308 | AH13: 0.01505128074 | AI13: 0.005113418683 | AJ13: 0.0029 | AK13: 0 | AL13: 0 | AM13: 0 | AN13: 0.9999994666 | AP13: 2.591723438 | AQ13: 0.7278451427 | AS13: 0.0711513147 | AT13: 0.1818479971 | AU13: 0.05322017005 | AV13: 0.2185766299 | AW13: 0.0872943578 | AX13: 0.05939925664 | AY13: 0.05635541652 | AZ13: 0 | BA13: 0 | BB13: 0
A14: A37 | B14: 0 | C14: 0 | D14: 0.0006 | E14: 0.00073 | F14: 0.005170817611 | G14: 0.01569080199 | H14: 0.1083967615 | I14: 0.264573458 | J14: 0.5645732591 | K14: 0.04026024936 | L14: 0.9999953476 | N14: 8.48384572 | O14: 0.7358477976 | Q14: 0 | R14: 0 | S14: 0.01804353833 | T14: 0.01467655688 | U14: 0.06275914928 | V14: 0.09680423911 | W14: 0.2386677859 | X14: 0.06193841417 | Y14: 0.1504109205 | Z14: 0.09254719339 | AC14: A37 | AD14: 0.04026024936 | AE14: 0.5645732591 | AF14: 0.264573458 | AG14: 0.1083967615 | AH14: 0.01569080199 | AI14: 0.005170817611 | AJ14: 0.00073 | AK14: 0.0006 | AL14: 0 | AM14: 0 | AN14: 0.9999953476 | AP14: 2.516103103 | AQ14: 0.7358477962 | AS14: 0.09254094581 | AT14: 0.1503810957 | AU14: 0.06195151731 | AV14: 0.238684249 | AW14: 0.0968082282 | AX14: 0.06276099311 | AY14: 0.01467689191 | AZ14: 0.0180438751 | BA14: 0 | BB14: 0
A15: A38 | B15: 0 | C15: 0 | D15: 0 | E15: 0 | F15: 0.006033403398 | G15: 0.02173376496 | H15: 0.06333708529 | I15: 0.2064506741 | J15: 0.6892849575 | K15: 0.01316011475 | L15: 1 | N15: 8.590700362 | O15: 0.597571275 | Q15: 0 | R15: 0 | S15: 0 | T15: 0 | U15: 0.07778944884 | V15: 0.1458711267 | W15: 0.1602635776 | X15: 0.07203619727 | Y15: 0.1154732855 | Z15: 0.0261376391 | AC15: A38 | AD15: 0.01316011475 | AE15: 0.6892849575 | AF15: 0.2064506741 | AG15: 0.06333708529 | AH15: 0.02173376496 | AI15: 0.006033403398 | AJ15: 0 | AK15: 0 | AL15: 0 | AM15: 0 | AN15: 1 | AP15: 2.409299638 | AQ15: 0.597571275 | AS15: 0.0261376391 | AT15: 0.1154732855 | AU15: 0.07203619727 | AV15: 0.1602635776 | AW15: 0.1458711267 | AX15: 0.07778944884 | AY15: 0 | AZ15: 0 | BA15: 0 | BB15: 0
A16: A42 | B16: 0 | C16: 0 | D16: 0 | E16: 0 | F16: 0.008 | G16: 0.01707 | H16: 0.0353202295 | I16: 0.6570299149 | J16: 0.2309013483 | K16: 0.05167417058 | L16: 0.9999956633 | N16: 8.240754766 | O16: 0.5552184459 | Q16: 0 | R16: 0 | S16: 0 | T16: 0 | U16: 0.08401993164 | V16: 0.08570816141 | W16: 0.05437451811 | X16: 0.03808333129 | Y16: 0.13310385 | Z16: 0.1599286535 | AC16: A42 | AD16: 0.05167417058 | AE16: 0.2309013483 | AF16: 0.6570299149 | AG16: 0.0353202295 | AH16: 0.01707 | AI16: 0.008 | AJ16: 0 | AK16: 0 | AL16: 0 | AM16: 0 | AN16: 0.9999956633 | AP16: 2.75919753 | AQ16: 0.5552184448 | AS16: 0.1599199803 | AT16: 0.1330871245 | AU16: 0.03809842469 | AV16: 0.05437869932 | AW16: 0.08571181077 | AX16: 0.0840224052 | AY16: 0 | AZ16: 0 | BA16: 0 | BB16: 0
A17: A43 | B17: 0 | C17: 0 | D17: 0.0007 | E17: 0.0014 | F17: 0.004166751851 | G17: 0.007982552939 | H17: 0.09986049872 | I17: 0.5041465182 | J17: 0.2791469161 | K17: 0.1025952299 | L17: 0.9999984677 | N17: 8.346899257 | O17: 0.7783715288 | Q17: 0 | R17: 0 | S17: 0.02001253217 | T17: 0.02645374641 | U17: 0.04667484854 | V17: 0.04396739169 | W17: 0.1811606864 | X17: 0.0606685356 | Y17: 0.1190674875 | Z17: 0.2803663004 | AC17: A43 | AD17: 0.1025952299 | AE17: 0.2791469161 | AF17: 0.5041465182 | AG17: 0.09986049872 | AH17: 0.007982552939 | AI17: 0.004166751851 | AJ17: 0.0014 | AK17: 0.0007 | AL17: 0 | AM17: 0 | AN17: 0.9999984677 | AP17: 2.653083887 | AQ17: 0.7783715287 | AS17: 0.2803605831 | AT17: 0.1190613418 | AU17: 0.06067443134 | AV17: 0.1811652206 | AW17: 0.04396802324 | AX17: 0.04667531866 | AY17: 0.02645395157 | AZ17: 0.02001265834 | BA17: 0 | BB17: 0
A18: A44 | B18: 0 | C18: 0 | D18: 0 | E18: 0.007 | F18: 0.012 | G18: 0.03908744745 | H18: 0.05200349798 | I18: 0.4590042087 | J18: 0.3319092279 | K18: 0.09900037283 | L18: 1.000004755 | N18: 8.335769619 | O18: 1.04354885 | Q18: 0 | R18: 0 | S18: 0 | T18: 0.1315922873 | U18: 0.1335283074 | V18: 0.2132540663 | W18: 0.09278882607 | X18: 0.05174870229 | Y18: 0.1464390148 | Z18: 0.274197646 | AC18: A44 | AD18: 0.09900037283 | AE18: 0.3319092279 | AF18: 0.4590042087 | AG18: 0.05200349798 | AH18: 0.03908744745 | AI18: 0.012 | AJ18: 0.007 | AK18: 0 | AL18: 0 | AM18: 0 | AN18: 1.000004755 | AP18: 2.664282684 | AQ18: 1.043548849 | AS18: 0.274214881 | AT18: 0.1464620775 | AU18: 0.05173258179 | AV18: 0.09278155983 | AW18: 0.2132445161 | AX18: 0.1335241202 | AY18: 0.1315891125 | AZ18: 0 | BA18: 0 | BB18: 0
A19: A45 | B19: 0 | C19: 0 | D19: 0.003 | E19: 0.0057 | F19: 0.009979611957 | G19: 0.03171548417 | H19: 0.07166696585 | I19: 0.4004803478 | J19: 0.4008328486 | K19: 0.07662559538 | L19: 1.000000854 | N19: 8.3512541 | O19: 1.038506101 | Q19: 0 | R19: 0 | S19: 0.08590776131 | T19: 0.1079204498 | U19: 0.1120800642 | V19: 0.1753357507 | W19: 0.1308558272 | X19: 0.04941104201 | Y19: 0.1686990194 | Z19: 0.2082961867 | AC19: A45 | AD19: 0.07662559538 | AE19: 0.4008328486 | AF19: 0.4004803478 | AG19: 0.07166696585 | AH19: 0.03171548417 | AI19: 0.009979611957 | AJ19: 0.0057 | AK19: 0.003 | AL19: 0 | AM19: 0 | AN19: 1.000000854 | AP19: 2.648755292 | AQ19: 1.038506101 | AS19: 0.2082985597 | AT19: 0.1687039037 | AU19: 0.04940839984 | AV19: 0.1308540083 | AW19: 0.1753343501 | AX19: 0.1120794361 | AY19: 0.1079199839 | AZ19: 0.08590745978 | BA19: 0 | BB19: 0
A20: A46 | B20: 0 | C20: 0 | D20: 0 | E20: 0.007 | F20: 0.01822683737 | G20: 0.02910256147 | H20: 0.09922037283 | I20: 0.3394092279 | J20: 0.4526942087 | K20: 0.05434349798 | L20: 0.9999967062 | N20: 8.321248846 | O20: 1.058522264 | Q20: 0 | R20: 0 | S20: 0 | T20: 0.1307123411 | U20: 0.2010546637 | V20: 0.1568103113 | W20: 0.1732088574 | X20: 0.03502731102 | Y20: 0.2085576383 | Z20: 0.1531511414 | AC20: A46 | AD20: 0.05434349798 | AE20: 0.4526942087 | AF20: 0.3394092279 | AG20: 0.09922037283 | AH20: 0.02910256147 | AI20: 0.01822683737 | AJ20: 0.007 | AK20: 0 | AL20: 0 | AM20: 0 | AN20: 0.9999967062 | AP20: 2.678714922 | AQ20: 1.058522264 | AS20: 0.1531445307 | AT20: 0.2085353731 | AU20: 0.03503521258 | AV20: 0.1732183572 | AW20: 0.1568152066 | AX20: 0.2010590504 | AY20: 0.1307145331 | AZ20: 0 | BA20: 0 | BB20: 0
A21: A47 | B21: 0 | C21: 0 | D21: 0.001 | E21: 0.00399 | F21: 0.008401635222 | G21: 0.03100160398 | H21: 0.09179352299 | I21: 0.2791469161 | J21: 0.5041465182 | K21: 0.08052049872 | L21: 1.000000695 | N21: 8.465231441 | O21: 0.990048201 | Q21: 0 | R21: 0 | S21: 0.0298687547 | T21: 0.07955378436 | U21: 0.1008853985 | V21: 0.1884080957 | W21: 0.1970718059 | X21: 0.06041864043 | Y21: 0.1441745165 | Z21: 0.1896672048 | AC21: A47 | AD21: 0.08052049872 | AE21: 0.5041465182 | AF21: 0.2791469161 | AG21: 0.09179352299 | AH21: 0.03100160398 | AI21: 0.008401635222 | AJ21: 0.00399 | AK21: 0.001 | AL21: 0 | AM21: 0 | AN21: 1.000000695 | AP21: 2.534776207 | AQ21: 0.990048201 | AS21: 0.1896690949 | AT21: 0.14417864 | AU21: 0.06041665416 | AV21: 0.1970697488 | AW21: 0.1884069268 | AX21: 0.1008849533 | AY21: 0.07955351187 | AZ21: 0.02986867111 | BA21: 0 | BB21: 0
A22: A48 | B22: 0 | C22: 0 | D22: 0 | E22: 0 | F22: 0.0120668068 | G22: 0.04346752992 | H22: 0.05167417058 | I22: 0.2129013483 | J22: 0.6535699149 | K22: 0.0263202295 | L22: 1 | N22: 8.531400723 | O22: 0.8106096558 | Q22: 0 | R22: 0 | S22: 0 | T22: 0 | U22: 0.1504826264 | V22: 0.2785394806 | W22: 0.1211856538 | X22: 0.06012051524 | Y22: 0.1435143343 | Z22: 0.05676704554 | AC22: A48 | AD22: 0.0263202295 | AE22: 0.6535699149 | AF22: 0.2129013483 | AG22: 0.05167417058 | AH22: 0.04346752992 | AI22: 0.0120668068 | AJ22: 0 | AK22: 0 | AL22: 0 | AM22: 0 | AN22: 1 | AP22: 2.468599277 | AQ22: 0.8106096558 | AS22: 0.05676704554 | AT22: 0.1435143343 | AU22: 0.06012051524 | AV22: 0.1211856538 | AW22: 0.2785394806 | AX22: 0.1504826264 | AY22: 0 | AZ22: 0 | BA22: 0 | BB22: 0
A23: A52 | B23: 0 | C23: 0 | D23: 0 | E23: 0.003 | F23: 0.0055 | G23: 0.02506541875 | H23: 0.08500283751 | I23: 0.6190038978 | J23: 0.1920252077 | K23: 0.07040719596 | L23: 1.000004558 | N23: 8.169242387 | O23: 0.727787991 | Q23: 0 | R23: 0 | S23: 0 | T23: 0.05214774624 | U23: 0.05524253519 | V23: 0.1179481486 | W23: 0.1162097388 | X23: 0.01773011969 | Y23: 0.132527774 | Z23: 0.2359819285 | AC23: A52 | AD23: 0.07040719596 | AE23: 0.1920252077 | AF23: 0.6190038978 | AG23: 0.08500283751 | AH23: 0.02506541875 | AI23: 0.0055 | AJ23: 0.003 | AK23: 0 | AL23: 0 | AM23: 0 | AN23: 1.000004558 | AP23: 2.830807749 | AQ23: 0.7277879898 | AS23: 0.2359948535 | AT23: 0.1325437704 | AU23: 0.01771961666 | AV23: 0.1161997732 | AW23: 0.1179426966 | AX23: 0.05524078739 | AY23: 0.05214649208 | AZ23: 0 | BA23: 0 | BB23: 0
A24: A53 | B24: 0 | C24: 0 | D24: 0.006 | E24: 0.00855 | F24: 0.01759281162 | G24: 0.02977737761 | H24: 0.04654602654 | I24: 0.4667308355 | J24: 0.3519334752 | K24: 0.0728689139 | L24: 0.9999994404 | N24: 8.27458761 | O24: 1.178799116 | Q24: 0 | R24: 0 | S24: 0.1669276467 | T24: 0.1562264484 | U24: 0.1886463822 | V24: 0.1540606715 | W24: 0.07561744473 | X24: 0.03519073741 | Y24: 0.185195537 | Z24: 0.2169342483 | AC24: A53 | AD24: 0.0728689139 | AE24: 0.3519334752 | AF24: 0.4667308355 | AG24: 0.04654602654 | AH24: 0.02977737761 | AI24: 0.01759281162 | AJ24: 0.00855 | AK24: 0.006 | AL24: 0 | AM24: 0 | AN24: 0.9999994404 | AP24: 2.725406235 | AQ24: 1.178799116 | AS24: 0.2169327005 | AT24: 0.1851923941 | AU24: 0.03519231518 | AV24: 0.07561817511 | AW24: 0.1540615053 | AX24: 0.1886470914 | AY24: 0.1562268984 | AZ24: 0.1669280363 | BA24: 0 | BB24: 0
A25: A54 | B25: 0 | C25: 0 | D25: 0.002 | E25: 0.0035 | F25: 0.004913503702 | G25: 0.006608059241 | H25: 0.1769707938 | I25: 0.3939212767 | J25: 0.3331752752 | K25: 0.07891525397 | L25: 1.000004163 | N25: 8.262111661 | O25: 0.9337760757 | Q25: 0 | R25: 0 | S25: 0.05537963826 | T25: 0.06357958534 | U25: 0.05228642312 | V25: 0.03381442484 | W25: 0.2819013512 | X25: 0.0270633855 | Y25: 0.1814070076 | Z25: 0.2383442597 | AC25: A54 | AD25: 0.07891525397 | AE25: 0.3331752752 | AF25: 0.3939212767 | AG25: 0.1769707938 | AH25: 0.006608059241 | AI25: 0.004913503702 | AJ25: 0.0035 | AK25: 0.002 | AL25: 0 | AM25: 0 | AN25: 1.000004163 | AP25: 2.737934128 | AQ25: 0.9337760746 | AS25: 0.2383568195 | AT25: 0.1814295225 | AU25: 0.02705393073 | AV25: 0.281880897 | AW25: 0.03381305592 | AX25: 0.05228495528 | AY25: 0.06357821923 | AZ25: 0.05537867448 | BA25: 0 | BB25: 0
A26: A55 | B26: 0 | C26: 0 | D26: 0.004 | E26: 0.00654 | F26: 0.01558317128 | G26: 0.02989056799 | H26: 0.127690807 | I26: 0.3499653938 | J26: 0.3434080003 | K26: 0.1229204496 | L26: 0.99999839 | N26: 8.308854563 | O26: 1.331832169 | Q26: 0 | R26: 0 | S26: 0.1127357471 | T26: 0.1214231288 | U26: 0.1706126393 | V26: 0.1593409205 | W26: 0.2187471555 | X26: 0.03338359818 | Y26: 0.1640398257 | Z26: 0.3515491536 | AC26: A55 | AD26: 0.1229204496 | AE26: 0.3434080003 | AF26: 0.3499653938 | AG26: 0.127690807 | AH26: 0.02989056799 | AI26: 0.01558317128 | AJ26: 0.00654 | AK26: 0.004 | AL26: 0 | AM26: 0 | AN26: 0.99999839 | AP26: 2.691127727 | AQ26: 1.331832168 | AS26: 0.3515417906 | AT26: 0.164031419 | AU26: 0.03338742681 | AV26: 0.2187530752 | AW26: 0.159343365 | AX26: 0.1706144656 | AY26: 0.1214241269 | AZ26: 0.1127364992 | BA26: 0 | BB26: 0
A27: A56 | B27: 0 | C27: 0 | D27: 0.002 | E27: 0.00504 | F27: 0.01668327044 | G27: 0.04475428135 | H27: 0.07891525397 | I27: 0.3141872752 | J27: 0.3828212767 | K27: 0.1555970794 | L27: 0.9999984371 | N27: 8.445369304 | O27: 1.345566143 | Q27: 0 | R27: 0 | S27: 0.05930409371 | T27: 0.09959699357 | U27: 0.1980399236 | V27: 0.2676230404 | W27: 0.1648612593 | X27: 0.06232024525 | Y27: 0.1177616471 | Z27: 0.3760589404 | AC27: A56 | AD27: 0.1555970794 | AE27: 0.3828212767 | AF27: 0.3141872752 | AG27: 0.07891525397 | AH27: 0.04475428135 | AI27: 0.01668327044 | AJ27: 0.00504 | AK27: 0.002 | AL27: 0 | AM27: 0 | AN27: 0.9999984371 | AP27: 2.554613504 | AQ27: 1.345566143 | AS27: 0.3760506229 | AT27: 0.1177543464 | AU27: 0.06232505678 | AV27: 0.1648651813 | AW27: 0.2676268036 | AX27: 0.1980419001 | AY27: 0.09959776395 | AZ27: 0.05930446819 | BA27: 0 | BB27: 0
A28: A57 | B28: 0 | C28: 0 | D28: 0.006 | E28: 0.00831 | F28: 0.01999567504 | G28: 0.02777488455 | H28: 0.0790089139 | I28: 0.3516334752 | J28: 0.4647308355 | K28: 0.04254602654 | L28: 0.9999998108 | N28: 8.292035667 | O28: 1.202658738 | Q28: 0 | R28: 0 | S28: 0.168033849 | T28: 0.1530832481 | U28: 0.2167031049 | V28: 0.1459133422 | W28: 0.1318940174 | X28: 0.02998900138 | Y28: 0.2329293673 | Z28: 0.1241128079 | AC28: A57 | AD28: 0.04254602654 | AE28: 0.4647308355 | AF28: 0.3516334752 | AG28: 0.0790089139 | AH28: 0.02777488455 | AI28: 0.01999567504 | AJ28: 0.00831 | AK28: 0.006 | AL28: 0 | AM28: 0 | AN28: 0.9999998108 | AP28: 2.707962252 | AQ28: 1.202658738 | AS28: 0.1241125054 | AT28: 0.2329279977 | AU28: 0.02998942887 | AV28: 0.1318944424 | AW28: 0.1459136073 | AX28: 0.2167033789 | AY28: 0.1530833965 | AZ28: 0.1680339812 | BA28: 0 | BB28: 0
A29: A58 | B29: 0 | C29: 0 | D29: 0 | E29: 0.007965418749 | F29: 0.0153494559 | G29: 0.04879598631 | H29: 0.06280719596 | I29: 0.1830252077 | J29: 0.6101038978 | K29: 0.07195283751 | L29: 1 | N29: 8.515700362 | O29: 1.155551329 | Q29: 0 | R29: 0 | S29: 0 | T29: 0.1624272328 | U29: 0.1897215625 | V29: 0.3088175159 | W29: 0.14428996 | X29: 0.04867497983 | Y29: 0.1430975141 | Z29: 0.1585225642 | AC29: A58 | AD29: 0.07195283751 | AE29: 0.6101038978 | AF29: 0.1830252077 | AG29: 0.06280719596 | AH29: 0.04879598631 | AI29: 0.0153494559 | AJ29: 0.007965418749 | AK29: 0 | AL29: 0 | AM29: 0 | AN29: 1 | AP29: 2.484299638 | AQ29: 1.155551329 | AS29: 0.1585225642 | AT29: 0.1430975141 | AU29: 0.04867497983 | AV29: 0.14428996 | AW29: 0.3088175159 | AX29: 0.1897215625 | AY29: 0.1624272328 | AZ29: 0 | BA29: 0 | BB29: 0
A30: A62 | B30: 0 | C30: 0 | D30: 0 | E30: 0.008 | F30: 0.01763 | G30: 0.0399308375 | H30: 0.1395854455 | I30: 0.5666378807 | J30: 0.1531490672 | K30: 0.07507022134 | L30: 1.000003452 | N30: 7.998980008 | O30: 1.039407651 | Q30: 0 | R30: 0 | S30: 0 | T30: 0.1279347288 | U30: 0.1585621236 | V30: 0.159560475 | W30: 0.1393008386 | X30: 5.895211413e-07 | Y30: 0.1534616483 | Z30: 0.3005872477 | AC30: A62 | AD30: 0.07507022134 | AE30: 0.1531490672 | AF30: 0.5666378807 | AG30: 0.1395854455 | AH30: 0.0399308375 | AI30: 0.01763 | AJ30: 0.008 | AK30: 0 | AL30: 0 | AM30: 0 | AN30: 1.000003452 | AP30: 3.001057967 | AQ30: 1.039407651 | AS30: 0.3005986568 | AT30: 0.1534732921 | AU30: 6.342350721e-07 | AV30: 0.139290248 | AW30: 0.1595544126 | AX30: 0.1585581079 | AY30: 0.127932299 | AZ30: 0 | BA30: 0 | BB30: 0
A31: A63 | B31: 0 | C31: 0 | D31: 0.004 | E31: 0.00702 | F31: 0.01594557368 | G31: 0.0678716418 | H31: 0.07385508355 | I31: 0.4377084127 | J31: 0.3066432992 | K31: 0.08695145872 | L31: 0.9999954697 | N31: 8.174994886 | O31: 1.324984915 | Q31: 0 | R31: 0 | S31: 0.1071222883 | T31: 0.1223626877 | U31: 0.1607408308 | V31: 0.3210737756 | W31: 0.1019652871 | X31: 0.01340403668 | Y31: 0.2087116831 | Z31: 0.2896043253 | AC31: A63 | AD31: 0.08695145872 | AE31: 0.3066432992 | AF31: 0.4377084127 | AG31: 0.07385508355 | AH31: 0.0678716418 | AI31: 0.01594557368 | AJ31: 0.00702 | AK31: 0.004 | AL31: 0 | AM31: 0 | AN31: 0.9999954697 | AP31: 2.824955281 | AQ31: 1.324984913 | AS31: 0.2895885096 | AT31: 0.2086864698 | AU31: 0.01341167195 | AV31: 0.1019739364 | AW31: 0.3210884887 | AX31: 0.1607458767 | AY31: 0.1223656088 | AZ31: 0.1071243514 | BA31: 0 | BB31: 0
A32: A64 | B32: 0.001 | C32: 0.002 | D32: 0.007 | E32: 0.02 | F32: 0.03009503702 | G32: 0.02930805924 | H32: 0.1605770794 | I32: 0.3608212767 | J32: 0.2981872752 | K32: 0.09101525397 | L32: 1.000003982 | N32: 8.036771326 | O32: 1.825563158 | Q32: 0.0495161507 | R32: 0.0728852161 | S32: 0.1775834578 | T32: 0.3259104548 | U32: 0.2775358322 | V32: 0.1215826501 | W32: 0.172603465 | X32: 0.0004878774348 | Y32: 0.27666098 | Z32: 0.3507970739 | AC32: A64 | AD32: 0.09101525397 | AE32: 0.2981872752 | AF32: 0.3608212767 | AG32: 0.1605770794 | AH32: 0.02930805924 | AI32: 0.03009503702 | AJ32: 0.02 | AK32: 0.007 | AL32: 0.002 | AM32: 0.001 | AN32: 1.000003982 | AP32: 2.96327247 | AQ32: 1.825563157 | AS32: 0.3508127257 | AT32: 0.2766861395 | AU32: 0.0004867159452 | AV32: 0.1725888825 | AW32: 0.1215774214 | AX32: 0.2775278269 | AY32: 0.325903383 | AZ32: 0.1775803695 | BA32: 0.07288415853 | BB32: 0.04951553433
A33: A65 | B33: 0 | C33: 0 | D33: 0.005 | E33: 0.0075 | F33: 0.0188967306 | G33: 0.02886565181 | H33: 0.1837146482 | I33: 0.2879804398 | J33: 0.2879831519 | K33: 0.1800553039 | L33: 0.9999959262 | N33: 8.294925026 | O33: 1.63545185 | Q33: 0 | R33: 0 | S33: 0.1401811551 | T33: 0.1383478573 | U33: 0.2051529401 | V33: 0.1520261763 | W33: 0.3080583846 | X33: 0.02504876064 | Y33: 0.1431652715 | Z33: 0.5234713041 | AC33: A65 | AD33: 0.1800553039 | AE33: 0.2879831519 | AF33: 0.2879804398 | AG33: 0.1837146482 | AH33: 0.02886565181 | AI33: 0.0188967306 | AJ33: 0.0075 | AK33: 0.005 | AL33: 0 | AM33: 0 | AN33: 0.9999959262 | AP33: 2.705030163 | AQ33: 1.635451849 | AS33: 0.5234437893 | AT33: 0.143147074 | AU33: 0.02505637317 | AV33: 0.308079706 | AW33: 0.1520321134 | AX33: 0.2051585204 | AY33: 0.1383507443 | AZ33: 0.1401835279 | BA33: 0 | BB33: 0
A34: A66 | B34: 0.001 | C34: 0.002 | D34: 0.0045 | E34: 0.01701 | F34: 0.03758307044 | G34: 0.05090428135 | H34: 0.08941525397 | I34: 0.2891672752 | J34: 0.3528212767 | K34: 0.1555970794 | L34: 0.9999982371 | N34: 8.250488304 | O34: 2.049398041 | Q34: 0.05256958065 | R34: 0.07813720807 | S34: 0.1240543234 | T34: 0.3073137305 | U34: 0.3970904783 | V34: 0.2578147919 | W34: 0.1398205102 | X34: 0.01814362441 | Y34: 0.1982036263 | Z34: 0.4762501674 | AC34: A66 | AD34: 0.1555970794 | AE34: 0.3528212767 | AF34: 0.2891672752 | AG34: 0.08941525397 | AH34: 0.05090428135 | AI34: 0.03758307044 | AJ34: 0.01701 | AK34: 0.0045 | AL34: 0.002 | AM34: 0.001 | AN34: 0.9999982371 | AP34: 2.749492304 | AQ34: 2.049398041 | AS34: 0.4762396095 | AT34: 0.19819337 | AU34: 0.01814643381 | AV34: 0.1398248469 | AW34: 0.2578192351 | AX34: 0.3970952164 | AY34: 0.3073165347 | AZ34: 0.1240552398 | BA34: 0.07813769292 | BB34: 0.05256986185
A35: A67 | B35: 0 | C35: 0 | D35: 0.006 | E35: 0.012 | F35: 0.02449857463 | G35: 0.05120800851 | H35: 0.09695145872 | I35: 0.3096432992 | J35: 0.4397084127 | K35: 0.05998550836 | L35: 0.9999952621 | N35: 8.208778327 | O35: 1.500316688 | Q35: 0 | R35: 0 | S35: 0.16278823 | T35: 0.2125657801 | U35: 0.2522436536 | V35: 0.2498285981 | W35: 0.1416601434 | X35: 0.01349685282 | Y35: 0.2752714209 | Z35: 0.1924620088 | AC35: A67 | AD35: 0.05998550836 | AE35: 0.4397084127 | AF35: 0.3096432992 | AG35: 0.09695145872 | AH35: 0.05120800851 | AI35: 0.02449857463 | AJ35: 0.012 | AK35: 0.006 | AL35: 0 | AM35: 0 | AN35: 0.9999952621 | AP35: 2.791169557 | AQ35: 1.500316686 | AS35: 0.1924508095 | AT35: 0.2752351588 | AU35: 0.01350359198 | AV35: 0.141672359 | AW35: 0.2498403877 | AX35: 0.2522518475 | AY35: 0.2125710444 | AZ35: 0.1627914875 | BA35: 0 | BB35: 0
A36: A68 | B36: 0 | C36: 0 | D36: 0 | E36: 0.0159308375 | F36: 0.018632105 | G36: 0.05412444271 | H36: 0.07394022134 | I36: 0.1531490672 | J36: 0.5666378807 | K36: 0.1175854455 | L36: 1 | N36: 8.5 | O36: 1.5 | Q36: 0 | R36: 0 | S36: 0 | T36: 0.3225994594 | U36: 0.2282432863 | V36: 0.3382777669 | W36: 0.166365498 | X36: 0.03828726681 | Y36: 0.1416594702 | Z36: 0.2645672524 | AC36: A68 | AD36: 0.1175854455 | AE36: 0.5666378807 | AF36: 0.1531490672 | AG36: 0.07394022134 | AH36: 0.05412444271 | AI36: 0.018632105 | AJ36: 0.0159308375 | AK36: 0 | AL36: 0 | AM36: 0 | AN36: 1 | AP36: 2.5 | AQ36: 1.5 | AS36: 0.2645672524 | AT36: 0.1416594702 | AU36: 0.03828726681 | AV36: 0.166365498 | AW36: 0.3382777669 | AX36: 0.2282432863 | AY36: 0.3225994594 | AZ36: 0 | BA36: 0 | BB36: 0
A37: A72 | B37: 0.002 | C37: 0.004 | D37: 0.015 | E37: 0.03264 | F37: 0.04 | G37: 0.06062 | H37: 0.1415254455 | I37: 0.4916378807 | J37: 0.1335446443 | K37: 0.07903233202 | L37: 1.000000303 | N37: 7.665286283 | O37: 2.220884559 | Q37: 0.08885208247 | R37: 0.1283818747 | S37: 0.3264734415 | T37: 0.4384963202 | U37: 0.2841500388 | V37: 0.1681100749 | W37: 0.06263998848 | X37: 0.05507980056 | Y37: 0.2379045363 | Z37: 0.4307964013 | AC37: A72 | AD37: 0.07903233202 | AE37: 0.1335446443 | AF37: 0.4916378807 | AG37: 0.1415254455 | AH37: 0.06062 | AI37: 0.04 | AJ37: 0.03264 | AK37: 0.015 | AL37: 0.004 | AM37: 0.002 | AN37: 1.000000303 | AP37: 3.334717045 | AQ37: 2.220884559 | AS37: 0.4307976294 | AT37: 0.2379057227 | AU37: 0.05508089582 | AV37: 0.06263936181 | AW37: 0.168109403 | AX37: 0.2841493293 | AY37: 0.438495524 | AZ37: 0.3264729758 | BA37: 0.1283817238 | BB37: 0.08885199375
A38: A73 | B38: 0 | C38: 0.0017 | D38: 0.0025 | E38: 0.00704116889 | F38: 0.03096107433 | G38: 0.05056592814 | H38: 0.1301896728 | I38: 0.4370174131 | J38: 0.2448597983 | K38: 0.09516808321 | L38: 1.000003139 | N38: 8.060151648 | O38: 1.469378699 | Q38: 0 | R38: 0.06243324459 | S38: 0.06401283674 | T38: 0.116072482 | U38: 0.2899358507 | V38: 0.2146131668 | W38: 0.1463229744 | X38: 0.001581225457 | Y38: 0.2162883145 | Z38: 0.3581186039 | AC38: A73 | AD38: 0.09516808321 | AE38: 0.2448597983 | AF38: 0.4370174131 | AG38: 0.1301896728 | AH38: 0.05056592814 | AI38: 0.03096107433 | AJ38: 0.00704116889 | AK38: 0.0025 | AL38: 0.0017 | AM38: 0 | AN38: 1.000003139 | AP38: 2.939882879 | AQ38: 1.469378699 | AS38: 0.3581313522 | AT38: 0.2163042063 | AU38: 0.001579410734 | AV38: 0.1463134437 | AW38: 0.2146059733 | AX38: 0.2899293082 | AY38: 0.1160705079 | AZ38: 0.06401196319 | BA38: 0.06243253318 | BB38: 0
A39: A74 | B39: 0.00527 | C39: 0.012 | D39: 0.024 | E39: 0.032 | F39: 0.0403335037 | G39: 0.06000805924 | H39: 0.1704770794 | I39: 0.3098212767 | J39: 0.2498727521 | K39: 0.09621525397 | L39: 0.9999979251 | N39: 7.673902952 | O39: 3.104145938 | Q39: 0.2347309678 | R39: 0.3863180965 | S39: 0.5242888513 | T39: 0.4319220128 | U39: 0.2883747502 | V39: 0.1681396471 | W39: 0.07742134532 | X39: 0.03294617301 | Y39: 0.4394095757 | Z39: 0.5205945185 | AC39: A74 | AD39: 0.09621525397 | AE39: 0.2498727521 | AF39: 0.3098212767 | AG39: 0.1704770794 | AH39: 0.06000805924 | AI39: 0.0403335037 | AJ39: 0.032 | AK39: 0.024 | AL39: 0.012 | AM39: 0.00527 | AN39: 0.9999979251 | AP39: 3.326074224 | AQ39: 3.104145938 | AS39: 0.5205843022 | AT39: 0.43939445 | AU39: 0.03294156126 | AV39: 0.0774265897 | AW39: 0.1681442324 | AX39: 0.2883796733 | AY39: 0.4319273794 | AZ39: 0.5242939718 | BA39: 0.3863212045 | BB39: 0.2347325733
A40: A75 | B40: 0.0015 | C40: 0.0025 | D40: 0.0085 | E40: 0.0195 | F40: 0.03206375816 | G40: 0.05500955727 | H40: 0.1986518662 | I40: 0.2498776883 | J40: 0.2458479037 | K40: 0.1865492167 | L40: 0.9999999903 | N40: 8.068084004 | O40: 2.382673247 | Q40: 0.07493671723 | R40: 0.0920541087 | S40: 0.2183265415 | T40: 0.3227114955 | U40: 0.301820627 | V40: 0.2352743058 | W40: 0.2266227322 | X40: 0.00115829093 | Y40: 0.2135108955 | Z40: 0.6962575324 | AC40: A75 | AD40: 0.1865492167 | AE40: 0.2458479037 | AF40: 0.2498776883 | AG40: 0.1986518662 | AH40: 0.05500955727 | AI40: 0.03206375816 | AJ40: 0.0195 | AK40: 0.0085 | AL40: 0.0025 | AM40: 0.0015 | AN40: 0.9999999903 | AP40: 2.931915889 | AQ40: 2.382673247 | AS40: 0.6962574552 | AT40: 0.2135108465 | AU40: 0.001158294571 | AV40: 0.2266227776 | AW40: 0.2352743301 | AX40: 0.3018206481 | AY40: 0.3227115125 | AZ40: 0.2183265507 | BA40: 0.09205411194 | BB40: 0.0749367195
A41: A76 | B41: 0.005 | C41: 0.017 | D41: 0.028 | E41: 0.041 | F41: 0.04522327044 | G41: 0.05975428135 | H41: 0.09391525397 | I41: 0.2466872752 | J41: 0.3078212767 | K41: 0.1555970794 | L41: 0.9999984371 | N41: 7.828909304 | O41: 3.853883614 | Q41: 0.2331700114 | R41: 0.5775951224 | S41: 0.6529142218 | T41: 0.6010824048 | U41: 0.3619095258 | V41: 0.1998726479 | W41: 0.06452829141 | X41: 0.007221036404 | Y41: 0.4221625422 | Z41: 0.7334278098 | AC41: A76 | AD41: 0.1555970794 | AE41: 0.3078212767 | AF41: 0.2466872752 | AG41: 0.09391525397 | AH41: 0.05975428135 | AI41: 0.04522327044 | AJ41: 0.041 | AK41: 0.028 | AL41: 0.017 | AM41: 0.005 | AN41: 0.9999984371 | AP41: 3.171073504 | AQ41: 3.853883614 | AS41: 0.7334161942 | AT41: 0.422150147 | AU41: 0.007219585238 | AV41: 0.06453096819 | AW41: 0.1998764057 | AX41: 0.3619139248 | AY41: 0.6010878027 | AZ41: 0.652918871 | BA41: 0.5775985297 | BB41: 0.2331711855
A42: A77 | B42: 0 | C42: 0.0012 | D42: 0.005 | E42: 0.01254116889 | F42: 0.03025168696 | G42: 0.05959917422 | H42: 0.09916808321 | I42: 0.2498597983 | J42: 0.4397304131 | K42: 0.1026496728 | L42: 0.9999999975 | N42: 8.253543571 | O42: 1.764733417 | Q42: 0 | R42: 0.04692816863 | S42: 0.1379986003 | T42: 0.226902765 | U42: 0.3202306169 | V42: 0.3026719404 | W42: 0.1558298981 | X42: 0.01606207281 | Y42: 0.2450165552 | Z42: 0.3130927996 | AC42: A77 | AD42: 0.1026496728 | AE42: 0.4397304131 | AF42: 0.2498597983 | AG42: 0.09916808321 | AH42: 0.05959917422 | AI42: 0.03025168696 | AJ42: 0.01254116889 | AK42: 0.005 | AL42: 0.0012 | AM42: 0 | AN42: 0.9999999975 | AP42: 2.746456402 | AQ42: 1.764733417 | AS42: 0.3130927898 | AT42: 0.2450165374 | AU42: 0.01606207625 | AV42: 0.1558299048 | AW42: 0.3026719477 | AX42: 0.3202306222 | AY42: 0.2269027679 | AZ42: 0.1379986017 | BA42: 0.04692816904 | BB42: 0
A43: A78 | B43: 0.005 | C43: 0.01 | D43: 0.018 | E43: 0.0259308375 | F43: 0.04072105003 | G43: 0.05354675496 | H43: 0.07903233202 | I43: 0.1335446443 | J43: 0.4916378807 | K43: 0.1425854455 | L43: 0.999998945 | N43: 8.17978799 | O43: 3.159255075 | Q43: 0.2577467779 | R43: 0.381897796 | S43: 0.4829436652 | T43: 0.4530280064 | U43: 0.4117326406 | V43: 0.254426104 | W43: 0.1100050793 | X43: 0.004316659867 | Y43: 0.3307482738 | Z43: 0.4724100717 | AC43: A78 | AD43: 0.1425854455 | AE43: 0.4916378807 | AF43: 0.1335446443 | AG43: 0.07903233202 | AH43: 0.05354675496 | AI43: 0.04072105003 | AJ43: 0.0259308375 | AK43: 0.018 | AL43: 0.01 | AM43: 0.005 | AN43: 0.999998945 | AP43: 2.820200405 | AQ43: 3.159255075 | AS43: 0.4724040481 | AT43: 0.3307389148 | AU43: 0.004317217135 | AV43: 0.1100072434 | AW43: 0.254428813 | AX43: 0.4117356458 | AY43: 0.4530305219 | AZ43: 0.4829458291 | BA43: 0.3818992303 | BB43: 0.2577476111
A44: A82 | B44: 0.008 | C44: 0.019 | D44: 0.028 | E44: 0.035 | F44: 0.04715 | G44: 0.08593 | H44: 0.1592154455 | I44: 0.4196378807 | J44: 0.1139402213 | K44: 0.08412444271 | L44: 0.9999979903 | N44: 7.359647583 | O44: 3.303691987 | Q44: 0.3235609391 | R44: 0.5457906222 | S44: 0.5321827574 | T44: 0.395053116 | U44: 0.2625282163 | V44: 0.1588537685 | W44: 0.0205939422 | X44: 0.1720730239 | Y44: 0.30658534 | Z44: 0.5864702617 | AC44: A82 | AD44: 0.08412444271 | AE44: 0.1139402213 | AF44: 0.4196378807 | AG44: 0.1592154455 | AH44: 0.08593 | AI44: 0.04715 | AJ44: 0.035 | AK44: 0.028 | AL44: 0.019 | AM44: 0.008 | AN44: 0.9999979903 | AP44: 3.64033031 | AQ44: 3.303691987 | AS44: 0.586460441 | AT44: 0.3065770764 | AU44: 0.1720611431 | AV44: 0.02059647403 | AW44: 0.1588589342 | AX44: 0.2625331354 | AY44: 0.395058315 | AZ44: 0.5321881547 | BA44: 0.5457951246 | BB44: 0.3235631886
A45: A83 | B45: 0 | C45: 0.003 | D45: 0.007 | E45: 0.00968233778 | F45: 0.02597657498 | G45: 0.06401692108 | H45: 0.1675338373 | I45: 0.4363264135 | J45: 0.1830762974 | K45: 0.1033847077 | L45: 0.9999970897 | N45: 7.924595675 | O45: 1.686240911 | Q45: 0 | R45: 0.1053025017 | S45: 0.169761498 | T45: 0.1491317353 | U45: 0.2221843961 | V45: 0.2371230617 | W45: 0.1432208515 | X45: 0.002480870036 | Y45: 0.211726724 | Z45: 0.445309273 | AC45: A83 | AD45: 0.1033847077 | AE45: 0.1830762974 | AF45: 0.4363264135 | AG45: 0.1675338373 | AH45: 0.06401692108 | AI45: 0.02597657498 | AJ45: 0.00968233778 | AK45: 0.007 | AL45: 0.003 | AM45: 0 | AN45: 0.9999970897 | AP45: 3.075372312 | AQ45: 1.686240911 | AS45: 0.4452955355 | AT45: 0.2117141188 | AU45: 0.002478763985 | AV45: 0.1432307693 | AW45: 0.2371309501 | AX45: 0.2221892603 | AY45: 0.1491341682 | AZ45: 0.1697637051 | BA45: 0.1053036397 | BB45: 0
A46: A84 | B46: 0.017 | C46: 0.025 | D46: 0.035 | E46: 0.045 | F46: 0.05869503702 | G46: 0.09447805924 | H46: 0.1589070794 | I46: 0.2628212767 | J46: 0.2041872752 | K46: 0.09891525397 | L46: 1.000003982 | N46: 7.254101326 | O46: 4.436512808 | Q46: 0.6649343178 | R46: 0.6901395187 | S46: 0.6334082333 | T46: 0.4765128949 | U46: 0.298227886 | V46: 0.1485922702 | W46: 0.01026023032 | X46: 0.1462245153 | Y46: 0.6223959296 | Z46: 0.7458170114 | AC46: A84 | AD46: 0.09891525397 | AE46: 0.2041872752 | AF46: 0.2628212767 | AG46: 0.1589070794 | AH46: 0.09447805924 | AI46: 0.05869503702 | AJ46: 0.045 | AK46: 0.035 | AL46: 0.025 | AM46: 0.017 | AN46: 1.000003982 | AP46: 3.74594247 | AQ46: 4.436512807 | AS46: 0.745840803 | AT46: 0.6224271563 | AU46: 0.1462416874 | AV46: 0.01025669373 | AW46: 0.1485818918 | AX46: 0.2982162971 | AY46: 0.4765000683 | AZ46: 0.6333951913 | BA46: 0.6901280131 | BB46: 0.6649250049
A47: A85 | B47: 0.00308 | C47: 0.008 | D47: 0.018 | E47: 0.02888 | F47: 0.05520078573 | G47: 0.07845346273 | H47: 0.1998990842 | I47: 0.2047749368 | J47: 0.2047126554 | K47: 0.199 | L47: 1.000000925 | N47: 7.805231688 | O47: 3.324295119 | Q47: 0.1426384292 | R47: 0.2696057196 | S47: 0.4156245283 | T47: 0.4181762831 | U47: 0.4343929133 | V47: 0.255668965 | W47: 0.1296141806 | X47: 0.007768074874 | Y47: 0.2922214445 | Z47: 0.9585845811 | AC47: A85 | AD47: 0.199 | AE47: 0.2047126554 | AF47: 0.2047749368 | AG47: 0.1998990842 | AH47: 0.07845346273 | AI47: 0.05520078573 | AJ47: 0.02888 | AK47: 0.018 | AL47: 0.008 | AM47: 0.00308 | AN47: 1.000000925 | AP47: 3.194778486 | AQ47: 3.324295119 | AS47: 0.958593468 | AT47: 0.2922264212 | AU47: 0.00776888643 | AV47: 0.1296109053 | AW47: 0.2556660832 | AX47: 0.4343897624 | AY47: 0.418174047 | AZ47: 0.4156227684 | BA47: 0.2696047746 | BB47: 0.1426380027
A48: A86 | B48: 0.02 | C48: 0.03033 | D48: 0.04 | E48: 0.05 | F48: 0.06568327044 | G48: 0.07846528135 | H48: 0.09291525397 | I48: 0.2041872752 | J48: 0.2628212767 | K48: 0.1555970794 | L48: 0.9999994371 | N48: 7.405135304 | O48: 5.40115656 | Q48: 0.8205151652 | R48: 0.8861057405 | S48: 0.7762086818 | T48: 0.5797473219 | U48: 0.379956427 | V48: 0.1549222613 | W48: 0.01525060939 | X48: 0.07225452731 | Y48: 0.6685104645 | Z48: 1.047685361 | AC48: A86 | AD48: 0.1555970794 | AE48: 0.2628212767 | AF48: 0.2041872752 | AG48: 0.09291525397 | AH48: 0.07846528135 | AI48: 0.06568327044 | AJ48: 0.05 | AK48: 0.04 | AL48: 0.03033 | AM48: 0.02 | AN48: 0.9999994371 | AP48: 3.594858504 | AQ48: 5.40115656 | AS48: 1.04768036 | AT48: 0.6685052732 | AU48: 0.07225302302 | AV48: 0.0152510756 | AW48: 0.1549236267 | AX48: 0.3799583835 | AY48: 0.5797494305 | AZ48: 0.7762108641 | BA48: 0.8861077709 | BB48: 0.8205167518
A49: A87 | B49: 0 | C49: 0.00312 | D49: 0.00458 | E49: 0.02068233778 | F49: 0.03529679929 | G49: 0.06562033993 | H49: 0.1033847077 | I49: 0.1830762974 | J49: 0.4363264135 | K49: 0.1479138373 | L49: 1.000000733 | N49: 8.267294815 | O49: 2.197813097 | Q49: 0 | R49: 0.122550431 | S49: 0.1270693276 | T49: 0.3766213387 | U49: 0.3768009356 | V49: 0.337329611 | W49: 0.1660395777 | X49: 0.01308016399 | Y49: 0.2342448407 | Z49: 0.4440768707 | AC49: A87 | AD49: 0.1479138373 | AE49: 0.4363264135 | AF49: 0.1830762974 | AG49: 0.1033847077 | AH49: 0.06562033993 | AI49: 0.03529679929 | AJ49: 0.02068233778 | AK49: 0.00458 | AL49: 0.00312 | AM49: 0 | AN49: 1.000000733 | AP49: 2.732713247 | AQ49: 2.197813097 | AS49: 0.4440810032 | AT49: 0.2342499956 | AU49: 0.01307937496 | AV49: 0.1660374651 | AW49: 0.337327212 | AX49: 0.3767990761 | AY49: 0.3766199156 | AZ49: 0.1270689386 | BA49: 0.1225501157 | BB49: 0
A50: A88 | B50: 0.008 | C50: 0.018 | D50: 0.024 | E50: 0.0369308375 | F50: 0.048632105 | G50: 0.06914906722 | H50: 0.08912444271 | I50: 0.1169402213 | J50: 0.4196378807 | K50: 0.1695854455 | L50: 1 | N50: 7.95376653 | O50: 4.130145186 | Q50: 0.3868389516 | R50: 0.638052046 | S50: 0.5889552679 | T50: 0.5773128146 | U50: 0.4243023119 | V50: 0.2639560719 | W50: 0.08107388465 | X50: 0.0002499636739 | Y50: 0.4593375019 | Z50: 0.7100663715 | AC50: A88 | AD50: 0.1695854455 | AE50: 0.4196378807 | AF50: 0.1169402213 | AG50: 0.08912444271 | AH50: 0.06914906722 | AI50: 0.048632105 | AJ50: 0.0369308375 | AK50: 0.024 | AL50: 0.018 | AM50: 0.008 | AN50: 1 | AP50: 3.04623347 | AQ50: 4.130145186 | AS50: 0.7100663715 | AT50: 0.4593375019 | AU50: 0.0002499636739 | AV50: 0.08107388465 | AW50: 0.2639560719 | AX50: 0.4243023119 | AY50: 0.5773128146 | AZ50: 0.5889552679 | BA50: 0.638052046 | BB50: 0.3868389516
A51: V22 | B51: 0 | C51: 0 | D51: 0 | E51: 0 | F51: 0 | G51: 0 | H51: 0.725 | I51: 0.2 | J51: 0.075 | K51: 0 | L51: 1 | N51: 7.35 | O51: 0.3775 | Q51: 0 | R51: 0 | S51: 0 | T51: 0 | U51: 0 | V51: 0 | W51: 0.0888125 | X51: 0.0845 | Y51: 0.2041875 | Z51: 0 | AC51: V22 | AD51: 0 | AE51: 0.075 | AF51: 0.2 | AG51: 0.725 | AH51: 0 | AI51: 0 | AJ51: 0 | AK51: 0 | AL51: 0 | AM51: 0 | AN51: 1 | AP51: 3.65 | AQ51: 0.3775 | AS51: 0 | AT51: 0.2041875 | AU51: 0.0845 | AV51: 0.0888125 | AW51: 0 | AX51: 0 | AY51: 0 | AZ51: 0 | BA51: 0 | BB51: 0
A52: V23 | B52: 0 | C52: 0 | D52: 0 | E52: 0 | F52: 0 | G52: 0 | H52: 0.625 | I52: 0.2499999995 | J52: 0.1250000005 | K52: 0 | L52: 1 | N52: 7.5 | O52: 0.5000000009 | Q52: 0 | R52: 0 | S52: 0 | T52: 0 | U52: 0 | V52: 0 | W52: 0.1562500003 | X52: 0.06249999976 | Y52: 0.2812500009 | Z52: 0 | AC52: V23 | AD52: 0 | AE52: 0.1250000005 | AF52: 0.2499999995 | AG52: 0.625 | AH52: 0 | AI52: 0 | AJ52: 0 | AK52: 0 | AL52: 0 | AM52: 0 | AN52: 1 | AP52: 3.5 | AQ52: 0.5000000009 | AS52: 0 | AT52: 0.2812500009 | AU52: 0.06249999976 | AV52: 0.1562500003 | AW52: 0 | AX52: 0 | AY52: 0 | AZ52: 0 | BA52: 0 | BB52: 0
A53: V24 | B53: 0 | C53: 0 | D53: 0 | E53: 0 | F53: 0 | G53: 0.006893046072 | H53: 0.5836417236 | I53: 0.3051443686 | J53: 0.1043208618 | K53: 0 | L53: 1 | N53: 7.506893046 | O53: 0.4723803016 | Q53: 0 | R53: 0 | S53: 0 | T53: 0 | U53: 0 | V53: 0.01565222343 | W53: 0.1499612314 | X53: 0.07419721661 | Y53: 0.2325696302 | Z53: 0 | AC53: V24 | AD53: 0 | AE53: 0.1043208618 | AF53: 0.3051443686 | AG53: 0.5836417236 | AH53: 0.006893046072 | AI53: 0 | AJ53: 0 | AK53: 0 | AL53: 0 | AM53: 0 | AN53: 1 | AP53: 3.493106954 | AQ53: 0.4723803016 | AS53: 0 | AT53: 0.2325696302 | AU53: 0.07419721661 | AV53: 0.1499612314 | AW53: 0.01565222343 | AX53: 0 | AY53: 0 | AZ53: 0 | BA53: 0 | BB53: 0
A54: V25 | B54: 0 | C54: 0 | D54: 0 | E54: 0 | F54: 0 | G54: 0.0625 | H54: 0.4375 | I54: 0.4375 | J54: 0.0625 | K54: 0 | L54: 1 | N54: 7.5 | O54: 0.5 | Q54: 0 | R54: 0 | S54: 0 | T54: 0 | U54: 0 | V54: 0.140625 | W54: 0.109375 | X54: 0.109375 | Y54: 0.140625 | Z54: 0 | AC54: V25 | AD54: 0 | AE54: 0.0625 | AF54: 0.4375 | AG54: 0.4375 | AH54: 0.0625 | AI54: 0 | AJ54: 0 | AK54: 0 | AL54: 0 | AM54: 0 | AN54: 1 | AP54: 3.5 | AQ54: 0.5 | AS54: 0 | AT54: 0.140625 | AU54: 0.109375 | AV54: 0.109375 | AW54: 0.140625 | AX54: 0 | AY54: 0 | AZ54: 0 | BA54: 0 | BB54: 0
A55: V26 | B55: 0 | C55: 0 | D55: 0 | E55: 0 | F55: 0 | G55: 0.1043208618 | H55: 0.3051443686 | I55: 0.5836417236 | J55: 0.006893046072 | K55: 0 | L55: 1 | N55: 7.493106954 | O55: 0.4723803016 | Q55: 0 | R55: 0 | S55: 0 | T55: 0 | U55: 0 | V55: 0.2325696302 | W55: 0.07419721661 | X55: 0.1499612314 | Y55: 0.01565222343 | Z55: 0 | AC55: V26 | AD55: 0 | AE55: 0.006893046072 | AF55: 0.5836417236 | AG55: 0.3051443686 | AH55: 0.1043208618 | AI55: 0 | AJ55: 0 | AK55: 0 | AL55: 0 | AM55: 0 | AN55: 1 | AP55: 3.506893046 | AQ55: 0.4723803016 | AS55: 0 | AT55: 0.01565222343 | AU55: 0.1499612314 | AV55: 0.07419721661 | AW55: 0.2325696302 | AX55: 0 | AY55: 0 | AZ55: 0 | BA55: 0 | BB55: 0
A56: V27 | B56: 0 | C56: 0 | D56: 0 | E56: 0 | F56: 0 | G56: 0.1250000005 | H56: 0.2499999995 | I56: 0.625 | J56: 0 | K56: 0 | L56: 1 | N56: 7.5 | O56: 0.5000000009 | Q56: 0 | R56: 0 | S56: 0 | T56: 0 | U56: 0 | V56: 0.2812500009 | W56: 0.06249999976 | X56: 0.1562500003 | Y56: 0 | Z56: 0 | AC56: V27 | AD56: 0 | AE56: 0 | AF56: 0.625 | AG56: 0.2499999995 | AH56: 0.1250000005 | AI56: 0 | AJ56: 0 | AK56: 0 | AL56: 0 | AM56: 0 | AN56: 1 | AP56: 3.5 | AQ56: 0.5000000009 | AS56: 0 | AT56: 0 | AU56: 0.1562500003 | AV56: 0.06249999976 | AW56: 0.2812500009 | AX56: 0 | AY56: 0 | AZ56: 0 | BA56: 0 | BB56: 0
A57: V28 | B57: 0 | C57: 0 | D57: 0 | E57: 0 | F57: 0 | G57: 0.075 | H57: 0.2 | I57: 0.725 | J57: 0 | K57: 0 | L57: 1 | N57: 7.65 | O57: 0.3775 | Q57: 0 | R57: 0 | S57: 0 | T57: 0 | U57: 0 | V57: 0.2041875 | W57: 0.0845 | X57: 0.0888125 | Y57: 0 | Z57: 0 | AC57: V28 | AD57: 0 | AE57: 0 | AF57: 0.725 | AG57: 0.2 | AH57: 0.075 | AI57: 0 | AJ57: 0 | AK57: 0 | AL57: 0 | AM57: 0 | AN57: 1 | AP57: 3.35 | AQ57: 0.3775 | AS57: 0 | AT57: 0 | AU57: 0.0888125 | AV57: 0.0845 | AW57: 0.2041875 | AX57: 0 | AY57: 0 | AZ57: 0 | BA57: 0 | BB57: 0
A58: V32 | B58: 0 | C58: 0 | D58: 0 | E58: 0 | F58: 0.00603 | G58: 0.01316011475 | H58: 0.6892849575 | I58: 0.2064506741 | J58: 0.06333708529 | K58: 0.02173376496 | L58: 0.9999965966 | N58: 7.373082201 | O58: 0.5534744358 | Q58: 0 | R58: 0 | S58: 0 | T58: 0 | U58: 0.03395806037 | V58: 0.0248114846 | W58: 0.09594179983 | X58: 0.0811404675 | Y58: 0.1676444941 | Z58: 0.1499781293 | AC58: V32 | AD58: 0.02173376496 | AE58: 0.06333708529 | AF58: 0.2064506741 | AG58: 0.6892849575 | AH58: 0.01316011475 | AI58: 0.00603 | AJ58: 0 | AK58: 0 | AL58: 0 | AM58: 0 | AN58: 0.9999965966 | AP58: 3.626880362 | AQ58: 0.5534744353 | AS58: 0.1499738546 | AT58: 0.1676367788 | AU58: 0.08113077693 | AV58: 0.09596105559 | AW58: 0.0248128376 | AX58: 0.03395913181 | AY58: 0 | AZ58: 0 | BA58: 0 | BB58: 0
A59: V33 | B59: 0 | C59: 0 | D59: 0.0005 | E59: 0.001233375926 | F59: 0.001991276469 | G59: 0.04323024936 | H59: 0.5645732591 | I59: 0.264573458 | J59: 0.1083967615 | K59: 0.01550080199 | L59: 0.9999991824 | N59: 7.474950734 | O59: 0.6823796401 | Q59: 0 | R59: 0 | S59: 0.01001259203 | T59: 0.01489336286 | U59: 0.01219732732 | V59: 0.09404652847 | W59: 0.1273554192 | X59: 0.07293674631 | Y59: 0.2521065067 | Z59: 0.09883115726 | AC59: V33 | AD59: 0.01550080199 | AE59: 0.1083967615 | AF59: 0.264573458 | AG59: 0.5645732591 | AH59: 0.04323024936 | AI59: 0.001991276469 | AJ59: 0.001233375926 | AK59: 0.0005 | AL59: 0 | AM59: 0 | AN59: 0.9999991824 | AP59: 3.525040273 | AQ59: 0.6823796401 | AS59: 0.09883045322 | AT59: 0.2521035332 | AU59: 0.07293424762 | AV59: 0.1273602425 | AW59: 0.0940476754 | AX59: 0.01219741597 | AY59: 0.01489343995 | AZ59: 0.01001263228 | BA59: 0 | BB59: 0
A60: V34 | B60: 0 | C60: 0 | D60: 0 | E60: 0.00491 | F60: 0.01854372373 | G60: 0.02808327202 | H60: 0.5193629661 | I60: 0.3192767982 | J60: 0.09977061731 | K60: 0.01005128074 | L60: 0.9999986581 | N60: 7.469061762 | O60: 0.7352409169 | Q60: 0 | R60: 0 | S60: 0 | T60: 0.0590888525 | U60: 0.1130474722 | V60: 0.06060770183 | W60: 0.1142696877 | X60: 0.09000266459 | Y60: 0.233839568 | Z60: 0.06438496998 | AC60: V34 | AD60: 0.01005128074 | AE60: 0.09977061731 | AF60: 0.3192767982 | AG60: 0.5193629661 | AH60: 0.02808327202 | AI60: 0.01854372373 | AJ60: 0.00491 | AK60: 0 | AL60: 0 | AM60: 0 | AN60: 0.9999986581 | AP60: 3.530923477 | AQ60: 0.7352409168 | AS60: 0.06438421899 | AT60: 0.2338350589 | AU60: 0.08999766036 | AV60: 0.1142768796 | AW60: 0.06060891976 | AX60: 0.1130488239 | AY60: 0.05908935534 | AZ60: 0 | BA60: 0 | BB60: 0
A61: V35 | B61: 0 | C61: 0 | D61: 0.00204 | E61: 0.004389805978 | F61: 0.01369774208 | G61: 0.06458348292 | H61: 0.4186751739 | I61: 0.4186664243 | J61: 0.06456279769 | K61: 0.01338192714 | L61: 0.999997354 | N61: 7.474610894 | O61: 0.7636039861 | Q61: 0 | R61: 0 | S61: 0.04084517102 | T61: 0.0529977802 | U61: 0.08388085056 | V61: 0.1404353169 | W61: 0.09430888604 | X61: 0.1155660474 | Y61: 0.1502254875 | Z61: 0.08534444652 | AC61: V35 | AD61: 0.01338192714 | AE61: 0.06456279769 | AF61: 0.4186664243 | AG61: 0.4186751739 | AH61: 0.06458348292 | AI61: 0.01369774208 | AJ61: 0.004389805978 | AK61: 0.00204 | AL61: 0 | AM61: 0 | AN61: 0.999997354 | AP61: 3.52536 | AQ61: 0.7636039858 | AS61: 0.0853424793 | AT61: 0.1502197547 | AU61: 0.1155532434 | AV61: 0.09432045346 | AW61: 0.1404408607 | AX61: 0.08388282375 | AY61: 0.05299866809 | AZ61: 0.04084570238 | BA61: 0 | BB61: 0
A62: V36 | B62: 0 | C62: 0 | D62: 0 | E62: 0.004911341868 | F62: 0.01005128074 | G62: 0.09977061731 | H62: 0.3192767982 | I62: 0.5193629661 | J62: 0.02808327202 | K62: 0.01854372373 | L62: 1 | N62: 7.496553477 | O62: 0.7362020293 | Q62: 0 | R62: 0 | S62: 0 | T62: 0.06004550686 | U62: 0.06264741414 | V62: 0.2234534889 | W62: 0.07872259725 | X62: 0.1316369072 | Y62: 0.06347806457 | Z62: 0.1162180504 | AC62: V36 | AD62: 0.01854372373 | AE62: 0.02808327202 | AF62: 0.5193629661 | AG62: 0.3192767982 | AH62: 0.09977061731 | AI62: 0.01005128074 | AJ62: 0.004911341868 | AK62: 0 | AL62: 0 | AM62: 0 | AN62: 1 | AP62: 3.503446523 | AQ62: 0.7362020293 | AS62: 0.1162180504 | AT62: 0.06347806457 | AU62: 0.1316369072 | AV62: 0.07872259725 | AW62: 0.2234534889 | AX62: 0.06264741414 | AY62: 0.06004550686 | AZ62: 0 | BA62: 0 | BB62: 0
A63: V37 | B63: 0 | C63: 0 | D63: 0.00083 | E63: 0.004170817611 | F63: 0.01550080199 | G63: 0.1083967615 | H63: 0.264573458 | I63: 0.5645732591 | J63: 0.04026024936 | K63: 0.001691276469 | L63: 0.9999966241 | N63: 7.494913137 | O63: 0.7170898412 | Q63: 0 | R63: 0 | S63: 0.01676952261 | T63: 0.05094410903 | U63: 0.0964861613 | V63: 0.24224132 | W63: 0.06480436184 | X63: 0.1440298303 | Y63: 0.09120099791 | Z63: 0.01061353815 | AC63: V37 | AD63: 0.001691276469 | AE63: 0.04026024936 | AF63: 0.5645732591 | AG63: 0.264573458 | AH63: 0.1083967615 | AI63: 0.01550080199 | AJ63: 0.004170817611 | AK63: 0.00083 | AL63: 0 | AM63: 0 | AN63: 0.9999966241 | AP63: 3.505049727 | AQ63: 0.7170898407 | AS63: 0.01061322349 | AT63: 0.09119649754 | AU63: 0.1440086523 | AV63: 0.06481408723 | AW63: 0.2422533552 | AX63: 0.09648903359 | AY63: 0.05094519165 | AZ63: 0.0167697997 | BA63: 0 | BB63: 0
A64: V38 | B64: 0 | C64: 0 | D64: 0 | E64: 0.006033403398 | F64: 0.02173376496 | G64: 0.06333708529 | H64: 0.2064506741 | I64: 0.6892849575 | J64: 0.01316011475 | K64: 0 | L64: 1 | N64: 7.590700362 | O64: 0.597571275 | Q64: 0 | R64: 0 | S64: 0 | T64: 0.07778944884 | U64: 0.1458711267 | V64: 0.1602635776 | W64: 0.07203619727 | X64: 0.1154732855 | Y64: 0.0261376391 | Z64: 0 | AC64: V38 | AD64: 0 | AE64: 0.01316011475 | AF64: 0.6892849575 | AG64: 0.2064506741 | AH64: 0.06333708529 | AI64: 0.02173376496 | AJ64: 0.006033403398 | AK64: 0 | AL64: 0 | AM64: 0 | AN64: 1 | AP64: 3.409299638 | AQ64: 0.597571275 | AS64: 0 | AT64: 0.0261376391 | AU64: 0.1154732855 | AV64: 0.07203619727 | AW64: 0.1602635776 | AX64: 0.1458711267 | AY64: 0.07778944884 | AZ64: 0 | BA64: 0 | BB64: 0
A65: V42 | B65: 0 | C65: 0 | D65: 0 | E65: 0 | F65: 0.01207 | G65: 0.0263202295 | H65: 0.6535699149 | I65: 0.2129013483 | J65: 0.05167417058 | K65: 0.04346752992 | L65: 1.000003193 | N65: 7.396214402 | O65: 0.7284383909 | Q65: 0 | R65: 0 | S65: 0 | T65: 0 | U65: 0.06930405057 | V65: 0.05130904115 | W65: 0.1026012302 | X65: 0.07761468708 | Y65: 0.1329125936 | Z65: 0.2946967883 | AC65: V42 | AD65: 0.04346752992 | AE65: 0.05167417058 | AF65: 0.2129013483 | AG65: 0.6535699149 | AH65: 0.0263202295 | AI65: 0.01207 | AJ65: 0 | AK65: 0 | AL65: 0 | AM65: 0 | AN65: 1.000003193 | AP65: 3.603820723 | AQ65: 0.7284383905 | AS65: 0.2947047393 | AT65: 0.1329184156 | AU65: 0.07762371782 | AV65: 0.1025830394 | AW65: 0.05130645956 | AX65: 0.06930201878 | AY65: 0 | AZ65: 0 | BA65: 0 | BB65: 0
A66: V43 | B66: 0 | C66: 0 | D66: 0.001 | E66: 0.003666751851 | F66: 0.006382552939 | G66: 0.08286049872 | H66: 0.5041465182 | I66: 0.2791469161 | J66: 0.09179352299 | K66: 0.03100160398 | L66: =SUM(B66:K66) -> 0.9999983648 | N66: 7.445101467 | O66: 0.8846010911 | Q66: 0 | R66: 0 | S66: 0.01975892705 | T66: 0.04351966614 | U66: 0.03815822796 | V66: 0.1730390918 | W66: 0.09987914687 | X66: 0.08595279175 | Y66: 0.2219300677 | Z66: 0.2023631719 | AC66: V43 | AD66: 0.03100160398 | AE66: 0.09179352299 | AF66: 0.2791469161 | AG66: 0.5041465182 | AH66: 0.08286049872 | AI66: 0.006382552939 | AJ66: 0.003666751851 | AK66: 0.001 | AL66: 0 | AM66: 0 | AN66: =SUM(AD66:AM66) -> 0.9999983648 | AP66: 3.554880545 | AQ66: 0.884601091 | AS66: 0.2023603225 | AT66: 0.221924933 | AU66: 0.08594721939 | AV66: 0.09988721966 | AW66: 0.1730433995 | AX66: 0.03815878939 | AY66: 0.04352012059 | AZ66: 0.01975908697 | BA66: 0 | BB66: 0
A67: V44 | B67: 0 | C67: 0 | D67: 0 | E67: 0.00982 | F67: 0.03708744745 | G67: 0.04927349798 | H67: 0.4550842087 | I67: 0.3334092279 | J67: 0.09522037283 | K67: 0.02010256147 | L67: 0.9999973163 | N67: 7.431230479 | O67: 0.9952406329 | Q67: 0 | R67: 0 | S67: 0 | T67: 0.1156142243 | U67: 0.2192195123 | V67: 0.1009328524 | W67: 0.08462733472 | X67: 0.1078574745 | Y67: 0.2343409379 | Z67: 0.1326482968 | AC67: V44 | AD67: =K67 -> 0.02010256147 | AE67: =J67 -> 0.09522037283 | AF67: =I67 -> 0.3334092279 | AG67: =H67 -> 0.4550842087 | AH67: =G67 -> 0.04927349798 | AI67: =F67 -> 0.03708744745 | AJ67: =E67 -> 0.00982 | AK67: =D67 -> 0 | AL67: =C67 -> 0 | AM67: =B67 -> 0 | AN67: 0.9999973163 | AP67: =SUMPRODUCT(AD67:AM67,$AD$1:$AM$1) -> 3.56874 | AQ67: 0.9952406326 | AS67: =AD67*(AD$1-$AP67)^2 -> 0.1326452479 | AT67: =AE67*(AE$1-$AP67)^2 -> 0.2343321183 | AU67: =AF67*(AF$1-$AP67)^2 -> 0.1078462784 | AV67: =AG67*(AG$1-$AP67)^2 -> 0.08463892192 | AW67: =AH67*(AH$1-$AP67)^2 -> 0.1009370162 | AX67: =AI67*(AI$1-$AP67)^2 -> 0.219224836 | AY67: =AJ67*(AJ$1-$AP67)^2 -> 0.1156162137 | AZ67: =AK67*(AK$1-$AP67)^2 -> 0 | BA67: =AL67*(AL$1-$AP67)^2 -> 0 | BB67: =AM67*(AM$1-$AP67)^2 -> 0
A68: V45 | B68: 0 | C68: 0 | D68: 0.00457 | E68: 0.008979611957 | F68: 0.02671548417 | G68: 0.06666696585 | H68: 0.3998503478 | I68: 0.3998328486 | J68: 0.06662559538 | K68: 0.02676385428 | L68: 1.000004708 | N68: 7.448091789 | O68: 1.033919558 | Q68: 0 | R68: 0 | S68: 0.09041982896 | T68: 0.1067616325 | U68: 0.1601099949 | V68: 0.1397986159 | W68: 0.08028445228 | X68: 0.1217901548 | Y68: 0.1604623562 | Z68: 0.1742925225 | AC68: V45 | AD68: 0.02676385428 | AE68: 0.06662559538 | AF68: 0.3998328486 | AG68: 0.3998503478 | AH68: 0.06666696585 | AI68: 0.02671548417 | AJ68: 0.008979611957 | AK68: 0.00457 | AL68: 0 | AM68: 0 | AN68: 1.000004708 | AP68: 3.55196 | AQ68: 1.033919557 | AS68: 0.1742995968 | AT68: 0.160473066 | AU68: 0.1218130123 | AV68: 0.08026589548 | AW68: 0.1397886168 | AX68: 0.1601032208 | AY68: 0.1067584255 | AZ68: 0.09041772348 | BA68: 0 | BB68: 0
A69: V46 | B69: 0 | C69: 0 | D69: 0 | E69: 0.009822683737 | F69: 0.02010256147 | G69: 0.09522037283 | H69: 0.3334092279 | I69: 0.4550842087 | J69: 0.04927349798 | K69: 0.03708744745 | L69: 1 | N69: =SUMPRODUCT(B69:K69,$B$1:$K$1) -> 7.5 | O69: =SUM(Q69:Z69) -> 1 | Q69: =B69*(B$1-$N69)^2 -> 0 | R69: =C69*(C$1-$N69)^2 -> 0 | S69: =D69*(D$1-$N69)^2 -> 0 | T69: =E69*(E$1-$N69)^2 -> 0.1203278758 | U69: =F69*(F$1-$N69)^2 -> 0.1256410092 | V69: =G69*(G$1-$N69)^2 -> 0.2142458389 | W69: =H69*(H$1-$N69)^2 -> 0.08335230697 | X69: =I69*(I$1-$N69)^2 -> 0.1137710522 | Y69: =J69*(J$1-$N69)^2 -> 0.1108653704 | Z69: =K69*(K$1-$N69)^2 -> 0.2317965466 | AC69: V46 | AD69: 0.03708744745 | AE69: 0.04927349798 | AF69: 0.4550842087 | AG69: 0.3334092279 | AH69: 0.09522037283 | AI69: 0.02010256147 | AJ69: 0.009822683737 | AK69: 0 | AL69: 0 | AM69: 0 | AN69: 1 | AP69: 3.5 | AQ69: =SUM(AS69:BB69) -> 1 | AS69: 0.2317965466 | AT69: 0.1108653704 | AU69: 0.1137710522 | AV69: 0.08335230697 | AW69: 0.2142458389 | AX69: 0.1256410092 | AY69: 0.1203278758 | AZ69: 0 | BA69: 0 | BB69: 0
A70: V47 | B70: 0 | C70: 0 | D70: 0.00167 | E70: 0.008341635222 | F70: 0.03100160398 | G70: 0.09179352299 | H70: 0.2791469161 | I70: 0.5041465182 | J70: 0.08052049872 | K70: 0.003382552939 | L70: 1.000003248 | N70: 7.489856275 | O70: 0.9343300306 | Q70: 0 | R70: 0 | S70: 0.03366521165 | T70: 0.101593583 | U70: 0.1921908561 | V70: 0.203751487 | W70: 0.06698386231 | X70: 0.1312024275 | Y70: 0.1836297407 | Z70: 0.02131286235 | AC70: V47 | AD70: 0.003382552939 | AE70: 0.08052049872 | AF70: 0.5041465182 | AG70: 0.2791469161 | AH70: 0.09179352299 | AI70: 0.03100160398 | AJ70: 0.008341635222 | AK70: 0.00167 | AL70: 0 | AM70: 0 | AN70: 1.000003248 | AP70: 3.510179455 | AQ70: 0.9343300301 | AS70: 0.02131346909 | AT70: 0.1836384301 | AU70: 0.1312208065 | AV70: 0.06697409119 | AW70: 0.2037417144 | AX70: 0.1921853402 | AY70: 0.1015915028 | AZ70: 0.03366467584 | BA70: 0 | BB70: 0
A71: V48 | B71: 0 | C71: 0 | D71: 0 | E71: 0.0120668068 | F71: 0.04346752992 | G71: 0.05167417058 | H71: 0.2129013483 | I71: 0.6535699149 | J71: 0.0263202295 | K71: 0 | L71: 1 | N71: 7.531400723 | O71: 0.8106096558 | Q71: 0 | R71: 0 | S71: 0 | T71: 0.1504826264 | U71: 0.2785394806 | V71: 0.1211856538 | W71: 0.06012051524 | X71: 0.1435143343 | Y71: 0.05676704554 | Z71: 0 | AC71: V48 | AD71: 0 | AE71: 0.0263202295 | AF71: 0.6535699149 | AG71: 0.2129013483 | AH71: 0.05167417058 | AI71: 0.04346752992 | AJ71: 0.0120668068 | AK71: 0 | AL71: 0 | AM71: 0 | AN71: 1 | AP71: 3.468599277 | AQ71: 0.8106096558 | AS71: 0 | AT71: 0.05676704554 | AU71: 0.1435143343 | AV71: 0.06012051524 | AW71: 0.1211856538 | AX71: 0.2785394806 | AY71: 0.1504826264 | AZ71: 0 | BA71: 0 | BB71: 0
A72: V52 | B72: 0 | C72: 0 | D72: 0 | E72: 0.005 | F72: 0.02006541875 | G72: 0.07020283751 | H72: 0.6101038978 | I72: 0.1830252077 | J72: 0.06280719596 | K72: 0.04879598631 | L72: 1.000000544 | N72: 7.329697692 | O72: 0.9601843832 | Q72: 0 | R72: 0 | S72: 0 | T72: 0.05543443361 | U72: 0.1089048864 | V72: 0.1241253529 | W72: 0.06631864042 | X72: 0.08223417459 | Y72: 0.1752264115 | Z72: 0.3479404838 | AC72: V52 | AD72: 0.04879598631 | AE72: 0.06280719596 | AF72: 0.1830252077 | AG72: 0.6101038978 | AH72: 0.07020283751 | AI72: 0.02006541875 | AJ72: 0.005 | AK72: 0 | AL72: 0 | AM72: 0 | AN72: 1.000000544 | AP72: 3.670308293 | AQ72: 0.9601843832 | AS72: 0.3479420435 | AT72: 0.1752276672 | AU72: 0.08223564313 | AV72: 0.06631623263 | AW72: 0.1241242355 | AX72: 0.1089043269 | AY72: 0.05543423432 | AZ72: 0 | BA72: 0 | BB72: 0
A73: V53 | B73: 0 | C73: 0 | D73: 0.00805 | E73: 0.01699281162 | F73: 0.02577737761 | G73: 0.04254602654 | H73: 0.4647308355 | I73: 0.3516334752 | J73: 0.0724989139 | K73: 0.01777488455 | L73: 1.000004325 | N73: 7.372707015 | O73: 1.090106582 | Q73: 0 | R73: 0 | S73: 0.1539205614 | T73: 0.1932958254 | U73: 0.1451198971 | V73: 0.08017052225 | W73: 0.06455600149 | X73: 0.138366538 | Y73: 0.1919831022 | Z73: 0.1226941344 | AC73: V53 | AD73: 0.01777488455 | AE73: 0.0724989139 | AF73: 0.3516334752 | AG73: 0.4647308355 | AH73: 0.04254602654 | AI73: 0.02577737761 | AJ73: 0.01699281162 | AK73: 0.00805 | AL73: 0 | AM73: 0 | AN73: 1.000004325 | AP73: 3.62734056 | AQ73: 1.090106582 | AS73: 0.1226985779 | AT73: 0.1919943278 | AU73: 0.1383875265 | AV73: 0.06453952191 | AW73: 0.08016496533 | AX73: 0.1451140777 | AY73: 0.1932903723 | AZ73: 0.1539172122 | BA73: 0 | BB73: 0
A74: V54 | B74: 0 | C74: 0 | D74: 0.003 | E74: 0.003913503702 | F74: 0.005608059241 | G74: 0.1656970794 | H74: 0.3839212767 | I74: 0.3141872752 | J74: 0.07891525397 | K74: 0.04475428135 | L74: 0.9999967296 | N74: 7.405604025 | O74: 1.139453939 | Q74: 0 | R74: 0 | S74: 0.05822804048 | T74: 0.04538935904 | U74: 0.03245345033 | V74: 0.327371477 | W74: 0.06316066494 | X74: 0.1110044301 | Y74: 0.2006103507 | Z74: 0.301236166 | AC74: V54 | AD74: 0.04475428135 | AE74: 0.07891525397 | AF74: 0.3141872752 | AG74: 0.3839212767 | AH74: 0.1656970794 | AI74: 0.005608059241 | AJ74: 0.003913503702 | AK74: 0.003 | AL74: 0 | AM74: 0 | AN74: 0.9999967296 | AP74: 3.59436 | AQ74: 1.139453938 | AS74: 0.301227812 | AT74: 0.2006012979 | AU74: 0.1109909938 | AV74: 0.06317186946 | AW74: 0.3273882346 | AX74: 0.032454421 | AY74: 0.04539031798 | AZ74: 0.05822899143 | BA74: 0 | BB74: 0
A75: V55 | B75: 0 | C75: 0 | D75: 0.00604 | E75: 0.01058317128 | F75: 0.02589056799 | G75: 0.122690807 | H75: 0.3434153938 | I75: 0.3434080003 | J75: 0.1229204496 | K75: 0.02505388277 | L75: 1.000002273 | N75: 7.434045 | O75: 1.290335541 | Q75: 0 | R75: 0 | S75: 0.1187509606 | T75: 0.1248037942 | U75: 0.1533906135 | V75: 0.252311812 | W75: 0.06469776453 | X75: 0.1099953207 | Y75: 0.3014273779 | Z75: 0.1649578974 | AC75: V55 | AD75: 0.02505388277 | AE75: 0.1229204496 | AF75: 0.3434080003 | AG75: 0.3434153938 | AH75: 0.122690807 | AI75: 0.02589056799 | AJ75: 0.01058317128 | AK75: 0.00604 | AL75: 0 | AM75: 0 | AN75: 1.000002273 | AP75: 3.56598 | AQ75: 1.290335541 | AS75: 0.1649611118 | AT75: 0.3014370025 | AU75: 0.1100050387 | AV75: 0.06469031174 | AW75: 0.2523030147 | AX75: 0.1533874625 | AY75: 0.124801977 | AZ75: 0.1187496215 | BA75: 0 | BB75: 0
A76: V56 | B76: 0 | C76: 0 | D76: 0.00333 | E76: 0.01668327044 | F76: 0.04475428135 | G76: 0.07891525397 | H76: 0.3141872752 | I76: 0.3828212767 | J76: 0.1555970794 | K76: 0.003708059241 | L76: 0.9999964963 | N76: 7.473321459 | O76: 1.275886735 | Q76: 0 | R76: 0 | S76: 0.06663531424 | T76: 0.20126634 | U76: 0.2737762175 | V76: 0.1712994575 | W76: 0.07038838186 | X76: 0.1061909031 | Y76: 0.362657483 | Z76: 0.02367263749 | AC76: V56 | AD76: 0.003708059241 | AE76: 0.1555970794 | AF76: 0.3828212767 | AG76: 0.3141872752 | AH76: 0.07891525397 | AI76: 0.04475428135 | AJ76: 0.01668327044 | AK76: 0.00333 | AL76: 0 | AM76: 0 | AN76: 0.9999964963 | AP76: 3.52664 | AQ76: 1.275886734 | AS76: 0.02367191532 | AT76: 0.3626391728 | AU76: 0.1061753623 | AV76: 0.07039984523 | AW76: 0.1713084197 | AX76: 0.2737847498 | AY76: 0.2012708066 | AZ76: 0.06663646247 | BA76: 0 | BB76: 0
A77: V57 | B77: 0 | C77: 0 | D77: 0.00804 | E77: 0.01699567504 | F77: 0.01777488455 | G77: 0.0724989139 | H77: 0.3516334752 | I77: 0.4647308355 | J77: 0.04254602654 | K77: 0.02577737761 | L77: 0.9999971884 | N77: 7.435939632 | O77: 1.102049811 | Q77: 0 | R77: 0 | S77: 0.1582075858 | T77: 0.2006455205 | U77: 0.1054726436 | V77: 0.149487151 | W77: 0.06682560808 | X77: 0.1478606675 | Y77: 0.1040796995 | Z77: 0.1694709349 | AC77: V57 | AD77: 0.02577737761 | AE77: 0.04254602654 | AF77: 0.4647308355 | AG77: 0.3516334752 | AH77: 0.0724989139 | AI77: 0.01777488455 | AJ77: 0.01699567504 | AK77: 0.00804 | AL77: 0 | AM77: 0 | AN77: 0.9999971884 | AP77: 3.56402944 | AQ77: 1.10204981 | AS77: 0.1694668466 | AT77: 0.1040755834 | AU77: 0.1478444533 | AV77: 0.06683509032 | AW77: 0.1494935905 | AX77: 0.1054753218 | AY77: 0.2006491327 | AZ77: 0.1582097919 | BA77: 0 | BB77: 0
A78: V58 | B78: 0 | C78: 0 | D78: 0.007965418749 | E78: 0.0153494559 | F78: 0.04879598631 | G78: 0.06280719596 | H78: 0.1830252077 | I78: 0.6101038978 | J78: 0.07195283751 | K78: 0 | L78: 1 | N78: 7.515700362 | O78: 1.155551329 | Q78: 0 | R78: 0 | S78: 0.1624272328 | T78: 0.1897215625 | U78: 0.3088175159 | V78: 0.14428996 | W78: 0.04867497983 | X78: 0.1430975141 | Y78: 0.1585225642 | Z78: 0 | AC78: V58 | AD78: 0 | AE78: 0.07195283751 | AF78: 0.6101038978 | AG78: 0.1830252077 | AH78: 0.06280719596 | AI78: 0.04879598631 | AJ78: 0.0153494559 | AK78: 0.007965418749 | AL78: 0 | AM78: 0 | AN78: 1 | AP78: 3.484299638 | AQ78: 1.155551329 | AS78: 0 | AT78: 0.1585225642 | AU78: 0.1430975141 | AV78: 0.04867497983 | AW78: 0.14428996 | AX78: 0.3088175159 | AY78: 0.1897215625 | AZ78: 0.1624272328 | BA78: 0 | BB78: 0
A79: V62 | B79: 0 | C79: 0 | D79: 0 | E79: 0.01263 | F79: 0.0199308375 | G79: 0.1195854455 | H79: 0.5666378807 | I79: 0.1531490672 | J79: 0.07394022134 | K79: 0.05412444271 | L79: 0.999997895 | N79: 7.266050982 | O79: 1.178217618 | Q79: 0 | R79: 0 | S79: 0 | T79: 0.1347253343 | U79: 0.1023445926 | V79: 0.1916817277 | W79: 0.04010840009 | X79: 0.08249851723 | Y79: 0.2223071312 | Z79: 0.4045519146 | AC79: V62 | AD79: 0.05412444271 | AE79: 0.07394022134 | AF79: 0.1531490672 | AG79: 0.5666378807 | AH79: 0.1195854455 | AI79: 0.0199308375 | AJ79: 0.01263 | AK79: 0 | AL79: 0 | AM79: 0 | AN79: 0.999997895 | AP79: 3.733925862 | AQ79: 1.178217617 | AS79: 0.404545062 | AT79: 0.2223011939 | AU79: 0.0824933119 | AV79: 0.04011538185 | AW79: 0.1916887391 | AX79: 0.1023466841 | AY79: 0.1347272446 | AZ79: 0 | BA79: 0 | BB79: 0
A80: V63 | B80: 0 | C80: 0 | D80: 0.00632 | E80: 0.01094557368 | F80: 0.05078916418 | G80: 0.05938550836 | H80: 0.4377084127 | I80: 0.3066432992 | J80: 0.08695145872 | K80: 0.04125800851 | L80: 1.000001425 | N80: 7.385249662 | O80: 1.339534136 | Q80: 0 | R80: 0 | S80: 0.1215362203 | T80: 0.125435347 | U80: 0.2889606808 | V80: 0.1139558393 | W80: 0.06496350173 | X80: 0.1158860156 | Y80: 0.2267188555 | Z80: 0.2820776759 | AC80: V63 | AD80: 0.04125800851 | AE80: 0.08695145872 | AF80: 0.3066432992 | AG80: 0.4377084127 | AH80: 0.05938550836 | AI80: 0.05078916418 | AJ80: 0.01094557368 | AK80: 0.00632 | AL80: 0 | AM80: 0 | AN80: 1.000001425 | AP80: 3.614766017 | AQ80: 1.339534136 | AS80: 0.2820810588 | AT80: 0.2267232583 | AU80: 0.115891927 | AV80: 0.06495821401 | AW80: 0.1139532597 | AX80: 0.2889568819 | AY80: 0.125434185 | AZ80: 0.1215353512 | BA80: 0 | BB80: 0
A81: V64 | B81: 0.0014 | C81: 0.004 | D81: 0.015 | E81: 0.0250335037 | F81: 0.02330805924 | G81: 0.1555770794 | H81: 0.3528212767 | I81: 0.2891872752 | J81: 0.08891525397 | K81: 0.04475428135 | L81: 0.9999967296 | N81: 7.235564025 | O81: 1.856646296 | Q81: 0.0544351622 | R81: 0.1096445226 | S81: 0.2691000392 | T81: 0.2620726101 | U81: 0.1164877717 | V81: 0.2375068414 | W81: 0.01957819728 | X81: 0.1689901585 | Y81: 0.2768140193 | Z81: 0.3420169736 | AC81: V64 | AD81: 0.04475428135 | AE81: 0.08891525397 | AF81: 0.2891872752 | AG81: 0.3528212767 | AH81: 0.1555770794 | AI81: 0.02330805924 | AJ81: 0.0250335037 | AK81: 0.015 | AL81: 0.004 | AM81: 0.0014 | AN81: 0.9999967296 | AP81: 3.7644 | AQ81: 1.856646295 | AS81: 0.342008072 | AT81: 0.2768027316 | AU81: 0.1689742533 | AV81: 0.01958417762 | AW81: 0.2375206721 | AX81: 0.1164915208 | AY81: 0.2620784379 | AZ81: 0.2691046104 | BA81: 0.1096460294 | BB81: 0.0544357903
A82: V65 | B82: 0 | C82: 0 | D82: 0.007 | E82: 0.0138967306 | F82: 0.02386565181 | G82: 0.1787146482 | H82: 0.2869804398 | I82: 0.2869831519 | J82: 0.1792153039 | K82: 0.02334391126 | L82: 0.9999998375 | N82: 7.419308212 | O82: 1.54936704 | Q82: 0 | R82: 0 | S82: 0.1367119955 | T82: 0.1624759695 | U82: 0.1396869064 | V82: 0.3600091854 | W82: 0.05045672209 | X82: 0.09677156614 | Y82: 0.4477849439 | Z82: 0.1554697511 | AC82: V65 | AD82: 0.02334391126 | AE82: 0.1792153039 | AF82: 0.2869831519 | AG82: 0.2869804398 | AH82: 0.1787146482 | AI82: 0.02386565181 | AJ82: 0.0138967306 | AK82: 0.007 | AL82: 0 | AM82: 0 | AN82: 0.9999998375 | AP82: 3.58069 | AQ82: 1.54936704 | AS82: 0.1554695357 | AT82: 0.4477839309 | AU82: 0.09677097026 | AV82: 0.05045715236 | AW82: 0.3600100924 | AX82: 0.1396871129 | AY82: 0.1624761394 | AZ82: 0.1367121061 | BA82: 0 | BB82: 0
A83: V66 | B83: 0.0015 | C83: 0.004 | D83: 0.012 | E83: 0.03258307044 | F83: 0.04470428135 | G83: 0.08891525397 | H83: 0.2891672752 | I83: 0.3528212767 | J83: 0.1555970794 | K83: 0.01870805924 | L83: 0.9999962963 | N83: 7.367040659 | O83: 1.915823765 | Q83: 0.06080881014 | R83: 0.1152205018 | S83: 0.2288525294 | T83: 0.3693930576 | U83: 0.2504727902 | V83: 0.1661648412 | W83: 0.03895628149 | X83: 0.1413534438 | Y83: 0.414908358 | Z83: 0.1296931509 | AC83: V66 | AD83: 0.01870805924 | AE83: 0.1555970794 | AF83: 0.3528212767 | AG83: 0.2891672752 | AH83: 0.08891525397 | AI83: 0.04470428135 | AJ83: 0.03258307044 | AK83: 0.012 | AL83: 0.004 | AM83: 0.0015 | AN83: 0.9999962963 | AP83: 3.6329186 | AQ83: 1.915823764 | AS83: 0.1296891374 | AT83: 0.4148876552 | AU83: 0.1413352478 | AV83: 0.0389649301 | AW83: 0.1661747455 | AX83: 0.2504814123 | AY83: 0.3694019968 | AZ83: 0.2288567995 | BA83: 0.115222251 | BB83: 0.06080958833
A84: V67 | B84: 0 | C84: 0 | D84: 0.008 | E84: 0.01431857463 | F84: 0.04120800851 | G84: 0.08695145872 | H84: 0.3066432992 | I84: 0.4377084127 | J84: 0.05738550836 | K84: 0.04778916418 | L84: 1.000004426 | N84: 7.451554707 | O84: 1.40213082 | Q84: 0 | R84: 0 | S84: 0.1585307144 | T84: 0.1705804713 | U84: 0.2476650959 | V84: 0.1832076858 | W84: 0.0625250756 | X84: 0.1316592939 | Y84: 0.1375922479 | Z84: 0.3103702351 | AC84: V67 | AD84: 0.04778916418 | AE84: 0.05738550836 | AF84: 0.4377084127 | AG84: 0.3066432992 | AH84: 0.08695145872 | AI84: 0.04120800851 | AJ84: 0.01431857463 | AK84: 0.008 | AL84: 0 | AM84: 0 | AN84: 1.000004426 | AP84: 3.548493983 | AQ84: 1.402130819 | AS84: 0.3103820949 | AT84: 0.137600901 | AU84: 0.1316826717 | AV84: 0.06251159261 | AW84: 0.1831953953 | AX84: 0.2476552584 | AY84: 0.1705756587 | AZ84: 0.1585272466 | BA84: 0 | BB84: 0
A85: V68 | B85: 0 | C85: 0 | D85: 0.0159308375 | E85: 0.018632105 | F85: 0.05412444271 | G85: 0.07394022134 | H85: 0.1531490672 | I85: 0.5666378807 | J85: 0.1175854455 | K85: 0 | L85: 1 | N85: 7.5 | O85: 1.5 | Q85: 0 | R85: 0 | S85: 0.3225994594 | T85: 0.2282432863 | U85: 0.3382777669 | V85: 0.166365498 | W85: 0.03828726681 | X85: 0.1416594702 | Y85: 0.2645672524 | Z85: 0 | AC85: V68 | AD85: 0 | AE85: 0.1175854455 | AF85: 0.5666378807 | AG85: 0.1531490672 | AH85: 0.07394022134 | AI85: 0.05412444271 | AJ85: 0.018632105 | AK85: 0.0159308375 | AL85: 0 | AM85: 0 | AN85: 1 | AP85: 3.5 | AQ85: 1.5 | AS85: 0 | AT85: 0.2645672524 | AU85: 0.1416594702 | AV85: 0.03828726681 | AW85: 0.166365498 | AX85: 0.3382777669 | AY85: 0.2282432863 | AZ85: 0.3225994594 | BA85: 0 | BB85: 0
A86: V72 | B86: 0.003 | C86: 0.009 | D86: 0.02 | E86: 0.028 | F86: 0.04062 | G86: 0.1415254455 | H86: 0.4916378807 | I86: 0.1335446443 | J86: 0.07903233202 | K86: 0.05363675496 | L86: 0.9999970575 | N86: 7.00273353 | O86: 2.141402628 | Q86: 0.1080984295 | R86: 0.225246085 | S86: 0.3204375143 | T86: 0.2524594423 | U86: 0.1629244475 | V86: 0.1423002312 | W86: 3.673610295e-06 | X86: 0.1328155455 | Y86: 0.3152657696 | Z86: 0.4818514893 | AC86: V72 | AD86: 0.05363675496 | AE86: 0.07903233202 | AF86: 0.1335446443 | AG86: 0.4916378807 | AH86: 0.1415254455 | AI86: 0.04062 | AJ86: 0.028 | AK86: 0.02 | AL86: 0.009 | AM86: 0.003 | AN86: 0.9999970575 | AP86: 3.997234102 | AQ86: 2.141402627 | AS86: 0.4818410823 | AT86: 0.3152555513 | AU86: 0.1328069243 | AV86: 3.761123241e-06 | AW86: 0.142309418 | AX86: 0.1629297138 | AY86: 0.252464885 | AZ86: 0.3204426966 | BA86: 0.2252489996 | BB86: 0.1080995953
A87: V73 | B87: 0 | C87: 0.002 | D87: 0.00634116889 | E87: 0.02096107433 | F87: 0.03756592814 | G87: 0.1026496728 | H87: 0.4370174131 | I87: 0.2448597983 | J87: 0.09516808321 | K87: 0.05343917422 | L87: 1.000002313 | N87: 7.319500251 | O87: 1.597436628 | Q87: 0 | R87: 0.05659416584 | S87: 0.1183140518 | T87: 0.2309717951 | U87: 0.2021077518 | V87: 0.178721386 | W87: 0.04461091689 | X87: 0.113389653 | Y87: 0.2687622239 | Z87: 0.3839646833 | AC87: V73 | AD87: 0.05343917422 | AE87: 0.09516808321 | AF87: 0.2448597983 | AG87: 0.4370174131 | AH87: 0.1026496728 | AI87: 0.03756592814 | AJ87: 0.02096107433 | AK87: 0.00634116889 | AL87: 0.002 | AM87: 0 | AN87: 1.000002313 | AP87: 3.680525192 | AQ87: 1.597436627 | AS87: 0.3839719726 | AT87: 0.2687703623 | AU87: 0.1133981323 | AV87: 0.04460381198 | AW87: 0.1787144936 | AX87: 0.2021033179 | AY87: 0.2309682543 | AZ87: 0.118312658 | BA87: 0.05659362446 | BB87: 0
A88: V74 | B88: 0.007 | C88: 0.02 | D88: 0.026 | E88: 0.0343335037 | F88: 0.04900805924 | G88: 0.1554770794 | H88: 0.3078212767 | I88: 0.2466872752 | J88: 0.09391525397 | K88: 0.05975428135 | L88: 0.9999967296 | N88: 7.011264025 | O88: 2.988520278 | Q88: 0.2529470663 | R88: 0.5022553426 | S88: 0.4183462161 | T88: 0.3113262902 | U88: 0.1982465671 | V88: 0.1589994015 | W88: 3.905582852e-05 | X88: 0.2411611911 | Y88: 0.3714414766 | Z88: 0.5337576713 | AC88: V74 | AD88: 0.05975428135 | AE88: 0.09391525397 | AF88: 0.2466872752 | AG88: 0.3078212767 | AH88: 0.1554770794 | AI88: 0.04900805924 | AJ88: 0.0343335037 | AK88: 0.026 | AL88: 0.02 | AM88: 0.007 | AN88: 0.9999967296 | AP88: 3.9887 | AQ88: 2.988520278 | AS88: 0.5337448219 | AT88: 0.3714280384 | AU88: 0.2411436423 | AV88: 3.930569882e-05 | AW88: 0.1590107142 | AX88: 0.1982536591 | AY88: 0.3113337289 | AZ88: 0.4183537199 | BA88: 0.5022625538 | BB88: 0.2529500938
A89: V75 | B89: 0.0015 | C89: 0.005 | D89: 0.016 | E89: 0.02806375816 | F89: 0.04214955727 | G89: 0.1867018662 | H89: 0.2458776883 | I89: 0.2458479037 | J89: 0.1865492167 | K89: 0.04231412067 | L89: 1.000004111 | N89: 7.29272522 | O89: 2.33007492 | Q89: 0.05939758605 | R89: 0.1400647013 | S89: 0.2948398371 | T89: 0.3042683711 | U89: 0.2215628964 | V89: 0.3120046758 | W89: 0.02106878079 | X89: 0.1229823687 | Y89: 0.5437512639 | Z89: 0.3101344389 | AC89: V75 | AD89: 0.04231412067 | AE89: 0.1865492167 | AF89: 0.2458479037 | AG89: 0.2458776883 | AH89: 0.1867018662 | AI89: 0.04214955727 | AJ89: 0.02806375816 | AK89: 0.016 | AL89: 0.005 | AM89: 0.0015 | AN89: 1.000004111 | AP89: 3.70732 | AQ89: 2.330074919 | AS89: 0.3101447996 | AT89: 0.5437800688 | AU89: 0.1229980952 | AV89: 0.02106227186 | AW89: 0.3119828479 | AX89: 0.2215541565 | AY89: 0.3042600138 | AZ89: 0.2948336253 | BA89: 0.1400623079 | BB89: 0.05939673237
A90: V76 | B90: 0.007 | C90: 0.02 | D90: 0.032 | E90: 0.04101327044 | F90: 0.05975428135 | G90: 0.09391525397 | H90: 0.2466872752 | I90: 0.3078212767 | J90: 0.1555970794 | K90: 0.03620805924 | L90: 0.9999964963 | N90: 7.121151459 | O90: 3.207450271 | Q90: 0.2622794663 | R90: 0.5245238454 | S90: 0.5434844592 | T90: 0.3995343189 | U90: 0.2688514529 | V90: 0.1180496518 | W90: 0.00362079592 | X90: 0.237753384 | Y90: 0.5492688682 | Z90: 0.300084028 | AC90: V76 | AD90: 0.03620805924 | AE90: 0.1555970794 | AF90: 0.3078212767 | AG90: 0.2466872752 | AH90: 0.09391525397 | AI90: 0.05975428135 | AJ90: 0.04101327044 | AK90: 0.032 | AL90: 0.02 | AM90: 0.007 | AN90: 0.9999964963 | AP90: 3.87881 | AQ90: 3.20745027 | AS90: 0.3000759933 | AT90: 0.5492463341 | AU90: 0.2377325317 | AV90: 0.003623099983 | AW90: 0.1180577681 | AX90: 0.2688612229 | AY90: 0.399544186 | AZ90: 0.5434946245 | BA90: 0.5245317403 | BB90: 0.2622827691
A91: V77 | B91: 0 | C91: 0.0018 | D91: 0.00934116889 | E91: 0.02225168696 | F91: 0.05343917422 | G91: 0.09516808321 | H91: 0.2448597983 | I91: 0.4370174131 | J91: 0.1026496728 | K91: 0.03347592814 | L91: 1.000002926 | N91: 7.427598855 | O91: 1.669725391 | Q91: 0 | R91: 0.05302589279 | S91: 0.1831208338 | T91: 0.2614224736 | U91: 0.314929676 | V91: 0.1939562166 | W91: 0.04477035667 | X91: 0.1431857273 | Y91: 0.2537957074 | Z91: 0.2215185069 | AC91: V77 | AD91: 0.03347592814 | AE91: 0.1026496728 | AF91: 0.4370174131 | AG91: 0.2448597983 | AH91: 0.09516808321 | AI91: 0.05343917422 | AJ91: 0.02225168696 | AK91: 0.00934116889 | AL91: 0.0018 | AM91: 0 | AN91: 1.000002926 | AP91: 3.572433328 | AQ91: 1.669725391 | AS91: 0.2215240496 | AT91: 0.2538060964 | AU91: 0.1432018286 | AV91: 0.04476361781 | AW91: 0.193947472 | AX91: 0.3149213261 | AY91: 0.2614175646 | AZ91: 0.1831181718 | BA91: 0.05302526397 | BB91: 0
A92: V78 | B92: 0.008 | C92: 0.013 | D92: 0.0229308375 | E92: 0.03072105003 | F92: 0.05354675496 | G92: 0.07903233202 | H92: 0.1335446443 | I92: 0.4916378807 | J92: 0.1425854455 | K92: 0.025 | L92: 0.999998945 | N92: 7.368789045 | O92: 2.700570915 | Q92: 0.3244917912 | R92: 0.3747106455 | S92: 0.4376652501 | T92: 0.3486451979 | U92: 0.300459492 | V92: 0.1480736693 | W92: 0.01816278737 | X92: 0.1958819385 | Y92: 0.3793983658 | Z92: 0.1730817773 | AC92: V78 | AD92: 0.025 | AE92: 0.1425854455 | AF92: 0.4916378807 | AG92: 0.1335446443 | AH92: 0.07903233202 | AI92: 0.05354675496 | AJ92: 0.03072105003 | AK92: 0.0229308375 | AL92: 0.013 | AM92: 0.008 | AN92: 0.999998945 | AP92: 3.63119935 | AQ92: 2.700570915 | AS92: 0.1730802505 | AT92: 0.3793929676 | AU92: 0.1958747361 | AV92: 0.01816393045 | AW92: 0.14807618 | AX92: 0.3004624359 | AY92: 0.3486475999 | AZ92: 0.4376675752 | BA92: 0.3747122654 | BB92: 0.3244929737
A93: V82 | B93: 0.01 | C93: 0.023 | D93: 0.03 | E93: 0.04 | F93: 0.07093 | G93: 0.1582154455 | H93: 0.4166378807 | I93: 0.1139402213 | J93: 0.08412444271 | K93: 0.05314906722 | L93: 0.9999970575 | N93: 6.726540265 | O93: 3.070945861 | Q93: 0.3279326341 | R93: 0.5138242062 | S93: 0.4166130705 | T93: 0.2973608727 | U93: 0.2114381656 | V93: 0.08351572488 | W93: 0.03115627507 | X93: 0.1847768223 | Y93: 0.4348072068 | Z93: 0.5695208832 | AC93: V82 | AD93: 0.05314906722 | AE93: 0.08412444271 | AF93: 0.1139402213 | AG93: 0.4166378807 | AH93: 0.1582154455 | AI93: 0.07093 | AJ93: 0.04 | AK93: 0.03 | AL93: 0.023 | AM93: 0.01 | AN93: 0.9999970575 | AP93: 4.273427367 | AQ93: 3.070945861 | AS93: 0.5695096206 | AT93: 0.4347948261 | AU93: 0.1847674295 | AV93: 0.0311489 | AW93: 0.08352316633 | AX93: 0.2114460933 | AY93: 0.2973679329 | AZ93: 0.4166203076 | BA93: 0.5138312436 | BB93: 0.3279363412
A94: V83 | B94: 0 | C94: 0.005 | D94: 0.00768233778 | E94: 0.01697657498 | F94: 0.03401692108 | G94: 0.1479138373 | H94: 0.4363264135 | I94: 0.1830762974 | J94: 0.1033847077 | K94: 0.06562033993 | L94: 0.9999974297 | N94: 7.264081985 | O94: 1.802137312 | Q94: 0 | R94: 0.1385527957 | S94: 0.1396833014 | T94: 0.1808723548 | U94: 0.1743730245 | V94: 0.2363520034 | W94: 0.03042909635 | X94: 0.09914960529 | Y94: 0.3115406521 | Z94: 0.4911844779 | AC94: V83 | AD94: 0.06562033993 | AE94: 0.1033847077 | AF94: 0.1830762974 | AG94: 0.4363264135 | AH94: 0.1479138373 | AI94: 0.03401692108 | AJ94: 0.01697657498 | AK94: 0.00768233778 | AL94: 0.005 | AM94: 0 | AN94: 0.9999974297 | AP94: 3.735889742 | AQ94: 1.802137311 | AS94: 0.4911743259 | AT94: 0.3115305038 | AU94: 0.09914198689 | AV94: 0.0304356124 | AW94: 0.2363625765 | AX94: 0.1743773797 | AY94: 0.1808754883 | AZ94: 0.1396851538 | BA94: 0.1385542841 | BB94: 0
A95: V84 | B95: 0.02 | C95: 0.03 | D95: 0.04 | E95: 0.05333503702 | F95: 0.06447805924 | G95: 0.1515070794 | H95: 0.2628212767 | I95: 0.2041872752 | J95: 0.09891525397 | K95: 0.07475428135 | L95: 0.9999982629 | N95: 6.755800158 | O95: 4.212443745 | Q95: 0.6625847093 | R95: 0.6785290544 | S95: 0.5642413932 | T95: 0.4050494459 | U95: 0.1987751659 | V95: 0.08654597672 | W95: 0.01567296907 | X95: 0.3160886904 | Y95: 0.4981800423 | Z95: 0.7867762982 | AC95: V84 | AD95: 0.07475428135 | AE95: 0.09891525397 | AF95: 0.2041872752 | AG95: 0.2628212767 | AH95: 0.1515070794 | AI95: 0.06447805924 | AJ95: 0.05333503702 | AK95: 0.04 | AL95: 0.03 | AM95: 0.02 | AN95: 0.9999982629 | AP95: 4.244180733 | AQ95: 4.212443745 | AS95: 0.78676703 | AT95: 0.4981715588 | AU95: 0.3160789815 | AV95: 0.01567051638 | AW95: 0.08655035293 | AX95: 0.1987794925 | AY95: 0.4050550631 | AZ95: 0.5642471346 | BA95: 0.6785345069 | BB95: 0.6625891086
A96: V85 | B96: 0.004 | C96: 0.011 | D96: 0.025 | E96: 0.04020078573 | F96: 0.06045346273 | G96: 0.1946890842 | H96: 0.2047749368 | I96: 0.2047126554 | J96: 0.1938831294 | K96: 0.06128433009 | L96: 0.9999983844 | N96: 7.161122229 | O96: 3.123150092 | Q96: 0.1518377085 | R96: 0.2930090092 | S96: 0.432873455 | T96: 0.40171414 | U96: 0.2823448319 | V96: 0.2624807637 | W96: 0.005316033645 | X96: 0.1440595537 | Y96: 0.6556102685 | Z96: 0.4939043278 | AC96: V85 | AD96: 0.06128433009 | AE96: 0.1938831294 | AF96: 0.2047126554 | AG96: 0.2047749368 | AH96: 0.1946890842 | AI96: 0.06045346273 | AJ96: 0.04020078573 | AK96: 0.025 | AL96: 0.011 | AM96: 0.004 | AN96: 0.9999983844 | AP96: 3.83886 | AQ96: 3.123150092 | AS96: 0.4938981441 | AT96: 0.6555975965 | AU96: 0.14405345 | AV96: 0.005317206404 | AW96: 0.2624887985 | AX96: 0.2823494755 | AY96: 0.4017186568 | AZ96: 0.4328771525 | BA96: 0.2930110271 | BB96: 0.1518385844
A97: V86 | B97: 0.02633 | C97: 0.034 | D97: 0.042 | E97: 0.05868327044 | F97: 0.06975428135 | G97: 0.09291525397 | H97: 0.2041872752 | I97: 0.2628212767 | J97: 0.1555970794 | K97: 0.05370805924 | L97: 0.9999964963 | N97: 6.830661459 | O97: 4.709876605 | Q97: 0.8951308217 | R97: 0.7933998646 | S97: 0.6163066231 | T97: 0.4702081723 | U97: 0.2337690143 | V97: 0.06411138214 | W97: 0.005855180659 | X97: 0.359369362 | Y97: 0.7322444775 | Z97: 0.5394817071 | AC97: V86 | AD97: 0.05370805924 | AE97: 0.1555970794 | AF97: 0.2628212767 | AG97: 0.2041872752 | AH97: 0.09291525397 | AI97: 0.06975428135 | AJ97: 0.05868327044 | AK97: 0.042 | AL97: 0.034 | AM97: 0.02633 | AN97: 0.9999964963 | AP97: 4.1693 | AQ97: 4.709876605 | AS97: 0.5394685865 | AT97: 0.7322184594 | AU97: 0.3593456732 | AV97: 0.005852515734 | AW97: 0.06411733151 | AX97: 0.2337788575 | AY97: 0.4702209765 | AZ97: 0.6163190246 | BA97: 0.7934125247 | BB97: 0.8951426554
A98: V87 | B98: 0 | C98: 0.00398 | D98: 0.01168233778 | E98: 0.02885679929 | F98: 0.06562033993 | G98: 0.1033847077 | H98: 0.1830762974 | I98: 0.4363264135 | J98: 0.1479138373 | K98: 0.01916269211 | L98: 1.000003425 | N98: 7.401841003 | O98: 1.950984287 | Q98: 0 | R98: 0.1161359472 | S98: 0.2263593625 | T98: 0.3339459507 | U98: 0.3785532552 | V98: 0.2031673058 | W98: 0.0295624633 | X98: 0.1561150538 | Y98: 0.3777885333 | Z98: 0.129356415 | AC98: V87 | AD98: 0.01916269211 | AE98: 0.1479138373 | AF98: 0.4363264135 | AG98: 0.1830762974 | AH98: 0.1033847077 | AI98: 0.06562033993 | AJ98: 0.02885679929 | AK98: 0.01168233778 | AL98: 0.00398 | AM98: 0 | AN98: 1.000003425 | AP98: 3.598196672 | AQ98: 1.950984286 | AS98: 0.1293601666 | AT98: 0.3778063456 | AU98: 0.1561347204 | AV98: 0.02955692021 | AW98: 0.2031563855 | AX98: 0.3785413793 | AY98: 0.3339385539 | AZ98: 0.2263554878 | BA98: 0.1161343272 | BB98: 0
A99: V88 | B99: 0.012 | C99: 0.019 | D99: 0.0329308375 | E99: 0.045632105 | F99: 0.05814906722 | G99: 0.08412444271 | H99: 0.1139402213 | I99: 0.4166378807 | J99: 0.1675854455 | K99: 0.05 | L99: 1 | N99: 7.26576653 | O99: 3.627650871 | Q99: 0.4711179624 | R99: 0.5268376457 | S99: 0.5992346811 | T99: 0.4866769421 | U99: 0.2985197482 | V99: 0.13478123 | W99: 0.008047808424 | X99: 0.224608977 | Y99: 0.5040242428 | Z99: 0.3738016335 | AC99: V88 | AD99: 0.05 | AE99: 0.1675854455 | AF99: 0.4166378807 | AG99: 0.1139402213 | AH99: 0.08412444271 | AI99: 0.05814906722 | AJ99: 0.045632105 | AK99: 0.0329308375 | AL99: 0.019 | AM99: 0.012 | AN99: 1 | AP99: 3.73423347 | AQ99: 3.627650871 | AS99: 0.3738016335 | AT99: 0.5040242428 | AU99: 0.224608977 | AV99: 0.008047808424 | AW99: 0.13478123 | AX99: 0.2985197482 | AY99: 0.4866769421 | AZ99: 0.5992346811 | BA99: 0.5268376457 | BB99: 0.4711179624
A100: D22 | B100: 0 | C100: 0 | D100: 0 | E100: 0 | F100: 0 | G100: 0.725 | H100: 0.2 | I100: 0.075 | J100: 0 | K100: 0 | L100: 1 | N100: 6.35 | O100: 0.3775 | Q100: 0 | R100: 0 | S100: 0 | T100: 0 | U100: 0 | V100: 0.0888125 | W100: 0.0845 | X100: 0.2041875 | Y100: 0 | Z100: 0 | AC100: D22 | AD100: 0 | AE100: 0 | AF100: 0.075 | AG100: 0.2 | AH100: 0.725 | AI100: 0 | AJ100: 0 | AK100: 0 | AL100: 0 | AM100: 0 | AN100: 1 | AP100: 4.65 | AQ100: 0.3775 | AS100: 0 | AT100: 0 | AU100: 0.2041875 | AV100: 0.0845 | AW100: 0.0888125 | AX100: 0 | AY100: 0 | AZ100: 0 | BA100: 0 | BB100: 0
A101: D23 | B101: 0 | C101: 0 | D101: 0 | E101: 0 | F101: 0 | G101: 0.625 | H101: 0.2499999995 | I101: 0.1250000005 | J101: 0 | K101: 0 | L101: 1 | N101: 6.5 | O101: 0.5000000009 | Q101: 0 | R101: 0 | S101: 0 | T101: 0 | U101: 0 | V101: 0.1562500003 | W101: 0.06249999976 | X101: 0.2812500009 | Y101: 0 | Z101: 0 | AC101: D23 | AD101: 0 | AE101: 0 | AF101: 0.1250000005 | AG101: 0.2499999995 | AH101: 0.625 | AI101: 0 | AJ101: 0 | AK101: 0 | AL101: 0 | AM101: 0 | AN101: 1 | AP101: 4.5 | AQ101: 0.5000000009 | AS101: 0 | AT101: 0 | AU101: 0.2812500009 | AV101: 0.06249999976 | AW101: 0.1562500003 | AX101: 0 | AY101: 0 | AZ101: 0 | BA101: 0 | BB101: 0
A102: D24 | B102: 0 | C102: 0 | D102: 0 | E102: 0 | F102: 0.006893046072 | G102: 0.5836417236 | H102: 0.3051443686 | I102: 0.1043208618 | J102: 0 | K102: 0 | L102: 1 | N102: 6.506893046 | O102: 0.4723803016 | Q102: 0 | R102: 0 | S102: 0 | T102: 0 | U102: 0.01565222343 | V102: 0.1499612314 | W102: 0.07419721661 | X102: 0.2325696302 | Y102: 0 | Z102: 0 | AC102: D24 | AD102: 0 | AE102: 0 | AF102: 0.1043208618 | AG102: 0.3051443686 | AH102: 0.5836417236 | AI102: 0.006893046072 | AJ102: 0 | AK102: 0 | AL102: 0 | AM102: 0 | AN102: 1 | AP102: 4.493106954 | AQ102: 0.4723803016 | AS102: 0 | AT102: 0 | AU102: 0.2325696302 | AV102: 0.07419721661 | AW102: 0.1499612314 | AX102: 0.01565222343 | AY102: 0 | AZ102: 0 | BA102: 0 | BB102: 0
A103: D25 | B103: 0 | C103: 0 | D103: 0 | E103: 0 | F103: 0.0625 | G103: 0.4375 | H103: 0.4375 | I103: 0.0625 | J103: 0 | K103: 0 | L103: 1 | N103: 6.5 | O103: 0.5 | Q103: 0 | R103: 0 | S103: 0 | T103: 0 | U103: 0.140625 | V103: 0.109375 | W103: 0.109375 | X103: 0.140625 | Y103: 0 | Z103: 0 | AC103: D25 | AD103: 0 | AE103: 0 | AF103: 0.0625 | AG103: 0.4375 | AH103: 0.4375 | AI103: 0.0625 | AJ103: 0 | AK103: 0 | AL103: 0 | AM103: 0 | AN103: 1 | AP103: 4.5 | AQ103: 0.5 | AS103: 0 | AT103: 0 | AU103: 0.140625 | AV103: 0.109375 | AW103: 0.109375 | AX103: 0.140625 | AY103: 0 | AZ103: 0 | BA103: 0 | BB103: 0
A104: D26 | B104: 0 | C104: 0 | D104: 0 | E104: 0 | F104: 0.1043208618 | G104: 0.3051443686 | H104: 0.5836417236 | I104: 0.006893046072 | J104: 0 | K104: 0 | L104: 1 | N104: 6.493106954 | O104: 0.4723803016 | Q104: 0 | R104: 0 | S104: 0 | T104: 0 | U104: 0.2325696302 | V104: 0.07419721661 | W104: 0.1499612314 | X104: 0.01565222343 | Y104: 0 | Z104: 0 | AC104: D26 | AD104: 0 | AE104: 0 | AF104: 0.006893046072 | AG104: 0.5836417236 | AH104: 0.3051443686 | AI104: 0.1043208618 | AJ104: 0 | AK104: 0 | AL104: 0 | AM104: 0 | AN104: 1 | AP104: 4.506893046 | AQ104: 0.4723803016 | AS104: 0 | AT104: 0 | AU104: 0.01565222343 | AV104: 0.1499612314 | AW104: 0.07419721661 | AX104: 0.2325696302 | AY104: 0 | AZ104: 0 | BA104: 0 | BB104: 0
A105: D27 | B105: 0 | C105: 0 | D105: 0 | E105: 0 | F105: 0.1250000005 | G105: 0.2499999995 | H105: 0.625 | I105: 0 | J105: 0 | K105: 0 | L105: 1 | N105: 6.5 | O105: 0.5000000009 | Q105: 0 | R105: 0 | S105: 0 | T105: 0 | U105: 0.2812500009 | V105: 0.06249999976 | W105: 0.1562500003 | X105: 0 | Y105: 0 | Z105: 0 | AC105: D27 | AD105: 0 | AE105: 0 | AF105: 0 | AG105: 0.625 | AH105: 0.2499999995 | AI105: 0.1250000005 | AJ105: 0 | AK105: 0 | AL105: 0 | AM105: 0 | AN105: 1 | AP105: 4.5 | AQ105: 0.5000000009 | AS105: 0 | AT105: 0 | AU105: 0 | AV105: 0.1562500003 | AW105: 0.06249999976 | AX105: 0.2812500009 | AY105: 0 | AZ105: 0 | BA105: 0 | BB105: 0
A106: D28 | B106: 0 | C106: 0 | D106: 0 | E106: 0 | F106: 0.075 | G106: 0.2 | H106: 0.725 | I106: 0 | J106: 0 | K106: 0 | L106: 1 | N106: 6.65 | O106: 0.3775 | Q106: 0 | R106: 0 | S106: 0 | T106: 0 | U106: 0.2041875 | V106: 0.0845 | W106: 0.0888125 | X106: 0 | Y106: 0 | Z106: 0 | AC106: D28 | AD106: 0 | AE106: 0 | AF106: 0 | AG106: 0.725 | AH106: 0.2 | AI106: 0.075 | AJ106: 0 | AK106: 0 | AL106: 0 | AM106: 0 | AN106: 1 | AP106: 4.35 | AQ106: 0.3775 | AS106: 0 | AT106: 0 | AU106: 0 | AV106: 0.0888125 | AW106: 0.0845 | AX106: 0.2041875 | AY106: 0 | AZ106: 0 | BA106: 0 | BB106: 0
A107: D32 | B107: 0 | C107: 0 | D107: 0 | E107: 0 | F107: 0.01316011475 | G107: 0.6892849575 | H107: 0.2064506741 | I107: 0.06333708529 | J107: 0.02173376496 | K107: 0.006033403398 | L107: 1 | N107: 6.409299638 | O107: 0.597571275 | Q107: 0 | R107: 0 | S107: 0 | T107: 0 | U107: 0.0261376391 | V107: 0.1154732855 | W107: 0.07203619727 | X107: 0.1602635776 | Y107: 0.1458711267 | Z107: 0.07778944884 | AC107: D32 | AD107: 0.006033403398 | AE107: 0.02173376496 | AF107: 0.06333708529 | AG107: 0.2064506741 | AH107: 0.6892849575 | AI107: 0.01316011475 | AJ107: 0 | AK107: 0 | AL107: 0 | AM107: 0 | AN107: 1 | AP107: 4.590700362 | AQ107: 0.597571275 | AS107: 0.07778944884 | AT107: 0.1458711267 | AU107: 0.1602635776 | AV107: 0.07203619727 | AW107: 0.1154732855 | AX107: 0.0261376391 | AY107: 0 | AZ107: 0 | BA107: 0 | BB107: 0
A108: D33 | B108: 0 | C108: 0 | D108: 0.0008333759256 | E108: 0.001691276469 | F108: 0.04026024936 | G108: 0.5645732591 | H108: 0.264573458 | I108: 0.1083967615 | J108: 0.01550080199 | K108: 0.004170817611 | L108: 1 | N108: 6.498409727 | O108: 0.7105142859 | Q108: 0 | R108: 0 | S108: 0.01019958013 | T108: 0.01055703426 | U108: 0.09039358856 | V108: 0.1402469172 | W108: 0.06656477754 | X108: 0.2444101287 | Y108: 0.09700330415 | Z108: 0.05113895544 | AC108: D33 | AD108: 0.004170817611 | AE108: 0.01550080199 | AF108: 0.1083967615 | AG108: 0.264573458 | AH108: 0.5645732591 | AI108: 0.04026024936 | AJ108: 0.001691276469 | AK108: 0.0008333759256 | AL108: 0 | AM108: 0 | AN108: 1 | AP108: 4.501590273 | AQ108: 0.7105142859 | AS108: 0.05113895544 | AT108: 0.09700330415 | AU108: 0.2444101287 | AV108: 0.06656477754 | AW108: 0.1402469172 | AX108: 0.09039358856 | AY108: 0.01055703426 | AZ108: 0.01019958013 | BA108: 0 | BB108: 0
A109: D34 | B109: 0 | C109: 0 | D109: 0 | E109: 0.01854372373 | F109: 0.02808327202 | G109: 0.5193629661 | H109: 0.3192767982 | I109: 0.09977061731 | J109: 0.01005128074 | K109: 0.004911341868 | L109: 1 | N109: 6.503446523 | O109: 0.7362020293 | Q109: 0 | R109: 0 | S109: 0 | T109: 0.1162180504 | U109: 0.06347806457 | V109: 0.1316369072 | W109: 0.07872259725 | X109: 0.2234534889 | Y109: 0.06264741414 | Z109: 0.06004550686 | AC109: D34 | AD109: 0.004911341868 | AE109: 0.01005128074 | AF109: 0.09977061731 | AG109: 0.3192767982 | AH109: 0.5193629661 | AI109: 0.02808327202 | AJ109: 0.01854372373 | AK109: 0 | AL109: 0 | AM109: 0 | AN109: 1 | AP109: 4.496553477 | AQ109: 0.7362020293 | AS109: 0.06004550686 | AT109: 0.06264741414 | AU109: 0.2234534889 | AV109: 0.07872259725 | AW109: 0.1316369072 | AX109: 0.06347806457 | AY109: 0.1162180504 | AZ109: 0 | BA109: 0 | BB109: 0
A110: D35 | B110: 0 | C110: 0 | D110: 0.003389805978 | E110: 0.01335774208 | F110: 0.06458348292 | G110: 0.4186751739 | H110: 0.4186664243 | I110: 0.06456279769 | J110: 0.01338192714 | K110: 0.003382645974 | L110: 1 | N110: 6.5 | O110: 0.75 | Q110: 0 | R110: 0 | S110: 0.04152512323 | T110: 0.08348588802 | U110: 0.1453128366 | V110: 0.1046687935 | W110: 0.1046666061 | X110: 0.1452662948 | Y110: 0.08363704463 | Z110: 0.04143741319 | AC110: D35 | AD110: 0.003382645974 | AE110: 0.01338192714 | AF110: 0.06456279769 | AG110: 0.4186664243 | AH110: 0.4186751739 | AI110: 0.06458348292 | AJ110: 0.01335774208 | AK110: 0.003389805978 | AL110: 0 | AM110: 0 | AN110: 1 | AP110: 4.5 | AQ110: 0.75 | AS110: 0.04143741319 | AT110: 0.08363704463 | AU110: 0.1452662948 | AV110: 0.1046666061 | AW110: 0.1046687935 | AX110: 0.1453128366 | AY110: 0.08348588802 | AZ110: 0.04152512323 | BA110: 0 | BB110: 0
A111: D36 | B111: 0 | C111: 0 | D111: 0.004911341868 | E111: 0.01005128074 | F111: 0.09977061731 | G111: 0.3192767982 | H111: 0.5193629661 | I111: 0.02808327202 | J111: 0.01854372373 | K111: 0 | L111: 1 | N111: 6.496553477 | O111: 0.7362020293 | Q111: 0 | R111: 0 | S111: 0.06004550686 | T111: 0.06264741414 | U111: 0.2234534889 | V111: 0.07872259725 | W111: 0.1316369072 | X111: 0.06347806457 | Y111: 0.1162180504 | Z111: 0 | AC111: D36 | AD111: 0 | AE111: 0.01854372373 | AF111: 0.02808327202 | AG111: 0.5193629661 | AH111: 0.3192767982 | AI111: 0.09977061731 | AJ111: 0.01005128074 | AK111: 0.004911341868 | AL111: 0 | AM111: 0 | AN111: 1 | AP111: 4.503446523 | AQ111: 0.7362020293 | AS111: 0 | AT111: 0.1162180504 | AU111: 0.06347806457 | AV111: 0.1316369072 | AW111: 0.07872259725 | AX111: 0.2234534889 | AY111: 0.06264741414 | AZ111: 0.06004550686 | BA111: 0 | BB111: 0
A112: D37 | B112: 0 | C112: 0 | D112: 0.004170817611 | E112: 0.01550080199 | F112: 0.1083967615 | G112: 0.264573458 | H112: 0.5645732591 | I112: 0.04026024936 | J112: 0.001691276469 | K112: 0.0008333759256 | L112: 1 | N112: 6.501590273 | O112: 0.7105142859 | Q112: 0 | R112: 0 | S112: 0.05113895544 | T112: 0.09700330415 | U112: 0.2444101287 | V112: 0.06656477754 | W112: 0.1402469172 | X112: 0.09039358856 | Y112: 0.01055703426 | Z112: 0.01019958013 | AC112: D37 | AD112: 0.0008333759256 | AE112: 0.001691276469 | AF112: 0.04026024936 | AG112: 0.5645732591 | AH112: 0.264573458 | AI112: 0.1083967615 | AJ112: 0.01550080199 | AK112: 0.004170817611 | AL112: 0 | AM112: 0 | AN112: 1 | AP112: 4.498409727 | AQ112: 0.7105142859 | AS112: 0.01019958013 | AT112: 0.01055703426 | AU112: 0.09039358856 | AV112: 0.1402469172 | AW112: 0.06656477754 | AX112: 0.2444101287 | AY112: 0.09700330415 | AZ112: 0.05113895544 | BA112: 0 | BB112: 0
A113: D38 | B113: 0 | C113: 0 | D113: 0.006033403398 | E113: 0.02173376496 | F113: 0.06333708529 | G113: 0.2064506741 | H113: 0.6892849575 | I113: 0.01316011475 | J113: 0 | K113: 0 | L113: 1 | N113: 6.590700362 | O113: 0.597571275 | Q113: 0 | R113: 0 | S113: 0.07778944884 | T113: 0.1458711267 | U113: 0.1602635776 | V113: 0.07203619727 | W113: 0.1154732855 | X113: 0.0261376391 | Y113: 0 | Z113: 0 | AC113: D38 | AD113: 0 | AE113: 0 | AF113: 0.01316011475 | AG113: 0.6892849575 | AH113: 0.2064506741 | AI113: 0.06333708529 | AJ113: 0.02173376496 | AK113: 0.006033403398 | AL113: 0 | AM113: 0 | AN113: 1 | AP113: 4.409299638 | AQ113: 0.597571275 | AS113: 0 | AT113: 0 | AU113: 0.0261376391 | AV113: 0.1154732855 | AW113: 0.07203619727 | AX113: 0.1602635776 | AY113: 0.1458711267 | AZ113: 0.07778944884 | BA113: 0 | BB113: 0
A114: D42 | B114: 0 | C114: 0 | D114: 0 | E114: 0 | F114: 0.0263202295 | G114: 0.6535699149 | H114: 0.2129013483 | I114: 0.05167417058 | J114: 0.04346752992 | K114: 0.0120668068 | L114: 1 | N114: 6.468599277 | O114: 0.8106096558 | Q114: 0 | R114: 0 | S114: 0 | T114: 0 | U114: 0.05676704554 | V114: 0.1435143343 | W114: 0.06012051524 | X114: 0.1211856538 | Y114: 0.2785394806 | Z114: 0.1504826264 | AC114: D42 | AD114: 0.0120668068 | AE114: 0.04346752992 | AF114: 0.05167417058 | AG114: 0.2129013483 | AH114: 0.6535699149 | AI114: 0.0263202295 | AJ114: 0 | AK114: 0 | AL114: 0 | AM114: 0 | AN114: 1 | AP114: 4.531400723 | AQ114: 0.8106096558 | AS114: 0.1504826264 | AT114: 0.2785394806 | AU114: 0.1211856538 | AV114: 0.06012051524 | AW114: 0.1435143343 | AX114: 0.05676704554 | AY114: 0 | AZ114: 0 | BA114: 0 | BB114: 0
A115: D43 | B115: 0 | C115: 0 | D115: 0.001666751851 | E115: 0.003382552939 | F115: 0.08052049872 | G115: 0.5041465182 | H115: 0.2791469161 | I115: 0.09179352299 | J115: 0.03100160398 | K115: 0.008341635222 | L115: 1 | N115: 6.496819455 | O115: 0.921023514 | Q115: 0 | R115: 0 | S115: 0.02038061878 | T115: 0.02108719827 | U115: 0.1804036394 | V115: 0.1244382686 | W115: 0.07067739223 | X115: 0.2074122157 | Y115: 0.1942533485 | Z115: 0.1023708325 | AC115: D43 | AD115: 0.008341635222 | AE115: 0.03100160398 | AF115: 0.09179352299 | AG115: 0.2791469161 | AH115: 0.5041465182 | AI115: 0.08052049872 | AJ115: 0.003382552939 | AK115: 0.001666751851 | AL115: 0 | AM115: 0 | AN115: 1 | AP115: 4.503180545 | AQ115: 0.921023514 | AS115: 0.1023708325 | AT115: 0.1942533485 | AU115: 0.2074122157 | AV115: 0.07067739223 | AW115: 0.1244382686 | AX115: 0.1804036394 | AY115: 0.02108719827 | AZ115: 0.02038061878 | BA115: 0 | BB115: 0
A116: D44 | B116: 0 | C116: 0 | D116: 0 | E116: 0.03708744745 | F116: 0.04927349798 | G116: 0.4550842087 | H116: 0.3334092279 | I116: 0.09522037283 | J116: 0.02010256147 | K116: 0.009822683737 | L116: 1 | N116: 6.5 | O116: 1 | Q116: 0 | R116: 0 | S116: 0 | T116: 0.2317965466 | U116: 0.1108653704 | V116: 0.1137710522 | W116: 0.08335230697 | X116: 0.2142458389 | Y116: 0.1256410092 | Z116: 0.1203278758 | AC116: D44 | AD116: 0.009822683737 | AE116: 0.02010256147 | AF116: 0.09522037283 | AG116: 0.3334092279 | AH116: 0.4550842087 | AI116: 0.04927349798 | AJ116: 0.03708744745 | AK116: 0 | AL116: 0 | AM116: 0 | AN116: 1 | AP116: 4.5 | AQ116: 1 | AS116: 0.1203278758 | AT116: 0.1256410092 | AU116: 0.2142458389 | AV116: 0.08335230697 | AW116: 0.1137710522 | AX116: 0.1108653704 | AY116: 0.2317965466 | AZ116: 0 | BA116: 0 | BB116: 0
A117: D45 | B117: 0 | C117: 0 | D117: 0.006779611957 | E117: 0.02671548417 | F117: 0.06666696585 | G117: 0.3998503478 | H117: 0.3998328486 | I117: 0.06662559538 | J117: 0.02676385428 | K117: 0.006765291949 | L117: 1 | N117: 6.5 | O117: 1 | Q117: 0 | R117: 0 | S117: 0.08305024647 | T117: 0.166971776 | U117: 0.1500006732 | V117: 0.09996258694 | W117: 0.09995821216 | X117: 0.1499075896 | Y117: 0.1672740893 | Z117: 0.08287482637 | AC117: D45 | AD117: 0.006765291949 | AE117: 0.02676385428 | AF117: 0.06662559538 | AG117: 0.3998328486 | AH117: 0.3998503478 | AI117: 0.06666696585 | AJ117: 0.02671548417 | AK117: 0.006779611957 | AL117: 0 | AM117: 0 | AN117: 1 | AP117: 4.5 | AQ117: 1 | AS117: 0.08287482637 | AT117: 0.1672740893 | AU117: 0.1499075896 | AV117: 0.09995821216 | AW117: 0.09996258694 | AX117: 0.1500006732 | AY117: 0.166971776 | AZ117: 0.08305024647 | BA117: 0 | BB117: 0
A118: D46 | B118: 0 | C118: 0 | D118: 0.009822683737 | E118: 0.02010256147 | F118: 0.09522037283 | G118: 0.3334092279 | H118: 0.4550842087 | I118: 0.04927349798 | J118: 0.03708744745 | K118: 0 | L118: 1 | N118: 6.5 | O118: 1 | Q118: 0 | R118: 0 | S118: 0.1203278758 | T118: 0.1256410092 | U118: 0.2142458389 | V118: 0.08335230697 | W118: 0.1137710522 | X118: 0.1108653704 | Y118: 0.2317965466 | Z118: 0 | AC118: D46 | AD118: 0 | AE118: 0.03708744745 | AF118: 0.04927349798 | AG118: 0.4550842087 | AH118: 0.3334092279 | AI118: 0.09522037283 | AJ118: 0.02010256147 | AK118: 0.009822683737 | AL118: 0 | AM118: 0 | AN118: 1 | AP118: 4.5 | AQ118: 1 | AS118: 0 | AT118: 0.2317965466 | AU118: 0.1108653704 | AV118: 0.1137710522 | AW118: 0.08335230697 | AX118: 0.2142458389 | AY118: 0.1256410092 | AZ118: 0.1203278758 | BA118: 0 | BB118: 0
A119: D47 | B119: 0 | C119: 0 | D119: 0.008341635222 | E119: 0.03100160398 | F119: 0.09179352299 | G119: 0.2791469161 | H119: 0.5041465182 | I119: 0.08052049872 | J119: 0.003382552939 | K119: 0.001666751851 | L119: 1 | N119: 6.503180545 | O119: 0.921023514 | Q119: 0 | R119: 0 | S119: 0.1023708325 | T119: 0.1942533485 | U119: 0.2074122157 | V119: 0.07067739223 | W119: 0.1244382686 | X119: 0.1804036394 | Y119: 0.02108719827 | Z119: 0.02038061878 | AC119: D47 | AD119: 0.001666751851 | AE119: 0.003382552939 | AF119: 0.08052049872 | AG119: 0.5041465182 | AH119: 0.2791469161 | AI119: 0.09179352299 | AJ119: 0.03100160398 | AK119: 0.008341635222 | AL119: 0 | AM119: 0 | AN119: 1 | AP119: 4.496819455 | AQ119: 0.921023514 | AS119: 0.02038061878 | AT119: 0.02108719827 | AU119: 0.1804036394 | AV119: 0.1244382686 | AW119: 0.07067739223 | AX119: 0.2074122157 | AY119: 0.1942533485 | AZ119: 0.1023708325 | BA119: 0 | BB119: 0
A120: D48 | B120: 0 | C120: 0 | D120: 0.0120668068 | E120: 0.04346752992 | F120: 0.05167417058 | G120: 0.2129013483 | H120: 0.6535699149 | I120: 0.0263202295 | J120: 0 | K120: 0 | L120: 1 | N120: 6.531400723 | O120: 0.8106096558 | Q120: 0 | R120: 0 | S120: 0.1504826264 | T120: 0.2785394806 | U120: 0.1211856538 | V120: 0.06012051524 | W120: 0.1435143343 | X120: 0.05676704554 | Y120: 0 | Z120: 0 | AC120: D48 | AD120: 0 | AE120: 0 | AF120: 0.0263202295 | AG120: 0.6535699149 | AH120: 0.2129013483 | AI120: 0.05167417058 | AJ120: 0.04346752992 | AK120: 0.0120668068 | AL120: 0 | AM120: 0 | AN120: 1 | AP120: 4.468599277 | AQ120: 0.8106096558 | AS120: 0 | AT120: 0 | AU120: 0.05676704554 | AV120: 0.1435143343 | AW120: 0.06012051524 | AX120: 0.1211856538 | AY120: 0.2785394806 | AZ120: 0.1504826264 | BA120: 0 | BB120: 0
A121: D52 | B121: 0 | C121: 0 | D121: 0 | E121: 0.007965418749 | F121: 0.07195283751 | G121: 0.6101038978 | H121: 0.1830252077 | I121: 0.06280719596 | J121: 0.04879598631 | K121: 0.0153494559 | L121: 1 | N121: 6.428541707 | O121: 1.039175681 | Q121: 0 | R121: 0 | S121: 0 | T121: 0.04697856478 | U121: 0.1468364155 | V121: 0.1120443575 | W121: 0.05976955017 | X121: 0.1551011875 | Y121: 0.3226584702 | Z121: 0.1957871349 | AC121: D52 | AD121: 0.0153494559 | AE121: 0.04879598631 | AF121: 0.06280719596 | AG121: 0.1830252077 | AH121: 0.6101038978 | AI121: 0.07195283751 | AJ121: 0.007965418749 | AK121: 0 | AL121: 0 | AM121: 0 | AN121: 1 | AP121: 4.571458293 | AQ121: 1.039175681 | AS121: 0.1957871349 | AT121: 0.3226584702 | AU121: 0.1551011875 | AV121: 0.05976955017 | AW121: 0.1120443575 | AX121: 0.1468364155 | AY121: 0.04697856478 | AZ121: 0 | BA121: 0 | BB121: 0
A122: D53 | B122: 0 | C122: 0 | D122: 0.01235281162 | E122: 0.02577737761 | F122: 0.04254602654 | G122: 0.4647308355 | H122: 0.3516334752 | I122: 0.0724989139 | J122: 0.01777488455 | K122: 0.01268567504 | L122: 1 | N122: 6.46953944 | O122: 1.040937448 | Q122: 0 | R122: 0 | S122: 0.1486994889 | T122: 0.1572065607 | U122: 0.09188010851 | V122: 0.102457946 | W122: 0.09894558291 | X122: 0.1698148966 | Y122: 0.1138166855 | Z122: 0.1581161789 | AC122: D53 | AD122: 0.01268567504 | AE122: 0.01777488455 | AF122: 0.0724989139 | AG122: 0.3516334752 | AH122: 0.4647308355 | AI122: 0.04254602654 | AJ122: 0.02577737761 | AK122: 0.01235281162 | AL122: 0 | AM122: 0 | AN122: 1 | AP122: 4.53046056 | AQ122: 1.040937448 | AS122: 0.1581161789 | AT122: 0.1138166855 | AU122: 0.1698148966 | AV122: 0.09894558291 | AW122: 0.102457946 | AX122: 0.09188010851 | AY122: 0.1572065607 | AZ122: 0.1486994889 | BA122: 0 | BB122: 0
A123: D54 | B123: 0 | C123: 0 | D123: 0.003333503702 | E123: 0.003708059241 | F123: 0.1555970794 | G123: 0.3828212767 | H123: 0.3141872752 | I123: 0.07891525397 | J123: 0.04475428135 | K123: 0.01668327044 | L123: 1 | N123: 6.5 | O123: 1.25 | Q123: 0 | R123: 0 | S123: 0.04083542035 | T123: 0.02317537026 | U123: 0.3500934286 | V123: 0.09570531918 | W123: 0.0785468188 | X123: 0.1775593214 | Y123: 0.2797142584 | Z123: 0.2043700629 | AC123: D54 | AD123: 0.01668327044 | AE123: 0.04475428135 | AF123: 0.07891525397 | AG123: 0.3141872752 | AH123: 0.3828212767 | AI123: 0.1555970794 | AJ123: 0.003708059241 | AK123: 0.003333503702 | AL123: 0 | AM123: 0 | AN123: 1 | AP123: 4.5 | AQ123: 1.25 | AS123: 0.2043700629 | AT123: 0.2797142584 | AU123: 0.1775593214 | AV123: 0.0785468188 | AW123: 0.09570531918 | AX123: 0.3500934286 | AY123: 0.02317537026 | AZ123: 0.04083542035 | BA123: 0 | BB123: 0
A124: D55 | B124: 0 | C124: 0 | D124: 0.008583171277 | E124: 0.02528056799 | F124: 0.122690807 | G124: 0.3434153938 | H124: 0.3434080003 | I124: 0.1229204496 | J124: 0.02505388277 | K124: 0.008647727239 | L124: 1 | N124: 6.5 | O124: 1.25 | Q124: 0 | R124: 0 | S124: 0.1051438481 | T124: 0.1580035499 | U124: 0.2760543158 | V124: 0.08585384845 | W124: 0.08585200007 | X124: 0.2765710117 | Y124: 0.1565867673 | Z124: 0.1059346587 | AC124: D55 | AD124: 0.008647727239 | AE124: 0.02505388277 | AF124: 0.1229204496 | AG124: 0.3434080003 | AH124: 0.3434153938 | AI124: 0.122690807 | AJ124: 0.02528056799 | AK124: 0.008583171277 | AL124: 0 | AM124: 0 | AN124: 1 | AP124: 4.5 | AQ124: 1.25 | AS124: 0.1059346587 | AT124: 0.1565867673 | AU124: 0.2765710117 | AV124: 0.08585200007 | AW124: 0.08585384845 | AX124: 0.2760543158 | AY124: 0.1580035499 | AZ124: 0.1051438481 | BA124: 0 | BB124: 0
A125: D56 | B125: 0 | C125: 0 | D125: 0.01668327044 | E125: 0.04475428135 | F125: 0.07891525397 | G125: 0.3141872752 | H125: 0.3828212767 | I125: 0.1555970794 | J125: 0.003708059241 | K125: 0.003333503702 | L125: 1 | N125: 6.5 | O125: 1.25 | Q125: 0 | R125: 0 | S125: 0.2043700629 | T125: 0.2797142584 | U125: 0.1775593214 | V125: 0.0785468188 | W125: 0.09570531918 | X125: 0.3500934286 | Y125: 0.02317537026 | Z125: 0.04083542035 | AC125: D56 | AD125: 0.003333503702 | AE125: 0.003708059241 | AF125: 0.1555970794 | AG125: 0.3828212767 | AH125: 0.3141872752 | AI125: 0.07891525397 | AJ125: 0.04475428135 | AK125: 0.01668327044 | AL125: 0 | AM125: 0 | AN125: 1 | AP125: 4.5 | AQ125: 1.25 | AS125: 0.04083542035 | AT125: 0.02317537026 | AU125: 0.3500934286 | AV125: 0.09570531918 | AW125: 0.0785468188 | AX125: 0.1775593214 | AY125: 0.2797142584 | AZ125: 0.2043700629 | BA125: 0 | BB125: 0
A126: D57 | B126: 0 | C126: 0 | D126: 0.01268567504 | E126: 0.01777488455 | F126: 0.0724989139 | G126: 0.3516334752 | H126: 0.4647308355 | I126: 0.04254602654 | J126: 0.02577737761 | K126: 0.01235281162 | L126: 1 | N126: 6.53046056 | O126: 1.040937448 | Q126: 0 | R126: 0 | S126: 0.1581161789 | T126: 0.1138166855 | U126: 0.1698148966 | V126: 0.09894558291 | W126: 0.102457946 | X126: 0.09188010851 | Y126: 0.1572065607 | Z126: 0.1486994889 | AC126: D57 | AD126: 0.01235281162 | AE126: 0.02577737761 | AF126: 0.04254602654 | AG126: 0.4647308355 | AH126: 0.3516334752 | AI126: 0.0724989139 | AJ126: 0.01777488455 | AK126: 0.01268567504 | AL126: 0 | AM126: 0 | AN126: 1 | AP126: 4.46953944 | AQ126: 1.040937448 | AS126: 0.1486994889 | AT126: 0.1572065607 | AU126: 0.09188010851 | AV126: 0.102457946 | AW126: 0.09894558291 | AX126: 0.1698148966 | AY126: 0.1138166855 | AZ126: 0.1581161789 | BA126: 0 | BB126: 0
A127: D58 | B127: 0 | C127: 0.007965418749 | D127: 0.0153494559 | E127: 0.04879598631 | F127: 0.06280719596 | G127: 0.1830252077 | H127: 0.6101038978 | I127: 0.07195283751 | J127: 0 | K127: 0 | L127: 1 | N127: 6.515700362 | O127: 1.155551329 | Q127: 0 | R127: 0.1624272328 | S127: 0.1897215625 | T127: 0.3088175159 | U127: 0.14428996 | V127: 0.04867497983 | W127: 0.1430975141 | X127: 0.1585225642 | Y127: 0 | Z127: 0 | AC127: D58 | AD127: 0 | AE127: 0 | AF127: 0.07195283751 | AG127: 0.6101038978 | AH127: 0.1830252077 | AI127: 0.06280719596 | AJ127: 0.04879598631 | AK127: 0.0153494559 | AL127: 0.007965418749 | AM127: 0 | AN127: 1 | AP127: 4.484299638 | AQ127: 1.155551329 | AS127: 0 | AT127: 0 | AU127: 0.1585225642 | AV127: 0.1430975141 | AW127: 0.04867497983 | AX127: 0.14428996 | AY127: 0.3088175159 | AZ127: 0.1897215625 | BA127: 0.1624272328 | BB127: 0
A128: D62 | B128: 0 | C128: 0 | D128: 0 | E128: 0.0159308375 | F128: 0.1175854455 | G128: 0.5666378807 | H128: 0.1531490672 | I128: 0.07394022134 | J128: 0.05412444271 | K128: 0.018632105 | L128: 1 | N128: 6.388484138 | O128: 1.264532487 | Q128: 0 | R128: 0 | S128: 0 | T128: 0.09088314146 | U128: 0.2266915929 | V128: 0.08551694651 | W128: 0.0572703464 | X128: 0.1920215256 | Y128: 0.3691295165 | Z128: 0.243019418 | AC128: D62 | AD128: 0.018632105 | AE128: 0.05412444271 | AF128: 0.07394022134 | AG128: 0.1531490672 | AH128: 0.5666378807 | AI128: 0.1175854455 | AJ128: 0.0159308375 | AK128: 0 | AL128: 0 | AM128: 0 | AN128: 1 | AP128: 4.611515862 | AQ128: 1.264532487 | AS128: 0.243019418 | AT128: 0.3691295165 | AU128: 0.1920215256 | AV128: 0.0572703464 | AW128: 0.08551694651 | AX128: 0.2266915929 | AY128: 0.09088314146 | AZ128: 0 | BA128: 0 | BB128: 0
A129: D63 | B129: 0 | C129: 0 | D129: 0.008945573676 | E129: 0.04778916418 | F129: 0.05738550836 | G129: 0.4377084127 | H129: 0.3066432992 | I129: 0.08695145872 | J129: 0.04125800851 | K129: 0.01331857463 | L129: 1 | N129: 6.477793983 | O129: 1.339633643 | Q129: 0 | R129: 0 | S129: 0.1081971697 | T129: 0.2933998063 | U129: 0.1253227803 | V129: 0.09992317988 | W129: 0.08362135914 | X129: 0.2014761952 | Y129: 0.262463778 | Z129: 0.1652293742 | AC129: D63 | AD129: 0.01331857463 | AE129: 0.04125800851 | AF129: 0.08695145872 | AG129: 0.3066432992 | AH129: 0.4377084127 | AI129: 0.05738550836 | AJ129: 0.04778916418 | AK129: 0.008945573676 | AL129: 0 | AM129: 0 | AN129: 1 | AP129: 4.522206017 | AQ129: 1.339633643 | AS129: 0.1652293742 | AT129: 0.262463778 | AU129: 0.2014761952 | AV129: 0.08362135914 | AW129: 0.09992317988 | AX129: 0.1253227803 | AY129: 0.2933998063 | AZ129: 0.1081971697 | BA129: 0 | BB129: 0
A130: D64 | B130: 0.002 | C130: 0.008 | D130: 0.0133335037 | E130: 0.01870805924 | F130: 0.1555970794 | G130: 0.3528212767 | H130: 0.2891872752 | I130: 0.08891525397 | J130: 0.04475428135 | K130: 0.02668327044 | L130: =SUM(B130:K130) -> 1 | N130: 6.433 | O130: 1.815511 | Q130: 0.059034978 | R130: 0.157211912 | S130: 0.1571418612 | T130: 0.1107421509 | U130: 0.3195168909 | V130: 0.06615010835 | W130: 0.09297052792 | X130: 0.2183304281 | Y130: 0.2949078446 | Z130: 0.339504298 | AC130: D64 | AD130: 0.02668327044 | AE130: 0.04475428135 | AF130: 0.08891525397 | AG130: 0.2891872752 | AH130: 0.3528212767 | AI130: 0.1555970794 | AJ130: 0.01870805924 | AK130: 0.0133335037 | AL130: 0.008 | AM130: 0.002 | AN130: =SUM(AD130:AM130) -> 1 | AP130: 4.567 | AQ130: 1.815511 | AS130: 0.339504298 | AT130: 0.2949078446 | AU130: 0.2183304281 | AV130: 0.09297052792 | AW130: 0.06615010835 | AX130: 0.3195168909 | AY130: 0.1107421509 | AZ130: 0.1571418612 | BA130: 0.157211912 | BB130: 0.059034978
A131: D65 | B131: 0 | C131: 0 | D131: 0.0103867306 | E131: 0.02384565181 | F131: 0.1787146482 | G131: 0.2869804398 | H131: 0.2869831519 | I131: 0.1792153039 | J131: 0.02334391126 | K131: 0.01053016253 | L131: 1 | N131: 6.5 | O131: 1.5 | Q131: 0 | R131: 0 | S131: 0.1272374498 | T131: 0.1490353238 | U131: 0.4021079584 | V131: 0.07174510996 | W131: 0.07174578798 | X131: 0.4032344337 | Y131: 0.1458994454 | Z131: 0.128994491 | AC131: D65 | AD131: =K131 -> 0.01053016253 | AE131: =J131 -> 0.02334391126 | AF131: =I131 -> 0.1792153039 | AG131: =H131 -> 0.2869831519 | AH131: =G131 -> 0.2869804398 | AI131: =F131 -> 0.1787146482 | AJ131: =E131 -> 0.02384565181 | AK131: =D131 -> 0.0103867306 | AL131: =C131 -> 0 | AM131: =B131 -> 0 | AN131: 1 | AP131: =SUMPRODUCT(AD131:AM131,$AD$1:$AM$1) -> 4.5 | AQ131: 1.5 | AS131: =AD131*(AD$1-$AP131)^2 -> 0.128994491 | AT131: =AE131*(AE$1-$AP131)^2 -> 0.1458994454 | AU131: =AF131*(AF$1-$AP131)^2 -> 0.4032344337 | AV131: =AG131*(AG$1-$AP131)^2 -> 0.07174578798 | AW131: =AH131*(AH$1-$AP131)^2 -> 0.07174510996 | AX131: =AI131*(AI$1-$AP131)^2 -> 0.4021079584 | AY131: =AJ131*(AJ$1-$AP131)^2 -> 0.1490353238 | AZ131: =AK131*(AK$1-$AP131)^2 -> 0.1272374498 | BA131: =AL131*(AL$1-$AP131)^2 -> 0 | BB131: =AM131*(AM$1-$AP131)^2 -> 0
A132: D66 | B132: 0.002 | C132: 0.008 | D132: 0.02668327044 | E132: 0.04475428135 | F132: 0.08891525397 | G132: 0.2891872752 | H132: 0.3528212767 | I132: 0.1555970794 | J132: 0.01870805924 | K132: 0.0133335037 | L132: 1 | N132: 6.473 | O132: 1.819271 | Q132: 0.059907458 | R132: 0.160061832 | S132: 0.3218463769 | T132: 0.2737050563 | U132: 0.1929220051 | V132: 0.0646995799 | W132: 0.09798870036 | X132: 0.3628102223 | Y132: 0.1194645964 | Z132: 0.1658651727 | AC132: D66 | AD132: 0.0133335037 | AE132: 0.01870805924 | AF132: 0.1555970794 | AG132: 0.3528212767 | AH132: 0.2891872752 | AI132: 0.08891525397 | AJ132: 0.04475428135 | AK132: 0.02668327044 | AL132: 0.008 | AM132: 0.002 | AN132: 1 | AP132: 4.527 | AQ132: 1.819271 | AS132: 0.1658651727 | AT132: 0.1194645964 | AU132: 0.3628102223 | AV132: 0.09798870036 | AW132: 0.0646995799 | AX132: 0.1929220051 | AY132: 0.2737050563 | AZ132: 0.3218463769 | BA132: 0.160061832 | BB132: 0.059907458
A133: D67 | B133: 0 | C133: 0 | D133: 0.01331857463 | E133: 0.04125800851 | F133: 0.08695145872 | G133: 0.3066432992 | H133: 0.4377084127 | I133: 0.05738550836 | J133: 0.04778916418 | K133: 0.008945573676 | L133: 1 | N133: =SUMPRODUCT(B133:K133,$B$1:$K$1) -> 6.522206017 | O133: =SUM(Q133:Z133) -> 1.339633643 | Q133: =B133*(B$1-$N133)^2 -> 0 | R133: =C133*(C$1-$N133)^2 -> 0 | S133: =D133*(D$1-$N133)^2 -> 0.1652293742 | T133: =E133*(E$1-$N133)^2 -> 0.262463778 | U133: =F133*(F$1-$N133)^2 -> 0.2014761952 | V133: =G133*(G$1-$N133)^2 -> 0.08362135914 | W133: =H133*(H$1-$N133)^2 -> 0.09992317988 | X133: =I133*(I$1-$N133)^2 -> 0.1253227803 | Y133: =J133*(J$1-$N133)^2 -> 0.2933998063 | Z133: =K133*(K$1-$N133)^2 -> 0.1081971697 | AC133: D67 | AD133: 0.008945573676 | AE133: 0.04778916418 | AF133: 0.05738550836 | AG133: 0.4377084127 | AH133: 0.3066432992 | AI133: 0.08695145872 | AJ133: 0.04125800851 | AK133: 0.01331857463 | AL133: 0 | AM133: 0 | AN133: 1 | AP133: 4.477793983 | AQ133: =SUM(AS133:BB133) -> 1.339633643 | AS133: 0.1081971697 | AT133: 0.2933998063 | AU133: 0.1253227803 | AV133: 0.09992317988 | AW133: 0.08362135914 | AX133: 0.2014761952 | AY133: 0.262463778 | AZ133: 0.1652293742 | BA133: 0 | BB133: 0
A134: D68 | B134: 0 | C134: 0.0159308375 | D134: 0.018632105 | E134: 0.05412444271 | F134: 0.07394022134 | G134: 0.1531490672 | H134: 0.5666378807 | I134: 0.1175854455 | J134: 0 | K134: 0 | L134: 1 | N134: 6.5 | O134: 1.5 | Q134: 0 | R134: 0.3225994594 | S134: 0.2282432863 | T134: 0.3382777669 | U134: 0.166365498 | V134: 0.03828726681 | W134: 0.1416594702 | X134: 0.2645672524 | Y134: 0 | Z134: 0 | AC134: D68 | AD134: 0 | AE134: 0 | AF134: 0.1175854455 | AG134: 0.5666378807 | AH134: 0.1531490672 | AI134: 0.07394022134 | AJ134: 0.05412444271 | AK134: 0.018632105 | AL134: 0.0159308375 | AM134: 0 | AN134: 1 | AP134: 4.5 | AQ134: 1.5 | AS134: 0 | AT134: 0 | AU134: 0.2645672524 | AV134: 0.1416594702 | AW134: 0.03828726681 | AX134: 0.166365498 | AY134: 0.3382777669 | AZ134: 0.2282432863 | BA134: 0.3225994594 | BB134: 0
A135: D72 | B135: 0.005 | C135: 0.015 | D135: 0.02 | E135: 0.03093 | F135: 0.1425854455 | G135: 0.4916378807 | H135: 0.1335446443 | I135: 0.07903233202 | J135: 0.05363675496 | K135: 0.028632105 | L135: 0.9999991625 | N135: 6.217597523 | O135: 2.154472984 | Q135: 0.1361166195 | R135: 0.266821933 | S135: 0.2070586764 | T135: 0.1521056602 | U135: 0.2113891579 | V135: 0.02327840562 | W135: 0.08174983963 | X135: 0.2510824462 | Y135: 0.4152430743 | Z135: 0.4096271715 | AC135: D72 | AD135: 0.028632105 | AE135: 0.05363675496 | AF135: 0.07903233202 | AG135: 0.1335446443 | AH135: 0.4916378807 | AI135: 0.1425854455 | AJ135: 0.03093 | AK135: 0.02 | AL135: 0.015 | AM135: 0.005 | AN135: 0.9999991625 | AP135: 4.782393265 | AQ135: 2.154472984 | AS135: 0.4096251761 | AT135: 0.4152403246 | AU135: 0.2510798507 | AV135: 0.08174791449 | AW135: 0.02328037675 | AX135: 0.2113923567 | AY135: 0.152106924 | AZ135: 0.207059862 | BA135: 0.2668230986 | BB135: 0.1361171002
A136: D73 | B136: 0 | C136: 0.00334116889 | D136: 0.008961074325 | E136: 0.03347592814 | F136: 0.1026496728 | G136: 0.4370174131 | H136: 0.2448597983 | I136: 0.09516808321 | J136: 0.05343917422 | K136: 0.02108768696 | L136: 1 | N136: 6.470014808 | O136: 1.593635528 | Q136: 0 | R136: 0.06676000378 | S136: 0.1079003207 | T136: 0.2042357388 | U136: 0.2218201468 | V136: 0.09654322957 | W136: 0.06877727407 | X136: 0.2227746538 | Y136: 0.3420548063 | Z136: 0.2627693539 | AC136: D73 | AD136: 0.02108768696 | AE136: 0.05343917422 | AF136: 0.09516808321 | AG136: 0.2448597983 | AH136: 0.4370174131 | AI136: 0.1026496728 | AJ136: 0.03347592814 | AK136: 0.008961074325 | AL136: 0.00334116889 | AM136: 0 | AN136: 1 | AP136: 4.529985192 | AQ136: 1.593635528 | AS136: 0.2627693539 | AT136: 0.3420548063 | AU136: 0.2227746538 | AV136: 0.06877727407 | AW136: 0.09654322957 | AX136: 0.2218201468 | AY136: 0.2042357388 | AZ136: 0.1079003207 | BA136: 0.06676000378 | BB136: 0
A137: D74 | B137: 0.01 | C137: 0.025 | D137: 0.0283335037 | E137: 0.03620805924 | F137: 0.1555970794 | G137: 0.3078212767 | H137: 0.2466872752 | I137: 0.09391525397 | J137: 0.05975428135 | K137: 0.03668327044 | L137: 1 | N137: 6.2975 | O137: 2.86399375 | Q137: 0.2806350625 | R137: 0.4617126563 | S137: 0.3080845296 | T137: 0.191124467 | U137: 0.2619486556 | V137: 0.02724410687 | W137: 0.1217417121 | X137: 0.2722139506 | Y137: 0.4364157673 | Z137: 0.5028728422 | AC137: D74 | AD137: 0.03668327044 | AE137: 0.05975428135 | AF137: 0.09391525397 | AG137: 0.2466872752 | AH137: 0.3078212767 | AI137: 0.1555970794 | AJ137: 0.03620805924 | AK137: 0.0283335037 | AL137: 0.025 | AM137: 0.01 | AN137: 1 | AP137: 4.7025 | AQ137: 2.86399375 | AS137: 0.5028728422 | AT137: 0.4364157673 | AU137: 0.2722139506 | AV137: 0.1217417121 | AW137: 0.02724410687 | AX137: 0.2619486556 | AY137: 0.191124467 | AZ137: 0.3080845296 | BA137: 0.4617126562 | BB137: 0.2806350625
A138: D75 | B138: 0.002 | C138: 0.008 | D138: 0.02030375816 | E138: 0.04214955727 | F138: 0.1867018662 | G138: 0.2458776883 | H138: 0.2458479037 | I138: 0.1865492167 | J138: 0.04231412067 | K138: 0.02025588906 | L138: 1 | N138: 6.453 | O138: 2.207791 | Q138: 0.059470418 | R138: 0.158633672 | S138: 0.2420859521 | T138: 0.2536226953 | U138: 0.3941666602 | V138: 0.05045631454 | W138: 0.07355990541 | X138: 0.4464512642 | Y138: 0.2745005445 | Z138: 0.2548435737 | AC138: D75 | AD138: 0.02025588906 | AE138: 0.04231412067 | AF138: 0.1865492167 | AG138: 0.2458479037 | AH138: 0.2458776883 | AI138: 0.1867018662 | AJ138: 0.04214955727 | AK138: 0.02030375816 | AL138: 0.008 | AM138: 0.002 | AN138: 1 | AP138: 4.547 | AQ138: 2.207791 | AS138: 0.2548435737 | AT138: 0.2745005445 | AU138: 0.4464512642 | AV138: 0.07355990541 | AW138: 0.05045631454 | AX138: 0.3941666602 | AY138: 0.2536226953 | AZ138: 0.2420859521 | BA138: 0.158633672 | BB138: 0.059470418
A139: D76 | B139: 0.01 | C139: 0.025 | D139: 0.03668327044 | E139: 0.05975428135 | F139: 0.09391525397 | G139: 0.2466872752 | H139: 0.3078212767 | I139: 0.1555970794 | J139: 0.03620805924 | K139: 0.0283335037 | L139: 1 | N139: 6.3675 | O139: 2.88744375 | Q139: 0.2881005625 | R139: 0.4768764063 | S139: 0.4159903503 | T139: 0.3349261081 | U139: 0.1756268077 | V139: 0.03331665831 | W139: 0.1231458256 | X139: 0.4146749689 | Y139: 0.2509238872 | Z139: 0.3738621751 | AC139: D76 | AD139: 0.0283335037 | AE139: 0.03620805924 | AF139: 0.1555970794 | AG139: 0.3078212767 | AH139: 0.2466872752 | AI139: 0.09391525397 | AJ139: 0.05975428135 | AK139: 0.03668327044 | AL139: 0.025 | AM139: 0.01 | AN139: 1 | AP139: 4.6325 | AQ139: 2.88744375 | AS139: 0.3738621751 | AT139: 0.2509238872 | AU139: 0.4146749689 | AV139: 0.1231458256 | AW139: 0.03331665831 | AX139: 0.1756268077 | AY139: 0.3349261081 | AZ139: 0.4159903503 | BA139: 0.4768764062 | BB139: 0.2881005625
A140: D77 | B140: 0 | C140: 0.00334116889 | D140: 0.02108768696 | E140: 0.05343917422 | F140: 0.09516808321 | G140: 0.2448597983 | H140: 0.4370174131 | I140: 0.1026496728 | J140: 0.03347592814 | K140: 0.008961074325 | L140: 1 | N140: 6.499914672 | O140: 1.594534632 | Q140: 0 | R140: 0.0676561042 | S140: 0.2583115699 | T140: 0.3339720401 | U140: 0.2141038265 | V140: 0.06119405806 | W140: 0.1092916461 | X140: 0.2309880411 | Y140: 0.2092388332 | Z140: 0.1097785129 | AC140: D77 | AD140: 0.008961074325 | AE140: 0.03347592814 | AF140: 0.1026496728 | AG140: 0.4370174131 | AH140: 0.2448597983 | AI140: 0.09516808321 | AJ140: 0.05343917422 | AK140: 0.02108768696 | AL140: 0.00334116889 | AM140: 0 | AN140: 1 | AP140: 4.500085328 | AQ140: 1.594534632 | AS140: 0.1097785129 | AT140: 0.2092388332 | AU140: 0.2309880411 | AV140: 0.1092916461 | AW140: 0.06119405806 | AX140: 0.2141038265 | AY140: 0.3339720401 | AZ140: 0.2583115699 | BA140: 0.0676561042 | BB140: 0
A141: D78 | B141: 0.01 | C141: 0.0209308375 | D141: 0.028632105 | E141: 0.05363675496 | F141: 0.07903233202 | G141: 0.1335446443 | H141: 0.4916378807 | I141: 0.1425854455 | J141: 0.025 | K141: 0.015 | L141: 1 | N141: 6.505883265 | O141: 2.407223482 | Q141: 0.3031475053 | R141: 0.4249584588 | S141: 0.3519234291 | T141: 0.3368093712 | U141: 0.179220387 | V141: 0.03417646193 | W141: 0.1200340513 | X141: 0.3183055839 | Y141: 0.1555154572 | Z141: 0.1831327764 | AC141: D78 | AD141: 0.015 | AE141: 0.025 | AF141: 0.1425854455 | AG141: 0.4916378807 | AH141: 0.1335446443 | AI141: 0.07903233202 | AJ141: 0.05363675496 | AK141: 0.028632105 | AL141: 0.0209308375 | AM141: 0.01 | AN141: 1 | AP141: 4.494116735 | AQ141: 2.407223482 | AS141: 0.1831327764 | AT141: 0.1555154572 | AU141: 0.3183055839 | AV141: 0.1200340513 | AW141: 0.03417646193 | AX141: 0.179220387 | AY141: 0.3368093712 | AZ141: 0.3519234291 | BA141: 0.4249584588 | BB141: 0.3031475053
A142: D82 | B142: 0.018 | C142: 0.028 | D142: 0.032 | E142: 0.05093 | F142: 0.1645854455 | G142: 0.4166378807 | H142: 0.1139402213 | I142: 0.08412444271 | J142: 0.05314906722 | K142: 0.038632105 | L142: 0.9999991625 | N142: 6.031714258 | O142: 3.100192609 | Q142: 0.4557266707 | R142: 0.455132156 | S142: 0.2941213229 | T142: 0.2102320537 | U142: 0.1751903951 | V142: 0.000419051945 | W142: 0.1068277626 | X142: 0.3259106056 | Y142: 0.4682815627 | Z142: 0.6083510277 | AC142: D82 | AD142: 0.038632105 | AE142: 0.05314906722 | AF142: 0.08412444271 | AG142: 0.1139402213 | AH142: 0.4166378807 | AI142: 0.1645854455 | AJ142: 0.05093 | AK142: 0.032 | AL142: 0.028 | AM142: 0.018 | AN142: 0.9999991625 | AP142: 4.96827653 | AQ142: 3.100192609 | AS142: 0.6083482031 | AT142: 0.4682786559 | AU142: 0.3259075548 | AV142: 0.1068257299 | AW142: 0.0004192954363 | AX142: 0.1751935238 | AY142: 0.2102339603 | AZ142: 0.2941231104 | BA142: 0.455134236 | BB142: 0.4557283395
A143: D83 | B143: 0 | C143: 0.00668233778 | D143: 0.008976574975 | E143: 0.01916269211 | F143: 0.1479138373 | G143: 0.4363264135 | H143: 0.1830762974 | I143: 0.1033847077 | J143: 0.06562033993 | K143: 0.02885679929 | L143: 1 | N143: 6.462235632 | O143: 1.847516381 | Q143: 0 | R143: 0.1330556817 | S143: 0.1076028826 | T143: 0.1161758197 | U143: 0.3162594632 | V143: 0.09322627805 | W143: 0.05294392878 | X143: 0.2444758085 | Y143: 0.4226112621 | Z143: 0.3611652568 | AC143: D83 | AD143: 0.02885679929 | AE143: 0.06562033993 | AF143: 0.1033847077 | AG143: 0.1830762974 | AH143: 0.4363264135 | AI143: 0.1479138373 | AJ143: 0.01916269211 | AK143: 0.008976574975 | AL143: 0.00668233778 | AM143: 0 | AN143: 1 | AP143: 4.537764368 | AQ143: 1.847516381 | AS143: 0.3611652568 | AT143: 0.4226112621 | AU143: 0.2444758085 | AV143: 0.05294392878 | AW143: 0.09322627805 | AX143: 0.3162594632 | AY143: 0.1161758197 | AZ143: 0.1076028826 | BA143: 0.1330556817 | BB143: 0
A144: D84 | B144: 0.025 | C144: 0.035 | D144: 0.0453335037 | E144: 0.05570805924 | F144: 0.1515970794 | G144: 0.2628212767 | H144: 0.2041872752 | I144: 0.09891525397 | J144: 0.07475428135 | K144: 0.04668327044 | L144: 1 | N144: 6.149 | O144: 3.964799 | Q144: 0.662805025 | R144: 0.602497035 | S144: 0.4495361347 | T144: 0.2572710149 | U144: 0.2001386158 | V144: 0.005834895164 | W144: 0.1478726289 | X144: 0.3389035421 | Y144: 0.6076178244 | Z144: 0.692322284 | AC144: D84 | AD144: 0.04668327044 | AE144: 0.07475428135 | AF144: 0.09891525397 | AG144: 0.2041872752 | AH144: 0.2628212767 | AI144: 0.1515970794 | AJ144: 0.05570805924 | AK144: 0.0453335037 | AL144: 0.035 | AM144: 0.025 | AN144: 1 | AP144: 4.851 | AQ144: 3.964799 | AS144: 0.692322284 | AT144: 0.6076178244 | AU144: 0.3389035421 | AV144: 0.1478726289 | AW144: 0.005834895164 | AX144: 0.2001386158 | AY144: 0.2572710149 | AZ144: 0.4495361347 | BA144: 0.602497035 | BB144: 0.662805025
A145: D85 | B145: 0.005 | C145: 0.015 | D145: 0.03022078573 | E145: 0.06045346273 | F145: 0.1946890842 | G145: 0.2047749368 | H145: 0.2047126554 | I145: 0.1938831294 | J145: 0.06128433009 | K145: 0.02998161559 | L145: 1 | N145: 6.405 | O145: 2.920975 | Q145: 0.146070125 | R145: 0.291060375 | S145: 0.3503805452 | T145: 0.3496643397 | U145: 0.3843211195 | V145: 0.03358820901 | W145: 0.07247339783 | X145: 0.4932435284 | Y145: 0.4126902109 | Z145: 0.3874831494 | AC145: D85 | AD145: 0.02998161559 | AE145: 0.06128433009 | AF145: 0.1938831294 | AG145: 0.2047126554 | AH145: 0.2047749368 | AI145: 0.1946890842 | AJ145: 0.06045346273 | AK145: 0.03022078573 | AL145: 0.015 | AM145: 0.005 | AN145: 1 | AP145: 4.595 | AQ145: 2.920975 | AS145: 0.3874831494 | AT145: 0.4126902109 | AU145: 0.4932435284 | AV145: 0.07247339783 | AW145: 0.03358820901 | AX145: 0.3843211195 | AY145: 0.3496643397 | AZ145: 0.3503805452 | BA145: 0.291060375 | BB145: 0.146070125
A146: D86 | B146: 0.027 | C146: 0.04 | D146: 0.05468327044 | E146: 0.06575428135 | F146: 0.09291525397 | G146: 0.2041872752 | H146: 0.2628212767 | I146: 0.1555970794 | J146: 0.05370805924 | K146: 0.0433335037 | L146: 1 | N146: 6.225 | O146: 4.174375 | Q146: 0.737116875 | R146: 0.714025 | S146: 0.5687401897 | T146: 0.3255247891 | U146: 0.139430953 | V146: 0.01033698081 | W146: 0.1578570293 | X146: 0.4902280482 | Y146: 0.4135856237 | Z146: 0.6175295112 | AC146: D86 | AD146: 0.0433335037 | AE146: 0.05370805924 | AF146: 0.1555970794 | AG146: 0.2628212767 | AH146: 0.2041872752 | AI146: 0.09291525397 | AJ146: 0.06575428135 | AK146: 0.05468327044 | AL146: 0.04 | AM146: 0.027 | AN146: 1 | AP146: 4.775 | AQ146: 4.174375 | AS146: 0.6175295112 | AT146: 0.4135856237 | AU146: 0.4902280482 | AV146: 0.1578570293 | AW146: 0.01033698081 | AX146: 0.139430953 | AY146: 0.3255247891 | AZ146: 0.5687401897 | BA146: 0.714025 | BB146: 0.737116875
A147: D87 | B147: 0 | C147: 0.00668233778 | D147: 0.02885679929 | E147: 0.06562033993 | F147: 0.1033847077 | G147: 0.1830762974 | H147: 0.4363264135 | I147: 0.1479138373 | J147: 0.01916269211 | K147: 0.008976574975 | L147: 1 | N147: 6.477623328 | O147: 1.848441813 | Q147: 0 | R147: 0.1339749297 | S147: 0.3489902064 | T147: 0.4028181575 | U147: 0.2257271415 | V147: 0.04176410519 | W147: 0.1190636119 | X147: 0.342809655 | Y147: 0.1219204071 | Z147: 0.1113735993 | AC147: D87 | AD147: 0.008976574975 | AE147: 0.01916269211 | AF147: 0.1479138373 | AG147: 0.4363264135 | AH147: 0.1830762974 | AI147: 0.1033847077 | AJ147: 0.06562033993 | AK147: 0.02885679929 | AL147: 0.00668233778 | AM147: 0 | AN147: 1 | AP147: 4.522376672 | AQ147: 1.848441813 | AS147: 0.1113735993 | AT147: 0.1219204071 | AU147: 0.342809655 | AV147: 0.1190636119 | AW147: 0.04176410519 | AX147: 0.2257271415 | AY147: 0.4028181575 | AZ147: 0.3489902064 | BA147: 0.1339749297 | BB147: 0
A148: D88 | B148: 0.019 | C148: 0.0309308375 | D148: 0.043632105 | E148: 0.05514906722 | F148: 0.07312444271 | G148: 0.1139402213 | H148: 0.4166378807 | I148: 0.1675854455 | J148: 0.05 | K148: 0.03 | L148: 1 | N148: 6.48876653 | O148: 3.434389999 | Q148: 0.5724046023 | R148: 0.6232262167 | S148: 0.5310678125 | T148: 0.3415910524 | U148: 0.1620748999 | V148: 0.02721948945 | W148: 0.1088923354 | X148: 0.3827360986 | Y148: 0.3153146771 | Z148: 0.3698628145 | AC148: D88 | AD148: 0.03 | AE148: 0.05 | AF148: 0.1675854455 | AG148: 0.4166378807 | AH148: 0.1139402213 | AI148: 0.07312444271 | AJ148: 0.05514906722 | AK148: 0.043632105 | AL148: 0.0309308375 | AM148: 0.019 | AN148: 1 | AP148: 4.51123347 | AQ148: 3.434389999 | AS148: 0.3698628145 | AT148: 0.3153146771 | AU148: 0.3827360986 | AV148: 0.1088923354 | AW148: 0.02721948945 | AX148: 0.1620748999 | AY148: 0.3415910524 | AZ148: 0.5310678125 | BA148: 0.6232262167 | BB148: 0.5724046023
A149: P22 | B149: 0 | C149: 0 | D149: 0 | E149: 0 | F149: 0.725 | G149: 0.2 | H149: 0.075 | I149: 0 | J149: 0 | K149: 0 | L149: 1 | N149: 5.35 | O149: 0.3775 | Q149: 0 | R149: 0 | S149: 0 | T149: 0 | U149: 0.0888125 | V149: 0.0845 | W149: 0.2041875 | X149: 0 | Y149: 0 | Z149: 0 | AC149: P22 | AD149: 0 | AE149: 0 | AF149: 0 | AG149: 0.075 | AH149: 0.2 | AI149: 0.725 | AJ149: 0 | AK149: 0 | AL149: 0 | AM149: 0 | AN149: 1 | AP149: 5.65 | AQ149: 0.3775 | AS149: 0 | AT149: 0 | AU149: 0 | AV149: 0.2041875 | AW149: 0.0845 | AX149: 0.0888125 | AY149: 0 | AZ149: 0 | BA149: 0 | BB149: 0
A150: P23 | B150: 0 | C150: 0 | D150: 0 | E150: 0 | F150: 0.625 | G150: 0.2499999995 | H150: 0.1250000005 | I150: 0 | J150: 0 | K150: 0 | L150: 1 | N150: 5.5 | O150: 0.5000000009 | Q150: 0 | R150: 0 | S150: 0 | T150: 0 | U150: 0.1562500003 | V150: 0.06249999976 | W150: 0.2812500009 | X150: 0 | Y150: 0 | Z150: 0 | AC150: P23 | AD150: 0 | AE150: 0 | AF150: 0 | AG150: 0.1250000005 | AH150: 0.2499999995 | AI150: 0.625 | AJ150: 0 | AK150: 0 | AL150: 0 | AM150: 0 | AN150: 1 | AP150: 5.5 | AQ150: 0.5000000009 | AS150: 0 | AT150: 0 | AU150: 0 | AV150: 0.2812500009 | AW150: 0.06249999976 | AX150: 0.1562500003 | AY150: 0 | AZ150: 0 | BA150: 0 | BB150: 0
A151: P24 | B151: 0 | C151: 0 | D151: 0 | E151: 0.006893046072 | F151: 0.5836417236 | G151: 0.3051443686 | H151: 0.1043208618 | I151: 0 | J151: 0 | K151: 0 | L151: 1 | N151: 5.506893046 | O151: 0.4723803016 | Q151: 0 | R151: 0 | S151: 0 | T151: 0.01565222343 | U151: 0.1499612314 | V151: 0.07419721661 | W151: 0.2325696302 | X151: 0 | Y151: 0 | Z151: 0 | AC151: P24 | AD151: 0 | AE151: 0 | AF151: 0 | AG151: 0.1043208618 | AH151: 0.3051443686 | AI151: 0.5836417236 | AJ151: 0.006893046072 | AK151: 0 | AL151: 0 | AM151: 0 | AN151: 1 | AP151: 5.493106954 | AQ151: 0.4723803016 | AS151: 0 | AT151: 0 | AU151: 0 | AV151: 0.2325696302 | AW151: 0.07419721661 | AX151: 0.1499612314 | AY151: 0.01565222343 | AZ151: 0 | BA151: 0 | BB151: 0
A152: P25 | B152: 0 | C152: 0 | D152: 0 | E152: 0.0625 | F152: 0.4375 | G152: 0.4375 | H152: 0.0625 | I152: 0 | J152: 0 | K152: 0 | L152: 1 | N152: 5.5 | O152: 0.5 | Q152: 0 | R152: 0 | S152: 0 | T152: 0.140625 | U152: 0.109375 | V152: 0.109375 | W152: 0.140625 | X152: 0 | Y152: 0 | Z152: 0 | AC152: P25 | AD152: 0 | AE152: 0 | AF152: 0 | AG152: 0.0625 | AH152: 0.4375 | AI152: 0.4375 | AJ152: 0.0625 | AK152: 0 | AL152: 0 | AM152: 0 | AN152: 1 | AP152: 5.5 | AQ152: 0.5 | AS152: 0 | AT152: 0 | AU152: 0 | AV152: 0.140625 | AW152: 0.109375 | AX152: 0.109375 | AY152: 0.140625 | AZ152: 0 | BA152: 0 | BB152: 0
A153: P26 | B153: 0 | C153: 0 | D153: 0 | E153: 0.1043208618 | F153: 0.3051443686 | G153: 0.5836417236 | H153: 0.006893046072 | I153: 0 | J153: 0 | K153: 0 | L153: 1 | N153: 5.493106954 | O153: 0.4723803016 | Q153: 0 | R153: 0 | S153: 0 | T153: 0.2325696302 | U153: 0.07419721661 | V153: 0.1499612314 | W153: 0.01565222343 | X153: 0 | Y153: 0 | Z153: 0 | AC153: P26 | AD153: 0 | AE153: 0 | AF153: 0 | AG153: 0.006893046072 | AH153: 0.5836417236 | AI153: 0.3051443686 | AJ153: 0.1043208618 | AK153: 0 | AL153: 0 | AM153: 0 | AN153: 1 | AP153: 5.506893046 | AQ153: 0.4723803016 | AS153: 0 | AT153: 0 | AU153: 0 | AV153: 0.01565222343 | AW153: 0.1499612314 | AX153: 0.07419721661 | AY153: 0.2325696302 | AZ153: 0 | BA153: 0 | BB153: 0
A154: P27 | B154: 0 | C154: 0 | D154: 0 | E154: 0.1250000005 | F154: 0.2499999995 | G154: 0.625 | H154: 0 | I154: 0 | J154: 0 | K154: 0 | L154: 1 | N154: 5.5 | O154: 0.5000000009 | Q154: 0 | R154: 0 | S154: 0 | T154: 0.2812500009 | U154: 0.06249999976 | V154: 0.1562500003 | W154: 0 | X154: 0 | Y154: 0 | Z154: 0 | AC154: P27 | AD154: 0 | AE154: 0 | AF154: 0 | AG154: 0 | AH154: 0.625 | AI154: 0.2499999995 | AJ154: 0.1250000005 | AK154: 0 | AL154: 0 | AM154: 0 | AN154: 1 | AP154: 5.5 | AQ154: 0.5000000009 | AS154: 0 | AT154: 0 | AU154: 0 | AV154: 0 | AW154: 0.1562500003 | AX154: 0.06249999976 | AY154: 0.2812500009 | AZ154: 0 | BA154: 0 | BB154: 0
A155: P28 | B155: 0 | C155: 0 | D155: 0 | E155: 0.075 | F155: 0.2 | G155: 0.725 | H155: 0 | I155: 0 | J155: 0 | K155: 0 | L155: 1 | N155: 5.65 | O155: 0.3775 | Q155: 0 | R155: 0 | S155: 0 | T155: 0.2041875 | U155: 0.0845 | V155: 0.0888125 | W155: 0 | X155: 0 | Y155: 0 | Z155: 0 | AC155: P28 | AD155: 0 | AE155: 0 | AF155: 0 | AG155: 0 | AH155: 0.725 | AI155: 0.2 | AJ155: 0.075 | AK155: 0 | AL155: 0 | AM155: 0 | AN155: 1 | AP155: 5.35 | AQ155: 0.3775 | AS155: 0 | AT155: 0 | AU155: 0 | AV155: 0 | AW155: 0.0888125 | AX155: 0.0845 | AY155: 0.2041875 | AZ155: 0 | BA155: 0 | BB155: 0
A156: P32 | B156: 0 | C156: 0 | D156: 0 | E156: 0.01316011475 | F156: 0.6892849575 | G156: 0.2064506741 | H156: 0.06333708529 | I156: 0.02173376496 | J156: 0.006033403398 | K156: 0 | L156: 1 | N156: 5.409299638 | O156: 0.597571275 | Q156: 0 | R156: 0 | S156: 0 | T156: 0.0261376391 | U156: 0.1154732855 | V156: 0.07203619727 | W156: 0.1602635776 | X156: 0.1458711267 | Y156: 0.07778944884 | Z156: 0 | AC156: P32 | AD156: 0 | AE156: 0.006033403398 | AF156: 0.02173376496 | AG156: 0.06333708529 | AH156: 0.2064506741 | AI156: 0.6892849575 | AJ156: 0.01316011475 | AK156: 0 | AL156: 0 | AM156: 0 | AN156: 1 | AP156: 5.590700362 | AQ156: 0.597571275 | AS156: 0 | AT156: 0.07778944884 | AU156: 0.1458711267 | AV156: 0.1602635776 | AW156: 0.07203619727 | AX156: 0.1154732855 | AY156: 0.0261376391 | AZ156: 0 | BA156: 0 | BB156: 0
A157: P33 | B157: 0 | C157: 0.0008333759256 | D157: 0.001691276469 | E157: 0.04026024936 | F157: 0.5645732591 | G157: 0.264573458 | H157: 0.1083967615 | I157: 0.01550080199 | J157: 0.004170817611 | K157: 0 | L157: 1 | N157: 5.498409727 | O157: 0.7105142859 | Q157: 0 | R157: 0.01019958013 | S157: 0.01055703426 | T157: 0.09039358856 | U157: 0.1402469172 | V157: 0.06656477754 | W157: 0.2444101287 | X157: 0.09700330415 | Y157: 0.05113895544 | Z157: 0 | AC157: P33 | AD157: 0 | AE157: 0.004170817611 | AF157: 0.01550080199 | AG157: 0.1083967615 | AH157: 0.264573458 | AI157: 0.5645732591 | AJ157: 0.04026024936 | AK157: 0.001691276469 | AL157: 0.0008333759256 | AM157: 0 | AN157: 1 | AP157: 5.501590273 | AQ157: 0.7105142859 | AS157: 0 | AT157: 0.05113895544 | AU157: 0.09700330415 | AV157: 0.2444101287 | AW157: 0.06656477754 | AX157: 0.1402469172 | AY157: 0.09039358856 | AZ157: 0.01055703426 | BA157: 0.01019958013 | BB157: 0
A158: P34 | B158: 0 | C158: 0 | D158: 0.01854372373 | E158: 0.02808327202 | F158: 0.5193629661 | G158: 0.3192767982 | H158: 0.09977061731 | I158: 0.01005128074 | J158: 0.004911341868 | K158: 0 | L158: 1 | N158: 5.503446523 | O158: 0.7362020293 | Q158: 0 | R158: 0 | S158: 0.1162180504 | T158: 0.06347806457 | U158: 0.1316369072 | V158: 0.07872259725 | W158: 0.2234534889 | X158: 0.06264741414 | Y158: 0.06004550686 | Z158: 0 | AC158: P34 | AD158: 0 | AE158: 0.004911341868 | AF158: 0.01005128074 | AG158: 0.09977061731 | AH158: 0.3192767982 | AI158: 0.5193629661 | AJ158: 0.02808327202 | AK158: 0.01854372373 | AL158: 0 | AM158: 0 | AN158: 1 | AP158: 5.496553477 | AQ158: 0.7362020293 | AS158: 0 | AT158: 0.06004550686 | AU158: 0.06264741414 | AV158: 0.2234534889 | AW158: 0.07872259725 | AX158: 0.1316369072 | AY158: 0.06347806457 | AZ158: 0.1162180504 | BA158: 0 | BB158: 0
A159: P35 | B159: 0 | C159: 0.003389805978 | D159: 0.01335774208 | E159: 0.06458348292 | F159: 0.4186751739 | G159: 0.4186664243 | H159: 0.06456279769 | I159: 0.01338192714 | J159: 0.003382645974 | K159: 0 | L159: 1 | N159: 5.5 | O159: 0.75 | Q159: 0 | R159: 0.04152512323 | S159: 0.08348588802 | T159: 0.1453128366 | U159: 0.1046687935 | V159: 0.1046666061 | W159: 0.1452662948 | X159: 0.08363704463 | Y159: 0.04143741319 | Z159: 0 | AC159: P35 | AD159: 0 | AE159: 0.003382645974 | AF159: 0.01338192714 | AG159: 0.06456279769 | AH159: 0.4186664243 | AI159: 0.4186751739 | AJ159: 0.06458348292 | AK159: 0.01335774208 | AL159: 0.003389805978 | AM159: 0 | AN159: 1 | AP159: 5.5 | AQ159: 0.75 | AS159: 0 | AT159: 0.04143741319 | AU159: 0.08363704463 | AV159: 0.1452662948 | AW159: 0.1046666061 | AX159: 0.1046687935 | AY159: 0.1453128366 | AZ159: 0.08348588802 | BA159: 0.04152512323 | BB159: 0
A160: P36 | B160: 0 | C160: 0.004911341868 | D160: 0.01005128074 | E160: 0.09977061731 | F160: 0.3192767982 | G160: 0.5193629661 | H160: 0.02808327202 | I160: 0.01854372373 | J160: 0 | K160: 0 | L160: 1 | N160: 5.496553477 | O160: 0.7362020293 | Q160: 0 | R160: 0.06004550686 | S160: 0.06264741414 | T160: 0.2234534889 | U160: 0.07872259725 | V160: 0.1316369072 | W160: 0.06347806457 | X160: 0.1162180504 | Y160: 0 | Z160: 0 | AC160: P36 | AD160: 0 | AE160: 0 | AF160: 0.01854372373 | AG160: 0.02808327202 | AH160: 0.5193629661 | AI160: 0.3192767982 | AJ160: 0.09977061731 | AK160: 0.01005128074 | AL160: 0.004911341868 | AM160: 0 | AN160: 1 | AP160: 5.503446523 | AQ160: 0.7362020293 | AS160: 0 | AT160: 0 | AU160: 0.1162180504 | AV160: 0.06347806457 | AW160: 0.1316369072 | AX160: 0.07872259725 | AY160: 0.2234534889 | AZ160: 0.06264741414 | BA160: 0.06004550686 | BB160: 0
A161: P37 | B161: 0 | C161: 0.004170817611 | D161: 0.01550080199 | E161: 0.1083967615 | F161: 0.264573458 | G161: 0.5645732591 | H161: 0.04026024936 | I161: 0.001691276469 | J161: 0.0008333759256 | K161: 0 | L161: 1 | N161: 5.501590273 | O161: 0.7105142859 | Q161: 0 | R161: 0.05113895544 | S161: 0.09700330415 | T161: 0.2444101287 | U161: 0.06656477754 | V161: 0.1402469172 | W161: 0.09039358856 | X161: 0.01055703426 | Y161: 0.01019958013 | Z161: 0 | AC161: P37 | AD161: 0 | AE161: 0.0008333759256 | AF161: 0.001691276469 | AG161: 0.04026024936 | AH161: 0.5645732591 | AI161: 0.264573458 | AJ161: 0.1083967615 | AK161: 0.01550080199 | AL161: 0.004170817611 | AM161: 0 | AN161: 1 | AP161: 5.498409727 | AQ161: 0.7105142859 | AS161: 0 | AT161: 0.01019958013 | AU161: 0.01055703426 | AV161: 0.09039358856 | AW161: 0.1402469172 | AX161: 0.06656477754 | AY161: 0.2444101287 | AZ161: 0.09700330415 | BA161: 0.05113895544 | BB161: 0
A162: P38 | B162: 0 | C162: 0.006033403398 | D162: 0.02173376496 | E162: 0.06333708529 | F162: 0.2064506741 | G162: 0.6892849575 | H162: 0.01316011475 | I162: 0 | J162: 0 | K162: 0 | L162: 1 | N162: 5.590700362 | O162: 0.597571275 | Q162: 0 | R162: 0.07778944884 | S162: 0.1458711267 | T162: 0.1602635776 | U162: 0.07203619727 | V162: 0.1154732855 | W162: 0.0261376391 | X162: 0 | Y162: 0 | Z162: 0 | AC162: P38 | AD162: 0 | AE162: 0 | AF162: 0 | AG162: 0.01316011475 | AH162: 0.6892849575 | AI162: 0.2064506741 | AJ162: 0.06333708529 | AK162: 0.02173376496 | AL162: 0.006033403398 | AM162: 0 | AN162: 1 | AP162: 5.409299638 | AQ162: 0.597571275 | AS162: 0 | AT162: 0 | AU162: 0 | AV162: 0.0261376391 | AW162: 0.1154732855 | AX162: 0.07203619727 | AY162: 0.1602635776 | AZ162: 0.1458711267 | BA162: 0.07778944884 | BB162: 0
A163: P42 | B163: 0 | C163: 0 | D163: 0 | E163: 0.0263202295 | F163: 0.6535699149 | G163: 0.2129013483 | H163: 0.05167417058 | I163: 0.04346752992 | J163: 0.0120668068 | K163: 0 | L163: 1 | N163: 5.468599277 | O163: 0.8106096558 | Q163: 0 | R163: 0 | S163: 0 | T163: 0.05676704554 | U163: 0.1435143343 | V163: 0.06012051524 | W163: 0.1211856538 | X163: 0.2785394806 | Y163: 0.1504826264 | Z163: 0 | AC163: P42 | AD163: 0 | AE163: 0.0120668068 | AF163: 0.04346752992 | AG163: 0.05167417058 | AH163: 0.2129013483 | AI163: 0.6535699149 | AJ163: 0.0263202295 | AK163: 0 | AL163: 0 | AM163: 0 | AN163: 1 | AP163: 5.531400723 | AQ163: 0.8106096558 | AS163: 0 | AT163: 0.1504826264 | AU163: 0.2785394806 | AV163: 0.1211856538 | AW163: 0.06012051524 | AX163: 0.1435143343 | AY163: 0.05676704554 | AZ163: 0 | BA163: 0 | BB163: 0
A164: P43 | B164: 0 | C164: 0.001666751851 | D164: 0.003382552939 | E164: 0.08052049872 | F164: 0.5041465182 | G164: 0.2791469161 | H164: 0.09179352299 | I164: 0.03100160398 | J164: 0.008341635222 | K164: 0 | L164: 1 | N164: 5.496819455 | O164: 0.921023514 | Q164: 0 | R164: 0.02038061878 | S164: 0.02108719827 | T164: 0.1804036394 | U164: 0.1244382686 | V164: 0.07067739223 | W164: 0.2074122157 | X164: 0.1942533485 | Y164: 0.1023708325 | Z164: 0 | AC164: P43 | AD164: 0 | AE164: 0.008341635222 | AF164: 0.03100160398 | AG164: 0.09179352299 | AH164: 0.2791469161 | AI164: 0.5041465182 | AJ164: 0.08052049872 | AK164: 0.003382552939 | AL164: 0.001666751851 | AM164: 0 | AN164: 1 | AP164: 5.503180545 | AQ164: 0.921023514 | AS164: 0 | AT164: 0.1023708325 | AU164: 0.1942533485 | AV164: 0.2074122157 | AW164: 0.07067739223 | AX164: 0.1244382686 | AY164: 0.1804036394 | AZ164: 0.02108719827 | BA164: 0.02038061878 | BB164: 0
A165: P44 | B165: 0 | C165: 0 | D165: 0.03708744745 | E165: 0.04927349798 | F165: 0.4550842087 | G165: 0.3334092279 | H165: 0.09522037283 | I165: 0.02010256147 | J165: 0.009822683737 | K165: 0 | L165: 1 | N165: 5.5 | O165: 1 | Q165: 0 | R165: 0 | S165: 0.2317965466 | T165: 0.1108653704 | U165: 0.1137710522 | V165: 0.08335230697 | W165: 0.2142458389 | X165: 0.1256410092 | Y165: 0.1203278758 | Z165: 0 | AC165: P44 | AD165: 0 | AE165: 0.009822683737 | AF165: 0.02010256147 | AG165: 0.09522037283 | AH165: 0.3334092279 | AI165: 0.4550842087 | AJ165: 0.04927349798 | AK165: 0.03708744745 | AL165: 0 | AM165: 0 | AN165: 1 | AP165: 5.5 | AQ165: 1 | AS165: 0 | AT165: 0.1203278758 | AU165: 0.1256410092 | AV165: 0.2142458389 | AW165: 0.08335230697 | AX165: 0.1137710522 | AY165: 0.1108653704 | AZ165: 0.2317965466 | BA165: 0 | BB165: 0
A166: P45 | B166: 0 | C166: 0.006779611957 | D166: 0.02671548417 | E166: 0.06666696585 | F166: 0.3998503478 | G166: 0.3998328486 | H166: 0.06662559538 | I166: 0.02676385428 | J166: 0.006765291949 | K166: 0 | L166: 1 | N166: 5.5 | O166: 1 | Q166: 0 | R166: 0.08305024647 | S166: 0.166971776 | T166: 0.1500006732 | U166: 0.09996258694 | V166: 0.09995821216 | W166: 0.1499075896 | X166: 0.1672740893 | Y166: 0.08287482637 | Z166: 0 | AC166: P45 | AD166: 0 | AE166: 0.006765291949 | AF166: 0.02676385428 | AG166: 0.06662559538 | AH166: 0.3998328486 | AI166: 0.3998503478 | AJ166: 0.06666696585 | AK166: 0.02671548417 | AL166: 0.006779611957 | AM166: 0 | AN166: 1 | AP166: 5.5 | AQ166: 1 | AS166: 0 | AT166: 0.08287482637 | AU166: 0.1672740893 | AV166: 0.1499075896 | AW166: 0.09995821216 | AX166: 0.09996258694 | AY166: 0.1500006732 | AZ166: 0.166971776 | BA166: 0.08305024647 | BB166: 0
A167: P46 | B167: 0 | C167: 0.009822683737 | D167: 0.02010256147 | E167: 0.09522037283 | F167: 0.3334092279 | G167: 0.4550842087 | H167: 0.04927349798 | I167: 0.03708744745 | J167: 0 | K167: 0 | L167: 1 | N167: 5.5 | O167: 1 | Q167: 0 | R167: 0.1203278758 | S167: 0.1256410092 | T167: 0.2142458389 | U167: 0.08335230697 | V167: 0.1137710522 | W167: 0.1108653704 | X167: 0.2317965466 | Y167: 0 | Z167: 0 | AC167: P46 | AD167: 0 | AE167: 0 | AF167: 0.03708744745 | AG167: 0.04927349798 | AH167: 0.4550842087 | AI167: 0.3334092279 | AJ167: 0.09522037283 | AK167: 0.02010256147 | AL167: 0.009822683737 | AM167: 0 | AN167: 1 | AP167: 5.5 | AQ167: 1 | AS167: 0 | AT167: 0 | AU167: 0.2317965466 | AV167: 0.1108653704 | AW167: 0.1137710522 | AX167: 0.08335230697 | AY167: 0.2142458389 | AZ167: 0.1256410092 | BA167: 0.1203278758 | BB167: 0
A168: P47 | B168: 0 | C168: 0.008341635222 | D168: 0.03100160398 | E168: 0.09179352299 | F168: 0.2791469161 | G168: 0.5041465182 | H168: 0.08052049872 | I168: 0.003382552939 | J168: 0.001666751851 | K168: 0 | L168: 1 | N168: 5.503180545 | O168: 0.921023514 | Q168: 0 | R168: 0.1023708325 | S168: 0.1942533485 | T168: 0.2074122157 | U168: 0.07067739223 | V168: 0.1244382686 | W168: 0.1804036394 | X168: 0.02108719827 | Y168: 0.02038061878 | Z168: 0 | AC168: P47 | AD168: 0 | AE168: 0.001666751851 | AF168: 0.003382552939 | AG168: 0.08052049872 | AH168: 0.5041465182 | AI168: 0.2791469161 | AJ168: 0.09179352299 | AK168: 0.03100160398 | AL168: 0.008341635222 | AM168: 0 | AN168: 1 | AP168: 5.496819455 | AQ168: 0.921023514 | AS168: 0 | AT168: 0.02038061878 | AU168: 0.02108719827 | AV168: 0.1804036394 | AW168: 0.1244382686 | AX168: 0.07067739223 | AY168: 0.2074122157 | AZ168: 0.1942533485 | BA168: 0.1023708325 | BB168: 0
A169: P48 | B169: 0 | C169: 0.0120668068 | D169: 0.04346752992 | E169: 0.05167417058 | F169: 0.2129013483 | G169: 0.6535699149 | H169: 0.0263202295 | I169: 0 | J169: 0 | K169: 0 | L169: 1 | N169: 5.531400723 | O169: 0.8106096558 | Q169: 0 | R169: 0.1504826264 | S169: 0.2785394806 | T169: 0.1211856538 | U169: 0.06012051524 | V169: 0.1435143343 | W169: 0.05676704554 | X169: 0 | Y169: 0 | Z169: 0 | AC169: P48 | AD169: 0 | AE169: 0 | AF169: 0 | AG169: 0.0263202295 | AH169: 0.6535699149 | AI169: 0.2129013483 | AJ169: 0.05167417058 | AK169: 0.04346752992 | AL169: 0.0120668068 | AM169: 0 | AN169: 1 | AP169: 5.468599277 | AQ169: 0.8106096558 | AS169: 0 | AT169: 0 | AU169: 0 | AV169: 0.05676704554 | AW169: 0.1435143343 | AX169: 0.06012051524 | AY169: 0.1211856538 | AZ169: 0.2785394806 | BA169: 0.1504826264 | BB169: 0
A170: P52 | B170: 0 | C170: 0 | D170: 0 | E170: 0.07195283751 | F170: 0.6101038978 | G170: 0.1830252077 | H170: 0.06280719596 | I170: 0.04879598631 | J170: 0.0153494559 | K170: 0.007965418749 | L170: 1 | N170: 5.484299638 | O170: 1.155551329 | Q170: 0 | R170: 0 | S170: 0 | T170: 0.1585225642 | U170: 0.1430975141 | V170: 0.04867497983 | W170: 0.14428996 | X170: 0.3088175159 | Y170: 0.1897215625 | Z170: 0.1624272328 | AC170: P52 | AD170: 0.007965418749 | AE170: 0.0153494559 | AF170: 0.04879598631 | AG170: 0.06280719596 | AH170: 0.1830252077 | AI170: 0.6101038978 | AJ170: 0.07195283751 | AK170: 0 | AL170: 0 | AM170: 0 | AN170: 1 | AP170: 5.515700362 | AQ170: 1.155551329 | AS170: 0.1624272328 | AT170: 0.1897215625 | AU170: 0.3088175159 | AV170: 0.14428996 | AW170: 0.04867497983 | AX170: 0.1430975141 | AY170: 0.1585225642 | AZ170: 0 | BA170: 0 | BB170: 0
A171: P53 | B171: 0 | C171: 0.01235281162 | D171: 0.02577737761 | E171: 0.04254602654 | F171: 0.4647308355 | G171: 0.3516334752 | H171: 0.0724989139 | I171: 0.01777488455 | J171: 0.01268567504 | K171: 0 | L171: 1 | N171: 5.46953944 | O171: 1.040937448 | Q171: 0 | R171: 0.1486994889 | S171: 0.1572065607 | T171: 0.09188010851 | U171: 0.102457946 | V171: 0.09894558291 | W171: 0.1698148966 | X171: 0.1138166855 | Y171: 0.1581161789 | Z171: 0 | AC171: P53 | AD171: 0 | AE171: 0.01268567504 | AF171: 0.01777488455 | AG171: 0.0724989139 | AH171: 0.3516334752 | AI171: 0.4647308355 | AJ171: 0.04254602654 | AK171: 0.02577737761 | AL171: 0.01235281162 | AM171: 0 | AN171: 1 | AP171: 5.53046056 | AQ171: 1.040937448 | AS171: 0 | AT171: 0.1581161789 | AU171: 0.1138166855 | AV171: 0.1698148966 | AW171: 0.09894558291 | AX171: 0.102457946 | AY171: 0.09188010851 | AZ171: 0.1572065607 | BA171: 0.1486994889 | BB171: 0
A172: P54 | B172: 0 | C172: 0.003333503702 | D172: 0.003708059241 | E172: 0.1555970794 | F172: 0.3828212767 | G172: 0.3141872752 | H172: 0.07891525397 | I172: 0.04475428135 | J172: 0.01668327044 | K172: 0 | L172: 1 | N172: 5.5 | O172: 1.25 | Q172: 0 | R172: 0.04083542035 | S172: 0.02317537026 | T172: 0.3500934286 | U172: 0.09570531918 | V172: 0.0785468188 | W172: 0.1775593214 | X172: 0.2797142584 | Y172: 0.2043700629 | Z172: 0 | AC172: P54 | AD172: 0 | AE172: 0.01668327044 | AF172: 0.04475428135 | AG172: 0.07891525397 | AH172: 0.3141872752 | AI172: 0.3828212767 | AJ172: 0.1555970794 | AK172: 0.003708059241 | AL172: 0.003333503702 | AM172: 0 | AN172: 1 | AP172: 5.5 | AQ172: 1.25 | AS172: 0 | AT172: 0.2043700629 | AU172: 0.2797142584 | AV172: 0.1775593214 | AW172: 0.0785468188 | AX172: 0.09570531918 | AY172: 0.3500934286 | AZ172: 0.02317537026 | BA172: 0.04083542035 | BB172: 0
A173: P55 | B173: 0 | C173: 0.008583171277 | D173: 0.02528056799 | E173: 0.122690807 | F173: 0.3434153938 | G173: 0.3434080003 | H173: 0.1229204496 | I173: 0.02505388277 | J173: 0.008647727239 | K173: 0 | L173: 1 | N173: 5.5 | O173: 1.25 | Q173: 0 | R173: 0.1051438481 | S173: 0.1580035499 | T173: 0.2760543158 | U173: 0.08585384845 | V173: 0.08585200007 | W173: 0.2765710117 | X173: 0.1565867673 | Y173: 0.1059346587 | Z173: 0 | AC173: P55 | AD173: 0 | AE173: 0.008647727239 | AF173: 0.02505388277 | AG173: 0.1229204496 | AH173: 0.3434080003 | AI173: 0.3434153938 | AJ173: 0.122690807 | AK173: 0.02528056799 | AL173: 0.008583171277 | AM173: 0 | AN173: 1 | AP173: 5.5 | AQ173: 1.25 | AS173: 0 | AT173: 0.1059346587 | AU173: 0.1565867673 | AV173: 0.2765710117 | AW173: 0.08585200007 | AX173: 0.08585384845 | AY173: 0.2760543158 | AZ173: 0.1580035499 | BA173: 0.1051438481 | BB173: 0
A174: P56 | B174: 0 | C174: 0.01668327044 | D174: 0.04475428135 | E174: 0.07891525397 | F174: 0.3141872752 | G174: 0.3828212767 | H174: 0.1555970794 | I174: 0.003708059241 | J174: 0.003333503702 | K174: 0 | L174: 1 | N174: 5.5 | O174: 1.25 | Q174: 0 | R174: 0.2043700629 | S174: 0.2797142584 | T174: 0.1775593214 | U174: 0.0785468188 | V174: 0.09570531918 | W174: 0.3500934286 | X174: 0.02317537026 | Y174: 0.04083542035 | Z174: 0 | AC174: P56 | AD174: 0 | AE174: 0.003333503702 | AF174: 0.003708059241 | AG174: 0.1555970794 | AH174: 0.3828212767 | AI174: 0.3141872752 | AJ174: 0.07891525397 | AK174: 0.04475428135 | AL174: 0.01668327044 | AM174: 0 | AN174: 1 | AP174: 5.5 | AQ174: 1.25 | AS174: 0 | AT174: 0.04083542035 | AU174: 0.02317537026 | AV174: 0.3500934286 | AW174: 0.09570531918 | AX174: 0.0785468188 | AY174: 0.1775593214 | AZ174: 0.2797142584 | BA174: 0.2043700629 | BB174: 0
A175: P57 | B175: 0 | C175: 0.01268567504 | D175: 0.01777488455 | E175: 0.0724989139 | F175: 0.3516334752 | G175: 0.4647308355 | H175: 0.04254602654 | I175: 0.02577737761 | J175: 0.01235281162 | K175: 0 | L175: 1 | N175: 5.53046056 | O175: 1.040937448 | Q175: 0 | R175: 0.1581161789 | S175: 0.1138166855 | T175: 0.1698148966 | U175: 0.09894558291 | V175: 0.102457946 | W175: 0.09188010851 | X175: 0.1572065607 | Y175: 0.1486994889 | Z175: 0 | AC175: P57 | AD175: 0 | AE175: 0.01235281162 | AF175: 0.02577737761 | AG175: 0.04254602654 | AH175: 0.4647308355 | AI175: 0.3516334752 | AJ175: 0.0724989139 | AK175: 0.01777488455 | AL175: 0.01268567504 | AM175: 0 | AN175: 1 | AP175: 5.46953944 | AQ175: 1.040937448 | AS175: 0 | AT175: 0.1486994889 | AU175: 0.1572065607 | AV175: 0.09188010851 | AW175: 0.102457946 | AX175: 0.09894558291 | AY175: 0.1698148966 | AZ175: 0.1138166855 | BA175: 0.1581161789 | BB175: 0
A176: P58 | B176: 0.007965418749 | C176: 0.0153494559 | D176: 0.04879598631 | E176: 0.06280719596 | F176: 0.1830252077 | G176: 0.6101038978 | H176: 0.07195283751 | I176: 0 | J176: 0 | K176: 0 | L176: 1 | N176: 5.515700362 | O176: 1.155551329 | Q176: 0.1624272328 | R176: 0.1897215625 | S176: 0.3088175159 | T176: 0.14428996 | U176: 0.04867497983 | V176: 0.1430975141 | W176: 0.1585225642 | X176: 0 | Y176: 0 | Z176: 0 | AC176: P58 | AD176: 0 | AE176: 0 | AF176: 0 | AG176: 0.07195283751 | AH176: 0.6101038978 | AI176: 0.1830252077 | AJ176: 0.06280719596 | AK176: 0.04879598631 | AL176: 0.0153494559 | AM176: 0.007965418749 | AN176: 1 | AP176: 5.484299638 | AQ176: 1.155551329 | AS176: 0 | AT176: 0 | AU176: 0 | AV176: 0.1585225642 | AW176: 0.1430975141 | AX176: 0.04867497983 | AY176: 0.14428996 | AZ176: 0.3088175159 | BA176: 0.1897215625 | BB176: 0.1624272328
A177: P62 | B177: 0 | C177: 0 | D177: 0 | E177: 0.1175854455 | F177: 0.5666378807 | G177: 0.1531490672 | H177: 0.07394022134 | I177: 0.05412444271 | J177: 0.018632105 | K177: 0.0159308375 | L177: 1 | N177: 5.5 | O177: 1.5 | Q177: 0 | R177: 0 | S177: 0 | T177: 0.2645672524 | U177: 0.1416594702 | V177: 0.03828726681 | W177: 0.166365498 | X177: 0.3382777669 | Y177: 0.2282432863 | Z177: 0.3225994594 | AC177: P62 | AD177: 0.0159308375 | AE177: 0.018632105 | AF177: 0.05412444271 | AG177: 0.07394022134 | AH177: 0.1531490672 | AI177: 0.5666378807 | AJ177: 0.1175854455 | AK177: 0 | AL177: 0 | AM177: 0 | AN177: 1 | AP177: 5.5 | AQ177: 1.5 | AS177: 0.3225994594 | AT177: 0.2282432863 | AU177: 0.3382777669 | AV177: 0.166365498 | AW177: 0.03828726681 | AX177: 0.1416594702 | AY177: 0.2645672524 | AZ177: 0 | BA177: 0 | BB177: 0
A178: P63 | B178: 0 | C178: 0.008945573676 | D178: 0.04778916418 | E178: 0.05738550836 | F178: 0.4377084127 | G178: 0.3066432992 | H178: 0.08695145872 | I178: 0.04125800851 | J178: 0.01331857463 | K178: 0 | L178: 1 | N178: 5.477793983 | O178: 1.339633643 | Q178: 0 | R178: 0.1081971697 | S178: 0.2933998063 | T178: 0.1253227803 | U178: 0.09992317988 | V178: 0.08362135914 | W178: 0.2014761952 | X178: 0.262463778 | Y178: 0.1652293742 | Z178: 0 | AC178: P63 | AD178: 0 | AE178: 0.01331857463 | AF178: 0.04125800851 | AG178: 0.08695145872 | AH178: 0.3066432992 | AI178: 0.4377084127 | AJ178: 0.05738550836 | AK178: 0.04778916418 | AL178: 0.008945573676 | AM178: 0 | AN178: 1 | AP178: 5.522206017 | AQ178: 1.339633643 | AS178: 0 | AT178: 0.1652293742 | AU178: 0.262463778 | AV178: 0.2014761952 | AW178: 0.08362135914 | AX178: 0.09992317988 | AY178: 0.1253227803 | AZ178: 0.2933998063 | BA178: 0.1081971697 | BB178: 0
A179: P64 | B179: 0.005 | C179: 0.0133335037 | D179: 0.01870805924 | E179: 0.1555970794 | F179: 0.3528212767 | G179: 0.2891872752 | H179: 0.08891525397 | I179: 0.04475428135 | J179: 0.02668327044 | K179: 0.005 | L179: 1 | N179: 5.48 | O179: 1.7996 | Q179: 0.100352 | R179: 0.1614740632 | S179: 0.1150620476 | T179: 0.3408198427 | U179: 0.08129002215 | V179: 0.07819623922 | W179: 0.2054298028 | X179: 0.2842075883 | Y179: 0.3306163941 | Z179: 0.102152 | AC179: P64 | AD179: 0.005 | AE179: 0.02668327044 | AF179: 0.04475428135 | AG179: 0.08891525397 | AH179: 0.2891872752 | AI179: 0.3528212767 | AJ179: 0.1555970794 | AK179: 0.01870805924 | AL179: 0.0133335037 | AM179: 0.005 | AN179: 1 | AP179: 5.52 | AQ179: 1.7996 | AS179: 0.102152 | AT179: 0.3306163941 | AU179: 0.2842075883 | AV179: 0.2054298028 | AW179: 0.07819623922 | AX179: 0.08129002215 | AY179: 0.3408198427 | AZ179: 0.1150620476 | BA179: 0.1614740632 | BB179: 0.100352
A180: P65 | B180: 0 | C180: 0.0103867306 | D180: 0.02384565181 | E180: 0.1787146482 | F180: 0.2869804398 | G180: 0.2869831519 | H180: 0.1792153039 | I180: 0.02334391126 | J180: 0.01053016253 | K180: 0 | L180: 1 | N180: 5.5 | O180: 1.5 | Q180: 0 | R180: 0.1272374498 | S180: 0.1490353238 | T180: 0.4021079584 | U180: 0.07174510996 | V180: 0.07174578798 | W180: 0.4032344337 | X180: 0.1458994454 | Y180: 0.128994491 | Z180: 0 | AC180: P65 | AD180: 0 | AE180: 0.01053016253 | AF180: 0.02334391126 | AG180: 0.1792153039 | AH180: 0.2869831519 | AI180: 0.2869804398 | AJ180: 0.1787146482 | AK180: 0.02384565181 | AL180: 0.0103867306 | AM180: 0 | AN180: 1 | AP180: 5.5 | AQ180: 1.5 | AS180: 0 | AT180: 0.128994491 | AU180: 0.1458994454 | AV180: 0.4032344337 | AW180: 0.07174578798 | AX180: 0.07174510996 | AY180: 0.4021079584 | AZ180: 0.1490353238 | BA180: 0.1272374498 | BB180: 0
A181: P66 | B181: 0.005 | C181: 0.02668327044 | D181: 0.04475428135 | E181: 0.08891525397 | F181: 0.2891872752 | G181: 0.3528212767 | H181: 0.1555970794 | I181: 0.01870805924 | J181: 0.0133335037 | K181: 0.005 | L181: 1 | N181: 5.52 | O181: 1.7996 | Q181: 0.102152 | R181: 0.3306163941 | S181: 0.2842075883 | T181: 0.2054298028 | U181: 0.07819623922 | V181: 0.08129002215 | W181: 0.3408198427 | X181: 0.1150620476 | Y181: 0.1614740632 | Z181: 0.100352 | AC181: P66 | AD181: 0.005 | AE181: 0.0133335037 | AF181: 0.01870805924 | AG181: 0.1555970794 | AH181: 0.3528212767 | AI181: 0.2891872752 | AJ181: 0.08891525397 | AK181: 0.04475428135 | AL181: 0.02668327044 | AM181: 0.005 | AN181: 1 | AP181: 5.48 | AQ181: 1.7996 | AS181: 0.100352 | AT181: 0.1614740632 | AU181: 0.1150620476 | AV181: 0.3408198427 | AW181: 0.08129002215 | AX181: 0.07819623922 | AY181: 0.2054298028 | AZ181: 0.2842075883 | BA181: 0.3306163941 | BB181: 0.102152
A182: P67 | B182: 0 | C182: 0.01331857463 | D182: 0.04125800851 | E182: 0.08695145872 | F182: 0.3066432992 | G182: 0.4377084127 | H182: 0.05738550836 | I182: 0.04778916418 | J182: 0.008945573676 | K182: 0 | L182: 1 | N182: 5.522206017 | O182: 1.339633643 | Q182: 0 | R182: 0.1652293742 | S182: 0.262463778 | T182: 0.2014761952 | U182: 0.08362135914 | V182: 0.09992317988 | W182: 0.1253227803 | X182: 0.2933998063 | Y182: 0.1081971697 | Z182: 0 | AC182: P67 | AD182: 0 | AE182: 0.008945573676 | AF182: 0.04778916418 | AG182: 0.05738550836 | AH182: 0.4377084127 | AI182: 0.3066432992 | AJ182: 0.08695145872 | AK182: 0.04125800851 | AL182: 0.01331857463 | AM182: 0 | AN182: 1 | AP182: 5.477793983 | AQ182: 1.339633643 | AS182: 0 | AT182: 0.1081971697 | AU182: 0.2933998063 | AV182: 0.1253227803 | AW182: 0.09992317988 | AX182: 0.08362135914 | AY182: 0.2014761952 | AZ182: 0.262463778 | BA182: 0.1652293742 | BB182: 0
A183: P68 | B183: 0.0159308375 | C183: 0.018632105 | D183: 0.05412444271 | E183: 0.07394022134 | F183: 0.1531490672 | G183: 0.5666378807 | H183: 0.1175854455 | I183: 0 | J183: 0 | K183: 0 | L183: 1 | N183: 5.5 | O183: 1.5 | Q183: 0.3225994594 | R183: 0.2282432863 | S183: 0.3382777669 | T183: 0.166365498 | U183: 0.03828726681 | V183: 0.1416594702 | W183: 0.2645672524 | X183: 0 | Y183: 0 | Z183: 0 | AC183: P68 | AD183: 0 | AE183: 0 | AF183: 0 | AG183: 0.1175854455 | AH183: 0.5666378807 | AI183: 0.1531490672 | AJ183: 0.07394022134 | AK183: 0.05412444271 | AL183: 0.018632105 | AM183: 0.0159308375 | AN183: 1 | AP183: 5.5 | AQ183: 1.5 | AS183: 0 | AT183: 0 | AU183: 0 | AV183: 0.2645672524 | AW183: 0.1416594702 | AX183: 0.03828726681 | AY183: 0.166365498 | AZ183: 0.3382777669 | BA183: 0.2282432863 | BB183: 0.3225994594
A184: P72 | B184: 0.01 | C184: 0.015 | D184: 0.025 | E184: 0.1425854455 | F184: 0.4916378807 | G184: 0.1335446443 | H184: 0.07903233202 | I184: 0.05363675496 | J184: 0.028632105 | K184: 0.0209308375 | L184: 1 | N184: 5.394116735 | O184: 2.296046829 | Q184: 0.1930826188 | R184: 0.1728004262 | S184: 0.1432948735 | T184: 0.2771235783 | U184: 0.07636512921 | V184: 0.0490235085 | W184: 0.2038134036 | X184: 0.3642272281 | Y184: 0.3722859137 | Z184: 0.4440301492 | AC184: P72 | AD184: 0.0209308375 | AE184: 0.028632105 | AF184: 0.05363675496 | AG184: 0.07903233202 | AH184: 0.1335446443 | AI184: 0.4916378807 | AJ184: 0.1425854455 | AK184: 0.025 | AL184: 0.015 | AM184: 0.01 | AN184: 1 | AP184: 5.605883265 | AQ184: 2.296046829 | AS184: 0.4440301492 | AT184: 0.3722859137 | AU184: 0.3642272281 | AV184: 0.2038134036 | AW184: 0.0490235085 | AX184: 0.07636512921 | AY184: 0.2771235783 | AZ184: 0.1432948735 | BA184: 0.1728004262 | BB184: 0.1930826188
A185: P73 | B185: 0.00334116889 | C185: 0.008961074325 | D185: 0.03347592814 | E185: 0.1026496728 | F185: 0.4370174131 | G185: 0.2448597983 | H185: 0.09516808321 | I185: 0.05343917422 | J185: 0.02108768696 | K185: 0 | L185: 1 | N185: 5.470014808 | O185: 1.593635528 | Q185: 0.06676000378 | R185: 0.1079003207 | S185: 0.2042357388 | T185: 0.2218201468 | U185: 0.09654322957 | V185: 0.06877727407 | W185: 0.2227746538 | X185: 0.3420548063 | Y185: 0.2627693539 | Z185: 0 | AC185: P73 | AD185: 0 | AE185: 0.02108768696 | AF185: 0.05343917422 | AG185: 0.09516808321 | AH185: 0.2448597983 | AI185: 0.4370174131 | AJ185: 0.1026496728 | AK185: 0.03347592814 | AL185: 0.008961074325 | AM185: 0.00334116889 | AN185: 1 | AP185: 5.529985192 | AQ185: 1.593635528 | AS185: 0 | AT185: 0.2627693539 | AU185: 0.3420548063 | AV185: 0.2227746538 | AW185: 0.06877727407 | AX185: 0.09654322957 | AY185: 0.2218201468 | AZ185: 0.2042357388 | BA185: 0.1079003207 | BB185: 0.06676000378
A186: P74 | B186: 0.0175 | C186: 0.0283335037 | D186: 0.03620805924 | E186: 0.1555970794 | F186: 0.3078212767 | G186: 0.2466872752 | H186: 0.09391525397 | I186: 0.05975428135 | J186: 0.03668327044 | K186: 0.0175 | L186: 1 | N186: 5.465 | O186: 2.803775 | Q186: 0.3488839375 | R186: 0.3401784205 | S186: 0.2200083148 | T186: 0.3339463417 | U186: 0.06655865555 | V186: 0.07060806535 | W186: 0.2212854693 | X186: 0.3839944567 | Y186: 0.4584024012 | Z186: 0.3599089375 | AC186: P74 | AD186: 0.0175 | AE186: 0.03668327044 | AF186: 0.05975428135 | AG186: 0.09391525397 | AH186: 0.2466872752 | AI186: 0.3078212767 | AJ186: 0.1555970794 | AK186: 0.03620805924 | AL186: 0.0283335037 | AM186: 0.0175 | AN186: 1 | AP186: 5.535 | AQ186: 2.803775 | AS186: 0.3599089375 | AT186: 0.4584024012 | AU186: 0.3839944567 | AV186: 0.2212854693 | AW186: 0.07060806535 | AX186: 0.06655865555 | AY186: 0.3339463417 | AZ186: 0.2200083148 | BA186: 0.3401784205 | BB186: 0.3488839375
A187: P75 | B187: 0.005 | C187: 0.02030375816 | D187: 0.04214955727 | E187: 0.1867018662 | F187: 0.2458776883 | G187: 0.2458479037 | H187: 0.1865492167 | I187: 0.04231412067 | J187: 0.02025588906 | K187: 0.005 | L187: 1 | N187: 5.5 | O187: 2.19 | Q187: 0.10125 | R187: 0.2487210375 | S187: 0.2634347329 | T187: 0.420079199 | U187: 0.06146942208 | V187: 0.06146197592 | W187: 0.4197357375 | X187: 0.2644632542 | Y187: 0.248134641 | Z187: 0.10125 | AC187: P75 | AD187: 0.005 | AE187: 0.02025588906 | AF187: 0.04231412067 | AG187: 0.1865492167 | AH187: 0.2458479037 | AI187: 0.2458776883 | AJ187: 0.1867018662 | AK187: 0.04214955727 | AL187: 0.02030375816 | AM187: 0.005 | AN187: 1 | AP187: 5.5 | AQ187: 2.19 | AS187: 0.10125 | AT187: 0.248134641 | AU187: 0.2644632542 | AV187: 0.4197357375 | AW187: 0.06146197592 | AX187: 0.06146942208 | AY187: 0.420079199 | AZ187: 0.2634347329 | BA187: 0.2487210375 | BB187: 0.10125
A188: P76 | B188: 0.0175 | C188: 0.03668327044 | D188: 0.05975428135 | E188: 0.09391525397 | F188: 0.2466872752 | G188: 0.3078212767 | H188: 0.1555970794 | I188: 0.03620805924 | J188: 0.0283335037 | K188: 0.0175 | L188: 1 | N188: 5.535 | O188: 2.803775 | Q188: 0.3599089375 | R188: 0.4584024012 | S188: 0.3839944567 | T188: 0.2212854693 | U188: 0.07060806535 | V188: 0.06655865555 | W188: 0.3339463417 | X188: 0.2200083148 | Y188: 0.3401784205 | Z188: 0.3488839375 | AC188: P76 | AD188: 0.0175 | AE188: 0.0283335037 | AF188: 0.03620805924 | AG188: 0.1555970794 | AH188: 0.3078212767 | AI188: 0.2466872752 | AJ188: 0.09391525397 | AK188: 0.05975428135 | AL188: 0.03668327044 | AM188: 0.0175 | AN188: 1 | AP188: 5.465 | AQ188: 2.803775 | AS188: 0.3488839375 | AT188: 0.3401784205 | AU188: 0.2200083148 | AV188: 0.3339463417 | AW188: 0.06655865555 | AX188: 0.07060806535 | AY188: 0.2212854693 | AZ188: 0.3839944567 | BA188: 0.4584024012 | BB188: 0.3599089375
A189: P77 | B189: 0 | C189: 0.02108768696 | D189: 0.05343917422 | E189: 0.09516808321 | F189: 0.2448597983 | G189: 0.4370174131 | H189: 0.1026496728 | I189: 0.03347592814 | J189: 0.008961074325 | K189: 0.00334116889 | L189: 1 | N189: 5.529985192 | O189: 1.593635528 | Q189: 0 | R189: 0.2627693539 | S189: 0.3420548063 | T189: 0.2227746538 | U189: 0.06877727407 | V189: 0.09654322957 | W189: 0.2218201468 | X189: 0.2042357388 | Y189: 0.1079003207 | Z189: 0.06676000378 | AC189: P77 | AD189: 0.00334116889 | AE189: 0.008961074325 | AF189: 0.03347592814 | AG189: 0.1026496728 | AH189: 0.4370174131 | AI189: 0.2448597983 | AJ189: 0.09516808321 | AK189: 0.05343917422 | AL189: 0.02108768696 | AM189: 0 | AN189: 1 | AP189: 5.470014808 | AQ189: 1.593635528 | AS189: 0.06676000378 | AT189: 0.1079003207 | AU189: 0.2042357388 | AV189: 0.2218201468 | AW189: 0.09654322957 | AX189: 0.06877727407 | AY189: 0.2227746538 | AZ189: 0.3420548063 | BA189: 0.2627693539 | BB189: 0
A190: P78 | B190: 0.0209308375 | C190: 0.028632105 | D190: 0.05363675496 | E190: 0.07903233202 | F190: 0.1335446443 | G190: 0.4916378807 | H190: 0.1425854455 | I190: 0.025 | J190: 0.015 | K190: 0.01 | L190: 1 | N190: 5.605883265 | O190: 2.296046829 | Q190: 0.4440301492 | R190: 0.3722859137 | S190: 0.3642272281 | T190: 0.2038134036 | U190: 0.0490235085 | V190: 0.07636512921 | W190: 0.2771235783 | X190: 0.1432948735 | Y190: 0.1728004262 | Z190: 0.1930826188 | AC190: P78 | AD190: 0.01 | AE190: 0.015 | AF190: 0.025 | AG190: 0.1425854455 | AH190: 0.4916378807 | AI190: 0.1335446443 | AJ190: 0.07903233202 | AK190: 0.05363675496 | AL190: 0.028632105 | AM190: 0.0209308375 | AN190: 1 | AP190: 5.394116735 | AQ190: 2.296046829 | AS190: 0.1930826188 | AT190: 0.1728004262 | AU190: 0.1432948735 | AV190: 0.2771235783 | AW190: 0.07636512921 | AX190: 0.0490235085 | AY190: 0.2038134036 | AZ190: 0.3642272281 | BA190: 0.3722859137 | BB190: 0.4440301492
A191: P82 | B191: 0.02 | C191: 0.03 | D191: 0.05 | E191: 0.1675854455 | F191: 0.4166378807 | G191: 0.1139402213 | H191: 0.08412444271 | I191: 0.05314906722 | J191: 0.038632105 | K191: 0.0259308375 | L191: 1 | N191: 5.28823347 | O191: 3.069671127 | Q191: 0.3677789259 | R191: 0.3243743807 | S191: 0.2618006208 | T191: 0.2781156677 | U191: 0.03461366411 | V191: 0.057723437 | W191: 0.2464967859 | X191: 0.390841111 | Y191: 0.5322426531 | Z191: 0.5756838806 | AC191: P82 | AD191: 0.0259308375 | AE191: 0.038632105 | AF191: 0.05314906722 | AG191: 0.08412444271 | AH191: 0.1139402213 | AI191: 0.4166378807 | AJ191: 0.1675854455 | AK191: 0.05 | AL191: 0.03 | AM191: 0.02 | AN191: 1 | AP191: 5.71176653 | AQ191: 3.069671127 | AS191: 0.5756838806 | AT191: 0.5322426531 | AU191: 0.390841111 | AV191: 0.2464967859 | AW191: 0.057723437 | AX191: 0.03461366411 | AY191: 0.2781156677 | AZ191: 0.2618006208 | BA191: 0.3243743807 | BB191: 0.3677789259
A192: P83 | B192: 0.00668233778 | C192: 0.008976574975 | D192: 0.01916269211 | E192: 0.1479138373 | F192: 0.4363264135 | G192: 0.1830762974 | H192: 0.1033847077 | I192: 0.06562033993 | J192: 0.02885679929 | K192: 0 | L192: 1 | N192: 5.462235632 | O192: 1.847516381 | Q192: 0.1330556817 | R192: 0.1076028826 | S192: 0.1161758197 | T192: 0.3162594632 | U192: 0.09322627805 | V192: 0.05294392878 | W192: 0.2444758085 | X192: 0.4226112621 | Y192: 0.3611652568 | Z192: 0 | AC192: P83 | AD192: 0 | AE192: 0.02885679929 | AF192: 0.06562033993 | AG192: 0.1033847077 | AH192: 0.1830762974 | AI192: 0.4363264135 | AJ192: 0.1479138373 | AK192: 0.01916269211 | AL192: 0.008976574975 | AM192: 0.00668233778 | AN192: 1 | AP192: 5.537764368 | AQ192: 1.847516381 | AS192: 0 | AT192: 0.3611652568 | AU192: 0.4226112621 | AV192: 0.2444758085 | AW192: 0.05294392878 | AX192: 0.09322627805 | AY192: 0.3162594632 | AZ192: 0.1161758197 | BA192: 0.1076028826 | BB192: 0.1330556817
A193: P84 | B193: 0.03 | C193: 0.0433335037 | D193: 0.05370805924 | E193: 0.1555970794 | F193: 0.2628212767 | G193: 0.2041872752 | H193: 0.09891525397 | I193: 0.07475428135 | J193: 0.04668327044 | K193: 0.03 | L193: 1 | N193: 5.45 | O193: 3.8075 | Q193: 0.594075 | R193: 0.5157770278 | S193: 0.3223826256 | T193: 0.3271428594 | U193: 0.05322130853 | V193: 0.06176665075 | W193: 0.2376438977 | X193: 0.4860897145 | Y193: 0.5883259158 | Z193: 0.621075 | AC193: P84 | AD193: 0.03 | AE193: 0.04668327044 | AF193: 0.07475428135 | AG193: 0.09891525397 | AH193: 0.2041872752 | AI193: 0.2628212767 | AJ193: 0.1555970794 | AK193: 0.05370805924 | AL193: 0.0433335037 | AM193: 0.03 | AN193: 1 | AP193: 5.55 | AQ193: 3.8075 | AS193: 0.621075 | AT193: 0.5883259158 | AU193: 0.4860897145 | AV193: 0.2376438977 | AW193: 0.06176665075 | AX193: 0.05322130853 | AY193: 0.3271428594 | AZ193: 0.3223826256 | BA193: 0.5157770278 | BB193: 0.594075
A194: P85 | B194: 0.01 | C194: 0.03022078573 | D194: 0.06045346273 | E194: 0.1946890842 | F194: 0.2047749368 | G194: 0.2047126554 | H194: 0.1938831294 | I194: 0.06128433009 | J194: 0.02998161559 | K194: 0.01 | L194: =SUM(B194:K194) -> 1 | N194: 5.5 | O194: 2.88 | Q194: 0.2025 | R194: 0.3702046252 | S194: 0.377834142 | T194: 0.4380504396 | U194: 0.0511937342 | V194: 0.05117816385 | W194: 0.4362370412 | X194: 0.383027063 | Y194: 0.3672747909 | Z194: 0.2025 | AC194: P85 | AD194: 0.01 | AE194: 0.02998161559 | AF194: 0.06128433009 | AG194: 0.1938831294 | AH194: 0.2047126554 | AI194: 0.2047749368 | AJ194: 0.1946890842 | AK194: 0.06045346273 | AL194: 0.03022078573 | AM194: 0.01 | AN194: =SUM(AD194:AM194) -> 1 | AP194: 5.5 | AQ194: 2.88 | AS194: 0.2025 | AT194: 0.3672747909 | AU194: 0.383027063 | AV194: 0.4362370412 | AW194: 0.05117816385 | AX194: 0.0511937342 | AY194: 0.4380504396 | AZ194: 0.377834142 | BA194: 0.3702046252 | BB194: 0.2025
A195: P86 | B195: 0.03 | C195: 0.04668327044 | D195: 0.07475428135 | E195: 0.09891525397 | F195: 0.2041872752 | G195: 0.2628212767 | H195: 0.1555970794 | I195: 0.05370805924 | J195: 0.0433335037 | K195: 0.03 | L195: 1 | N195: 5.55 | O195: 3.8075 | Q195: 0.621075 | R195: 0.5883259158 | S195: 0.4860897145 | T195: 0.2376438977 | U195: 0.06176665075 | V195: 0.05322130853 | W195: 0.3271428594 | X195: 0.3223826256 | Y195: 0.5157770278 | Z195: 0.594075 | AC195: P86 | AD195: =K195 -> 0.03 | AE195: =J195 -> 0.0433335037 | AF195: =I195 -> 0.05370805924 | AG195: =H195 -> 0.1555970794 | AH195: =G195 -> 0.2628212767 | AI195: =F195 -> 0.2041872752 | AJ195: =E195 -> 0.09891525397 | AK195: =D195 -> 0.07475428135 | AL195: =C195 -> 0.04668327044 | AM195: =B195 -> 0.03 | AN195: 1 | AP195: =SUMPRODUCT(AD195:AM195,$AD$1:$AM$1) -> 5.45 | AQ195: 3.8075 | AS195: =AD195*(AD$1-$AP195)^2 -> 0.594075 | AT195: =AE195*(AE$1-$AP195)^2 -> 0.5157770278 | AU195: =AF195*(AF$1-$AP195)^2 -> 0.3223826256 | AV195: =AG195*(AG$1-$AP195)^2 -> 0.3271428594 | AW195: =AH195*(AH$1-$AP195)^2 -> 0.05322130853 | AX195: =AI195*(AI$1-$AP195)^2 -> 0.06176665075 | AY195: =AJ195*(AJ$1-$AP195)^2 -> 0.2376438977 | AZ195: =AK195*(AK$1-$AP195)^2 -> 0.4860897145 | BA195: =AL195*(AL$1-$AP195)^2 -> 0.5883259158 | BB195: =AM195*(AM$1-$AP195)^2 -> 0.621075
A196: P87 | B196: 0 | C196: 0.02885679929 | D196: 0.06562033993 | E196: 0.1033847077 | F196: 0.1830762974 | G196: 0.4363264135 | H196: 0.1479138373 | I196: 0.01916269211 | J196: 0.008976574975 | K196: 0.00668233778 | L196: 1 | N196: 5.537764368 | O196: 1.847516381 | Q196: 0 | R196: 0.3611652568 | S196: 0.4226112621 | T196: 0.2444758085 | U196: 0.05294392878 | V196: 0.09322627805 | W196: 0.3162594632 | X196: 0.1161758197 | Y196: 0.1076028826 | Z196: 0.1330556817 | AC196: P87 | AD196: 0.00668233778 | AE196: 0.008976574975 | AF196: 0.01916269211 | AG196: 0.1479138373 | AH196: 0.4363264135 | AI196: 0.1830762974 | AJ196: 0.1033847077 | AK196: 0.06562033993 | AL196: 0.02885679929 | AM196: 0 | AN196: 1 | AP196: 5.462235632 | AQ196: 1.847516381 | AS196: 0.1330556817 | AT196: 0.1076028826 | AU196: 0.1161758197 | AV196: 0.3162594632 | AW196: 0.09322627805 | AX196: 0.05294392878 | AY196: 0.2444758085 | AZ196: 0.4226112621 | BA196: 0.3611652568 | BB196: 0
A197: P88 | B197: 0.0259308375 | C197: 0.038632105 | D197: 0.05314906722 | E197: 0.08412444271 | F197: 0.1139402213 | G197: 0.4166378807 | H197: 0.1675854455 | I197: 0.05 | J197: 0.03 | K197: 0.02 | L197: 1 | N197: =SUMPRODUCT(B197:K197,$B$1:$K$1) -> 5.71176653 | O197: =SUM(Q197:Z197) -> 3.069671127 | Q197: =B197*(B$1-$N197)^2 -> 0.5756838806 | R197: =C197*(C$1-$N197)^2 -> 0.5322426531 | S197: =D197*(D$1-$N197)^2 -> 0.390841111 | T197: =E197*(E$1-$N197)^2 -> 0.2464967859 | U197: =F197*(F$1-$N197)^2 -> 0.057723437 | V197: =G197*(G$1-$N197)^2 -> 0.03461366411 | W197: =H197*(H$1-$N197)^2 -> 0.2781156677 | X197: =I197*(I$1-$N197)^2 -> 0.2618006208 | Y197: =J197*(J$1-$N197)^2 -> 0.3243743807 | Z197: =K197*(K$1-$N197)^2 -> 0.3677789259 | AC197: P88 | AD197: 0.02 | AE197: 0.03 | AF197: 0.05 | AG197: 0.1675854455 | AH197: 0.4166378807 | AI197: 0.1139402213 | AJ197: 0.08412444271 | AK197: 0.05314906722 | AL197: 0.038632105 | AM197: 0.0259308375 | AN197: 1 | AP197: 5.28823347 | AQ197: =SUM(AS197:BB197) -> 3.069671127 | AS197: 0.3677789259 | AT197: 0.3243743807 | AU197: 0.2618006208 | AV197: 0.2781156677 | AW197: 0.03461366411 | AX197: 0.057723437 | AY197: 0.2464967859 | AZ197: 0.390841111 | BA197: 0.5322426531 | BB197: 0.5756838806
A198: H22 | B198: 0 | C198: 0 | D198: 0 | E198: 0.725 | F198: 0.2 | G198: 0.075 | H198: 0 | I198: 0 | J198: 0 | K198: 0 | L198: 1 | N198: 4.35 | O198: 0.3775 | Q198: 0 | R198: 0 | S198: 0 | T198: 0.0888125 | U198: 0.0845 | V198: 0.2041875 | W198: 0 | X198: 0 | Y198: 0 | Z198: 0 | AC198: H22 | AD198: 0 | AE198: 0 | AF198: 0 | AG198: 0 | AH198: 0.075 | AI198: 0.2 | AJ198: 0.725 | AK198: 0 | AL198: 0 | AM198: 0 | AN198: 1 | AP198: 6.65 | AQ198: 0.3775 | AS198: 0 | AT198: 0 | AU198: 0 | AV198: 0 | AW198: 0.2041875 | AX198: 0.0845 | AY198: 0.0888125 | AZ198: 0 | BA198: 0 | BB198: 0
A199: H23 | B199: 0 | C199: 0 | D199: 0 | E199: 0.625 | F199: 0.2499999995 | G199: 0.1250000005 | H199: 0 | I199: 0 | J199: 0 | K199: 0 | L199: 1 | N199: 4.5 | O199: 0.5000000009 | Q199: 0 | R199: 0 | S199: 0 | T199: 0.1562500003 | U199: 0.06249999976 | V199: 0.2812500009 | W199: 0 | X199: 0 | Y199: 0 | Z199: 0 | AC199: H23 | AD199: 0 | AE199: 0 | AF199: 0 | AG199: 0 | AH199: 0.1250000005 | AI199: 0.2499999995 | AJ199: 0.625 | AK199: 0 | AL199: 0 | AM199: 0 | AN199: 1 | AP199: 6.5 | AQ199: 0.5000000009 | AS199: 0 | AT199: 0 | AU199: 0 | AV199: 0 | AW199: 0.2812500009 | AX199: 0.06249999976 | AY199: 0.1562500003 | AZ199: 0 | BA199: 0 | BB199: 0
A200: H24 | B200: 0 | C200: 0 | D200: 0.006893046072 | E200: 0.5836417236 | F200: 0.3051443686 | G200: 0.1043208618 | H200: 0 | I200: 0 | J200: 0 | K200: 0 | L200: 1 | N200: 4.506893046 | O200: 0.4723803016 | Q200: 0 | R200: 0 | S200: 0.01565222343 | T200: 0.1499612314 | U200: 0.07419721661 | V200: 0.2325696302 | W200: 0 | X200: 0 | Y200: 0 | Z200: 0 | AC200: H24 | AD200: 0 | AE200: 0 | AF200: 0 | AG200: 0 | AH200: 0.1043208618 | AI200: 0.3051443686 | AJ200: 0.5836417236 | AK200: 0.006893046072 | AL200: 0 | AM200: 0 | AN200: 1 | AP200: 6.493106954 | AQ200: 0.4723803016 | AS200: 0 | AT200: 0 | AU200: 0 | AV200: 0 | AW200: 0.2325696302 | AX200: 0.07419721661 | AY200: 0.1499612314 | AZ200: 0.01565222343 | BA200: 0 | BB200: 0
... 144 more rows

Sheet Distribution (2)
A1: Vyšší -> Lepší | B1: 1 | C1: 2 | D1: 3 | E1: 4 | F1: 5 | G1: 6 | H1: 7 | I1: 8 | J1: 9 | K1: 10 | N1: stredni hodnota | O1: rozptyl | P1: sikmost | Q1: 1 | R1: 2 | S1: 3 | T1: 4 | U1: 5 | V1: 6 | W1: 7 | X1: 8 | Y1: 9 | Z1: 10 | AC1: Vyšší -> Horší | AD1: =Q1 -> 1 | AE1: 2 | AF1: 3 | AG1: 4 | AH1: 5 | AI1: 6 | AJ1: 7 | AK1: 8 | AL1: 9 | AM1: 10 | AP1: stredni hodnota | AQ1: rozptyl | AS1: 10 | AT1: 9 | AU1: 8 | AV1: 7 | AW1: 6 | AX1: 5 | AY1: 4 | AZ1: 3 | BA1: 2 | BB1: 1
A2: A22 | B2: 0 | C2: 0 | D2: 0 | E2: 0 | F2: 0 | G2: 0 | H2: 0 | I2: 0.725 | J2: 0.2 | K2: 0.075 | L2: =SUM(B2:K2) -> 1 | N2: =SUMPRODUCT(B2:K2,$B$1:$K$1) -> 8.35 | O2: =SUM(Q2:Z2) -> 0.3775 | Q2: =B2*(B$1-$N2)^2 -> 0 | R2: 0 | S2: 0 | T2: 0 | U2: 0 | V2: 0 | W2: 0 | X2: 0.0888125 | Y2: 0.0845 | Z2: 0.2041875 | AC2: A22 | AD2: =K2 -> 0.075 | AE2: =J2 -> 0.2 | AF2: =I2 -> 0.725 | AG2: =H2 -> 0 | AH2: =G2 -> 0 | AI2: =F2 -> 0 | AJ2: =E2 -> 0 | AK2: =D2 -> 0 | AL2: =C2 -> 0 | AM2: =B2 -> 0 | AN2: =SUM(AD2:AM2) -> 1 | AP2: =SUMPRODUCT(AD2:AM2,$AD$1:$AM$1) -> 2.65 | AQ2: =SUM(AS2:BB2) -> 0.3775 | AS2: =AD2*(AD$1-$AP2)^2 -> 0.2041875 | AT2: 0.0845 | AU2: 0.0888125 | AV2: 0 | AW2: 0 | AX2: 0 | AY2: 0 | AZ2: 0 | BA2: 0 | BB2: 0
A3: A23 | B3: 0 | C3: 0 | D3: 0 | E3: 0 | F3: 0 | G3: 0 | H3: 0 | I3: 0.625 | J3: 0.2499999995 | K3: 0.1250000005 | L3: 1 | N3: 8.5 | O3: 0.5000000009 | Q3: 0 | R3: 0 | S3: 0 | T3: 0 | U3: 0 | V3: 0 | W3: 0 | X3: 0.1562500003 | Y3: 0.06249999976 | Z3: 0.2812500009 | AC3: A23 | AD3: 0.1250000005 | AE3: 0.2499999995 | AF3: 0.625 | AG3: 0 | AH3: 0 | AI3: 0 | AJ3: 0 | AK3: 0 | AL3: 0 | AM3: 0 | AN3: 1 | AP3: 2.5 | AQ3: 0.5000000009 | AS3: 0.2812500009 | AT3: 0.06249999976 | AU3: 0.1562500003 | AV3: 0 | AW3: 0 | AX3: 0 | AY3: 0 | AZ3: 0 | BA3: 0 | BB3: 0
A4: A24 | B4: 0 | C4: 0 | D4: 0 | E4: 0 | F4: 0 | G4: 0 | H4: 0.006893046072 | I4: 0.5836417236 | J4: 0.3051443686 | K4: 0.1043208618 | L4: 1 | N4: 8.506893046 | O4: 0.4723803016 | Q4: 0 | R4: 0 | S4: 0 | T4: 0 | U4: 0 | V4: 0 | W4: 0.01565222343 | X4: 0.1499612314 | Y4: 0.07419721661 | Z4: 0.2325696302 | AC4: A24 | AD4: 0.1043208618 | AE4: 0.3051443686 | AF4: 0.5836417236 | AG4: 0.006893046072 | AH4: 0 | AI4: 0 | AJ4: 0 | AK4: 0 | AL4: 0 | AM4: 0 | AN4: 1 | AP4: 2.493106954 | AQ4: 0.4723803016 | AS4: 0.2325696302 | AT4: 0.07419721661 | AU4: 0.1499612314 | AV4: 0.01565222343 | AW4: 0 | AX4: 0 | AY4: 0 | AZ4: 0 | BA4: 0 | BB4: 0
A5: A25 | B5: 0 | C5: 0 | D5: 0 | E5: 0 | F5: 0 | G5: 0 | H5: 0.0625 | I5: 0.4375 | J5: 0.4375 | K5: 0.0625 | L5: 1 | N5: 8.5 | O5: 0.5 | Q5: 0 | R5: 0 | S5: 0 | T5: 0 | U5: 0 | V5: 0 | W5: 0.140625 | X5: 0.109375 | Y5: 0.109375 | Z5: 0.140625 | AC5: A25 | AD5: 0.0625 | AE5: 0.4375 | AF5: 0.4375 | AG5: 0.0625 | AH5: 0 | AI5: 0 | AJ5: 0 | AK5: 0 | AL5: 0 | AM5: 0 | AN5: 1 | AP5: 2.5 | AQ5: 0.5 | AS5: 0.140625 | AT5: 0.109375 | AU5: 0.109375 | AV5: 0.140625 | AW5: 0 | AX5: 0 | AY5: 0 | AZ5: 0 | BA5: 0 | BB5: 0
A6: A26 | B6: 0 | C6: 0 | D6: 0 | E6: 0 | F6: 0 | G6: 0 | H6: 0.1043208618 | I6: 0.3051443686 | J6: 0.5836417236 | K6: 0.006893046072 | L6: 1 | N6: 8.493106954 | O6: 0.4723803016 | Q6: 0 | R6: 0 | S6: 0 | T6: 0 | U6: 0 | V6: 0 | W6: 0.2325696302 | X6: 0.07419721661 | Y6: 0.1499612314 | Z6: 0.01565222343 | AC6: A26 | AD6: 0.006893046072 | AE6: 0.5836417236 | AF6: 0.3051443686 | AG6: 0.1043208618 | AH6: 0 | AI6: 0 | AJ6: 0 | AK6: 0 | AL6: 0 | AM6: 0 | AN6: 1 | AP6: 2.506893046 | AQ6: 0.4723803016 | AS6: 0.01565222343 | AT6: 0.1499612314 | AU6: 0.07419721661 | AV6: 0.2325696302 | AW6: 0 | AX6: 0 | AY6: 0 | AZ6: 0 | BA6: 0 | BB6: 0
A7: A27 | B7: 0 | C7: 0 | D7: 0 | E7: 0 | F7: 0 | G7: 0 | H7: 0.1250000005 | I7: 0.2499999995 | J7: 0.625 | K7: 0 | L7: 1 | N7: 8.5 | O7: 0.5000000009 | Q7: 0 | R7: 0 | S7: 0 | T7: 0 | U7: 0 | V7: 0 | W7: 0.2812500009 | X7: 0.06249999976 | Y7: 0.1562500003 | Z7: 0 | AC7: A27 | AD7: 0 | AE7: 0.625 | AF7: 0.2499999995 | AG7: 0.1250000005 | AH7: 0 | AI7: 0 | AJ7: 0 | AK7: 0 | AL7: 0 | AM7: 0 | AN7: 1 | AP7: 2.5 | AQ7: 0.5000000009 | AS7: 0 | AT7: 0.1562500003 | AU7: 0.06249999976 | AV7: 0.2812500009 | AW7: 0 | AX7: 0 | AY7: 0 | AZ7: 0 | BA7: 0 | BB7: 0
A8: A28 | B8: 0 | C8: 0 | D8: 0 | E8: 0 | F8: 0 | G8: 0 | H8: 0.075 | I8: 0.2 | J8: 0.725 | K8: 0 | L8: 1 | N8: 8.65 | O8: 0.3775 | Q8: 0 | R8: 0 | S8: 0 | T8: 0 | U8: 0 | V8: 0 | W8: 0.2041875 | X8: 0.0845 | Y8: 0.0888125 | Z8: 0 | AC8: A28 | AD8: 0 | AE8: 0.725 | AF8: 0.2 | AG8: 0.075 | AH8: 0 | AI8: 0 | AJ8: 0 | AK8: 0 | AL8: 0 | AM8: 0 | AN8: 1 | AP8: 2.35 | AQ8: 0.3775 | AS8: 0 | AT8: 0.0888125 | AU8: 0.0845 | AV8: 0.2041875 | AW8: 0 | AX8: 0 | AY8: 0 | AZ8: 0 | BA8: 0 | BB8: 0
A9: A32 | B9: 0 | C9: 0 | D9: 0 | E9: 0 | F9: 0.004 | G9: 0.00683 | H9: 0.01516011475 | I9: 0.6928495747 | J9: 0.2128267413 | K9: 0.06833708529 | L9: 1.000003516 | N9: 8.308708926 | O9: 0.4693716986 | Q9: 0 | R9: 0 | S9: 0 | T9: 0 | U9: 0.04379021902 | V9: 0.03640483506 | W9: 0.02596501737 | X9: 0.0660293965 | Y9: 0.1017063559 | Z9: 0.1954758747 | AC9: A32 | AD9: 0.06833708529 | AE9: 0.2128267413 | AF9: 0.6928495747 | AG9: 0.01516011475 | AH9: 0.00683 | AI9: 0.004 | AJ9: 0 | AK9: 0 | AL9: 0 | AM9: 0 | AN9: 1.000003516 | AP9: 2.691329751 | AQ9: 0.4693716978 | AS9: 0.1954848152 | AT9: 0.101717737 | AU9: 0.06601285241 | AV9: 0.02596348267 | AW9: 0.03640361531 | AX9: 0.04378919526 | AY9: 0 | AZ9: 0 | BA9: 0 | BB9: 0
N13: Aplikace na databazi sikomosti
L14: =SKEW(B2:K2) -> 2.760318626 | P14: =SUM(Q14:Z14) -> 6.70587528 | Q14: =B2*((B$1-$N2)/$O2)^3 -> 0 | R14: =C2*((C$1-$N2)/$O2)^3 -> 0 | S14: 0 | T14: 0 | U14: 0 | V14: 0 | W14: 0 | X14: -0.5778182728 | Y14: 1.020984615 | Z14: 6.262708938
P15: =SUM(Q15:Z15) -> 2.99999999 | Q15: =B3*((B$1-$N3)/$O3)^3 -> 0 | R15: =C3*((C$1-$N3)/$O3)^3 -> 0 | S15: =D3*((D$1-$N3)/$O3)^3 -> 0 | T15: =E3*((E$1-$N3)/$O3)^3 -> 0 | U15: =F3*((F$1-$N3)/$O3)^3 -> 0 | V15: =G3*((G$1-$N3)/$O3)^3 -> 0 | W15: =H3*((H$1-$N3)/$O3)^3 -> 0 | X15: =I3*((I$1-$N3)/$O3)^3 -> -0.6249999982 | Y15: =J3*((J$1-$N3)/$O3)^3 -> 0.2499999974 | Z15: =K3*((K$1-$N3)/$O3)^3 -> 3.37499999
P16: 2.696539247 | Q16: 0 | R16: 0 | S16: 0 | T16: 0 | U16: 0 | V16: 0 | W16: -0.2237603486 | X16: -0.7211406779 | Y16: 0.3470990327 | Z16: 3.294341241
P17: 0 | Q17: 0 | R17: 0 | S17: 0 | T17: 0 | U17: 0 | V17: 0 | W17: -1.6875 | X17: -0.4375 | Y17: 0.4375 | Z17: 1.6875
P18: -2.696539247 | Q18: 0 | R18: 0 | S18: 0 | T18: 0 | U18: 0 | V18: 0 | W18: -3.294341241 | X18: -0.3470990327 | Y18: 0.7211406779 | Z18: 0.2237603486
P19: -2.99999999 | Q19: 0 | R19: 0 | S19: 0 | T19: 0 | U19: 0 | V19: 0 | W19: -3.37499999 | X19: -0.2499999974 | Y19: 0.6249999982 | Z19: 0
P20: -6.70587528 | Q20: 0 | R20: 0 | S20: 0 | T20: 0 | U20: 0 | V20: 0 | W20: -6.262708938 | X20: -1.020984615 | Y20: 0.5778182728 | Z20: 0
P21: 1.137382595 | Q21: 0 | R21: 0 | S21: 0 | T21: 0 | U21: -1.40115113 | V21: -0.8127885009 | W21: -0.328610157 | X21: -0.1971223262 | Y21: 0.6799208273 | Z21: 3.197133882
N23: Ukazka vy[octy siknmosti
B24: 0.3 | C24: 0.4 | D24: 0.3 | N24: =SUMPRODUCT(B24:D24,$B$1:$D$1) -> 2 | O24: =SUM(Q24:Z24) -> 0.6 | Q24: =B24*(B$1-$N24)^2 -> 0.3 | R24: =C24*(C$1-$N24)^2 -> 0 | S24: =D24*(D$1-$N24)^2 -> 0.3
P26: =10/72*SUM(Q26:S26) -> 0 | Q26: =(B$1-$N24)^3/$O24 -> -1.666666667 | R26: =(C$1-$N24)^3/$O24 -> 0 | S26: =(D$1-$N24)^3/$O24 -> 1.666666667

Sheet DataTree
A1: IndexLevel | B1: IDItem | C1: IDParent | D1: Weight | E1: Average | F1: Risk | G1: Title | H1: Description | I1: Project | J1: Trend | K1: RiskEval | L1: RozptylEval | M1: SikmostEval | N1: Preference | P1: Minimum | Q1: Maximum
A2: 0 | B2: 0 | C2: -1 | G2: Most SO 201 - beton | I2: Most Suchdol - beton
A3: 1 | B3: 1 | C3: 0 | D3: 0.3 | E3: 0 | F3: 0 | G3: Technické řešení
A4: 1 | B4: 2 | C4: 0 | D4: 0.7 | E4: 0 | F4: 0 | G4: Ekonomické řešení
A5: 2 | B5: 3 | C5: 1 | D5: 0.3 | E5: 3.6 | F5: 0.9 | G5: Doba výstavby
A6: 2 | B6: 4 | C6: 1 | D6: 0.7 | E6: 7.5 | F6: 0.5 | G6: Životnost
A7: 2 | B7: 5 | C7: 2 | D7: 0.5 | E7: 3.92 | F7: 0.3 | G7: Pořizovací cena | J7: 0 | P7: 120 | Q7: 130
A8: 2 | B8: 6 | C8: 2 | D8: 0.5 | E8: 2.35 | F8: 0.7 | G8: Provozní náklady /rok

Sheet PictSelect

Sheet Settings
D1: Selected sheets: | E1: 1 | F1: Umístění archivu: | G1: DemoArchiv | H1: Calculation : | J1: Hodnocení: | K1: A | L1: absolutně nejlepší | M1: Rozptyl: | N1: 2 | O1: téměř žádný | P1: Šikmost: | Q1: 2 | R1: velmi silně pozitivní | S1: Předgenerace: | T1: TRUE
A2: User ID : | B2: 0 | E2: X2DEkoDostupnost | H2: Number of simulation : | I2: 100 | K2: V | L2: velmi dobré | N2: 3 | O2: mírný | Q2: 3 | R2: velice pozitivní | S2: Typ rozdeleni : | T2: 1
A3: Authorisation : | B3: FALSE | H3: Number of parameterisation : | I3: 40 | K3: D | L3: dobré | N3: 4 | O3: menší | Q3: 4 | R3: značně pozitivní | S3: Rozdělení: | T3: rovnoměrné
K4: P | L4: průměrné | N4: 5 | O4: průměrný | Q4: 5 | R4: průměrná | T4: normální
A5: Application language: | B5: 0 | K5: H | L5: horší | N5: 6 | O5: značný | Q5: 6 | R5: méně negativní | AF5: Administrator | AG5: administrator
A6: Num. of application language: | B6: 2 | K6: Z | L6: značně horší | N6: 7 | O6: velký | Q6: 7 | R6: mírně negativní | AF6: User ŘSD1 | AG6: rsd1
A7: List of application language: | B7: czech | K7: S | L7: špatné | N7: 8 | O7: téměř největší | Q7: 8 | R7: velmi silně negativní | AF7: User ŘSD2 | AG7: rsd2
B8: english | AF8: User ŘSD3 | AG8: rsd3
B9: german | R9: Původní stupnice | AF9: Ing. D. Macek, Ph.D. | AG9: macek
B10: spanish | R10: velmi silně negativní | AF10: Ing. D. Měšťanová, CSc. | AG10: mestanova
R11: mírně negativní | AF11: Doc. Ing. V. Beran,DrSc. | AG11: beran
R12: méně negativní | AF12: Ing. J. Frková, Ph.D. | AG12: frkova
R13: průměrná | AF13: Ing. P. Dlask, Ph.D. | AG13: dlask
R14: značně pozitivní | AF14: Ing. Z. Prostějovská, Ph.D. | AG14: prostejovska
A15: Save graph options : | R15: velice pozitivní | AF15: Ing. E. Hromada | AG15: hromada
A16: Max. scale Yt : | B16: FALSE | R16: velmi silně pozitivní | AF16: Student | AG16: Student
A17: Graph legend : | B17: FALSE | AF17: Ing. V. Snížek | AG17: snizek
A18: Graph border : | B18: FALSE | AF18: User DecisionLab1 | AG18: dcl1
A19: Graph fill : | B19: FALSE | AF19: User DecisionLab2 | AG19: dcl2
A20: Max. value : | B20: 100 | AF20: User DecisionLab3 | AG20: dcl3
A21: Left top X : | B21: 10
A22: Left top Y : | B22: 100
A23: Height Y : | B23: 300
A24: Width X : | B24: 400
A25: Logaritmic scale : | B25: FALSE
A26: Export : | B26: 0
B27: do schránky
B28: do nového listu
A32: Two axis : | B32: FALSE
A33: Name element's to scheme : | B33: TRUE
A34: Mezera X : | B34: 10
A35: Mezera Y : | B35: 10
A36: Max grafu v rade : | B36: 2
A37: Rotace : | B37: 40
A38: Zakladna svetle : | B38: TRUE
A39: Popis os tucne : | B39: TRUE
A40: Stupnice 0-1 : | B40: FALSE
A41: Nadpis pouze nazev prvku : | B41: FALSE
A42: Graph type : | B42: 1
A43: Depth 3D graph : | B43: 500
A44: Gap 3D graph : | B44: 100
A45: Gap width 3D graph : | B45: 0
A46: Vystupy pro globalni maxima : | B46: FALSE
A48: Verze mosty : | B48: FALSE
A50: Output language: | B50: 1
A51: Num. of output language: | B51: 2
A52: List of output language: | B52: czech
B53: english
B54: german
B55: spanish

Sheet Log
A1: Nelze provést generaci výpočtu pro položku na řádku: 9

Sheet Pattern
A1: 0.8280344795
A2: 0.4249686088
A3: 0.4808281887
A4: 0.2472527748
A5: 0.9534707184
A6: 0.7238307854
A7: 0.3320957646
A8: 0.20610129
A9: 0.8584660192
A10: 0.1716370165
A11: 0.992562907
A12: 0.892962146
A13: 0.3548194313
A14: 0.4917160668
A15: 0.6438530077
A16: 0.6143399375
A17: 0.9409839133
A18: 0.8665848342
A19: 0.6072350329
A20: 0.4296299672
A21: 0.7395599535
A22: 0.2744657604
A23: 0.9903332796
A24: 0.3875144085
A25: 0.3682085518
A26: 0.9241581185
A27: 0.8721833654
A28: 0.754369296
A29: 0.239542108
A30: 0.5541215981
A31: 0.6012975048
A32: 0.8411964128
A33: 0.3213145168
A34: 0.4633041429
A35: 0.898203032
A36: 0.08183350739
A37: 0.9633306696
A38: 0.5323034318
A39: 0.4971307379
A40: 0.3648595666
A41: 0.7704056137
A42: 0.9819324996
A43: 0.4113400474
A44: 0.01987577773
A45: 0.4927001882
A46: 0.08230133115
A47: 0.9915355844
A48: 0.7675165674
A49: 0.3279254851
A50: 0.3928435596
A51: 0.6741860825
A52: 0.6760475368
A53: 0.4274986988
A54: 0.3695363172
A55: 0.9503266683
A56: 0.3286568577
A57: 0.6318213349
A58: 0.1934039807
A59: 0.2371430686
A60: 0.6446416675
A61: 0.7498659316
A62: 0.587469559
A63: 0.8686871136
A64: 0.9263473536
A65: 0.5678357622
A66: 0.2023578565
A67: 0.9239375859
A68: 0.5218116903
A69: 0.7876296186
A70: 0.512328307
A71: 0.8042257409
A72: 0.1025957539
A73: 0.2791865664
A74: 0.7948343203
A75: 0.09088519574
A76: 0.4923001281
A77: 0.9016679537
A78: 0.4567447654
A79: 0.4833769899
A80: 0.3826771255
A81: 0.9257887537
A82: 0.3206103718
A83: 0.257011433
A84: 0.1125186523
A85: 0.7336219521
A86: 0.01023544394
A87: 0.6464513704
A88: 0.6837832323
A89: 0.5137432498
A90: 0.8266268625
A91: 0.2253961205
A92: 0.9415552458
A93: 0.1084136267
A94: 0.1044595343
A95: 0.636278702
A96: 0.5744246973
A97: 0.4959131552
A98: 0.4257493724
A99: 0.7051435111
A100: 0.02448771169
A101: 0.3065688994
A102: 0.5730674312
A103: 0.3381897709
A104: 0.09928997686
A105: 0.1845930112
A106: 0.2135193225
A107: 0.6286531099
A108: 0.2363728058
A109: 0.7175465885
A110: 0.4482747398
A111: 0.098486605
A112: 0.9984611709
A113: 0.6238455487
A114: 0.8022006434
A115: 0.0444548288
A116: 0.6061330952
A117: 0.5918332966
A118: 0.3355442935
A119: 0.6006643129
A120: 0.3074421482
A121: 0.1341101838
A122: 0.9527464396
A123: 0.7785094613
A124: 0.4347385381
A125: 0.5783752583
A126: 0.6025218459
A127: 0.1540974641
A128: 0.3778579341
A129: 0.3186199502
A130: 0.8389275321
A131: 0.4407522249
A132: 0.5009906756
A133: 0.7033183651
A134: 0.3788302608
A135: 0.2948953776
A136: 0.1563062385
A137: 0.8875822197
A138: 0.8263594599
A139: 0.5232272714
A140: 0.5502812239
A141: 0.8071824615
A142: 0.80527399
A143: 0.1876177525
A144: 0.5905688108
A145: 0.8976050547
A146: 0.9181026655
A147: 0.7238271842
A148: 0.2643837186
A149: 0.4953724729
A150: 0.4772715656
A151: 0.660143157
A152: 0.9571783745
A153: 0.5352556615
A154: 0.7583060715
A155: 0.7514048446
A156: 0.5092699397
A157: 0.8783523005
A158: 0.9307267107
A159: 0.7075368496
A160: 0.6483551787
A161: 0.1914710343
A162: 0.6512554876
A163: 0.2570451001
A164: 0.9140663596
A165: 0.8535487974
A166: 0.2773284005
A167: 0.1071241219
A168: 0.01261539529
A169: 0.07695767115
A170: 0.6004343377
A171: 0.5990621227
A172: 0.2625382074
A173: 0.59719491
A174: 0.2203834506
A175: 0.253641081
A176: 0.08797905652
A177: 0.1072066645
A178: 0.5881168801
A179: 0.3841133072
A180: 0.8731466028
A181: 0.4293515752
A182: 0.2747396421
A183: 0.1869527963
A184: 0.5301879265
A185: 0.9363933266
A186: 0.4070588602
A187: 0.3697378813
A188: 0.345602119
A189: 0.06782754049
A190: 0.5324158946
A191: 0.6968049169
A192: 0.8387623947
A193: 0.6241347557
A194: 0.3341220658
A195: 0.8031893692
A196: 0.02653414748
A197: 0.04977244753
A198: 0.3713306634
A199: 0.6719437943
A200: 0.350622199
... 800 more rows

Sheet ItemID0
A1: =DataTree!$D$3*ItemID1!$A$1+DataTree!$D$4*ItemID2!$A$1 -> 4.60078466
A2: =DataTree!$D$3*ItemID1!$A$2+DataTree!$D$4*ItemID2!$A$2 -> 3.992089587
A3: =DataTree!$D$3*ItemID1!$A$3+DataTree!$D$4*ItemID2!$A$3 -> 4.067731738
A4: =DataTree!$D$3*ItemID1!$A$4+DataTree!$D$4*ItemID2!$A$4 -> 3.727326074
A5: =DataTree!$D$3*ItemID1!$A$5+DataTree!$D$4*ItemID2!$A$5 -> 4.993701198
A6: =DataTree!$D$3*ItemID1!$A$6+DataTree!$D$4*ItemID2!$A$6 -> 4.412023199
A7: =DataTree!$D$3*ItemID1!$A$7+DataTree!$D$4*ItemID2!$A$7 -> 3.860804466
A8: =DataTree!$D$3*ItemID1!$A$8+DataTree!$D$4*ItemID2!$A$8 -> 3.653967281
A9: =DataTree!$D$3*ItemID1!$A$9+DataTree!$D$4*ItemID2!$A$9 -> 4.668870753
A10: =DataTree!$D$3*ItemID1!$A$10+DataTree!$D$4*ItemID2!$A$10 -> 3.585524203
A11: =DataTree!$D$3*ItemID1!$A$11+DataTree!$D$4*ItemID2!$A$11 -> 5.398889389
A12: =DataTree!$D$3*ItemID1!$A$12+DataTree!$D$4*ItemID2!$A$12 -> 4.759445743
A13: =DataTree!$D$3*ItemID1!$A$13+DataTree!$D$4*ItemID2!$A$13 -> 3.893925142
A14: =DataTree!$D$3*ItemID1!$A$14+DataTree!$D$4*ItemID2!$A$14 -> 4.082369299
A15: =DataTree!$D$3*ItemID1!$A$15+DataTree!$D$4*ItemID2!$A$15 -> 4.291164447
A16: =DataTree!$D$3*ItemID1!$A$16+DataTree!$D$4*ItemID2!$A$16 -> 4.249287623
A17: =DataTree!$D$3*ItemID1!$A$17+DataTree!$D$4*ItemID2!$A$17 -> 4.93131454
A18: =DataTree!$D$3*ItemID1!$A$18+DataTree!$D$4*ItemID2!$A$18 -> 4.688669879
A19: =DataTree!$D$3*ItemID1!$A$19+DataTree!$D$4*ItemID2!$A$19 -> 4.239356193
A20: =DataTree!$D$3*ItemID1!$A$20+DataTree!$D$4*ItemID2!$A$20 -> 3.998458454
A21: =DataTree!$D$3*ItemID1!$A$21+DataTree!$D$4*ItemID2!$A$21 -> 4.437606296
A22: =DataTree!$D$3*ItemID1!$A$22+DataTree!$D$4*ItemID2!$A$22 -> 3.772241976
A23: =DataTree!$D$3*ItemID1!$A$23+DataTree!$D$4*ItemID2!$A$23 -> 5.347224638
A24: =DataTree!$D$3*ItemID1!$A$24+DataTree!$D$4*ItemID2!$A$24 -> 3.940309457
A25: =DataTree!$D$3*ItemID1!$A$25+DataTree!$D$4*ItemID2!$A$25 -> 3.913081438
A26: =DataTree!$D$3*ItemID1!$A$26+DataTree!$D$4*ItemID2!$A$26 -> 4.861914632
A27: =DataTree!$D$3*ItemID1!$A$27+DataTree!$D$4*ItemID2!$A$27 -> 4.70281023
A28: =DataTree!$D$3*ItemID1!$A$28+DataTree!$D$4*ItemID2!$A$28 -> 4.462430906
A29: =DataTree!$D$3*ItemID1!$A$29+DataTree!$D$4*ItemID2!$A$29 -> 3.714131929
A30: =DataTree!$D$3*ItemID1!$A$30+DataTree!$D$4*ItemID2!$A$30 -> 4.166439717
A31: =DataTree!$D$3*ItemID1!$A$31+DataTree!$D$4*ItemID2!$A$31 -> 4.231094936
A32: =DataTree!$D$3*ItemID1!$A$32+DataTree!$D$4*ItemID2!$A$32 -> 4.629171521
A33: =DataTree!$D$3*ItemID1!$A$33+DataTree!$D$4*ItemID2!$A$33 -> 3.844782001
A34: =DataTree!$D$3*ItemID1!$A$34+DataTree!$D$4*ItemID2!$A$34 -> 4.04412745
A35: =DataTree!$D$3*ItemID1!$A$35+DataTree!$D$4*ItemID2!$A$35 -> 4.774959014
A36: =DataTree!$D$3*ItemID1!$A$36+DataTree!$D$4*ItemID2!$A$36 -> 3.346935696
A37: =DataTree!$D$3*ItemID1!$A$37+DataTree!$D$4*ItemID2!$A$37 -> 5.053324511
A38: =DataTree!$D$3*ItemID1!$A$38+DataTree!$D$4*ItemID2!$A$38 -> 4.136948901
A39: =DataTree!$D$3*ItemID1!$A$39+DataTree!$D$4*ItemID2!$A$39 -> 4.089644962
A40: =DataTree!$D$3*ItemID1!$A$40+DataTree!$D$4*ItemID2!$A$40 -> 3.908312444
A41: =DataTree!$D$3*ItemID1!$A$41+DataTree!$D$4*ItemID2!$A$41 -> 4.490238255
A42: =DataTree!$D$3*ItemID1!$A$42+DataTree!$D$4*ItemID2!$A$42 -> 5.216637108
A43: =DataTree!$D$3*ItemID1!$A$43+DataTree!$D$4*ItemID2!$A$43 -> 3.973382815
A44: =DataTree!$D$3*ItemID1!$A$44+DataTree!$D$4*ItemID2!$A$44 -> 2.991311777
A45: =DataTree!$D$3*ItemID1!$A$45+DataTree!$D$4*ItemID2!$A$45 -> 4.08369177
A46: =DataTree!$D$3*ItemID1!$A$46+DataTree!$D$4*ItemID2!$A$46 -> 3.348590217
A47: =DataTree!$D$3*ItemID1!$A$47+DataTree!$D$4*ItemID2!$A$47 -> 5.373601888
A48: =DataTree!$D$3*ItemID1!$A$48+DataTree!$D$4*ItemID2!$A$48 -> 4.485151296
A49: =DataTree!$D$3*ItemID1!$A$49+DataTree!$D$4*ItemID2!$A$49 -> 3.854632255
A50: =DataTree!$D$3*ItemID1!$A$50+DataTree!$D$4*ItemID2!$A$50 -> 3.94775338
A51: =DataTree!$D$3*ItemID1!$A$51+DataTree!$D$4*ItemID2!$A$51 -> 4.335505034
A52: =DataTree!$D$3*ItemID1!$A$52+DataTree!$D$4*ItemID2!$A$52 -> 4.338277603
A53: =DataTree!$D$3*ItemID1!$A$53+DataTree!$D$4*ItemID2!$A$53 -> 3.995548196
A54: =DataTree!$D$3*ItemID1!$A$54+DataTree!$D$4*ItemID2!$A$54 -> 3.914968224
A55: =DataTree!$D$3*ItemID1!$A$55+DataTree!$D$4*ItemID2!$A$55 -> 4.976843693
A56: =DataTree!$D$3*ItemID1!$A$56+DataTree!$D$4*ItemID2!$A$56 -> 3.855716991
A57: =DataTree!$D$3*ItemID1!$A$57+DataTree!$D$4*ItemID2!$A$57 -> 4.273961057
A58: =DataTree!$D$3*ItemID1!$A$58+DataTree!$D$4*ItemID2!$A$58 -> 3.629634542
A59: =DataTree!$D$3*ItemID1!$A$59+DataTree!$D$4*ItemID2!$A$59 -> 3.709979848
A60: =DataTree!$D$3*ItemID1!$A$60+DataTree!$D$4*ItemID2!$A$60 -> 4.292299054
A61: =DataTree!$D$3*ItemID1!$A$61+DataTree!$D$4*ItemID2!$A$61 -> 4.454800403
A62: =DataTree!$D$3*ItemID1!$A$62+DataTree!$D$4*ItemID2!$A$62 -> 4.211977719
A63: =DataTree!$D$3*ItemID1!$A$63+DataTree!$D$4*ItemID2!$A$63 -> 4.693930686
A64: =DataTree!$D$3*ItemID1!$A$64+DataTree!$D$4*ItemID2!$A$64 -> 4.87022598
A65: =DataTree!$D$3*ItemID1!$A$65+DataTree!$D$4*ItemID2!$A$65 -> 4.185084623
A66: =DataTree!$D$3*ItemID1!$A$66+DataTree!$D$4*ItemID2!$A$66 -> 3.646889373
A67: =DataTree!$D$3*ItemID1!$A$67+DataTree!$D$4*ItemID2!$A$67 -> 4.861087574
A68: =DataTree!$D$3*ItemID1!$A$68+DataTree!$D$4*ItemID2!$A$68 -> 4.122819772
A69: =DataTree!$D$3*ItemID1!$A$69+DataTree!$D$4*ItemID2!$A$69 -> 4.521347833
A70: =DataTree!$D$3*ItemID1!$A$70+DataTree!$D$4*ItemID2!$A$70 -> 4.110066368
A71: =DataTree!$D$3*ItemID1!$A$71+DataTree!$D$4*ItemID2!$A$71 -> 4.552751498
A72: =DataTree!$D$3*ItemID1!$A$72+DataTree!$D$4*ItemID2!$A$72 -> 3.414442288
A73: =DataTree!$D$3*ItemID1!$A$73+DataTree!$D$4*ItemID2!$A$73 -> 3.779800821
A74: =DataTree!$D$3*ItemID1!$A$74+DataTree!$D$4*ItemID2!$A$74 -> 4.534794508
A75: =DataTree!$D$3*ItemID1!$A$75+DataTree!$D$4*ItemID2!$A$75 -> 3.377766442
A76: =DataTree!$D$3*ItemID1!$A$76+DataTree!$D$4*ItemID2!$A$76 -> 4.083154174
A77: =DataTree!$D$3*ItemID1!$A$77+DataTree!$D$4*ItemID2!$A$77 -> 4.785537193
A78: =DataTree!$D$3*ItemID1!$A$78+DataTree!$D$4*ItemID2!$A$78 -> 4.035269972
A79: =DataTree!$D$3*ItemID1!$A$79+DataTree!$D$4*ItemID2!$A$79 -> 4.071159642
A80: =DataTree!$D$3*ItemID1!$A$80+DataTree!$D$4*ItemID2!$A$80 -> 3.93352695
A81: =DataTree!$D$3*ItemID1!$A$81+DataTree!$D$4*ItemID2!$A$81 -> 4.868087545
A82: =DataTree!$D$3*ItemID1!$A$82+DataTree!$D$4*ItemID2!$A$82 -> 3.843727926
A83: =DataTree!$D$3*ItemID1!$A$83+DataTree!$D$4*ItemID2!$A$83 -> 3.743713615
A84: =DataTree!$D$3*ItemID1!$A$84+DataTree!$D$4*ItemID2!$A$84 -> 3.44320228
A85: =DataTree!$D$3*ItemID1!$A$85+DataTree!$D$4*ItemID2!$A$85 -> 4.427859121
A86: =DataTree!$D$3*ItemID1!$A$86+DataTree!$D$4*ItemID2!$A$86 -> 2.851264603
A87: =DataTree!$D$3*ItemID1!$A$87+DataTree!$D$4*ItemID2!$A$87 -> 4.294905967
A88: =DataTree!$D$3*ItemID1!$A$88+DataTree!$D$4*ItemID2!$A$88 -> 4.349871181
A89: =DataTree!$D$3*ItemID1!$A$89+DataTree!$D$4*ItemID2!$A$89 -> 4.111968435
A90: =DataTree!$D$3*ItemID1!$A$90+DataTree!$D$4*ItemID2!$A$90 -> 4.597832683
A91: =DataTree!$D$3*ItemID1!$A$91+DataTree!$D$4*ItemID2!$A$91 -> 3.689305135
A92: =DataTree!$D$3*ItemID1!$A$92+DataTree!$D$4*ItemID2!$A$92 -> 4.933928763
A93: =DataTree!$D$3*ItemID1!$A$93+DataTree!$D$4*ItemID2!$A$93 -> 3.431535318
A94: =DataTree!$D$3*ItemID1!$A$94+DataTree!$D$4*ItemID2!$A$94 -> 3.419992808
A95: =DataTree!$D$3*ItemID1!$A$95+DataTree!$D$4*ItemID2!$A$95 -> 4.280311789
A96: =DataTree!$D$3*ItemID1!$A$96+DataTree!$D$4*ItemID2!$A$96 -> 4.194080689
A97: =DataTree!$D$3*ItemID1!$A$97+DataTree!$D$4*ItemID2!$A$97 -> 4.088009012
A98: =DataTree!$D$3*ItemID1!$A$98+DataTree!$D$4*ItemID2!$A$98 -> 3.993157327
A99: =DataTree!$D$3*ItemID1!$A$99+DataTree!$D$4*ItemID2!$A$99 -> 4.382539077
A100: =DataTree!$D$3*ItemID1!$A$100+DataTree!$D$4*ItemID2!$A$100 -> 3.038220219

Sheet ItemID1
A1: =DataTree!$D$5*ItemID3!$A$1+DataTree!$D$6*ItemID4!$A$1 -> 6.916784495
A2: =DataTree!$D$5*ItemID3!$A$2+DataTree!$D$6*ItemID4!$A$2 -> 6.21269691
A3: =DataTree!$D$5*ItemID3!$A$3+DataTree!$D$6*ItemID4!$A$3 -> 6.300193428
A4: =DataTree!$D$5*ItemID3!$A$4+DataTree!$D$6*ItemID4!$A$4 -> 5.906440608
A5: =DataTree!$D$5*ItemID3!$A$5+DataTree!$D$6*ItemID4!$A$5 -> 7.371277506
A6: =DataTree!$D$5*ItemID3!$A$6+DataTree!$D$6*ItemID4!$A$6 -> 6.698441013
A7: =DataTree!$D$5*ItemID3!$A$7+DataTree!$D$6*ItemID4!$A$7 -> 6.060837255
A8: =DataTree!$D$5*ItemID3!$A$8+DataTree!$D$6*ItemID4!$A$8 -> 5.821585288
A9: =DataTree!$D$5*ItemID3!$A$9+DataTree!$D$6*ItemID4!$A$9 -> 6.995540796
A10: =DataTree!$D$5*ItemID3!$A$10+DataTree!$D$6*ItemID4!$A$10 -> 5.742416055
A11: =DataTree!$D$5*ItemID3!$A$11+DataTree!$D$6*ItemID4!$A$11 -> 7.839965337
A12: =DataTree!$D$5*ItemID3!$A$12+DataTree!$D$6*ItemID4!$A$12 -> 7.100310374
A13: =DataTree!$D$5*ItemID3!$A$13+DataTree!$D$6*ItemID4!$A$13 -> 6.099148486
A14: =DataTree!$D$5*ItemID3!$A$14+DataTree!$D$6*ItemID4!$A$14 -> 6.317124935
A15: =DataTree!$D$5*ItemID3!$A$15+DataTree!$D$6*ItemID4!$A$15 -> 6.558641711
A16: =DataTree!$D$5*ItemID3!$A$16+DataTree!$D$6*ItemID4!$A$16 -> 6.510202101
A17: =DataTree!$D$5*ItemID3!$A$17+DataTree!$D$6*ItemID4!$A$17 -> 7.299113834
A18: =DataTree!$D$5*ItemID3!$A$18+DataTree!$D$6*ItemID4!$A$18 -> 7.01844277
A19: =DataTree!$D$5*ItemID3!$A$19+DataTree!$D$6*ItemID4!$A$19 -> 6.498714253
A20: =DataTree!$D$5*ItemID3!$A$20+DataTree!$D$6*ItemID4!$A$20 -> 6.220063883
A21: =DataTree!$D$5*ItemID3!$A$21+DataTree!$D$6*ItemID4!$A$21 -> 6.728033402
A22: =DataTree!$D$5*ItemID3!$A$22+DataTree!$D$6*ItemID4!$A$22 -> 5.958395569
A23: =DataTree!$D$5*ItemID3!$A$23+DataTree!$D$6*ItemID4!$A$23 -> 7.780203873
A24: =DataTree!$D$5*ItemID3!$A$24+DataTree!$D$6*ItemID4!$A$24 -> 6.152801984
A25: =DataTree!$D$5*ItemID3!$A$25+DataTree!$D$6*ItemID4!$A$25 -> 6.121306888
A26: =DataTree!$D$5*ItemID3!$A$26+DataTree!$D$6*ItemID4!$A$26 -> 7.21883782
A27: =DataTree!$D$5*ItemID3!$A$27+DataTree!$D$6*ItemID4!$A$27 -> 7.034799147
A28: =DataTree!$D$5*ItemID3!$A$28+DataTree!$D$6*ItemID4!$A$28 -> 6.756748436
A29: =DataTree!$D$5*ItemID3!$A$29+DataTree!$D$6*ItemID4!$A$29 -> 5.891178724
A30: =DataTree!$D$5*ItemID3!$A$30+DataTree!$D$6*ItemID4!$A$30 -> 6.414370568
A31: =DataTree!$D$5*ItemID3!$A$31+DataTree!$D$6*ItemID4!$A$31 -> 6.489158322
A32: =DataTree!$D$5*ItemID3!$A$32+DataTree!$D$6*ItemID4!$A$32 -> 6.949620043
A33: =DataTree!$D$5*ItemID3!$A$33+DataTree!$D$6*ItemID4!$A$33 -> 6.042303807
A34: =DataTree!$D$5*ItemID3!$A$34+DataTree!$D$6*ItemID4!$A$34 -> 6.27288996
A35: =DataTree!$D$5*ItemID3!$A$35+DataTree!$D$6*ItemID4!$A$35 -> 7.11825483
A36: =DataTree!$D$5*ItemID3!$A$36+DataTree!$D$6*ItemID4!$A$36 -> 5.466436812
A37: =DataTree!$D$5*ItemID3!$A$37+DataTree!$D$6*ItemID4!$A$37 -> 7.44024477
A38: =DataTree!$D$5*ItemID3!$A$38+DataTree!$D$6*ItemID4!$A$38 -> 6.380258058
A39: =DataTree!$D$5*ItemID3!$A$39+DataTree!$D$6*ItemID4!$A$39 -> 6.325540814
A40: =DataTree!$D$5*ItemID3!$A$40+DataTree!$D$6*ItemID4!$A$40 -> 6.115790514
A41: =DataTree!$D$5*ItemID3!$A$41+DataTree!$D$6*ItemID4!$A$41 -> 6.788913653
A42: =DataTree!$D$5*ItemID3!$A$42+DataTree!$D$6*ItemID4!$A$42 -> 7.629151132
A43: =DataTree!$D$5*ItemID3!$A$43+DataTree!$D$6*ItemID4!$A$43 -> 6.19105848
A44: =DataTree!$D$5*ItemID3!$A$44+DataTree!$D$6*ItemID4!$A$44 -> 5.055080787
A45: =DataTree!$D$5*ItemID3!$A$45+DataTree!$D$6*ItemID4!$A$45 -> 6.31865466
A46: =DataTree!$D$5*ItemID3!$A$46+DataTree!$D$6*ItemID4!$A$46 -> 5.468350625
A47: =DataTree!$D$5*ItemID3!$A$47+DataTree!$D$6*ItemID4!$A$47 -> 7.810714871
A48: =DataTree!$D$5*ItemID3!$A$48+DataTree!$D$6*ItemID4!$A$48 -> 6.783029484
A49: =DataTree!$D$5*ItemID3!$A$49+DataTree!$D$6*ItemID4!$A$49 -> 6.053697758
A50: =DataTree!$D$5*ItemID3!$A$50+DataTree!$D$6*ItemID4!$A$50 -> 6.161412492
A51: =DataTree!$D$5*ItemID3!$A$51+DataTree!$D$6*ItemID4!$A$51 -> 6.609931196
A52: =DataTree!$D$5*ItemID3!$A$52+DataTree!$D$6*ItemID4!$A$52 -> 6.613138273
A53: =DataTree!$D$5*ItemID3!$A$53+DataTree!$D$6*ItemID4!$A$53 -> 6.216697541
A54: =DataTree!$D$5*ItemID3!$A$54+DataTree!$D$6*ItemID4!$A$54 -> 6.123489364
A55: =DataTree!$D$5*ItemID3!$A$55+DataTree!$D$6*ItemID4!$A$55 -> 7.351778152
A56: =DataTree!$D$5*ItemID3!$A$56+DataTree!$D$6*ItemID4!$A$56 -> 6.054952489
A57: =DataTree!$D$5*ItemID3!$A$57+DataTree!$D$6*ItemID4!$A$57 -> 6.538742267
A58: =DataTree!$D$5*ItemID3!$A$58+DataTree!$D$6*ItemID4!$A$58 -> 5.793439209
A59: =DataTree!$D$5*ItemID3!$A$59+DataTree!$D$6*ItemID4!$A$59 -> 5.886375944
A60: =DataTree!$D$5*ItemID3!$A$60+DataTree!$D$6*ItemID4!$A$60 -> 6.559954129
A61: =DataTree!$D$5*ItemID3!$A$61+DataTree!$D$6*ItemID4!$A$61 -> 6.747922107
A62: =DataTree!$D$5*ItemID3!$A$62+DataTree!$D$6*ItemID4!$A$62 -> 6.467045123
A63: =DataTree!$D$5*ItemID3!$A$63+DataTree!$D$6*ItemID4!$A$63 -> 7.024528033
A64: =DataTree!$D$5*ItemID3!$A$64+DataTree!$D$6*ItemID4!$A$64 -> 7.228451693
A65: =DataTree!$D$5*ItemID3!$A$65+DataTree!$D$6*ItemID4!$A$65 -> 6.435937437
A66: =DataTree!$D$5*ItemID3!$A$66+DataTree!$D$6*ItemID4!$A$66 -> 5.813398155
A67: =DataTree!$D$5*ItemID3!$A$67+DataTree!$D$6*ItemID4!$A$67 -> 7.217881149
A68: =DataTree!$D$5*ItemID3!$A$68+DataTree!$D$6*ItemID4!$A$68 -> 6.363914661
A69: =DataTree!$D$5*ItemID3!$A$69+DataTree!$D$6*ItemID4!$A$69 -> 6.824898612
A70: =DataTree!$D$5*ItemID3!$A$70+DataTree!$D$6*ItemID4!$A$70 -> 6.34916259
A71: =DataTree!$D$5*ItemID3!$A$71+DataTree!$D$6*ItemID4!$A$71 -> 6.861223748
A72: =DataTree!$D$5*ItemID3!$A$72+DataTree!$D$6*ItemID4!$A$72 -> 5.544522796
A73: =DataTree!$D$5*ItemID3!$A$73+DataTree!$D$6*ItemID4!$A$73 -> 5.967139009
A74: =DataTree!$D$5*ItemID3!$A$74+DataTree!$D$6*ItemID4!$A$74 -> 6.840452602
A75: =DataTree!$D$5*ItemID3!$A$75+DataTree!$D$6*ItemID4!$A$75 -> 5.502099242
A76: =DataTree!$D$5*ItemID3!$A$76+DataTree!$D$6*ItemID4!$A$76 -> 6.318032813
A77: =DataTree!$D$5*ItemID3!$A$77+DataTree!$D$6*ItemID4!$A$77 -> 7.130490783
A78: =DataTree!$D$5*ItemID3!$A$78+DataTree!$D$6*ItemID4!$A$78 -> 6.262644371
A79: =DataTree!$D$5*ItemID3!$A$79+DataTree!$D$6*ItemID4!$A$79 -> 6.304158542
A80: =DataTree!$D$5*ItemID3!$A$80+DataTree!$D$6*ItemID4!$A$80 -> 6.144956547
A81: =DataTree!$D$5*ItemID3!$A$81+DataTree!$D$6*ItemID4!$A$81 -> 7.22597813
A82: =DataTree!$D$5*ItemID3!$A$82+DataTree!$D$6*ItemID4!$A$82 -> 6.041084541
A83: =DataTree!$D$5*ItemID3!$A$83+DataTree!$D$6*ItemID4!$A$83 -> 5.925396346
A84: =DataTree!$D$5*ItemID3!$A$84+DataTree!$D$6*ItemID4!$A$84 -> 5.57778995
A85: =DataTree!$D$5*ItemID3!$A$85+DataTree!$D$6*ItemID4!$A$85 -> 6.716758684
A86: =DataTree!$D$5*ItemID3!$A$86+DataTree!$D$6*ItemID4!$A$86 -> 4.893085922
A87: =DataTree!$D$5*ItemID3!$A$87+DataTree!$D$6*ItemID4!$A$87 -> 6.562969589
A88: =DataTree!$D$5*ItemID3!$A$88+DataTree!$D$6*ItemID4!$A$88 -> 6.626548754
A89: =DataTree!$D$5*ItemID3!$A$89+DataTree!$D$6*ItemID4!$A$89 -> 6.351362742
A90: =DataTree!$D$5*ItemID3!$A$90+DataTree!$D$6*ItemID4!$A$90 -> 6.913369895
A91: =DataTree!$D$5*ItemID3!$A$91+DataTree!$D$6*ItemID4!$A$91 -> 5.862461164
A92: =DataTree!$D$5*ItemID3!$A$92+DataTree!$D$6*ItemID4!$A$92 -> 7.302137748
A93: =DataTree!$D$5*ItemID3!$A$93+DataTree!$D$6*ItemID4!$A$93 -> 5.564294585
A94: =DataTree!$D$5*ItemID3!$A$94+DataTree!$D$6*ItemID4!$A$94 -> 5.550943173
A95: =DataTree!$D$5*ItemID3!$A$95+DataTree!$D$6*ItemID4!$A$95 -> 6.546088263
A96: =DataTree!$D$5*ItemID3!$A$96+DataTree!$D$6*ItemID4!$A$96 -> 6.446343334
A97: =DataTree!$D$5*ItemID3!$A$97+DataTree!$D$6*ItemID4!$A$97 -> 6.323648485
A98: =DataTree!$D$5*ItemID3!$A$98+DataTree!$D$6*ItemID4!$A$98 -> 6.213931983
A99: =DataTree!$D$5*ItemID3!$A$99+DataTree!$D$6*ItemID4!$A$99 -> 6.664336246
A100: =DataTree!$D$5*ItemID3!$A$100+DataTree!$D$6*ItemID4!$A$100 -> 5.109340552

Sheet ItemID2
A1: =DataTree!$D$7*ItemID5!$A$1+DataTree!$D$8*ItemID6!$A$1 -> 3.608213302
A2: =DataTree!$D$7*ItemID5!$A$2+DataTree!$D$8*ItemID6!$A$2 -> 3.040400734
A3: =DataTree!$D$7*ItemID5!$A$3+DataTree!$D$8*ItemID6!$A$3 -> 3.110962442
A4: =DataTree!$D$7*ItemID5!$A$4+DataTree!$D$8*ItemID6!$A$4 -> 2.793419845
A5: =DataTree!$D$7*ItemID5!$A$5+DataTree!$D$8*ItemID6!$A$5 -> 3.974739924
A6: =DataTree!$D$7*ItemID5!$A$6+DataTree!$D$8*ItemID6!$A$6 -> 3.432129849
A7: =DataTree!$D$7*ItemID5!$A$7+DataTree!$D$8*ItemID6!$A$7 -> 2.91793327
A8: =DataTree!$D$7*ItemID5!$A$8+DataTree!$D$8*ItemID6!$A$8 -> 2.724988135
A9: =DataTree!$D$7*ItemID5!$A$9+DataTree!$D$8*ItemID6!$A$9 -> 3.671726449
A10: =DataTree!$D$7*ItemID5!$A$10+DataTree!$D$8*ItemID6!$A$10 -> 2.66114198
A11: =DataTree!$D$7*ItemID5!$A$11+DataTree!$D$8*ItemID6!$A$11 -> 4.352713982
A12: =DataTree!$D$7*ItemID5!$A$12+DataTree!$D$8*ItemID6!$A$12 -> 3.756218043
A13: =DataTree!$D$7*ItemID5!$A$13+DataTree!$D$8*ItemID6!$A$13 -> 2.948829424
A14: =DataTree!$D$7*ItemID5!$A$14+DataTree!$D$8*ItemID6!$A$14 -> 3.124616883
A15: =DataTree!$D$7*ItemID5!$A$15+DataTree!$D$8*ItemID6!$A$15 -> 3.319388477
A16: =DataTree!$D$7*ItemID5!$A$16+DataTree!$D$8*ItemID6!$A$16 -> 3.280324275
A17: =DataTree!$D$7*ItemID5!$A$17+DataTree!$D$8*ItemID6!$A$17 -> 3.916543414
A18: =DataTree!$D$7*ItemID5!$A$18+DataTree!$D$8*ItemID6!$A$18 -> 3.690195782
A19: =DataTree!$D$7*ItemID5!$A$19+DataTree!$D$8*ItemID6!$A$19 -> 3.271059881
A20: =DataTree!$D$7*ItemID5!$A$20+DataTree!$D$8*ItemID6!$A$20 -> 3.046341841
A21: =DataTree!$D$7*ItemID5!$A$21+DataTree!$D$8*ItemID6!$A$21 -> 3.455994679
A22: =DataTree!$D$7*ItemID5!$A$22+DataTree!$D$8*ItemID6!$A$22 -> 2.835319007
A23: =DataTree!$D$7*ItemID5!$A$23+DataTree!$D$8*ItemID6!$A$23 -> 4.304519252
A24: =DataTree!$D$7*ItemID5!$A$24+DataTree!$D$8*ItemID6!$A$24 -> 2.992098374
A25: =DataTree!$D$7*ItemID5!$A$25+DataTree!$D$8*ItemID6!$A$25 -> 2.966699103
A26: =DataTree!$D$7*ItemID5!$A$26+DataTree!$D$8*ItemID6!$A$26 -> 3.851804694
A27: =DataTree!$D$7*ItemID5!$A$27+DataTree!$D$8*ItemID6!$A$27 -> 3.703386409
A28: =DataTree!$D$7*ItemID5!$A$28+DataTree!$D$8*ItemID6!$A$28 -> 3.479151965
A29: =DataTree!$D$7*ItemID5!$A$29+DataTree!$D$8*ItemID6!$A$29 -> 2.781111874
A30: =DataTree!$D$7*ItemID5!$A$30+DataTree!$D$8*ItemID6!$A$30 -> 3.203040781
A31: =DataTree!$D$7*ItemID5!$A$31+DataTree!$D$8*ItemID6!$A$31 -> 3.263353485
A32: =DataTree!$D$7*ItemID5!$A$32+DataTree!$D$8*ItemID6!$A$32 -> 3.634693583
A33: =DataTree!$D$7*ItemID5!$A$33+DataTree!$D$8*ItemID6!$A$33 -> 2.902986941
A34: =DataTree!$D$7*ItemID5!$A$34+DataTree!$D$8*ItemID6!$A$34 -> 3.088943516
A35: =DataTree!$D$7*ItemID5!$A$35+DataTree!$D$8*ItemID6!$A$35 -> 3.770689379
A36: =DataTree!$D$7*ItemID5!$A$36+DataTree!$D$8*ItemID6!$A$36 -> 2.438578075
A37: =DataTree!$D$7*ItemID5!$A$37+DataTree!$D$8*ItemID6!$A$37 -> 4.030358685
A38: =DataTree!$D$7*ItemID5!$A$38+DataTree!$D$8*ItemID6!$A$38 -> 3.175530692
A39: =DataTree!$D$7*ItemID5!$A$39+DataTree!$D$8*ItemID6!$A$39 -> 3.131403882
A40: =DataTree!$D$7*ItemID5!$A$40+DataTree!$D$8*ItemID6!$A$40 -> 2.962250414
A41: =DataTree!$D$7*ItemID5!$A$41+DataTree!$D$8*ItemID6!$A$41 -> 3.505091656
A42: =DataTree!$D$7*ItemID5!$A$42+DataTree!$D$8*ItemID6!$A$42 -> 4.182702526
A43: =DataTree!$D$7*ItemID5!$A$43+DataTree!$D$8*ItemID6!$A$43 -> 3.022950387
A44: =DataTree!$D$7*ItemID5!$A$44+DataTree!$D$8*ItemID6!$A$44 -> 2.106839344
A45: =DataTree!$D$7*ItemID5!$A$45+DataTree!$D$8*ItemID6!$A$45 -> 3.125850532
A46: =DataTree!$D$7*ItemID5!$A$46+DataTree!$D$8*ItemID6!$A$46 -> 2.440121472
A47: =DataTree!$D$7*ItemID5!$A$47+DataTree!$D$8*ItemID6!$A$47 -> 4.329124896
A48: =DataTree!$D$7*ItemID5!$A$48+DataTree!$D$8*ItemID6!$A$48 -> 3.500346358
A49: =DataTree!$D$7*ItemID5!$A$49+DataTree!$D$8*ItemID6!$A$49 -> 2.912175611
A50: =DataTree!$D$7*ItemID5!$A$50+DataTree!$D$8*ItemID6!$A$50 -> 2.999042332
A51: =DataTree!$D$7*ItemID5!$A$51+DataTree!$D$8*ItemID6!$A$51 -> 3.360750965
A52: =DataTree!$D$7*ItemID5!$A$52+DataTree!$D$8*ItemID6!$A$52 -> 3.363337317
A53: =DataTree!$D$7*ItemID5!$A$53+DataTree!$D$8*ItemID6!$A$53 -> 3.043627049
A54: =DataTree!$D$7*ItemID5!$A$54+DataTree!$D$8*ItemID6!$A$54 -> 2.968459164
A55: =DataTree!$D$7*ItemID5!$A$55+DataTree!$D$8*ItemID6!$A$55 -> 3.959014639
A56: =DataTree!$D$7*ItemID5!$A$56+DataTree!$D$8*ItemID6!$A$56 -> 2.913187491
A57: =DataTree!$D$7*ItemID5!$A$57+DataTree!$D$8*ItemID6!$A$57 -> 3.303340538
A58: =DataTree!$D$7*ItemID5!$A$58+DataTree!$D$8*ItemID6!$A$58 -> 2.702289684
A59: =DataTree!$D$7*ItemID5!$A$59+DataTree!$D$8*ItemID6!$A$59 -> 2.777238665
A60: =DataTree!$D$7*ItemID5!$A$60+DataTree!$D$8*ItemID6!$A$60 -> 3.320446879
A61: =DataTree!$D$7*ItemID5!$A$61+DataTree!$D$8*ItemID6!$A$61 -> 3.472033958
A62: =DataTree!$D$7*ItemID5!$A$62+DataTree!$D$8*ItemID6!$A$62 -> 3.245520261
A63: =DataTree!$D$7*ItemID5!$A$63+DataTree!$D$8*ItemID6!$A$63 -> 3.695103252
A64: =DataTree!$D$7*ItemID5!$A$64+DataTree!$D$8*ItemID6!$A$64 -> 3.859557817
A65: =DataTree!$D$7*ItemID5!$A$65+DataTree!$D$8*ItemID6!$A$65 -> 3.220433417
A66: =DataTree!$D$7*ItemID5!$A$66+DataTree!$D$8*ItemID6!$A$66 -> 2.718385609
A67: =DataTree!$D$7*ItemID5!$A$67+DataTree!$D$8*ItemID6!$A$67 -> 3.851033184
A68: =DataTree!$D$7*ItemID5!$A$68+DataTree!$D$8*ItemID6!$A$68 -> 3.162350533
A69: =DataTree!$D$7*ItemID5!$A$69+DataTree!$D$8*ItemID6!$A$69 -> 3.534111784
A70: =DataTree!$D$7*ItemID5!$A$70+DataTree!$D$8*ItemID6!$A$70 -> 3.150453701
A71: =DataTree!$D$7*ItemID5!$A$71+DataTree!$D$8*ItemID6!$A$71 -> 3.563406248
A72: =DataTree!$D$7*ItemID5!$A$72+DataTree!$D$8*ItemID6!$A$72 -> 2.501550642
A73: =DataTree!$D$7*ItemID5!$A$73+DataTree!$D$8*ItemID6!$A$73 -> 2.842370168
A74: =DataTree!$D$7*ItemID5!$A$74+DataTree!$D$8*ItemID6!$A$74 -> 3.546655324
A75: =DataTree!$D$7*ItemID5!$A$75+DataTree!$D$8*ItemID6!$A$75 -> 2.467338099
A76: =DataTree!$D$7*ItemID5!$A$76+DataTree!$D$8*ItemID6!$A$76 -> 3.125349042
A77: =DataTree!$D$7*ItemID5!$A$77+DataTree!$D$8*ItemID6!$A$77 -> 3.780557083
A78: =DataTree!$D$7*ItemID5!$A$78+DataTree!$D$8*ItemID6!$A$78 -> 3.080680944
A79: =DataTree!$D$7*ItemID5!$A$79+DataTree!$D$8*ItemID6!$A$79 -> 3.114160114
A80: =DataTree!$D$7*ItemID5!$A$80+DataTree!$D$8*ItemID6!$A$80 -> 2.985771409
A81: =DataTree!$D$7*ItemID5!$A$81+DataTree!$D$8*ItemID6!$A$81 -> 3.857563008
A82: =DataTree!$D$7*ItemID5!$A$82+DataTree!$D$8*ItemID6!$A$82 -> 2.902003662
A83: =DataTree!$D$7*ItemID5!$A$83+DataTree!$D$8*ItemID6!$A$83 -> 2.808706731
A84: =DataTree!$D$7*ItemID5!$A$84+DataTree!$D$8*ItemID6!$A$84 -> 2.528378992
A85: =DataTree!$D$7*ItemID5!$A$85+DataTree!$D$8*ItemID6!$A$85 -> 3.446902165
A86: =DataTree!$D$7*ItemID5!$A$86+DataTree!$D$8*ItemID6!$A$86 -> 1.976198324
A87: =DataTree!$D$7*ItemID5!$A$87+DataTree!$D$8*ItemID6!$A$87 -> 3.322878701
A88: =DataTree!$D$7*ItemID5!$A$88+DataTree!$D$8*ItemID6!$A$88 -> 3.374152221
A89: =DataTree!$D$7*ItemID5!$A$89+DataTree!$D$8*ItemID6!$A$89 -> 3.152228018
A90: =DataTree!$D$7*ItemID5!$A$90+DataTree!$D$8*ItemID6!$A$90 -> 3.605459593
A91: =DataTree!$D$7*ItemID5!$A$91+DataTree!$D$8*ItemID6!$A$91 -> 2.757952551
A92: =DataTree!$D$7*ItemID5!$A$92+DataTree!$D$8*ItemID6!$A$92 -> 3.918982055
A93: =DataTree!$D$7*ItemID5!$A$93+DataTree!$D$8*ItemID6!$A$93 -> 2.517495633
A94: =DataTree!$D$7*ItemID5!$A$94+DataTree!$D$8*ItemID6!$A$94 -> 2.506728366
A95: =DataTree!$D$7*ItemID5!$A$95+DataTree!$D$8*ItemID6!$A$95 -> 3.309264728
A96: =DataTree!$D$7*ItemID5!$A$96+DataTree!$D$8*ItemID6!$A$96 -> 3.22882527
A97: =DataTree!$D$7*ItemID5!$A$97+DataTree!$D$8*ItemID6!$A$97 -> 3.12987781
A98: =DataTree!$D$7*ItemID5!$A$98+DataTree!$D$8*ItemID6!$A$98 -> 3.04139676
A99: =DataTree!$D$7*ItemID5!$A$99+DataTree!$D$8*ItemID6!$A$99 -> 3.404626005
A100: =DataTree!$D$7*ItemID5!$A$100+DataTree!$D$8*ItemID6!$A$100 -> 2.150597219

Sheet ItemID3
A1: =getrandprev(1, DataTree!$E$5,DataTree!$F$5,DataTree!$P$5,DataTree!$Q$5) -> 4.451783944
A2: =getrandprev(2, DataTree!$E$5,DataTree!$F$5,DataTree!$P$5,DataTree!$Q$5) -> 3.429721321
A3: =getrandprev(3, DataTree!$E$5,DataTree!$F$5,DataTree!$P$5,DataTree!$Q$5) -> 3.556732395
A4: =getrandprev(4, DataTree!$E$5,DataTree!$F$5,DataTree!$P$5,DataTree!$Q$5) -> 2.985155721
A5: =getrandprev(5, DataTree!$E$5,DataTree!$F$5,DataTree!$P$5,DataTree!$Q$5) -> 5.111531863
A6: =getrandprev(6, DataTree!$E$5,DataTree!$F$5,DataTree!$P$5,DataTree!$Q$5) -> 4.134833729
A7: =getrandprev(7, DataTree!$E$5,DataTree!$F$5,DataTree!$P$5,DataTree!$Q$5) -> 3.209279886
A8: =getrandprev(8, DataTree!$E$5,DataTree!$F$5,DataTree!$P$5,DataTree!$Q$5) -> 2.861978644
A9: =getrandprev(9, DataTree!$E$5,DataTree!$F$5,DataTree!$P$5,DataTree!$Q$5) -> 4.566107608
A10: =getrandprev(10, DataTree!$E$5,DataTree!$F$5,DataTree!$P$5,DataTree!$Q$5) -> 2.747055564
A11: =getrandprev(11, DataTree!$E$5,DataTree!$F$5,DataTree!$P$5,DataTree!$Q$5) -> 5.791885167
A12: =getrandprev(12, DataTree!$E$5,DataTree!$F$5,DataTree!$P$5,DataTree!$Q$5) -> 4.718192478
A13: =getrandprev(13, DataTree!$E$5,DataTree!$F$5,DataTree!$P$5,DataTree!$Q$5) -> 3.264892963
A14: =getrandprev(14, DataTree!$E$5,DataTree!$F$5,DataTree!$P$5,DataTree!$Q$5) -> 3.58131039
A15: =getrandprev(15, DataTree!$E$5,DataTree!$F$5,DataTree!$P$5,DataTree!$Q$5) -> 3.931899258
A16: =getrandprev(16, DataTree!$E$5,DataTree!$F$5,DataTree!$P$5,DataTree!$Q$5) -> 3.861583695
A17: =getrandprev(17, DataTree!$E$5,DataTree!$F$5,DataTree!$P$5,DataTree!$Q$5) -> 5.006778145
A18: =getrandprev(18, DataTree!$E$5,DataTree!$F$5,DataTree!$P$5,DataTree!$Q$5) -> 4.599352408
A19: =getrandprev(19, DataTree!$E$5,DataTree!$F$5,DataTree!$P$5,DataTree!$Q$5) -> 3.844907786
A20: =getrandprev(20, DataTree!$E$5,DataTree!$F$5,DataTree!$P$5,DataTree!$Q$5) -> 3.440415314
A21: =getrandprev(21, DataTree!$E$5,DataTree!$F$5,DataTree!$P$5,DataTree!$Q$5) -> 4.177790422
A22: =getrandprev(22, DataTree!$E$5,DataTree!$F$5,DataTree!$P$5,DataTree!$Q$5) -> 3.060574213
A23: =getrandprev(23, DataTree!$E$5,DataTree!$F$5,DataTree!$P$5,DataTree!$Q$5) -> 5.705134654
A24: =getrandprev(24, DataTree!$E$5,DataTree!$F$5,DataTree!$P$5,DataTree!$Q$5) -> 3.342777073
A25: =getrandprev(25, DataTree!$E$5,DataTree!$F$5,DataTree!$P$5,DataTree!$Q$5) -> 3.297058385
A26: =getrandprev(26, DataTree!$E$5,DataTree!$F$5,DataTree!$P$5,DataTree!$Q$5) -> 4.890248449
A27: =getrandprev(27, DataTree!$E$5,DataTree!$F$5,DataTree!$P$5,DataTree!$Q$5) -> 4.623095536
A28: =getrandprev(28, DataTree!$E$5,DataTree!$F$5,DataTree!$P$5,DataTree!$Q$5) -> 4.219473536
A29: =getrandprev(29, DataTree!$E$5,DataTree!$F$5,DataTree!$P$5,DataTree!$Q$5) -> 2.963001373
A30: =getrandprev(30, DataTree!$E$5,DataTree!$F$5,DataTree!$P$5,DataTree!$Q$5) -> 3.722473405
A31: =getrandprev(31, DataTree!$E$5,DataTree!$F$5,DataTree!$P$5,DataTree!$Q$5) -> 3.831036273
A32: =getrandprev(32, DataTree!$E$5,DataTree!$F$5,DataTree!$P$5,DataTree!$Q$5) -> 4.49944845
A33: =getrandprev(33, DataTree!$E$5,DataTree!$F$5,DataTree!$P$5,DataTree!$Q$5) -> 3.182376494
A34: =getrandprev(34, DataTree!$E$5,DataTree!$F$5,DataTree!$P$5,DataTree!$Q$5) -> 3.517098329
A35: =getrandprev(35, DataTree!$E$5,DataTree!$F$5,DataTree!$P$5,DataTree!$Q$5) -> 4.744240882
A36: =getrandprev(36, DataTree!$E$5,DataTree!$F$5,DataTree!$P$5,DataTree!$Q$5) -> 2.346440534
A37: =getrandprev(37, DataTree!$E$5,DataTree!$F$5,DataTree!$P$5,DataTree!$Q$5) -> 5.211645634
A38: =getrandprev(38, DataTree!$E$5,DataTree!$F$5,DataTree!$P$5,DataTree!$Q$5) -> 3.672955245
A39: =getrandprev(39, DataTree!$E$5,DataTree!$F$5,DataTree!$P$5,DataTree!$Q$5) -> 3.593526988
A40: =getrandprev(40, DataTree!$E$5,DataTree!$F$5,DataTree!$P$5,DataTree!$Q$5) -> 3.289050746
A41: =getrandprev(41, DataTree!$E$5,DataTree!$F$5,DataTree!$P$5,DataTree!$Q$5) -> 4.26616498
A42: =getrandprev(42, DataTree!$E$5,DataTree!$F$5,DataTree!$P$5,DataTree!$Q$5) -> 5.485864547
A43: =getrandprev(43, DataTree!$E$5,DataTree!$F$5,DataTree!$P$5,DataTree!$Q$5) -> 3.398310697
A44: =getrandprev(44, DataTree!$E$5,DataTree!$F$5,DataTree!$P$5,DataTree!$Q$5) -> 1.74931082
A45: =getrandprev(45, DataTree!$E$5,DataTree!$F$5,DataTree!$P$5,DataTree!$Q$5) -> 3.583530958
A46: =getrandprev(46, DataTree!$E$5,DataTree!$F$5,DataTree!$P$5,DataTree!$Q$5) -> 2.349218649
A47: =getrandprev(47, DataTree!$E$5,DataTree!$F$5,DataTree!$P$5,DataTree!$Q$5) -> 5.749424813
A48: =getrandprev(48, DataTree!$E$5,DataTree!$F$5,DataTree!$P$5,DataTree!$Q$5) -> 4.257623445
A49: =getrandprev(49, DataTree!$E$5,DataTree!$F$5,DataTree!$P$5,DataTree!$Q$5) -> 3.1989161
A50: =getrandprev(50, DataTree!$E$5,DataTree!$F$5,DataTree!$P$5,DataTree!$Q$5) -> 3.355276198
A51: =getrandprev(51, DataTree!$E$5,DataTree!$F$5,DataTree!$P$5,DataTree!$Q$5) -> 4.006351736
A52: =getrandprev(52, DataTree!$E$5,DataTree!$F$5,DataTree!$P$5,DataTree!$Q$5) -> 4.01100717
A53: =getrandprev(53, DataTree!$E$5,DataTree!$F$5,DataTree!$P$5,DataTree!$Q$5) -> 3.435528688
A54: =getrandprev(54, DataTree!$E$5,DataTree!$F$5,DataTree!$P$5,DataTree!$Q$5) -> 3.300226496
A55: =getrandprev(55, DataTree!$E$5,DataTree!$F$5,DataTree!$P$5,DataTree!$Q$5) -> 5.08322635
A56: =getrandprev(56, DataTree!$E$5,DataTree!$F$5,DataTree!$P$5,DataTree!$Q$5) -> 3.200737485
A57: =getrandprev(57, DataTree!$E$5,DataTree!$F$5,DataTree!$P$5,DataTree!$Q$5) -> 3.903012969
A58: =getrandprev(58, DataTree!$E$5,DataTree!$F$5,DataTree!$P$5,DataTree!$Q$5) -> 2.821121432
A59: =getrandprev(59, DataTree!$E$5,DataTree!$F$5,DataTree!$P$5,DataTree!$Q$5) -> 2.956029596
A60: =getrandprev(60, DataTree!$E$5,DataTree!$F$5,DataTree!$P$5,DataTree!$Q$5) -> 3.933804381
A61: =getrandprev(61, DataTree!$E$5,DataTree!$F$5,DataTree!$P$5,DataTree!$Q$5) -> 4.206661124
A62: =getrandprev(62, DataTree!$E$5,DataTree!$F$5,DataTree!$P$5,DataTree!$Q$5) -> 3.798936469
A63: =getrandprev(63, DataTree!$E$5,DataTree!$F$5,DataTree!$P$5,DataTree!$Q$5) -> 4.608185854
A64: =getrandprev(64, DataTree!$E$5,DataTree!$F$5,DataTree!$P$5,DataTree!$Q$5) -> 4.90420407
A65: =getrandprev(65, DataTree!$E$5,DataTree!$F$5,DataTree!$P$5,DataTree!$Q$5) -> 3.753780151
A66: =getrandprev(66, DataTree!$E$5,DataTree!$F$5,DataTree!$P$5,DataTree!$Q$5) -> 2.850094096
A67: =getrandprev(67, DataTree!$E$5,DataTree!$F$5,DataTree!$P$5,DataTree!$Q$5) -> 4.888859732
A68: =getrandprev(68, DataTree!$E$5,DataTree!$F$5,DataTree!$P$5,DataTree!$Q$5) -> 3.64923096
A69: =getrandprev(69, DataTree!$E$5,DataTree!$F$5,DataTree!$P$5,DataTree!$Q$5) -> 4.318401212
A70: =getrandprev(70, DataTree!$E$5,DataTree!$F$5,DataTree!$P$5,DataTree!$Q$5) -> 3.627816663
A71: =getrandprev(71, DataTree!$E$5,DataTree!$F$5,DataTree!$P$5,DataTree!$Q$5) -> 4.371131247
A72: =getrandprev(72, DataTree!$E$5,DataTree!$F$5,DataTree!$P$5,DataTree!$Q$5) -> 2.459791155
A73: =getrandprev(73, DataTree!$E$5,DataTree!$F$5,DataTree!$P$5,DataTree!$Q$5) -> 3.073266303
A74: =getrandprev(74, DataTree!$E$5,DataTree!$F$5,DataTree!$P$5,DataTree!$Q$5) -> 4.340979584
A75: =getrandprev(75, DataTree!$E$5,DataTree!$F$5,DataTree!$P$5,DataTree!$Q$5) -> 2.398208578
A76: =getrandprev(76, DataTree!$E$5,DataTree!$F$5,DataTree!$P$5,DataTree!$Q$5) -> 3.582628276
A77: =getrandprev(77, DataTree!$E$5,DataTree!$F$5,DataTree!$P$5,DataTree!$Q$5) -> 4.762002749
A78: =getrandprev(78, DataTree!$E$5,DataTree!$F$5,DataTree!$P$5,DataTree!$Q$5) -> 3.502225699
A79: =getrandprev(79, DataTree!$E$5,DataTree!$F$5,DataTree!$P$5,DataTree!$Q$5) -> 3.562488205
A80: =getrandprev(80, DataTree!$E$5,DataTree!$F$5,DataTree!$P$5,DataTree!$Q$5) -> 3.331388536
A81: =getrandprev(81, DataTree!$E$5,DataTree!$F$5,DataTree!$P$5,DataTree!$Q$5) -> 4.900613415
A82: =getrandprev(82, DataTree!$E$5,DataTree!$F$5,DataTree!$P$5,DataTree!$Q$5) -> 3.180606592
A83: =getrandprev(83, DataTree!$E$5,DataTree!$F$5,DataTree!$P$5,DataTree!$Q$5) -> 3.012672115
A84: =getrandprev(84, DataTree!$E$5,DataTree!$F$5,DataTree!$P$5,DataTree!$Q$5) -> 2.508082186
A85: =getrandprev(85, DataTree!$E$5,DataTree!$F$5,DataTree!$P$5,DataTree!$Q$5) -> 4.161423897
A86: =getrandprev(86, DataTree!$E$5,DataTree!$F$5,DataTree!$P$5,DataTree!$Q$5) -> 1.514156983
A87: =getrandprev(87, DataTree!$E$5,DataTree!$F$5,DataTree!$P$5,DataTree!$Q$5) -> 3.938181662
A88: =getrandprev(88, DataTree!$E$5,DataTree!$F$5,DataTree!$P$5,DataTree!$Q$5) -> 4.030473998
A89: =getrandprev(89, DataTree!$E$5,DataTree!$F$5,DataTree!$P$5,DataTree!$Q$5) -> 3.631010432
A90: =getrandprev(90, DataTree!$E$5,DataTree!$F$5,DataTree!$P$5,DataTree!$Q$5) -> 4.446827267
A91: =getrandprev(91, DataTree!$E$5,DataTree!$F$5,DataTree!$P$5,DataTree!$Q$5) -> 2.921314592
A92: =getrandprev(92, DataTree!$E$5,DataTree!$F$5,DataTree!$P$5,DataTree!$Q$5) -> 5.011167699
A93: =getrandprev(93, DataTree!$E$5,DataTree!$F$5,DataTree!$P$5,DataTree!$Q$5) -> 2.488492139
A94: =getrandprev(94, DataTree!$E$5,DataTree!$F$5,DataTree!$P$5,DataTree!$Q$5) -> 2.469111058
A95: =getrandprev(95, DataTree!$E$5,DataTree!$F$5,DataTree!$P$5,DataTree!$Q$5) -> 3.913676511
A96: =getrandprev(96, DataTree!$E$5,DataTree!$F$5,DataTree!$P$5,DataTree!$Q$5) -> 3.768885485
A97: =getrandprev(97, DataTree!$E$5,DataTree!$F$5,DataTree!$P$5,DataTree!$Q$5) -> 3.590780058
A98: =getrandprev(98, DataTree!$E$5,DataTree!$F$5,DataTree!$P$5,DataTree!$Q$5) -> 3.431514168
A99: =getrandprev(99, DataTree!$E$5,DataTree!$F$5,DataTree!$P$5,DataTree!$Q$5) -> 4.085326808
A100: =getrandprev(100, DataTree!$E$5,DataTree!$F$5,DataTree!$P$5,DataTree!$Q$5) -> 1.828074994

Sheet ItemID4
A1: =getrandprev(1, DataTree!$E$6,DataTree!$F$6,DataTree!$P$6,DataTree!$Q$6) -> 7.973213302
A2: =getrandprev(2, DataTree!$E$6,DataTree!$F$6,DataTree!$P$6,DataTree!$Q$6) -> 7.405400734
A3: =getrandprev(3, DataTree!$E$6,DataTree!$F$6,DataTree!$P$6,DataTree!$Q$6) -> 7.475962442
A4: =getrandprev(4, DataTree!$E$6,DataTree!$F$6,DataTree!$P$6,DataTree!$Q$6) -> 7.158419845
A5: =getrandprev(5, DataTree!$E$6,DataTree!$F$6,DataTree!$P$6,DataTree!$Q$6) -> 8.339739924
A6: =getrandprev(6, DataTree!$E$6,DataTree!$F$6,DataTree!$P$6,DataTree!$Q$6) -> 7.797129849
A7: =getrandprev(7, DataTree!$E$6,DataTree!$F$6,DataTree!$P$6,DataTree!$Q$6) -> 7.28293327
A8: =getrandprev(8, DataTree!$E$6,DataTree!$F$6,DataTree!$P$6,DataTree!$Q$6) -> 7.089988135
A9: =getrandprev(9, DataTree!$E$6,DataTree!$F$6,DataTree!$P$6,DataTree!$Q$6) -> 8.036726449
A10: =getrandprev(10, DataTree!$E$6,DataTree!$F$6,DataTree!$P$6,DataTree!$Q$6) -> 7.02614198
A11: =getrandprev(11, DataTree!$E$6,DataTree!$F$6,DataTree!$P$6,DataTree!$Q$6) -> 8.717713982
A12: =getrandprev(12, DataTree!$E$6,DataTree!$F$6,DataTree!$P$6,DataTree!$Q$6) -> 8.121218043
A13: =getrandprev(13, DataTree!$E$6,DataTree!$F$6,DataTree!$P$6,DataTree!$Q$6) -> 7.313829424
A14: =getrandprev(14, DataTree!$E$6,DataTree!$F$6,DataTree!$P$6,DataTree!$Q$6) -> 7.489616883
A15: =getrandprev(15, DataTree!$E$6,DataTree!$F$6,DataTree!$P$6,DataTree!$Q$6) -> 7.684388477
A16: =getrandprev(16, DataTree!$E$6,DataTree!$F$6,DataTree!$P$6,DataTree!$Q$6) -> 7.645324275
A17: =getrandprev(17, DataTree!$E$6,DataTree!$F$6,DataTree!$P$6,DataTree!$Q$6) -> 8.281543414
A18: =getrandprev(18, DataTree!$E$6,DataTree!$F$6,DataTree!$P$6,DataTree!$Q$6) -> 8.055195782
A19: =getrandprev(19, DataTree!$E$6,DataTree!$F$6,DataTree!$P$6,DataTree!$Q$6) -> 7.636059881
A20: =getrandprev(20, DataTree!$E$6,DataTree!$F$6,DataTree!$P$6,DataTree!$Q$6) -> 7.411341841
A21: =getrandprev(21, DataTree!$E$6,DataTree!$F$6,DataTree!$P$6,DataTree!$Q$6) -> 7.820994679
A22: =getrandprev(22, DataTree!$E$6,DataTree!$F$6,DataTree!$P$6,DataTree!$Q$6) -> 7.200319007
A23: =getrandprev(23, DataTree!$E$6,DataTree!$F$6,DataTree!$P$6,DataTree!$Q$6) -> 8.669519252
A24: =getrandprev(24, DataTree!$E$6,DataTree!$F$6,DataTree!$P$6,DataTree!$Q$6) -> 7.357098374
A25: =getrandprev(25, DataTree!$E$6,DataTree!$F$6,DataTree!$P$6,DataTree!$Q$6) -> 7.331699103
A26: =getrandprev(26, DataTree!$E$6,DataTree!$F$6,DataTree!$P$6,DataTree!$Q$6) -> 8.216804694
A27: =getrandprev(27, DataTree!$E$6,DataTree!$F$6,DataTree!$P$6,DataTree!$Q$6) -> 8.068386409
A28: =getrandprev(28, DataTree!$E$6,DataTree!$F$6,DataTree!$P$6,DataTree!$Q$6) -> 7.844151965
A29: =getrandprev(29, DataTree!$E$6,DataTree!$F$6,DataTree!$P$6,DataTree!$Q$6) -> 7.146111874
A30: =getrandprev(30, DataTree!$E$6,DataTree!$F$6,DataTree!$P$6,DataTree!$Q$6) -> 7.568040781
A31: =getrandprev(31, DataTree!$E$6,DataTree!$F$6,DataTree!$P$6,DataTree!$Q$6) -> 7.628353485
A32: =getrandprev(32, DataTree!$E$6,DataTree!$F$6,DataTree!$P$6,DataTree!$Q$6) -> 7.999693583
A33: =getrandprev(33, DataTree!$E$6,DataTree!$F$6,DataTree!$P$6,DataTree!$Q$6) -> 7.267986941
A34: =getrandprev(34, DataTree!$E$6,DataTree!$F$6,DataTree!$P$6,DataTree!$Q$6) -> 7.453943516
A35: =getrandprev(35, DataTree!$E$6,DataTree!$F$6,DataTree!$P$6,DataTree!$Q$6) -> 8.135689379
A36: =getrandprev(36, DataTree!$E$6,DataTree!$F$6,DataTree!$P$6,DataTree!$Q$6) -> 6.803578075
A37: =getrandprev(37, DataTree!$E$6,DataTree!$F$6,DataTree!$P$6,DataTree!$Q$6) -> 8.395358685
A38: =getrandprev(38, DataTree!$E$6,DataTree!$F$6,DataTree!$P$6,DataTree!$Q$6) -> 7.540530692
A39: =getrandprev(39, DataTree!$E$6,DataTree!$F$6,DataTree!$P$6,DataTree!$Q$6) -> 7.496403882
A40: =getrandprev(40, DataTree!$E$6,DataTree!$F$6,DataTree!$P$6,DataTree!$Q$6) -> 7.327250414
A41: =getrandprev(41, DataTree!$E$6,DataTree!$F$6,DataTree!$P$6,DataTree!$Q$6) -> 7.870091656
A42: =getrandprev(42, DataTree!$E$6,DataTree!$F$6,DataTree!$P$6,DataTree!$Q$6) -> 8.547702526
A43: =getrandprev(43, DataTree!$E$6,DataTree!$F$6,DataTree!$P$6,DataTree!$Q$6) -> 7.387950387
A44: =getrandprev(44, DataTree!$E$6,DataTree!$F$6,DataTree!$P$6,DataTree!$Q$6) -> 6.471839344
A45: =getrandprev(45, DataTree!$E$6,DataTree!$F$6,DataTree!$P$6,DataTree!$Q$6) -> 7.490850532
A46: =getrandprev(46, DataTree!$E$6,DataTree!$F$6,DataTree!$P$6,DataTree!$Q$6) -> 6.805121472
A47: =getrandprev(47, DataTree!$E$6,DataTree!$F$6,DataTree!$P$6,DataTree!$Q$6) -> 8.694124896
A48: =getrandprev(48, DataTree!$E$6,DataTree!$F$6,DataTree!$P$6,DataTree!$Q$6) -> 7.865346358
A49: =getrandprev(49, DataTree!$E$6,DataTree!$F$6,DataTree!$P$6,DataTree!$Q$6) -> 7.277175611
A50: =getrandprev(50, DataTree!$E$6,DataTree!$F$6,DataTree!$P$6,DataTree!$Q$6) -> 7.364042332
A51: =getrandprev(51, DataTree!$E$6,DataTree!$F$6,DataTree!$P$6,DataTree!$Q$6) -> 7.725750965
A52: =getrandprev(52, DataTree!$E$6,DataTree!$F$6,DataTree!$P$6,DataTree!$Q$6) -> 7.728337317
A53: =getrandprev(53, DataTree!$E$6,DataTree!$F$6,DataTree!$P$6,DataTree!$Q$6) -> 7.408627049
A54: =getrandprev(54, DataTree!$E$6,DataTree!$F$6,DataTree!$P$6,DataTree!$Q$6) -> 7.333459164
A55: =getrandprev(55, DataTree!$E$6,DataTree!$F$6,DataTree!$P$6,DataTree!$Q$6) -> 8.324014639
A56: =getrandprev(56, DataTree!$E$6,DataTree!$F$6,DataTree!$P$6,DataTree!$Q$6) -> 7.278187491
A57: =getrandprev(57, DataTree!$E$6,DataTree!$F$6,DataTree!$P$6,DataTree!$Q$6) -> 7.668340538
A58: =getrandprev(58, DataTree!$E$6,DataTree!$F$6,DataTree!$P$6,DataTree!$Q$6) -> 7.067289684
A59: =getrandprev(59, DataTree!$E$6,DataTree!$F$6,DataTree!$P$6,DataTree!$Q$6) -> 7.142238665
A60: =getrandprev(60, DataTree!$E$6,DataTree!$F$6,DataTree!$P$6,DataTree!$Q$6) -> 7.685446879
A61: =getrandprev(61, DataTree!$E$6,DataTree!$F$6,DataTree!$P$6,DataTree!$Q$6) -> 7.837033958
A62: =getrandprev(62, DataTree!$E$6,DataTree!$F$6,DataTree!$P$6,DataTree!$Q$6) -> 7.610520261
A63: =getrandprev(63, DataTree!$E$6,DataTree!$F$6,DataTree!$P$6,DataTree!$Q$6) -> 8.060103252
A64: =getrandprev(64, DataTree!$E$6,DataTree!$F$6,DataTree!$P$6,DataTree!$Q$6) -> 8.224557817
A65: =getrandprev(65, DataTree!$E$6,DataTree!$F$6,DataTree!$P$6,DataTree!$Q$6) -> 7.585433417
A66: =getrandprev(66, DataTree!$E$6,DataTree!$F$6,DataTree!$P$6,DataTree!$Q$6) -> 7.083385609
A67: =getrandprev(67, DataTree!$E$6,DataTree!$F$6,DataTree!$P$6,DataTree!$Q$6) -> 8.216033184
A68: =getrandprev(68, DataTree!$E$6,DataTree!$F$6,DataTree!$P$6,DataTree!$Q$6) -> 7.527350533
A69: =getrandprev(69, DataTree!$E$6,DataTree!$F$6,DataTree!$P$6,DataTree!$Q$6) -> 7.899111784
A70: =getrandprev(70, DataTree!$E$6,DataTree!$F$6,DataTree!$P$6,DataTree!$Q$6) -> 7.515453701
A71: =getrandprev(71, DataTree!$E$6,DataTree!$F$6,DataTree!$P$6,DataTree!$Q$6) -> 7.928406248
A72: =getrandprev(72, DataTree!$E$6,DataTree!$F$6,DataTree!$P$6,DataTree!$Q$6) -> 6.866550642
A73: =getrandprev(73, DataTree!$E$6,DataTree!$F$6,DataTree!$P$6,DataTree!$Q$6) -> 7.207370168
A74: =getrandprev(74, DataTree!$E$6,DataTree!$F$6,DataTree!$P$6,DataTree!$Q$6) -> 7.911655324
A75: =getrandprev(75, DataTree!$E$6,DataTree!$F$6,DataTree!$P$6,DataTree!$Q$6) -> 6.832338099
A76: =getrandprev(76, DataTree!$E$6,DataTree!$F$6,DataTree!$P$6,DataTree!$Q$6) -> 7.490349042
A77: =getrandprev(77, DataTree!$E$6,DataTree!$F$6,DataTree!$P$6,DataTree!$Q$6) -> 8.145557083
A78: =getrandprev(78, DataTree!$E$6,DataTree!$F$6,DataTree!$P$6,DataTree!$Q$6) -> 7.445680944
A79: =getrandprev(79, DataTree!$E$6,DataTree!$F$6,DataTree!$P$6,DataTree!$Q$6) -> 7.479160114
A80: =getrandprev(80, DataTree!$E$6,DataTree!$F$6,DataTree!$P$6,DataTree!$Q$6) -> 7.350771409
A81: =getrandprev(81, DataTree!$E$6,DataTree!$F$6,DataTree!$P$6,DataTree!$Q$6) -> 8.222563008
A82: =getrandprev(82, DataTree!$E$6,DataTree!$F$6,DataTree!$P$6,DataTree!$Q$6) -> 7.267003662
A83: =getrandprev(83, DataTree!$E$6,DataTree!$F$6,DataTree!$P$6,DataTree!$Q$6) -> 7.173706731
A84: =getrandprev(84, DataTree!$E$6,DataTree!$F$6,DataTree!$P$6,DataTree!$Q$6) -> 6.893378992
A85: =getrandprev(85, DataTree!$E$6,DataTree!$F$6,DataTree!$P$6,DataTree!$Q$6) -> 7.811902165
A86: =getrandprev(86, DataTree!$E$6,DataTree!$F$6,DataTree!$P$6,DataTree!$Q$6) -> 6.341198324
A87: =getrandprev(87, DataTree!$E$6,DataTree!$F$6,DataTree!$P$6,DataTree!$Q$6) -> 7.687878701
A88: =getrandprev(88, DataTree!$E$6,DataTree!$F$6,DataTree!$P$6,DataTree!$Q$6) -> 7.739152221
A89: =getrandprev(89, DataTree!$E$6,DataTree!$F$6,DataTree!$P$6,DataTree!$Q$6) -> 7.517228018
A90: =getrandprev(90, DataTree!$E$6,DataTree!$F$6,DataTree!$P$6,DataTree!$Q$6) -> 7.970459593
A91: =getrandprev(91, DataTree!$E$6,DataTree!$F$6,DataTree!$P$6,DataTree!$Q$6) -> 7.122952551
A92: =getrandprev(92, DataTree!$E$6,DataTree!$F$6,DataTree!$P$6,DataTree!$Q$6) -> 8.283982055
A93: =getrandprev(93, DataTree!$E$6,DataTree!$F$6,DataTree!$P$6,DataTree!$Q$6) -> 6.882495633
A94: =getrandprev(94, DataTree!$E$6,DataTree!$F$6,DataTree!$P$6,DataTree!$Q$6) -> 6.871728366
A95: =getrandprev(95, DataTree!$E$6,DataTree!$F$6,DataTree!$P$6,DataTree!$Q$6) -> 7.674264728
A96: =getrandprev(96, DataTree!$E$6,DataTree!$F$6,DataTree!$P$6,DataTree!$Q$6) -> 7.59382527
A97: =getrandprev(97, DataTree!$E$6,DataTree!$F$6,DataTree!$P$6,DataTree!$Q$6) -> 7.49487781
A98: =getrandprev(98, DataTree!$E$6,DataTree!$F$6,DataTree!$P$6,DataTree!$Q$6) -> 7.40639676
A99: =getrandprev(99, DataTree!$E$6,DataTree!$F$6,DataTree!$P$6,DataTree!$Q$6) -> 7.769626005
A100: =getrandprev(100, DataTree!$E$6,DataTree!$F$6,DataTree!$P$6,DataTree!$Q$6) -> 6.515597219

Sheet ItemID5
A1: =getrandprev(1, DataTree!$E$7,DataTree!$F$7,DataTree!$P$7,DataTree!$Q$7) -> 4.203927981
A2: =getrandprev(2, DataTree!$E$7,DataTree!$F$7,DataTree!$P$7,DataTree!$Q$7) -> 3.86324044
A3: =getrandprev(3, DataTree!$E$7,DataTree!$F$7,DataTree!$P$7,DataTree!$Q$7) -> 3.905577465
A4: =getrandprev(4, DataTree!$E$7,DataTree!$F$7,DataTree!$P$7,DataTree!$Q$7) -> 3.715051907
A5: =getrandprev(5, DataTree!$E$7,DataTree!$F$7,DataTree!$P$7,DataTree!$Q$7) -> 4.423843954
A6: =getrandprev(6, DataTree!$E$7,DataTree!$F$7,DataTree!$P$7,DataTree!$Q$7) -> 4.09827791
A7: =getrandprev(7, DataTree!$E$7,DataTree!$F$7,DataTree!$P$7,DataTree!$Q$7) -> 3.789759962
A8: =getrandprev(8, DataTree!$E$7,DataTree!$F$7,DataTree!$P$7,DataTree!$Q$7) -> 3.673992881
A9: =getrandprev(9, DataTree!$E$7,DataTree!$F$7,DataTree!$P$7,DataTree!$Q$7) -> 4.242035869
A10: =getrandprev(10, DataTree!$E$7,DataTree!$F$7,DataTree!$P$7,DataTree!$Q$7) -> 3.635685188
A11: =getrandprev(11, DataTree!$E$7,DataTree!$F$7,DataTree!$P$7,DataTree!$Q$7) -> 4.650628389
A12: =getrandprev(12, DataTree!$E$7,DataTree!$F$7,DataTree!$P$7,DataTree!$Q$7) -> 4.292730826
A13: =getrandprev(13, DataTree!$E$7,DataTree!$F$7,DataTree!$P$7,DataTree!$Q$7) -> 3.808297654
A14: =getrandprev(14, DataTree!$E$7,DataTree!$F$7,DataTree!$P$7,DataTree!$Q$7) -> 3.91377013
A15: =getrandprev(15, DataTree!$E$7,DataTree!$F$7,DataTree!$P$7,DataTree!$Q$7) -> 4.030633086
A16: =getrandprev(16, DataTree!$E$7,DataTree!$F$7,DataTree!$P$7,DataTree!$Q$7) -> 4.007194565
A17: =getrandprev(17, DataTree!$E$7,DataTree!$F$7,DataTree!$P$7,DataTree!$Q$7) -> 4.388926048
A18: =getrandprev(18, DataTree!$E$7,DataTree!$F$7,DataTree!$P$7,DataTree!$Q$7) -> 4.253117469
A19: =getrandprev(19, DataTree!$E$7,DataTree!$F$7,DataTree!$P$7,DataTree!$Q$7) -> 4.001635929
A20: =getrandprev(20, DataTree!$E$7,DataTree!$F$7,DataTree!$P$7,DataTree!$Q$7) -> 3.866805105
A21: =getrandprev(21, DataTree!$E$7,DataTree!$F$7,DataTree!$P$7,DataTree!$Q$7) -> 4.112596807
A22: =getrandprev(22, DataTree!$E$7,DataTree!$F$7,DataTree!$P$7,DataTree!$Q$7) -> 3.740191404
A23: =getrandprev(23, DataTree!$E$7,DataTree!$F$7,DataTree!$P$7,DataTree!$Q$7) -> 4.621711551
A24: =getrandprev(24, DataTree!$E$7,DataTree!$F$7,DataTree!$P$7,DataTree!$Q$7) -> 3.834259024
A25: =getrandprev(25, DataTree!$E$7,DataTree!$F$7,DataTree!$P$7,DataTree!$Q$7) -> 3.819019462
A26: =getrandprev(26, DataTree!$E$7,DataTree!$F$7,DataTree!$P$7,DataTree!$Q$7) -> 4.350082816
A27: =getrandprev(27, DataTree!$E$7,DataTree!$F$7,DataTree!$P$7,DataTree!$Q$7) -> 4.261031845
A28: =getrandprev(28, DataTree!$E$7,DataTree!$F$7,DataTree!$P$7,DataTree!$Q$7) -> 4.126491179
A29: =getrandprev(29, DataTree!$E$7,DataTree!$F$7,DataTree!$P$7,DataTree!$Q$7) -> 3.707667124
A30: =getrandprev(30, DataTree!$E$7,DataTree!$F$7,DataTree!$P$7,DataTree!$Q$7) -> 3.960824468
A31: =getrandprev(31, DataTree!$E$7,DataTree!$F$7,DataTree!$P$7,DataTree!$Q$7) -> 3.997012091
A32: =getrandprev(32, DataTree!$E$7,DataTree!$F$7,DataTree!$P$7,DataTree!$Q$7) -> 4.21981615
A33: =getrandprev(33, DataTree!$E$7,DataTree!$F$7,DataTree!$P$7,DataTree!$Q$7) -> 3.780792165
A34: =getrandprev(34, DataTree!$E$7,DataTree!$F$7,DataTree!$P$7,DataTree!$Q$7) -> 3.89236611
A35: =getrandprev(35, DataTree!$E$7,DataTree!$F$7,DataTree!$P$7,DataTree!$Q$7) -> 4.301413627
A36: =getrandprev(36, DataTree!$E$7,DataTree!$F$7,DataTree!$P$7,DataTree!$Q$7) -> 3.502146845
A37: =getrandprev(37, DataTree!$E$7,DataTree!$F$7,DataTree!$P$7,DataTree!$Q$7) -> 4.457215211
A38: =getrandprev(38, DataTree!$E$7,DataTree!$F$7,DataTree!$P$7,DataTree!$Q$7) -> 3.944318415
A39: =getrandprev(39, DataTree!$E$7,DataTree!$F$7,DataTree!$P$7,DataTree!$Q$7) -> 3.917842329
A40: =getrandprev(40, DataTree!$E$7,DataTree!$F$7,DataTree!$P$7,DataTree!$Q$7) -> 3.816350249
A41: =getrandprev(41, DataTree!$E$7,DataTree!$F$7,DataTree!$P$7,DataTree!$Q$7) -> 4.142054993
A42: =getrandprev(42, DataTree!$E$7,DataTree!$F$7,DataTree!$P$7,DataTree!$Q$7) -> 4.548621516
A43: =getrandprev(43, DataTree!$E$7,DataTree!$F$7,DataTree!$P$7,DataTree!$Q$7) -> 3.852770232
A44: =getrandprev(44, DataTree!$E$7,DataTree!$F$7,DataTree!$P$7,DataTree!$Q$7) -> 3.303103607
A45: =getrandprev(45, DataTree!$E$7,DataTree!$F$7,DataTree!$P$7,DataTree!$Q$7) -> 3.914510319
A46: =getrandprev(46, DataTree!$E$7,DataTree!$F$7,DataTree!$P$7,DataTree!$Q$7) -> 3.503072883
A47: =getrandprev(47, DataTree!$E$7,DataTree!$F$7,DataTree!$P$7,DataTree!$Q$7) -> 4.636474938
A48: =getrandprev(48, DataTree!$E$7,DataTree!$F$7,DataTree!$P$7,DataTree!$Q$7) -> 4.139207815
A49: =getrandprev(49, DataTree!$E$7,DataTree!$F$7,DataTree!$P$7,DataTree!$Q$7) -> 3.786305367
A50: =getrandprev(50, DataTree!$E$7,DataTree!$F$7,DataTree!$P$7,DataTree!$Q$7) -> 3.838425399
A51: =getrandprev(51, DataTree!$E$7,DataTree!$F$7,DataTree!$P$7,DataTree!$Q$7) -> 4.055450579
A52: =getrandprev(52, DataTree!$E$7,DataTree!$F$7,DataTree!$P$7,DataTree!$Q$7) -> 4.05700239
A53: =getrandprev(53, DataTree!$E$7,DataTree!$F$7,DataTree!$P$7,DataTree!$Q$7) -> 3.865176229
A54: =getrandprev(54, DataTree!$E$7,DataTree!$F$7,DataTree!$P$7,DataTree!$Q$7) -> 3.820075499
A55: =getrandprev(55, DataTree!$E$7,DataTree!$F$7,DataTree!$P$7,DataTree!$Q$7) -> 4.414408783
A56: =getrandprev(56, DataTree!$E$7,DataTree!$F$7,DataTree!$P$7,DataTree!$Q$7) -> 3.786912495
A57: =getrandprev(57, DataTree!$E$7,DataTree!$F$7,DataTree!$P$7,DataTree!$Q$7) -> 4.021004323
A58: =getrandprev(58, DataTree!$E$7,DataTree!$F$7,DataTree!$P$7,DataTree!$Q$7) -> 3.660373811
A59: =getrandprev(59, DataTree!$E$7,DataTree!$F$7,DataTree!$P$7,DataTree!$Q$7) -> 3.705343199
A60: =getrandprev(60, DataTree!$E$7,DataTree!$F$7,DataTree!$P$7,DataTree!$Q$7) -> 4.031268127
A61: =getrandprev(61, DataTree!$E$7,DataTree!$F$7,DataTree!$P$7,DataTree!$Q$7) -> 4.122220375
A62: =getrandprev(62, DataTree!$E$7,DataTree!$F$7,DataTree!$P$7,DataTree!$Q$7) -> 3.986312156
A63: =getrandprev(63, DataTree!$E$7,DataTree!$F$7,DataTree!$P$7,DataTree!$Q$7) -> 4.256061951
A64: =getrandprev(64, DataTree!$E$7,DataTree!$F$7,DataTree!$P$7,DataTree!$Q$7) -> 4.35473469
A65: =getrandprev(65, DataTree!$E$7,DataTree!$F$7,DataTree!$P$7,DataTree!$Q$7) -> 3.97126005
A66: =getrandprev(66, DataTree!$E$7,DataTree!$F$7,DataTree!$P$7,DataTree!$Q$7) -> 3.670031365
A67: =getrandprev(67, DataTree!$E$7,DataTree!$F$7,DataTree!$P$7,DataTree!$Q$7) -> 4.349619911
A68: =getrandprev(68, DataTree!$E$7,DataTree!$F$7,DataTree!$P$7,DataTree!$Q$7) -> 3.93641032
A69: =getrandprev(69, DataTree!$E$7,DataTree!$F$7,DataTree!$P$7,DataTree!$Q$7) -> 4.159467071
A70: =getrandprev(70, DataTree!$E$7,DataTree!$F$7,DataTree!$P$7,DataTree!$Q$7) -> 3.929272221
A71: =getrandprev(71, DataTree!$E$7,DataTree!$F$7,DataTree!$P$7,DataTree!$Q$7) -> 4.177043749
A72: =getrandprev(72, DataTree!$E$7,DataTree!$F$7,DataTree!$P$7,DataTree!$Q$7) -> 3.539930385
A73: =getrandprev(73, DataTree!$E$7,DataTree!$F$7,DataTree!$P$7,DataTree!$Q$7) -> 3.744422101
A74: =getrandprev(74, DataTree!$E$7,DataTree!$F$7,DataTree!$P$7,DataTree!$Q$7) -> 4.166993195
A75: =getrandprev(75, DataTree!$E$7,DataTree!$F$7,DataTree!$P$7,DataTree!$Q$7) -> 3.519402859
A76: =getrandprev(76, DataTree!$E$7,DataTree!$F$7,DataTree!$P$7,DataTree!$Q$7) -> 3.914209425
A77: =getrandprev(77, DataTree!$E$7,DataTree!$F$7,DataTree!$P$7,DataTree!$Q$7) -> 4.30733425
A78: =getrandprev(78, DataTree!$E$7,DataTree!$F$7,DataTree!$P$7,DataTree!$Q$7) -> 3.887408566
A79: =getrandprev(79, DataTree!$E$7,DataTree!$F$7,DataTree!$P$7,DataTree!$Q$7) -> 3.907496068
A80: =getrandprev(80, DataTree!$E$7,DataTree!$F$7,DataTree!$P$7,DataTree!$Q$7) -> 3.830462845
A81: =getrandprev(81, DataTree!$E$7,DataTree!$F$7,DataTree!$P$7,DataTree!$Q$7) -> 4.353537805
A82: =getrandprev(82, DataTree!$E$7,DataTree!$F$7,DataTree!$P$7,DataTree!$Q$7) -> 3.780202197
A83: =getrandprev(83, DataTree!$E$7,DataTree!$F$7,DataTree!$P$7,DataTree!$Q$7) -> 3.724224038
A84: =getrandprev(84, DataTree!$E$7,DataTree!$F$7,DataTree!$P$7,DataTree!$Q$7) -> 3.556027395
A85: =getrandprev(85, DataTree!$E$7,DataTree!$F$7,DataTree!$P$7,DataTree!$Q$7) -> 4.107141299
A86: =getrandprev(86, DataTree!$E$7,DataTree!$F$7,DataTree!$P$7,DataTree!$Q$7) -> 3.224718994
A87: =getrandprev(87, DataTree!$E$7,DataTree!$F$7,DataTree!$P$7,DataTree!$Q$7) -> 4.032727221
A88: =getrandprev(88, DataTree!$E$7,DataTree!$F$7,DataTree!$P$7,DataTree!$Q$7) -> 4.063491333
A89: =getrandprev(89, DataTree!$E$7,DataTree!$F$7,DataTree!$P$7,DataTree!$Q$7) -> 3.930336811
A90: =getrandprev(90, DataTree!$E$7,DataTree!$F$7,DataTree!$P$7,DataTree!$Q$7) -> 4.202275756
A91: =getrandprev(91, DataTree!$E$7,DataTree!$F$7,DataTree!$P$7,DataTree!$Q$7) -> 3.693771531
A92: =getrandprev(92, DataTree!$E$7,DataTree!$F$7,DataTree!$P$7,DataTree!$Q$7) -> 4.390389233
A93: =getrandprev(93, DataTree!$E$7,DataTree!$F$7,DataTree!$P$7,DataTree!$Q$7) -> 3.54949738
A94: =getrandprev(94, DataTree!$E$7,DataTree!$F$7,DataTree!$P$7,DataTree!$Q$7) -> 3.543037019
A95: =getrandprev(95, DataTree!$E$7,DataTree!$F$7,DataTree!$P$7,DataTree!$Q$7) -> 4.024558837
A96: =getrandprev(96, DataTree!$E$7,DataTree!$F$7,DataTree!$P$7,DataTree!$Q$7) -> 3.976295162
A97: =getrandprev(97, DataTree!$E$7,DataTree!$F$7,DataTree!$P$7,DataTree!$Q$7) -> 3.916926686
A98: =getrandprev(98, DataTree!$E$7,DataTree!$F$7,DataTree!$P$7,DataTree!$Q$7) -> 3.863838056
A99: =getrandprev(99, DataTree!$E$7,DataTree!$F$7,DataTree!$P$7,DataTree!$Q$7) -> 4.081775603
A100: =getrandprev(100, DataTree!$E$7,DataTree!$F$7,DataTree!$P$7,DataTree!$Q$7) -> 3.329358331

Sheet ItemID6
A1: =getrandprev(1, DataTree!$E$8,DataTree!$F$8,DataTree!$P$8,DataTree!$Q$8) -> 3.012498623
A2: =getrandprev(2, DataTree!$E$8,DataTree!$F$8,DataTree!$P$8,DataTree!$Q$8) -> 2.217561027
A3: =getrandprev(3, DataTree!$E$8,DataTree!$F$8,DataTree!$P$8,DataTree!$Q$8) -> 2.316347418
A4: =getrandprev(4, DataTree!$E$8,DataTree!$F$8,DataTree!$P$8,DataTree!$Q$8) -> 1.871787783
A5: =getrandprev(5, DataTree!$E$8,DataTree!$F$8,DataTree!$P$8,DataTree!$Q$8) -> 3.525635893
A6: =getrandprev(6, DataTree!$E$8,DataTree!$F$8,DataTree!$P$8,DataTree!$Q$8) -> 2.765981789
A7: =getrandprev(7, DataTree!$E$8,DataTree!$F$8,DataTree!$P$8,DataTree!$Q$8) -> 2.046106578
A8: =getrandprev(8, DataTree!$E$8,DataTree!$F$8,DataTree!$P$8,DataTree!$Q$8) -> 1.77598339
A9: =getrandprev(9, DataTree!$E$8,DataTree!$F$8,DataTree!$P$8,DataTree!$Q$8) -> 3.101417028
A10: =getrandprev(10, DataTree!$E$8,DataTree!$F$8,DataTree!$P$8,DataTree!$Q$8) -> 1.686598772
A11: =getrandprev(11, DataTree!$E$8,DataTree!$F$8,DataTree!$P$8,DataTree!$Q$8) -> 4.054799575
A12: =getrandprev(12, DataTree!$E$8,DataTree!$F$8,DataTree!$P$8,DataTree!$Q$8) -> 3.219705261
A13: =getrandprev(13, DataTree!$E$8,DataTree!$F$8,DataTree!$P$8,DataTree!$Q$8) -> 2.089361193
A14: =getrandprev(14, DataTree!$E$8,DataTree!$F$8,DataTree!$P$8,DataTree!$Q$8) -> 2.335463637
A15: =getrandprev(15, DataTree!$E$8,DataTree!$F$8,DataTree!$P$8,DataTree!$Q$8) -> 2.608143867
A16: =getrandprev(16, DataTree!$E$8,DataTree!$F$8,DataTree!$P$8,DataTree!$Q$8) -> 2.553453985
A17: =getrandprev(17, DataTree!$E$8,DataTree!$F$8,DataTree!$P$8,DataTree!$Q$8) -> 3.44416078
A18: =getrandprev(18, DataTree!$E$8,DataTree!$F$8,DataTree!$P$8,DataTree!$Q$8) -> 3.127274095
A19: =getrandprev(19, DataTree!$E$8,DataTree!$F$8,DataTree!$P$8,DataTree!$Q$8) -> 2.540483834
A20: =getrandprev(20, DataTree!$E$8,DataTree!$F$8,DataTree!$P$8,DataTree!$Q$8) -> 2.225878578
A21: =getrandprev(21, DataTree!$E$8,DataTree!$F$8,DataTree!$P$8,DataTree!$Q$8) -> 2.79939255
A22: =getrandprev(22, DataTree!$E$8,DataTree!$F$8,DataTree!$P$8,DataTree!$Q$8) -> 1.93044661
A23: =getrandprev(23, DataTree!$E$8,DataTree!$F$8,DataTree!$P$8,DataTree!$Q$8) -> 3.987326953
A24: =getrandprev(24, DataTree!$E$8,DataTree!$F$8,DataTree!$P$8,DataTree!$Q$8) -> 2.149937723
A25: =getrandprev(25, DataTree!$E$8,DataTree!$F$8,DataTree!$P$8,DataTree!$Q$8) -> 2.114378744
A26: =getrandprev(26, DataTree!$E$8,DataTree!$F$8,DataTree!$P$8,DataTree!$Q$8) -> 3.353526571
A27: =getrandprev(27, DataTree!$E$8,DataTree!$F$8,DataTree!$P$8,DataTree!$Q$8) -> 3.145740973
A28: =getrandprev(28, DataTree!$E$8,DataTree!$F$8,DataTree!$P$8,DataTree!$Q$8) -> 2.83181275
A29: =getrandprev(29, DataTree!$E$8,DataTree!$F$8,DataTree!$P$8,DataTree!$Q$8) -> 1.854556623
A30: =getrandprev(30, DataTree!$E$8,DataTree!$F$8,DataTree!$P$8,DataTree!$Q$8) -> 2.445257093
A31: =getrandprev(31, DataTree!$E$8,DataTree!$F$8,DataTree!$P$8,DataTree!$Q$8) -> 2.529694879
A32: =getrandprev(32, DataTree!$E$8,DataTree!$F$8,DataTree!$P$8,DataTree!$Q$8) -> 3.049571016
A33: =getrandprev(33, DataTree!$E$8,DataTree!$F$8,DataTree!$P$8,DataTree!$Q$8) -> 2.025181718
A34: =getrandprev(34, DataTree!$E$8,DataTree!$F$8,DataTree!$P$8,DataTree!$Q$8) -> 2.285520923
A35: =getrandprev(35, DataTree!$E$8,DataTree!$F$8,DataTree!$P$8,DataTree!$Q$8) -> 3.23996513
A36: =getrandprev(36, DataTree!$E$8,DataTree!$F$8,DataTree!$P$8,DataTree!$Q$8) -> 1.375009304
A37: =getrandprev(37, DataTree!$E$8,DataTree!$F$8,DataTree!$P$8,DataTree!$Q$8) -> 3.60350216
A38: =getrandprev(38, DataTree!$E$8,DataTree!$F$8,DataTree!$P$8,DataTree!$Q$8) -> 2.406742968
A39: =getrandprev(39, DataTree!$E$8,DataTree!$F$8,DataTree!$P$8,DataTree!$Q$8) -> 2.344965435
A40: =getrandprev(40, DataTree!$E$8,DataTree!$F$8,DataTree!$P$8,DataTree!$Q$8) -> 2.10815058
A41: =getrandprev(41, DataTree!$E$8,DataTree!$F$8,DataTree!$P$8,DataTree!$Q$8) -> 2.868128318
A42: =getrandprev(42, DataTree!$E$8,DataTree!$F$8,DataTree!$P$8,DataTree!$Q$8) -> 3.816783537
A43: =getrandprev(43, DataTree!$E$8,DataTree!$F$8,DataTree!$P$8,DataTree!$Q$8) -> 2.193130542
A44: =getrandprev(44, DataTree!$E$8,DataTree!$F$8,DataTree!$P$8,DataTree!$Q$8) -> 0.9105750822
A45: =getrandprev(45, DataTree!$E$8,DataTree!$F$8,DataTree!$P$8,DataTree!$Q$8) -> 2.337190745
A46: =getrandprev(46, DataTree!$E$8,DataTree!$F$8,DataTree!$P$8,DataTree!$Q$8) -> 1.37717006
A47: =getrandprev(47, DataTree!$E$8,DataTree!$F$8,DataTree!$P$8,DataTree!$Q$8) -> 4.021774854
A48: =getrandprev(48, DataTree!$E$8,DataTree!$F$8,DataTree!$P$8,DataTree!$Q$8) -> 2.861484902
A49: =getrandprev(49, DataTree!$E$8,DataTree!$F$8,DataTree!$P$8,DataTree!$Q$8) -> 2.038045856
A50: =getrandprev(50, DataTree!$E$8,DataTree!$F$8,DataTree!$P$8,DataTree!$Q$8) -> 2.159659265
A51: =getrandprev(51, DataTree!$E$8,DataTree!$F$8,DataTree!$P$8,DataTree!$Q$8) -> 2.66605135
A52: =getrandprev(52, DataTree!$E$8,DataTree!$F$8,DataTree!$P$8,DataTree!$Q$8) -> 2.669672243
A53: =getrandprev(53, DataTree!$E$8,DataTree!$F$8,DataTree!$P$8,DataTree!$Q$8) -> 2.222077869
A54: =getrandprev(54, DataTree!$E$8,DataTree!$F$8,DataTree!$P$8,DataTree!$Q$8) -> 2.11684283
A55: =getrandprev(55, DataTree!$E$8,DataTree!$F$8,DataTree!$P$8,DataTree!$Q$8) -> 3.503620494
A56: =getrandprev(56, DataTree!$E$8,DataTree!$F$8,DataTree!$P$8,DataTree!$Q$8) -> 2.039462488
A57: =getrandprev(57, DataTree!$E$8,DataTree!$F$8,DataTree!$P$8,DataTree!$Q$8) -> 2.585676753
A58: =getrandprev(58, DataTree!$E$8,DataTree!$F$8,DataTree!$P$8,DataTree!$Q$8) -> 1.744205558
A59: =getrandprev(59, DataTree!$E$8,DataTree!$F$8,DataTree!$P$8,DataTree!$Q$8) -> 1.84913413
A60: =getrandprev(60, DataTree!$E$8,DataTree!$F$8,DataTree!$P$8,DataTree!$Q$8) -> 2.60962563
A61: =getrandprev(61, DataTree!$E$8,DataTree!$F$8,DataTree!$P$8,DataTree!$Q$8) -> 2.821847541
A62: =getrandprev(62, DataTree!$E$8,DataTree!$F$8,DataTree!$P$8,DataTree!$Q$8) -> 2.504728365
A63: =getrandprev(63, DataTree!$E$8,DataTree!$F$8,DataTree!$P$8,DataTree!$Q$8) -> 3.134144553
A64: =getrandprev(64, DataTree!$E$8,DataTree!$F$8,DataTree!$P$8,DataTree!$Q$8) -> 3.364380944
A65: =getrandprev(65, DataTree!$E$8,DataTree!$F$8,DataTree!$P$8,DataTree!$Q$8) -> 2.469606784
A66: =getrandprev(66, DataTree!$E$8,DataTree!$F$8,DataTree!$P$8,DataTree!$Q$8) -> 1.766739853
A67: =getrandprev(67, DataTree!$E$8,DataTree!$F$8,DataTree!$P$8,DataTree!$Q$8) -> 3.352446458
A68: =getrandprev(68, DataTree!$E$8,DataTree!$F$8,DataTree!$P$8,DataTree!$Q$8) -> 2.388290747
A69: =getrandprev(69, DataTree!$E$8,DataTree!$F$8,DataTree!$P$8,DataTree!$Q$8) -> 2.908756498
A70: =getrandprev(70, DataTree!$E$8,DataTree!$F$8,DataTree!$P$8,DataTree!$Q$8) -> 2.371635182
A71: =getrandprev(71, DataTree!$E$8,DataTree!$F$8,DataTree!$P$8,DataTree!$Q$8) -> 2.949768748
A72: =getrandprev(72, DataTree!$E$8,DataTree!$F$8,DataTree!$P$8,DataTree!$Q$8) -> 1.463170898
A73: =getrandprev(73, DataTree!$E$8,DataTree!$F$8,DataTree!$P$8,DataTree!$Q$8) -> 1.940318236
A74: =getrandprev(74, DataTree!$E$8,DataTree!$F$8,DataTree!$P$8,DataTree!$Q$8) -> 2.926317454
A75: =getrandprev(75, DataTree!$E$8,DataTree!$F$8,DataTree!$P$8,DataTree!$Q$8) -> 1.415273338
A76: =getrandprev(76, DataTree!$E$8,DataTree!$F$8,DataTree!$P$8,DataTree!$Q$8) -> 2.336488659
A77: =getrandprev(77, DataTree!$E$8,DataTree!$F$8,DataTree!$P$8,DataTree!$Q$8) -> 3.253779916
A78: =getrandprev(78, DataTree!$E$8,DataTree!$F$8,DataTree!$P$8,DataTree!$Q$8) -> 2.273953322
A79: =getrandprev(79, DataTree!$E$8,DataTree!$F$8,DataTree!$P$8,DataTree!$Q$8) -> 2.32082416
A80: =getrandprev(80, DataTree!$E$8,DataTree!$F$8,DataTree!$P$8,DataTree!$Q$8) -> 2.141079972
A81: =getrandprev(81, DataTree!$E$8,DataTree!$F$8,DataTree!$P$8,DataTree!$Q$8) -> 3.361588211
A82: =getrandprev(82, DataTree!$E$8,DataTree!$F$8,DataTree!$P$8,DataTree!$Q$8) -> 2.023805127
A83: =getrandprev(83, DataTree!$E$8,DataTree!$F$8,DataTree!$P$8,DataTree!$Q$8) -> 1.893189423
A84: =getrandprev(84, DataTree!$E$8,DataTree!$F$8,DataTree!$P$8,DataTree!$Q$8) -> 1.500730589
A85: =getrandprev(85, DataTree!$E$8,DataTree!$F$8,DataTree!$P$8,DataTree!$Q$8) -> 2.786663031
A86: =getrandprev(86, DataTree!$E$8,DataTree!$F$8,DataTree!$P$8,DataTree!$Q$8) -> 0.7276776538
A87: =getrandprev(87, DataTree!$E$8,DataTree!$F$8,DataTree!$P$8,DataTree!$Q$8) -> 2.613030181
A88: =getrandprev(88, DataTree!$E$8,DataTree!$F$8,DataTree!$P$8,DataTree!$Q$8) -> 2.684813109
A89: =getrandprev(89, DataTree!$E$8,DataTree!$F$8,DataTree!$P$8,DataTree!$Q$8) -> 2.374119225
A90: =getrandprev(90, DataTree!$E$8,DataTree!$F$8,DataTree!$P$8,DataTree!$Q$8) -> 3.00864343
A91: =getrandprev(91, DataTree!$E$8,DataTree!$F$8,DataTree!$P$8,DataTree!$Q$8) -> 1.822133572
A92: =getrandprev(92, DataTree!$E$8,DataTree!$F$8,DataTree!$P$8,DataTree!$Q$8) -> 3.447574877
A93: =getrandprev(93, DataTree!$E$8,DataTree!$F$8,DataTree!$P$8,DataTree!$Q$8) -> 1.485493886
A94: =getrandprev(94, DataTree!$E$8,DataTree!$F$8,DataTree!$P$8,DataTree!$Q$8) -> 1.470419712
A95: =getrandprev(95, DataTree!$E$8,DataTree!$F$8,DataTree!$P$8,DataTree!$Q$8) -> 2.593970619
A96: =getrandprev(96, DataTree!$E$8,DataTree!$F$8,DataTree!$P$8,DataTree!$Q$8) -> 2.481355377
A97: =getrandprev(97, DataTree!$E$8,DataTree!$F$8,DataTree!$P$8,DataTree!$Q$8) -> 2.342828934
A98: =getrandprev(98, DataTree!$E$8,DataTree!$F$8,DataTree!$P$8,DataTree!$Q$8) -> 2.218955464
A99: =getrandprev(99, DataTree!$E$8,DataTree!$F$8,DataTree!$P$8,DataTree!$Q$8) -> 2.727476407
A100: =getrandprev(100, DataTree!$E$8,DataTree!$F$8,DataTree!$P$8,DataTree!$Q$8) -> 0.9718361067

Sheet DemoArchiv
A1: Version : | B1: 0 | C1: Count : | D1: 13
A2: Project begin | B2: 7
A3: 0 | B3: 0 | C3: -1 | G3: Most SO 201 - beton | I3: Most Suchdol - beton
A4: 1 | B4: 1 | C4: 0 | D4: 0.3 | E4: 0 | F4: 0 | G4: Technické řešení
A5: 1 | B5: 2 | C5: 0 | D5: 0.7 | E5: 0 | F5: 0 | G5: Ekonomické řešení
A6: 2 | B6: 3 | C6: 1 | D6: 0.3 | E6: 3.6 | F6: 0.9 | G6: Doba výstavby
A7: 2 | B7: 4 | C7: 1 | D7: 0.7 | E7: 7.5 | F7: 0.5 | G7: Životnost
A8: 2 | B8: 5 | C8: 2 | D8: 0.5 | E8: 3.92 | F8: 0.3 | G8: Pořizovací cena
A9: 2 | B9: 6 | C9: 2 | D9: 0.5 | E9: 2.35 | F9: 0.7 | G9: Provozní náklady /rok
A20: Project end
A21: Project begin | B21: 7
A22: 0 | B22: 0 | C22: -1 | G22: Most SO 201 - ocel | I22: Most Suchdol - ocel
A23: 1 | B23: 1 | C23: 0 | D23: 0.3 | E23: 0 | F23: 0 | G23: Technické řešení
A24: 1 | B24: 2 | C24: 0 | D24: 0.7 | E24: 0 | F24: 0 | G24: Ekonomické řešení
A25: 2 | B25: 3 | C25: 1 | D25: 0.3 | E25: 2.4 | F25: 0.9 | G25: Doba výstavby
A26: 2 | B26: 4 | C26: 1 | D26: 0.7 | E26: 5 | F26: 0.5 | G26: Životnost
A27: 2 | B27: 5 | C27: 2 | D27: 0.5 | E27: 5.22 | F27: 0.3 | G27: Pořizovací cena
A28: 2 | B28: 6 | C28: 2 | D28: 0.5 | E28: 3.12 | F28: 0.7 | G28: Provozní náklady /rok
A39: Project end
A40: Project begin | B40: 9
A41: 0 | B41: 0 | C41: -1 | G41: Objekt 001 | I41: Testovaci Objekt 001
A42: 1 | B42: 1 | C42: 0 | D42: 0.3 | E42: 100 | F42: 0.2 | G42: Ekonomické řešení | H42: Ekonomické zajištění projektu | I42: Testovaci strom
A43: 1 | B43: 2 | C43: 0 | D43: 0.2 | E43: 20 | F43: 0.1 | G43: Technické řešení | H43: Technické řešení navržené projektem
A44: 2 | B44: 3 | C44: 1 | D44: 0.5 | E44: 20 | F44: 0.1 | G44: Vnější vazby | H44: Externí vazby regionální vazby
A45: 2 | B45: 6 | C45: 1 | D45: 0.15 | E45: 999 | F45: 0.2 | G45: Nová položka ID : 7 | H45: Popis položky ID : 7
A46: 2 | B46: 7 | C46: 1 | D46: 0.15 | E46: 999 | F46: 0.2 | G46: Nová položka ID : 8 | H46: Popis položky ID : 8
A47: 2 | B47: 8 | C47: 1 | D47: 0.19 | E47: 888 | F47: 0.28 | G47: Poskytnutý uvěr | H47: Popis položky ID : 9
A48: 2 | B48: 4 | C48: 2 | D48: 0.6 | E48: 1 | F48: 0.1 | G48: Výplně otvorů | H48: Výplně otvorů navržené projektem
A49: 2 | B49: 5 | C49: 2 | D49: 0.4 | E49: 5 | F49: 0.1 | G49: Obvodový plášť
A57: Project end
A58: Project begin | B58: 16
A59: 0 | B59: 0 | C59: -1 | D59: 0.2 | E59: 8 | F59: 2 | G59: Bytový dům BD01 | H59: Popis položky ID : 0 | I59: Bytový dům BD01
A60: 1 | B60: 1 | C60: 0 | D60: 0.35 | E60: 999 | F60: 0.2 | G60: Provedení | H60: Popis položky ID : 1
A61: 1 | B61: 2 | C61: 0 | D61: 0.3 | E61: 999 | F61: 0.2 | G61: Náklady | H61: Popis položky ID : 2
A62: 1 | B62: 3 | C62: 0 | D62: 0.35 | E62: 999 | F62: 0.2 | G62: Funkčnost | H62: Popis položky ID : 3
A63: 2 | B63: 4 | C63: 1 | D63: 0.2 | E63: 6 | F63: 2 | G63: Svislé nos. kce | H63: Popis položky ID : 4
A64: 2 | B64: 5 | C64: 1 | D64: 0.15 | E64: 7 | F64: 2 | G64: Vodor. nos. kce | H64: Popis položky ID : 5
A65: 2 | B65: 6 | C65: 1 | D65: 0.15 | E65: 8 | F65: 2 | G65: Výplně otvorů | H65: Popis položky ID : 6
A66: 2 | B66: 7 | C66: 1 | D66: 0.2 | E66: 8 | F66: 2 | G66: Zatřešení | H66: Popis položky ID : 8
A67: 2 | B67: 8 | C67: 1 | D67: 0.3 | E67: 7 | F67: 2 | G67: Vnitř. vybav. | H67: Popis položky ID : 9
A68: 2 | B68: 9 | C68: 2 | D68: 0.3 | E68: 20 | F68: 4 | G68: Pořiz. náklady | H68: Popis položky ID : 10
A69: 2 | B69: 10 | C69: 2 | D69: 0.3 | E69: 60 | F69: 12 | G69: Údržba/rok | H69: Popis položky ID : 11
A70: 2 | B70: 11 | C70: 2 | D70: 0.2 | E70: 100 | F70: 20 | G70: Obnova/rok | H70: Popis položky ID : 12
A71: 2 | B71: 12 | C71: 2 | D71: 0.2 | E71: 200 | F71: 40 | G71: Provoz/rok | H71: Popis položky ID : 13
A72: 2 | B72: 13 | C72: 3 | D72: 0.4 | E72: 7 | F72: 2 | G72: Variabilnost | H72: Popis položky ID : 14
A73: 2 | B73: 14 | C73: 3 | D73: 0.3 | E73: 8 | F73: 2 | G73: Komunikace svislé | H73: Popis položky ID : 15
A74: 2 | B74: 15 | C74: 3 | D74: 0.3 | E74: 6 | F74: 2 | G74: Komunikace vodor. | H74: Popis položky ID : 16
A85: Project end
A86: Project begin | B86: 7
A87: 0 | B87: 0 | C87: -1 | D87: 0.15 | E87: 999 | F87: 0.2 | G87: Bytovy dum BD03 | H87: Popis položky ID : 0 | I87: Bytovy dum BD03
A88: 1 | B88: 1 | C88: 0 | D88: 0.6 | E88: 999 | F88: 0.2 | G88: Fasada | H88: Popis položky ID : 1
A89: 2 | B89: 2 | C89: 1 | D89: 0.5 | E89: 20000 | F89: 1000 | G89: Projektovy navrh F | H89: Popis položky ID : 2
A90: 2 | B90: 3 | C90: 1 | D90: 0.6 | E90: 200000 | F90: 2000 | G90: Naklady mater. F | H90: Popis položky ID : 3
A91: 1 | B91: 4 | C91: 0 | D91: 0.4 | E91: 999 | F91: 0.2 | G91: Vyplne otvoru | H91: Popis položky ID : 4
A92: 2 | B92: 5 | C92: 4 | D92: 0.3 | E92: 10000 | F92: 1000 | G92: Projektovy navrh VO | H92: Popis položky ID : 5
A93: 2 | B93: 6 | C93: 4 | D93: 0.7 | E93: 280000 | F93: 2000 | G93: Naklady mater. VO | H93: Popis položky ID : 6
A104: Project end
A105: Project begin | B105: 7
A106: 0 | B106: 0 | C106: -1 | D106: 0.15 | E106: 999 | F106: 0.2 | G106: Mostovka 003 | H106: (materiálová varianta) | I106: Mostovka 003 | J106: 0 | K106: S | L106: 8 | M106: 8 | N106: 0
A107: 1 | B107: 1 | C107: 0 | D107: 0.3 | E107: 0 | F107: 0 | G107: Projektové řešení | H107: (zpracování projektu) | J107: 0 | K107: V | L107: 3 | M107: 6 | N107: 1
A108: 1 | B108: 2 | C108: 0 | D108: 0.7 | E108: 0 | F108: 0 | G108: Ekonomické řešení | H108: (pořizovací a provozní náklady) | J108: 0 | K108: D | L108: 4 | M108: 5 | N108: 0
A109: 2 | B109: 3 | C109: 1 | D109: 0.4 | E109: 7.75 | F109: 1.192 | G109: Náklady na projekt | H109: (náklady na projektové práce) | J109: 0 | K109: D | L109: 4 | M109: 4 | N109: 1
A110: 2 | B110: 4 | C110: 1 | D110: 0.6 | E110: 7 | F110: 2.017 | G110: Doba výstavby | H110: (doba výstavby podle projektu) | J110: 0 | K110: P | L110: 7 | M110: 7 | N110: 0
A111: 2 | B111: 5 | C111: 2 | D111: 0.5 | E111: 7.3 | F111: 1.46 | G111: Pořizovací cena | H111: (náklady mostovky) | J111: 0 | K111: S | L111: 7 | M111: 2 | N111: 1
A112: 2 | B112: 6 | C112: 2 | D112: 0.5 | E112: 6.6 | F112: 1.32 | G112: Provozní nákl./rok | H112: (náklady na provoz) | J112: 0 | K112: A | L112: 8 | M112: 8 | N112: 0
A123: Project end
A124: Project begin | B124: 6
A125: 0 | B125: 0 | C125: -1 | D125: 0 | E125: 0 | F125: 0 | G125: N1 | H125: Popis položky ID : 0 | I125: N1 - protlak (Pipe Ramming) Simple | J125: 0 | K125: S | L125: 8 | M125: 8 | N125: 0
A126: 1 | B126: 1 | C126: 0 | D126: 0.45 | E126: 2.5 | F126: 0.5 | G126: Ekonomická náročnost | H126: Popis položky ID : 1 | J126: 0 | K126: A | L126: 2 | M126: 7 | N126: 1
A127: 1 | B127: 2 | C127: 0 | D127: 0.2 | E127: 7.497 | F127: 0.736 | G127: Životnost | H127: Popis položky ID : 2 | J127: 0 | K127: V | L127: 3 | M127: 6 | N127: 0
A128: 1 | B128: 3 | C128: 0 | D128: 0.1 | E128: 4.497 | F128: 0.921 | G128: Citlivost na externality | H128: Popis položky ID : 3 | J128: 0 | K128: D | L128: 4 | M128: 7 | N128: 1
A129: 1 | B129: 4 | C129: 0 | D129: 0.05 | E129: 7.436 | F129: 1.102 | G129: Časová náročnost | H129: Popis položky ID : 4 | J129: 0 | K129: V | L129: 5 | M129: 7 | N129: 0
A130: 1 | B130: 5 | C130: 0 | D130: 0.2 | E130: 4.498 | F130: 0.711 | G130: Životní prostředí | H130: Popis položky ID : 5 | J130: 0 | K130: D | L130: 3 | M130: 7 | N130: 1
A141: Project end
A142: Project begin | B142: 6
A143: 0 | B143: 0 | C143: -1 | D143: 0 | E143: 0 | F143: 0 | G143: O1 | H143: Popis položky ID : 0 | I143: O1 - prostý relining (Line Insertion) Simple | J143: 0 | K143: A | L143: 1 | M143: 1 | N143: 1
A144: 1 | B144: 1 | C144: 0 | D144: 0.45 | E144: 3.503 | F144: 0.736 | G144: Ekonomická náročnost | H144: Popis položky ID : 1 | J144: 0 | K144: V | L144: 3 | M144: 6 | N144: 1
A145: 1 | B145: 2 | C145: 0 | D145: 0.2 | E145: 3.503 | F145: 0.736 | G145: Životnost | H145: Popis položky ID : 2 | J145: 0 | K145: V | L145: 3 | M145: 6 | N145: 1
A146: 1 | B146: 3 | C146: 0 | D146: 0.1 | E146: 5.47 | F146: 1.041 | G146: Citlivost na externality | H146: Popis položky ID : 3 | J146: 0 | K146: P | L146: 5 | M146: 7 | N146: 1
A147: 1 | B147: 4 | C147: 0 | D147: 0.05 | E147: 3.5 | F147: 1 | G147: Časová náročnost | H147: Popis položky ID : 4 | J147: 0 | K147: V | L147: 4 | M147: 6 | N147: 1
A148: 1 | B148: 5 | C148: 0 | D148: 0.2 | E148: 3.507 | F148: 0.472 | G148: Životní prostředí | H148: Popis položky ID : 5 | J148: 0 | K148: V | L148: 2 | M148: 6 | N148: 1
A159: Project end
A160: Project begin | B160: 6
A161: 0 | B161: 0 | C161: -1 | D161: 0 | E161: 0 | F161: 0 | G161: O3 | H161: Popis položky ID : 0 | I161: O3 - výstelka (Close-Fit Lining) Simple | J161: 0 | K161: A | L161: 1 | M161: 1 | N161: 1
A162: 1 | B162: 1 | C162: 0 | D162: 0.45 | E162: 2.5 | F162: 0.5 | G162: Ekonomická náročnost | H162: Popis položky ID : 1 | J162: 0 | K162: A | L162: 2 | M162: 3 | N162: 1
A163: 1 | B163: 2 | C163: 0 | D163: 0.2 | E163: 2.592 | F163: 0.728 | G163: Životnost | H163: Popis položky ID : 2 | J163: 0 | K163: A | L163: 3 | M163: 4 | N163: 1
A164: 1 | B164: 3 | C164: 0 | D164: 0.1 | E164: 6.433 | F164: 1.816 | G164: Citlivost na externality | H164: Popis položky ID : 3 | J164: 0 | K164: H | L164: 6 | M164: 4 | N164: 1
A165: 1 | B165: 4 | C165: 0 | D165: 0.05 | E165: 4.5 | F165: 1 | G165: Časová náročnost | H165: Popis položky ID : 4 | J165: 0 | K165: D | L165: 4 | M165: 4 | N165: 1
A166: 1 | B166: 5 | C166: 0 | D166: 0.2 | E166: 2.5 | F166: 0.5 | G166: Životní prostředí | H166: Popis položky ID : 5 | J166: 0 | K166: A | L166: 2 | M166: 3 | N166: 1
A177: Project end
A178: Project begin | B178: 23
A179: 0 | B179: 0 | C179: -1 | D179: 0 | E179: 0 | F179: 0 | G179: N1 | H179: Popis položky ID : 0 | I179: N1 - protlak (Pipe Ramming) | J179: 0 | K179: A | L179: 0 | M179: 0 | N179: 0
A180: 1 | B180: 1 | C180: 0 | D180: 0.45 | E180: 0 | F180: 0 | G180: Ekonomická náročnost | H180: Popis položky ID : 1 | J180: 0 | K180: A | L180: 0 | M180: 0 | N180: 0
A181: 1 | B181: 2 | C181: 0 | D181: 0.2 | E181: 0 | F181: 0 | G181: Životnost | H181: Popis položky ID : 2 | J181: 0 | K181: A | L181: 0 | M181: 0 | N181: 0
A182: 1 | B182: 3 | C182: 0 | D182: 0.1 | E182: 0 | F182: 0 | G182: Citlivost na externality | H182: Popis položky ID : 3 | J182: 0 | K182: A | L182: 0 | M182: 0 | N182: 0
A183: 1 | B183: 4 | C183: 0 | D183: 0.05 | E183: 0 | F183: 0 | G183: Časová náročnost | H183: Popis položky ID : 4 | J183: 0 | K183: A | L183: 0 | M183: 0 | N183: 0
A184: 1 | B184: 5 | C184: 0 | D184: 0.2 | E184: 0 | F184: 0 | G184: Životní prostředí | H184: Popis položky ID : 5 | J184: 0 | K184: A | L184: 0 | M184: 0 | N184: 0
A185: 2 | B185: 6 | C185: 1 | D185: 0.65 | E185: 8.5 | F185: 0.5 | G185: Náklady na 1bm | H185: Popis položky ID : 6 | J185: 0 | K185: A | L185: 2 | M185: 3 | N185: 0
A186: 2 | B186: 7 | C186: 1 | D186: 0.05 | E186: 4.497 | F186: 0.921 | G186: Restituce třetích stran - poškození | H186: Popis položky ID : 7 | J186: 0 | K186: H | L186: 4 | M186: 3 | N186: 0
A187: 2 | B187: 8 | C187: 1 | D187: 0.05 | E187: 6.5 | F187: 1.25 | G187: Náklady na krizový management | H187: Popis položky ID : 8 | J187: 0 | K187: D | L187: 5 | M187: 4 | N187: 0
A188: 2 | B188: 9 | C188: 1 | D188: 0.25 | E188: 7.431 | F188: 0.995 | G188: Náročnost ú/o trasy (provoz) | H188: Popis položky ID : 9 | J188: 0 | K188: V | L188: 4 | M188: 4 | N188: 0
A189: 2 | B189: 10 | C189: 2 | D189: 0.8 | E189: 7.469 | F189: 0.735 | G189: Životnost zhotovené trasy | H189: Popis položky ID : 10 | J189: 0 | K189: V | L189: 3 | M189: 4 | N189: 0
A190: 2 | B190: 11 | C190: 2 | D190: 0.1 | E190: 7.5 | F190: 0.5 | G190: Obnova v dalším cyklu životnosti | H190: Popis položky ID : 11 | J190: 0 | K190: V | L190: 2 | M190: 3 | N190: 0
A191: 2 | B191: 12 | C191: 2 | D191: 0.1 | E191: 7.475 | F191: 0.682 | G191: Možnost odstranit vady na trase | H191: Popis položky ID : 12 | J191: 0 | K191: V | L191: 3 | M191: 3 | N191: 0
A192: 2 | B192: 13 | C192: 3 | D192: 0.2 | E192: 6.497 | F192: 0.921 | G192: Dodržení výrobní kázně | H192: Popis položky ID : 13 | J192: 0 | K192: D | L192: 4 | M192: 3 | N192: 0
A193: 2 | B193: 14 | C193: 3 | D193: 0.15 | E193: 5.478 | F193: 1.34 | G193: Citlivost na (ne)předvídané okolnosti trasy | H193: Popis položky ID : 14 | J193: 0 | K193: P | L193: 6 | M193: 3 | N193: 0
A194: 2 | B194: 15 | C194: 3 | D194: 0.25 | E194: 5.5 | F194: 1.25 | G194: Citlivost na provedení spojovacích míst | H194: Popis položky ID : 15 | J194: 0 | K194: P | L194: 5 | M194: 4 | N194: 0
A195: 2 | B195: 16 | C195: 3 | D195: 0.05 | E195: 4.47 | F195: 1.041 | G195: Spolupůsobení materiálů | H195: Popis položky ID : 16 | J195: 0 | K195: H | L195: 5 | M195: 3 | N195: 0
A196: 2 | B196: 17 | C196: 3 | D196: 0.3 | E196: 6.503 | F196: 0.736 | G196: Degradace v čase | H196: Popis položky ID : 17 | J196: 0 | K196: D | L196: 3 | M196: 4 | N196: 0
A197: 2 | B197: 18 | C197: 3 | D197: 0.05 | E197: 8.507 | F197: 0.472 | G197: Náročnost čištění obnov. potrubí | H197: Popis položky ID : 18 | J197: 0 | K197: A | L197: 2 | M197: 4 | N197: 0
A198: 2 | B198: 19 | C198: 4 | D198: 0.7 | E198: 7.475 | F198: 0.682 | G198: Doba výstavby | H198: Popis položky ID : 19 | J198: 0 | K198: V | L198: 3 | M198: 3 | N198: 0
A199: 2 | B199: 20 | C199: 4 | D199: 0.3 | E199: 7.373 | F199: 0.553 | G199: Rozsah garancí zhotovitele | H199: Popis položky ID : 20 | J199: 0 | K199: V | L199: 3 | M199: 2 | N199: 0
A200: 2 | B200: 21 | C200: 5 | D200: 0.2 | E200: 6.5 | F200: 0.75 | G200: Náročnost na manip. prostor | H200: Popis položky ID : 21 | J200: 0 | K200: D | L200: 3 | M200: 5 | N200: 0
A201: 2 | B201: 22 | C201: 5 | D201: 0.8 | E201: 6.498 | F201: 0.711 | G201: Vliv na okolí trasy | H201: Popis položky ID : 22 | J201: 0 | K201: D | L201: 3 | M201: 3 | N201: 0
A212: Project end
A213: Project begin | B213: 23
A214: 0 | B214: 0 | C214: -1 | D214: 0 | E214: 0 | F214: 0 | G214: O1 | H214: Popis položky ID : 0 | I214: O1 - prostý relining (Line Insertion) | J214: 0 | K214: A | L214: 1 | M214: 1 | N214: 0
A215: 1 | B215: 1 | C215: 0 | D215: 0.45 | E215: 0 | F215: 0 | G215: Ekonomická náročnost | H215: Popis položky ID : 1 | J215: 0 | K215: A | L215: 1 | M215: 1 | N215: 0
A216: 1 | B216: 2 | C216: 0 | D216: 0.2 | E216: 0 | F216: 0 | G216: Životnost | H216: Popis položky ID : 2 | J216: 0 | K216: A | L216: 1 | M216: 1 | N216: 0
A217: 1 | B217: 3 | C217: 0 | D217: 0.1 | E217: 0 | F217: 0 | G217: Citlivost na externality | H217: Popis položky ID : 3 | J217: 0 | K217: A | L217: 1 | M217: 1 | N217: 0
A218: 1 | B218: 4 | C218: 0 | D218: 0.05 | E218: 0 | F218: 0 | G218: Časová náročnost | H218: Popis položky ID : 4 | J218: 0 | K218: A | L218: 1 | M218: 1 | N218: 0
A219: 1 | B219: 5 | C219: 0 | D219: 0.2 | E219: 0 | F219: 0 | G219: Životní prostředí | H219: Popis položky ID : 5 | J219: 0 | K219: A | L219: 1 | M219: 1 | N219: 0
A220: 2 | B220: 6 | C220: 1 | D220: 0.65 | E220: 7.469 | F220: 0.735 | G220: Náklady na 1bm | H220: Popis položky ID : 6 | J220: 0 | K220: V | L220: 3 | M220: 4 | N220: 0
A221: 2 | B221: 7 | C221: 1 | D221: 0.05 | E221: 6.5 | F221: 1 | G221: Restituce třetích stran - poškození | H221: Popis položky ID : 7 | J221: 0 | K221: D | L221: 4 | M221: 4 | N221: 0
A222: 2 | B222: 8 | C222: 1 | D222: 0.05 | E222: 4.47 | F222: 1.041 | G222: Náklady na krizový management | H222: Popis položky ID : 8 | J222: 0 | K222: H | L222: 5 | M222: 3 | N222: 0
A223: 2 | B223: 9 | C223: 1 | D223: 0.25 | E223: 6.497 | F223: 0.921 | G223: Náročnost ú/o trasy (provoz) | H223: Popis položky ID : 9 | J223: 0 | K223: D | L223: 4 | M223: 3 | N223: 0
A224: 2 | B224: 10 | C224: 2 | D224: 0.8 | E224: 7.469 | F224: 0.735 | G224: Životnost zhotovené trasy | H224: Popis položky ID : 10 | J224: 0 | K224: V | L224: 3 | M224: 4 | N224: 0
A225: 2 | B225: 11 | C225: 2 | D225: 0.1 | E225: 7.445 | F225: 0.885 | G225: Obnova v dalším cyklu životnosti | H225: Popis položky ID : 11 | J225: 0 | K225: V | L225: 4 | M225: 3 | N225: 0
A226: 2 | B226: 12 | C226: 2 | D226: 0.1 | E226: 6.5 | F226: 1 | G226: Možnost odstranit vady na trase | H226: Popis položky ID : 12 | J226: 0 | K226: D | L226: 4 | M226: 4 | N226: 0
A227: 2 | B227: 13 | C227: 3 | D227: 0.2 | E227: 5.47 | F227: 1.041 | G227: Dodržení výrobní kázně | H227: Popis položky ID : 13 | J227: 0 | K227: P | L227: 5 | M227: 3 | N227: 0
A228: 2 | B228: 14 | C228: 3 | D228: 0.15 | E228: 5.47 | F228: 1.594 | G228: Citlivost na (ne)předvídané okolnosti trasy | H228: Popis položky ID : 14 | J228: 0 | K228: P | L228: 7 | M228: 3 | N228: 0
A229: 2 | B229: 15 | C229: 3 | D229: 0.25 | E229: 5.5 | F229: 1.25 | G229: Citlivost na provedení spojovacích míst | H229: Popis položky ID : 15 | J229: 0 | K229: P | L229: 5 | M229: 4 | N229: 0
A230: 2 | B230: 16 | C230: 3 | D230: 0.05 | E230: 6.5 | F230: 1 | G230: Spolupůsobení materiálů | H230: Popis položky ID : 16 | J230: 0 | K230: D | L230: 4 | M230: 4 | N230: 0
A231: 2 | B231: 17 | C231: 3 | D231: 0.3 | E231: 5.48 | F231: 1.8 | G231: Degradace v čase | H231: Popis položky ID : 17 | J231: 0 | K231: P | L231: 6 | M231: 4 | N231: 0
A232: 2 | B232: 18 | C232: 3 | D232: 0.05 | E232: 3.581 | F232: 1.549 | G232: Náročnost čištění obnov. potrubí | H232: Popis položky ID : 18 | J232: 0 | K232: Z | L232: 6 | M232: 5 | N232: 0
A233: 2 | B233: 19 | C233: 4 | D233: 0.7 | E233: 7.431 | F233: 0.995 | G233: Doba výstavby | H233: Popis položky ID : 19 | J233: 0 | K233: V | L233: 4 | M233: 4 | N233: 0
A234: 2 | B234: 20 | C234: 4 | D234: 0.3 | E234: 7.475 | F234: 0.682 | G234: Rozsah garancí zhotovitele | H234: Popis položky ID : 20 | J234: 0 | K234: V | L234: 3 | M234: 3 | N234: 0
A235: 2 | B235: 21 | C235: 5 | D235: 0.2 | E235: 6.5 | F235: 0.75 | G235: Náročnost na manip. prostor | H235: Popis položky ID : 21 | J235: 0 | K235: D | L235: 3 | M235: 5 | N235: 0
A236: 2 | B236: 22 | C236: 5 | D236: 0.8 | E236: 7.507 | F236: 0.472 | G236: Vliv na okolí trasy | H236: Popis položky ID : 22 | J236: 0 | K236: V | L236: 2 | M236: 4 | N236: 0
A247: Project end
A248: Project begin | B248: 23
A249: 0 | B249: 0 | C249: -1 | D249: 0 | E249: 0 | F249: 0 | G249: O3 | H249: Popis položky ID : 0 | I249: O3 - výstelka (Close-Fit Lining) | J249: 0 | K249: A | L249: 1 | M249: 1 | N249: 0
A250: 1 | B250: 1 | C250: 0 | D250: 0.45 | E250: 0 | F250: 0 | G250: Ekonomická náročnost | H250: Popis položky ID : 1 | J250: 0 | K250: A | L250: 1 | M250: 1 | N250: 0
A251: 1 | B251: 2 | C251: 0 | D251: 0.2 | E251: 0 | F251: 0 | G251: Životnost | H251: Popis položky ID : 2 | J251: 0 | K251: A | L251: 1 | M251: 1 | N251: 0
A252: 1 | B252: 3 | C252: 0 | D252: 0.1 | E252: 0 | F252: 0 | G252: Citlivost na externality | H252: Popis položky ID : 3 | J252: 0 | K252: A | L252: 1 | M252: 1 | N252: 0
A253: 1 | B253: 4 | C253: 0 | D253: 0.05 | E253: 0 | F253: 0 | G253: Časová náročnost | H253: Popis položky ID : 4 | J253: 0 | K253: A | L253: 1 | M253: 1 | N253: 0
A254: 1 | B254: 5 | C254: 0 | D254: 0.2 | E254: 0 | F254: 0 | G254: Životní prostředí | H254: Popis položky ID : 5 | J254: 0 | K254: A | L254: 1 | M254: 1 | N254: 0
A255: 2 | B255: 6 | C255: 1 | D255: 0.65 | E255: 8.5 | F255: 0.5 | G255: Náklady na 1bm | H255: Popis položky ID : 6 | J255: 0 | K255: A | L255: 2 | M255: 3 | N255: 0
A256: 2 | B256: 7 | C256: 1 | D256: 0.05 | E256: 6.498 | F256: 0.711 | G256: Restituce třetích stran - poškození | H256: Popis položky ID : 7 | J256: 0 | K256: D | L256: 3 | M256: 3 | N256: 0
A257: 2 | B257: 8 | C257: 1 | D257: 0.05 | E257: 6.5 | F257: 1 | G257: Náklady na krizový management | H257: Popis položky ID : 8 | J257: 0 | K257: D | L257: 4 | M257: 4 | N257: 0
A258: 2 | B258: 9 | C258: 1 | D258: 0.25 | E258: 6.5 | F258: 1 | G258: Náročnost ú/o trasy (provoz) | H258: Popis položky ID : 9 | J258: 0 | K258: D | L258: 4 | M258: 4 | N258: 0
A259: 2 | B259: 10 | C259: 2 | D259: 0.8 | E259: 8.413 | F259: 0.772 | G259: Životnost zhotovené trasy | H259: Popis položky ID : 10 | J259: 0 | K259: A | L259: 3 | M259: 4 | N259: 0
A260: 2 | B260: 11 | C260: 2 | D260: 0.1 | E260: 7.475 | F260: 0.682 | G260: Obnova v dalším cyklu životnosti | H260: Popis položky ID : 11 | J260: 0 | K260: V | L260: 3 | M260: 3 | N260: 0
A261: 2 | B261: 12 | C261: 2 | D261: 0.1 | E261: 5.5 | F261: 1.25 | G261: Možnost odstranit vady na trase | H261: Popis položky ID : 12 | J261: 0 | K261: P | L261: 5 | M261: 4 | N261: 0
A262: 2 | B262: 13 | C262: 3 | D262: 0.2 | E262: 4.527 | F262: 1.819 | G262: Dodržení výrobní kázně | H262: Popis položky ID : 13 | J262: 0 | K262: H | L262: 6 | M262: 4 | N262: 0
A263: 2 | B263: 14 | C263: 3 | D263: 0.15 | E263: 6.497 | F263: 0.921 | G263: Citlivost na (ne)předvídané okolnosti trasy | H263: Popis položky ID : 14 | J263: 0 | K263: D | L263: 4 | M263: 3 | N263: 0
A264: 2 | B264: 15 | C264: 3 | D264: 0.25 | E264: 4.5 | F264: 1.25 | G264: Citlivost na provedení spojovacích míst | H264: Popis položky ID : 15 | J264: 0 | K264: H | L264: 5 | M264: 4 | N264: 0
A265: 2 | B265: 16 | C265: 3 | D265: 0.05 | E265: 5.5 | F265: 1.25 | G265: Spolupůsobení materiálů | H265: Popis položky ID : 16 | J265: 0 | K265: P | L265: 5 | M265: 4 | N265: 0
A266: 2 | B266: 17 | C266: 3 | D266: 0.3 | E266: 5.5 | F266: 1.25 | G266: Degradace v čase | H266: Popis položky ID : 17 | J266: 0 | K266: P | L266: 5 | M266: 4 | N266: 0
A267: 2 | B267: 18 | C267: 3 | D267: 0.05 | E267: 5.48 | F267: 1.8 | G267: Náročnost čištění obnov. potrubí | H267: Popis položky ID : 18 | J267: 0 | K267: P | L267: 6 | M267: 4 | N267: 0
A268: 2 | B268: 19 | C268: 4 | D268: 0.7 | E268: 6.5 | F268: 1 | G268: Doba výstavby | H268: Popis položky ID : 19 | J268: 0 | K268: D | L268: 4 | M268: 4 | N268: 0
A269: 2 | B269: 20 | C269: 4 | D269: 0.3 | E269: 6.409 | F269: 0.598 | G269: Rozsah garancí zhotovitele | H269: Popis položky ID : 20 | J269: 0 | K269: D | L269: 3 | M269: 2 | N269: 0
A270: 2 | B270: 21 | C270: 5 | D270: 0.2 | E270: 5.5 | F270: 1 | G270: Náročnost na manip. prostor | H270: Popis položky ID : 21 | J270: 0 | K270: P | L270: 4 | M270: 5 | N270: 0
A271: 2 | B271: 22 | C271: 5 | D271: 0.8 | E271: 8.5 | F271: 0.5 | G271: Vliv na okolí trasy | H271: Popis položky ID : 22 | J271: 0 | K271: A | L271: 2 | M271: 3 | N271: 0
A282: Project end
A283: Project begin | B283: 23
A284: 0 | B284: 0 | C284: -1 | D284: 0 | E284: 0 | F284: 0 | G284: O3 | H284: Popis položky ID : 0 | I284: O3 - výstelka (Close-Fit Lining) Final | J284: 0 | K284: A | L284: 1 | M284: 1 | N284: 0
A285: 1 | B285: 1 | C285: 0 | D285: 0.45 | E285: 0 | F285: 0 | G285: Ekonomická náročnost | H285: Popis položky ID : 1 | J285: 0 | K285: A | L285: 1 | M285: 1 | N285: 0
A286: 1 | B286: 2 | C286: 0 | D286: 0.2 | E286: 0 | F286: 0 | G286: Životnost | H286: Popis položky ID : 2 | J286: 0 | K286: A | L286: 1 | M286: 1 | N286: 0
A287: 1 | B287: 3 | C287: 0 | D287: 0.1 | E287: 0 | F287: 0 | G287: Citlivost na externality | H287: Popis položky ID : 3 | J287: 0 | K287: A | L287: 1 | M287: 1 | N287: 0
A288: 1 | B288: 4 | C288: 0 | D288: 0.05 | E288: 0 | F288: 0 | G288: Časová náročnost | H288: Popis položky ID : 4 | J288: 0 | K288: A | L288: 1 | M288: 1 | N288: 0
A289: 1 | B289: 5 | C289: 0 | D289: 0.2 | E289: 0 | F289: 0 | G289: Životní prostředí | H289: Popis položky ID : 5 | J289: 0 | K289: A | L289: 1 | M289: 1 | N289: 0
A290: 2 | B290: 6 | C290: 1 | D290: 0.65 | E290: 8.5 | F290: 0.5 | G290: Náklady na 1bm | H290: Popis položky ID : 6 | J290: 0 | K290: A | L290: 2 | M290: 3 | N290: 0
A291: 2 | B291: 7 | C291: 1 | D291: 0.05 | E291: 6.498 | F291: 0.711 | G291: Restituce třetích stran - poškození | H291: Popis položky ID : 7 | J291: 0 | K291: D | L291: 3 | M291: 3 | N291: 0
A292: 2 | B292: 8 | C292: 1 | D292: 0.05 | E292: 6.5 | F292: 1 | G292: Náklady na krizový management | H292: Popis položky ID : 8 | J292: 0 | K292: D | L292: 4 | M292: 4 | N292: 0
A293: 2 | B293: 9 | C293: 1 | D293: 0.25 | E293: 6.5 | F293: 1 | G293: Náročnost ú/o trasy (provoz) | H293: Popis položky ID : 9 | J293: 0 | K293: D | L293: 4 | M293: 4 | N293: 0
A294: 2 | B294: 10 | C294: 2 | D294: 0.8 | E294: 8.413 | F294: 0.772 | G294: Životnost zhotovené trasy | H294: Popis položky ID : 10 | J294: 0 | K294: A | L294: 3 | M294: 4 | N294: 0
A295: 2 | B295: 11 | C295: 2 | D295: 0.1 | E295: 7.475 | F295: 0.682 | G295: Obnova v dalším cyklu životnosti | H295: Popis položky ID : 11 | J295: 0 | K295: V | L295: 3 | M295: 3 | N295: 0
A296: 2 | B296: 12 | C296: 2 | D296: 0.1 | E296: 5.5 | F296: 1.25 | G296: Možnost odstranit vady na trase | H296: Popis položky ID : 12 | J296: 0 | K296: P | L296: 5 | M296: 4 | N296: 0
A297: 2 | B297: 13 | C297: 3 | D297: 0.2 | E297: 4.527 | F297: 1.819 | G297: Dodržení výrobní kázně | H297: Popis položky ID : 13 | J297: 0 | K297: H | L297: 6 | M297: 4 | N297: 0
A298: 2 | B298: 14 | C298: 3 | D298: 0.15 | E298: 6.497 | F298: 0.921 | G298: Citlivost na (ne)předvídané okolnosti trasy | H298: Popis položky ID : 14 | J298: 0 | K298: D | L298: 4 | M298: 3 | N298: 0
A299: 2 | B299: 15 | C299: 3 | D299: 0.25 | E299: 4.5 | F299: 1.25 | G299: Citlivost na provedení spojovacích míst | H299: Popis položky ID : 15 | J299: 0 | K299: H | L299: 5 | M299: 4 | N299: 0
A300: 2 | B300: 16 | C300: 3 | D300: 0.05 | E300: 5.5 | F300: 1.25 | G300: Spolupůsobení materiálů | H300: Popis položky ID : 16 | J300: 0 | K300: P | L300: 5 | M300: 4 | N300: 0
A301: 2 | B301: 17 | C301: 3 | D301: 0.3 | E301: 5.5 | F301: 1.25 | G301: Degradace v čase | H301: Popis položky ID : 17 | J301: 0 | K301: P | L301: 5 | M301: 4 | N301: 0
A302: 2 | B302: 18 | C302: 3 | D302: 0.05 | E302: 5.48 | F302: 1.8 | G302: Náročnost čištění obnov. potrubí | H302: Popis položky ID : 18 | J302: 0 | K302: P | L302: 6 | M302: 4 | N302: 0
A303: 2 | B303: 19 | C303: 4 | D303: 0.7 | E303: 6.5 | F303: 1 | G303: Doba výstavby | H303: Popis položky ID : 19 | J303: 0 | K303: D | L303: 4 | M303: 4 | N303: 0
A304: 2 | B304: 20 | C304: 4 | D304: 0.3 | E304: 6.409 | F304: 0.598 | G304: Rozsah garancí zhotovitele | H304: Popis položky ID : 20 | J304: 0 | K304: D | L304: 3 | M304: 2 | N304: 0
A305: 2 | B305: 21 | C305: 5 | D305: 0.2 | E305: 5.5 | F305: 1 | G305: Náročnost na manip. prostor | H305: Popis položky ID : 21 | J305: 0 | K305: P | L305: 4 | M305: 5 | N305: 0
A306: 2 | B306: 22 | C306: 5 | D306: 0.8 | E306: 8.5 | F306: 0.5 | G306: Vliv na okolí trasy | H306: Popis položky ID : 22 | J306: 0 | K306: A | L306: 2 | M306: 3 | N306: 0
A317: Project end

Sheet Graph2D
B1: Most SO 201 - beton
A2: 3.133705712 | B2: 1
A3: 3.320443994 | B3: 1
A4: 3.507182275 | B4: 2
A5: 3.693920557 | B5: 11
A6: 3.880658839 | B6: 23
A7: 4.067397121 | B7: 47
A8: 4.254135403 | B8: 71
A9: 4.440873685 | B9: 85
A10: 4.627611967 | B10: 97
A11: 4.814350249 | B11: 100

Sheet SchemeTree

Sheet Document

Sheet ReportResult
A3: Název : | B3: Most SO 201 - beton | C3: Technické řešení | D3: Ekonomické řešení | E3: Doba výstavby | F3: Životnost | G3: Pořizovací cena | H3: Provozní náklady /rok
A4: Popis :
A5: Významnost : | C5: 0.3 | D5: 0.7 | E5: 0.3 | F5: 0.7 | G5: 0.5 | H5: 0.5
A6: Hodnocení : | C6: 0 | D6: 0 | E6: 3.6 | F6: 7.5 | G6: 3.92 | H6: 2.35
A7: Riziko : | C7: 0 | D7: 0 | E7: 0.9 | F7: 0.5 | G7: 0.3 | H7: 0.7
A8: Hladina : | B8: 0 | C8: 1 | D8: 1 | E8: 2 | F8: 2 | G8: 2 | H8: 2
A9: ID : | B9: 0 | C9: 1 | D9: 2 | E9: 3 | F9: 4 | G9: 5 | H9: 6
A10: ID předchůdce : | B10: -1 | C10: 0 | D10: 0 | E10: 1 | F10: 1 | G10: 2 | H10: 2
A20: Hodnocení (střední hodnota) : | B20: =AVERAGE($B$80:$B$179) -> 4.187908688 | C20: =AVERAGE($C$80:$C$179) -> 6.43920408 | D20: =AVERAGE($D$80:$D$179) -> 3.223067806 | E20: =AVERAGE($E$80:$E$179) -> 3.758522051 | F20: =AVERAGE($F$80:$F$179) -> 7.588067806 | G20: =AVERAGE($G$80:$G$179) -> 3.972840684 | H20: =AVERAGE($H$80:$H$179) -> 2.473294929
A21: Riziko hodnocení (směr. odchylka) : | B21: =STDEVP($B$80:$B$179) -> 0.5182659853 | C21: =STDEVP($C$80:$C$179) -> 0.5994867741 | D21: =STDEVP($D$80:$D$179) -> 0.4834570759 | E21: =STDEVP($E$80:$E$179) -> 0.8702227365 | F21: =STDEVP($F$80:$F$179) -> 0.4834570759 | G21: =STDEVP($G$80:$G$179) -> 0.2900742455 | H21: =STDEVP($H$80:$H$179) -> 0.6768399062
A22: Minimum : | B22: =MIN($B$80:$B$179) -> 2.851264603 | C22: =MIN($C$80:$C$179) -> 4.893085922 | D22: =MIN($D$80:$D$179) -> 1.976198324 | E22: =MIN($E$80:$E$179) -> 1.514156983 | F22: =MIN($F$80:$F$179) -> 6.341198324 | G22: =MIN($G$80:$G$179) -> 3.224718994 | H22: =MIN($H$80:$H$179) -> 0.7276776538
A23: Maximum : | B23: =MAX($B$80:$B$179) -> 5.398889389 | C23: =MAX($C$80:$C$179) -> 7.839965337 | D23: =MAX($D$80:$D$179) -> 4.352713982 | E23: =MAX($E$80:$E$179) -> 5.791885167 | F23: =MAX($F$80:$F$179) -> 8.717713982 | G23: =MAX($G$80:$G$179) -> 4.650628389 | H23: =MAX($H$80:$H$179) -> 4.054799575
A24: Median : | B24: =MEDIAN($B$80:$B$179) -> 4.129884337 | C24: =MEDIAN($C$80:$C$179) -> 6.37208636 | D24: =MEDIAN($D$80:$D$179) -> 3.168940613 | E24: =MEDIAN($E$80:$E$179) -> 3.661093103 | F24: =MEDIAN($F$80:$F$179) -> 7.533940613 | G24: =MEDIAN($G$80:$G$179) -> 3.940364368 | H24: =MEDIAN($H$80:$H$179) -> 2.397516858
A25: Špičatost : | B25: =KURT($B$80:$B$179) -> 0.002835675284 | C25: =KURT($C$80:$C$179) -> 0.002835675284 | D25: =KURT($D$80:$D$179) -> 0.002835675284 | E25: =KURT($E$80:$E$179) -> 0.002835675284 | F25: =KURT($F$80:$F$179) -> 0.002835675284 | G25: =KURT($G$80:$G$179) -> 0.002835675284 | H25: =KURT($H$80:$H$179) -> 0.002835675284
A26: Šikmost : | B26: =SKEW($B$80:$B$179) -> 0.04307402789 | C26: =SKEW($C$80:$C$179) -> 0.04307402789 | D26: =SKEW($D$80:$D$179) -> 0.04307402789 | E26: =SKEW($E$80:$E$179) -> 0.04307402789 | F26: =SKEW($F$80:$F$179) -> 0.04307402789 | G26: =SKEW($G$80:$G$179) -> 0.04307402789 | H26: =SKEW($H$80:$H$179) -> 0.04307402789
A27: Minimum global : | B27: =MIN($B$80:$H$179) -> 0.7276776538
A28: Maximum global : | B28: =MAX($B$80:$H$179) -> 8.717713982
A29: Počet tříd : | B29: 10
A30: Krok globalnich tříd : | B30: =($B$28-$B$27)/($B$29-1) -> 0.8877818142
A31: =$B$27+$B$30*0 -> 0.7276776538 | B31: =FREQUENCY($B$80:$B$179,$A$31) -> 0 | C31: =FREQUENCY($C$80:$C$179,$A$31) -> 0 | D31: =FREQUENCY($D$80:$D$179,$A$31) -> 0 | E31: =FREQUENCY($E$80:$E$179,$A$31) -> 0 | F31: =FREQUENCY($F$80:$F$179,$A$31) -> 0 | G31: =FREQUENCY($G$80:$G$179,$A$31) -> 0 | H31: =FREQUENCY($H$80:$H$179,$A$31) -> 1 | I31: =$B$31 -> 0 | J31: =$C$31 -> 0 | K31: =$D$31 -> 0 | L31: =$E$31 -> 0 | M31: =$F$31 -> 0 | N31: =$G$31 -> 0 | O31: =$H$31 -> 1
A32: =$B$27+$B$30*1 -> 1.615459468 | B32: =FREQUENCY($B$80:$B$179,$A$32) -> 0 | C32: =FREQUENCY($C$80:$C$179,$A$32) -> 0 | D32: =FREQUENCY($D$80:$D$179,$A$32) -> 0 | E32: =FREQUENCY($E$80:$E$179,$A$32) -> 1 | F32: =FREQUENCY($F$80:$F$179,$A$32) -> 0 | G32: =FREQUENCY($G$80:$G$179,$A$32) -> 0 | H32: =FREQUENCY($H$80:$H$179,$A$32) -> 10 | I32: =$B$32-$B$31 -> 0 | J32: =$C$32-$C$31 -> 0 | K32: =$D$32-$D$31 -> 0 | L32: =$E$32-$E$31 -> 1 | M32: =$F$32-$F$31 -> 0 | N32: =$G$32-$G$31 -> 0 | O32: =$H$32-$H$31 -> 9
A33: =$B$27+$B$30*2 -> 2.503241282 | B33: =FREQUENCY($B$80:$B$179,$A$33) -> 0 | C33: =FREQUENCY($C$80:$C$179,$A$33) -> 0 | D33: =FREQUENCY($D$80:$D$179,$A$33) -> 7 | E33: =FREQUENCY($E$80:$E$179,$A$33) -> 9 | F33: =FREQUENCY($F$80:$F$179,$A$33) -> 0 | G33: =FREQUENCY($G$80:$G$179,$A$33) -> 0 | H33: =FREQUENCY($H$80:$H$179,$A$33) -> 54 | I33: =$B$33-$B$32 -> 0 | J33: =$C$33-$C$32 -> 0 | K33: =$D$33-$D$32 -> 7 | L33: =$E$33-$E$32 -> 8 | M33: =$F$33-$F$32 -> 0 | N33: =$G$33-$G$32 -> 0 | O33: =$H$33-$H$32 -> 44
A34: =$B$27+$B$30*3 -> 3.391023096 | B34: =FREQUENCY($B$80:$B$179,$A$34) -> 6 | C34: =FREQUENCY($C$80:$C$179,$A$34) -> 0 | D34: =FREQUENCY($D$80:$D$179,$A$34) -> 66 | E34: =FREQUENCY($E$80:$E$179,$A$34) -> 33 | F34: =FREQUENCY($F$80:$F$179,$A$34) -> 0 | G34: =FREQUENCY($G$80:$G$179,$A$34) -> 3 | H34: =FREQUENCY($H$80:$H$179,$A$34) -> 91 | I34: =$B$34-$B$33 -> 6 | J34: =$C$34-$C$33 -> 0 | K34: =$D$34-$D$33 -> 59 | L34: =$E$34-$E$33 -> 24 | M34: =$F$34-$F$33 -> 0 | N34: =$G$34-$G$33 -> 3 | O34: =$H$34-$H$33 -> 37
A35: =$B$27+$B$30*4 -> 4.278804911 | B35: =FREQUENCY($B$80:$B$179,$A$35) -> 59 | C35: =FREQUENCY($C$80:$C$179,$A$35) -> 0 | D35: =FREQUENCY($D$80:$D$179,$A$35) -> 97 | E35: =FREQUENCY($E$80:$E$179,$A$35) -> 74 | F35: =FREQUENCY($F$80:$F$179,$A$35) -> 0 | G35: =FREQUENCY($G$80:$G$179,$A$35) -> 84 | H35: =FREQUENCY($H$80:$H$179,$A$35) -> 100 | I35: =$B$35-$B$34 -> 53 | J35: =$C$35-$C$34 -> 0 | K35: =$D$35-$D$34 -> 31 | L35: =$E$35-$E$34 -> 41 | M35: =$F$35-$F$34 -> 0 | N35: =$G$35-$G$34 -> 81 | O35: =$H$35-$H$34 -> 9
A36: =$B$27+$B$30*5 -> 5.166586725 | B36: =FREQUENCY($B$80:$B$179,$A$36) -> 96 | C36: =FREQUENCY($C$80:$C$179,$A$36) -> 3 | D36: =FREQUENCY($D$80:$D$179,$A$36) -> 100 | E36: =FREQUENCY($E$80:$E$179,$A$36) -> 95 | F36: =FREQUENCY($F$80:$F$179,$A$36) -> 0 | G36: =FREQUENCY($G$80:$G$179,$A$36) -> 100 | H36: =FREQUENCY($H$80:$H$179,$A$36) -> 100 | I36: =$B$36-$B$35 -> 37 | J36: =$C$36-$C$35 -> 3 | K36: =$D$36-$D$35 -> 3 | L36: =$E$36-$E$35 -> 21 | M36: =$F$36-$F$35 -> 0 | N36: =$G$36-$G$35 -> 16 | O36: =$H$36-$H$35 -> 0
A37: =$B$27+$B$30*6 -> 6.054368539 | B37: =FREQUENCY($B$80:$B$179,$A$37) -> 100 | C37: =FREQUENCY($C$80:$C$179,$A$37) -> 24 | D37: =FREQUENCY($D$80:$D$179,$A$37) -> 100 | E37: =FREQUENCY($E$80:$E$179,$A$37) -> 100 | F37: =FREQUENCY($F$80:$F$179,$A$37) -> 0 | G37: =FREQUENCY($G$80:$G$179,$A$37) -> 100 | H37: =FREQUENCY($H$80:$H$179,$A$37) -> 100 | I37: =$B$37-$B$36 -> 4 | J37: =$C$37-$C$36 -> 21 | K37: =$D$37-$D$36 -> 0 | L37: =$E$37-$E$36 -> 5 | M37: =$F$37-$F$36 -> 0 | N37: =$G$37-$G$36 -> 0 | O37: =$H$37-$H$36 -> 0
A38: =$B$27+$B$30*7 -> 6.942150353 | B38: =FREQUENCY($B$80:$B$179,$A$38) -> 100 | C38: =FREQUENCY($C$80:$C$179,$A$38) -> 79 | D38: =FREQUENCY($D$80:$D$179,$A$38) -> 100 | E38: =FREQUENCY($E$80:$E$179,$A$38) -> 100 | F38: =FREQUENCY($F$80:$F$179,$A$38) -> 10 | G38: =FREQUENCY($G$80:$G$179,$A$38) -> 100 | H38: =FREQUENCY($H$80:$H$179,$A$38) -> 100 | I38: =$B$38-$B$37 -> 0 | J38: =$C$38-$C$37 -> 55 | K38: =$D$38-$D$37 -> 0 | L38: =$E$38-$E$37 -> 0 | M38: =$F$38-$F$37 -> 10 | N38: =$G$38-$G$37 -> 0 | O38: =$H$38-$H$37 -> 0
A39: =$B$27+$B$30*8 -> 7.829932168 | B39: =FREQUENCY($B$80:$B$179,$A$39) -> 100 | C39: =FREQUENCY($C$80:$C$179,$A$39) -> 99 | D39: =FREQUENCY($D$80:$D$179,$A$39) -> 100 | E39: =FREQUENCY($E$80:$E$179,$A$39) -> 100 | F39: =FREQUENCY($F$80:$F$179,$A$39) -> 70 | G39: =FREQUENCY($G$80:$G$179,$A$39) -> 100 | H39: =FREQUENCY($H$80:$H$179,$A$39) -> 100 | I39: =$B$39-$B$38 -> 0 | J39: =$C$39-$C$38 -> 20 | K39: =$D$39-$D$38 -> 0 | L39: =$E$39-$E$38 -> 0 | M39: =$F$39-$F$38 -> 60 | N39: =$G$39-$G$38 -> 0 | O39: =$H$39-$H$38 -> 0
A40: =$B$27+$B$30*9 -> 8.717713982 | B40: =FREQUENCY($B$80:$B$179,$A$40) -> 100 | C40: =FREQUENCY($C$80:$C$179,$A$40) -> 100 | D40: =FREQUENCY($D$80:$D$179,$A$40) -> 100 | E40: =FREQUENCY($E$80:$E$179,$A$40) -> 100 | F40: =FREQUENCY($F$80:$F$179,$A$40) -> 100 | G40: =FREQUENCY($G$80:$G$179,$A$40) -> 100 | H40: =FREQUENCY($H$80:$H$179,$A$40) -> 100 | I40: =$B$40-$B$39 -> 0 | J40: =$C$40-$C$39 -> 1 | K40: =$D$40-$D$39 -> 0 | L40: =$E$40-$E$39 -> 0 | M40: =$F$40-$F$39 -> 30 | N40: =$G$40-$G$39 -> 0 | O40: =$H$40-$H$39 -> 0
A41: Krok třídy : | B41: =($B$23-$B$22)/($B$29-1) -> 0.2830694206 | C41: =($C$23-$C$22)/($B$29-1) -> 0.3274310462 | D41: =($D$23-$D$22)/($B$29-1) -> 0.2640572953 | E41: =($E$23-$E$22)/($B$29-1) -> 0.4753031315 | F41: =($F$23-$F$22)/($B$29-1) -> 0.2640572953 | G41: =($G$23-$G$22)/($B$29-1) -> 0.1584343772 | H41: =($H$23-$H$22)/($B$29-1) -> 0.3696802134
A42: Třídy lokalni : | B42: =$B$22+$B$41*0 -> 2.851264603 | C42: =$C$22+$C$41*0 -> 4.893085922 | D42: =$D$22+$D$41*0 -> 1.976198324 | E42: =$E$22+$E$41*0 -> 1.514156983 | F42: =$F$22+$F$41*0 -> 6.341198324 | G42: =$G$22+$G$41*0 -> 3.224718994 | H42: =$H$22+$H$41*0 -> 0.7276776538
B43: =$B$22+$B$41*1 -> 3.134334024 | C43: =$C$22+$C$41*1 -> 5.220516968 | D43: =$D$22+$D$41*1 -> 2.240255619 | E43: =$E$22+$E$41*1 -> 1.989460115 | F43: =$F$22+$F$41*1 -> 6.605255619 | G43: =$G$22+$G$41*1 -> 3.383153372 | H43: =$H$22+$H$41*1 -> 1.097357867
B44: =$B$22+$B$41*2 -> 3.417403445 | C44: =$C$22+$C$41*2 -> 5.547948014 | D44: =$D$22+$D$41*2 -> 2.504312915 | E44: =$E$22+$E$41*2 -> 2.464763247 | F44: =$F$22+$F$41*2 -> 6.869312915 | G44: =$G$22+$G$41*2 -> 3.541587749 | H44: =$H$22+$H$41*2 -> 1.467038081
B45: =$B$22+$B$41*3 -> 3.700472865 | C45: =$C$22+$C$41*3 -> 5.87537906 | D45: =$D$22+$D$41*3 -> 2.76837021 | E45: =$E$22+$E$41*3 -> 2.940066378 | F45: =$F$22+$F$41*3 -> 7.13337021 | G45: =$G$22+$G$41*3 -> 3.700022126 | H45: =$H$22+$H$41*3 -> 1.836718294
B46: =$B$22+$B$41*4 -> 3.983542286 | C46: =$C$22+$C$41*4 -> 6.202810107 | D46: =$D$22+$D$41*4 -> 3.032427505 | E46: =$E$22+$E$41*4 -> 3.41536951 | F46: =$F$22+$F$41*4 -> 7.397427505 | G46: =$G$22+$G$41*4 -> 3.858456503 | H46: =$H$22+$H$41*4 -> 2.206398507
B47: =$B$22+$B$41*5 -> 4.266611706 | C47: =$C$22+$C$41*5 -> 6.530241153 | D47: =$D$22+$D$41*5 -> 3.296484801 | E47: =$E$22+$E$41*5 -> 3.890672641 | F47: =$F$22+$F$41*5 -> 7.661484801 | G47: =$G$22+$G$41*5 -> 4.01689088 | H47: =$H$22+$H$41*5 -> 2.576078721
B48: =$B$22+$B$41*6 -> 4.549681127 | C48: =$C$22+$C$41*6 -> 6.857672199 | D48: =$D$22+$D$41*6 -> 3.560542096 | E48: =$E$22+$E$41*6 -> 4.365975773 | F48: =$F$22+$F$41*6 -> 7.925542096 | G48: =$G$22+$G$41*6 -> 4.175325258 | H48: =$H$22+$H$41*6 -> 2.945758934
B49: =$B$22+$B$41*7 -> 4.832750547 | C49: =$C$22+$C$41*7 -> 7.185103245 | D49: =$D$22+$D$41*7 -> 3.824599391 | E49: =$E$22+$E$41*7 -> 4.841278904 | F49: =$F$22+$F$41*7 -> 8.189599391 | G49: =$G$22+$G$41*7 -> 4.333759635 | H49: =$H$22+$H$41*7 -> 3.315439148
B50: =$B$22+$B$41*8 -> 5.115819968 | C50: =$C$22+$C$41*8 -> 7.512534291 | D50: =$D$22+$D$41*8 -> 4.088656687 | E50: =$E$22+$E$41*8 -> 5.316582036 | F50: =$F$22+$F$41*8 -> 8.453656687 | G50: =$G$22+$G$41*8 -> 4.492194012 | H50: =$H$22+$H$41*8 -> 3.685119361
B51: =$B$22+$B$41*9 -> 5.398889389 | C51: =$C$22+$C$41*9 -> 7.839965337 | D51: =$D$22+$D$41*9 -> 4.352713982 | E51: =$E$22+$E$41*9 -> 5.791885167 | F51: =$F$22+$F$41*9 -> 8.717713982 | G51: =$G$22+$G$41*9 -> 4.650628389 | H51: =$H$22+$H$41*9 -> 4.054799575
A52: Distrib. fce lokalni : | B52: =FREQUENCY($B$80:$B$179,$B$42) -> 1 | C52: =FREQUENCY($C$80:$C$179,$C$42) -> 1 | D52: =FREQUENCY($D$80:$D$179,$D$42) -> 1 | E52: =FREQUENCY($E$80:$E$179,$E$42) -> 1 | F52: =FREQUENCY($F$80:$F$179,$F$42) -> 1 | G52: =FREQUENCY($G$80:$G$179,$G$42) -> 1 | H52: =FREQUENCY($H$80:$H$179,$H$42) -> 1 | I52: =$B$52 -> 1 | J52: =$C$52 -> 1 | K52: =$D$52 -> 1 | L52: =$E$52 -> 1 | M52: =$F$52 -> 1 | N52: =$G$52 -> 1 | O52: =$H$52 -> 1
B53: =FREQUENCY($B$80:$B$179,$B$43) -> 3 | C53: =FREQUENCY($C$80:$C$179,$C$43) -> 3 | D53: =FREQUENCY($D$80:$D$179,$D$43) -> 3 | E53: =FREQUENCY($E$80:$E$179,$E$43) -> 3 | F53: =FREQUENCY($F$80:$F$179,$F$43) -> 3 | G53: =FREQUENCY($G$80:$G$179,$G$43) -> 3 | H53: =FREQUENCY($H$80:$H$179,$H$43) -> 3 | I53: =$B$53-$B$52 -> 2 | J53: =$C$53-$C$52 -> 2 | K53: =$D$53-$D$52 -> 2 | L53: =$E$53-$E$52 -> 2 | M53: =$F$53-$F$52 -> 2 | N53: =$G$53-$G$52 -> 2 | O53: =$H$53-$H$52 -> 2
B54: =FREQUENCY($B$80:$B$179,$B$44) -> 7 | C54: =FREQUENCY($C$80:$C$179,$C$44) -> 7 | D54: =FREQUENCY($D$80:$D$179,$D$44) -> 7 | E54: =FREQUENCY($E$80:$E$179,$E$44) -> 7 | F54: =FREQUENCY($F$80:$F$179,$F$44) -> 7 | G54: =FREQUENCY($G$80:$G$179,$G$44) -> 7 | H54: =FREQUENCY($H$80:$H$179,$H$44) -> 7 | I54: =$B$54-$B$53 -> 4 | J54: =$C$54-$C$53 -> 4 | K54: =$D$54-$D$53 -> 4 | L54: =$E$54-$E$53 -> 4 | M54: =$F$54-$F$53 -> 4 | N54: =$G$54-$G$53 -> 4 | O54: =$H$54-$H$53 -> 4
B55: =FREQUENCY($B$80:$B$179,$B$45) -> 15 | C55: =FREQUENCY($C$80:$C$179,$C$45) -> 15 | D55: =FREQUENCY($D$80:$D$179,$D$45) -> 15 | E55: =FREQUENCY($E$80:$E$179,$E$45) -> 15 | F55: =FREQUENCY($F$80:$F$179,$F$45) -> 15 | G55: =FREQUENCY($G$80:$G$179,$G$45) -> 15 | H55: =FREQUENCY($H$80:$H$179,$H$45) -> 15 | I55: =$B$55-$B$54 -> 8 | J55: =$C$55-$C$54 -> 8 | K55: =$D$55-$D$54 -> 8 | L55: =$E$55-$E$54 -> 8 | M55: =$F$55-$F$54 -> 8 | N55: =$G$55-$G$54 -> 8 | O55: =$H$55-$H$54 -> 8
B56: =FREQUENCY($B$80:$B$179,$B$46) -> 34 | C56: =FREQUENCY($C$80:$C$179,$C$46) -> 34 | D56: =FREQUENCY($D$80:$D$179,$D$46) -> 34 | E56: =FREQUENCY($E$80:$E$179,$E$46) -> 34 | F56: =FREQUENCY($F$80:$F$179,$F$46) -> 34 | G56: =FREQUENCY($G$80:$G$179,$G$46) -> 34 | H56: =FREQUENCY($H$80:$H$179,$H$46) -> 34 | I56: =$B$56-$B$55 -> 19 | J56: =$C$56-$C$55 -> 19 | K56: =$D$56-$D$55 -> 19 | L56: =$E$56-$E$55 -> 19 | M56: =$F$56-$F$55 -> 19 | N56: =$G$56-$G$55 -> 19 | O56: =$H$56-$H$55 -> 19
B57: =FREQUENCY($B$80:$B$179,$B$47) -> 58 | C57: =FREQUENCY($C$80:$C$179,$C$47) -> 58 | D57: =FREQUENCY($D$80:$D$179,$D$47) -> 58 | E57: =FREQUENCY($E$80:$E$179,$E$47) -> 58 | F57: =FREQUENCY($F$80:$F$179,$F$47) -> 58 | G57: =FREQUENCY($G$80:$G$179,$G$47) -> 58 | H57: =FREQUENCY($H$80:$H$179,$H$47) -> 58 | I57: =$B$57-$B$56 -> 24 | J57: =$C$57-$C$56 -> 24 | K57: =$D$57-$D$56 -> 24 | L57: =$E$57-$E$56 -> 24 | M57: =$F$57-$F$56 -> 24 | N57: =$G$57-$G$56 -> 24 | O57: =$H$57-$H$56 -> 24
B58: =FREQUENCY($B$80:$B$179,$B$48) -> 76 | C58: =FREQUENCY($C$80:$C$179,$C$48) -> 76 | D58: =FREQUENCY($D$80:$D$179,$D$48) -> 76 | E58: =FREQUENCY($E$80:$E$179,$E$48) -> 76 | F58: =FREQUENCY($F$80:$F$179,$F$48) -> 76 | G58: =FREQUENCY($G$80:$G$179,$G$48) -> 76 | H58: =FREQUENCY($H$80:$H$179,$H$48) -> 76 | I58: =$B$58-$B$57 -> 18 | J58: =$C$58-$C$57 -> 18 | K58: =$D$58-$D$57 -> 18 | L58: =$E$58-$E$57 -> 18 | M58: =$F$58-$F$57 -> 18 | N58: =$G$58-$G$57 -> 18 | O58: =$H$58-$H$57 -> 18
B59: =FREQUENCY($B$80:$B$179,$B$49) -> 87 | C59: =FREQUENCY($C$80:$C$179,$C$49) -> 87 | D59: =FREQUENCY($D$80:$D$179,$D$49) -> 87 | E59: =FREQUENCY($E$80:$E$179,$E$49) -> 87 | F59: =FREQUENCY($F$80:$F$179,$F$49) -> 87 | G59: =FREQUENCY($G$80:$G$179,$G$49) -> 87 | H59: =FREQUENCY($H$80:$H$179,$H$49) -> 87 | I59: =$B$59-$B$58 -> 11 | J59: =$C$59-$C$58 -> 11 | K59: =$D$59-$D$58 -> 11 | L59: =$E$59-$E$58 -> 11 | M59: =$F$59-$F$58 -> 11 | N59: =$G$59-$G$58 -> 11 | O59: =$H$59-$H$58 -> 11
B60: =FREQUENCY($B$80:$B$179,$B$50) -> 96 | C60: =FREQUENCY($C$80:$C$179,$C$50) -> 96 | D60: =FREQUENCY($D$80:$D$179,$D$50) -> 96 | E60: =FREQUENCY($E$80:$E$179,$E$50) -> 96 | F60: =FREQUENCY($F$80:$F$179,$F$50) -> 96 | G60: =FREQUENCY($G$80:$G$179,$G$50) -> 96 | H60: =FREQUENCY($H$80:$H$179,$H$50) -> 96 | I60: =$B$60-$B$59 -> 9 | J60: =$C$60-$C$59 -> 9 | K60: =$D$60-$D$59 -> 9 | L60: =$E$60-$E$59 -> 9 | M60: =$F$60-$F$59 -> 9 | N60: =$G$60-$G$59 -> 9 | O60: =$H$60-$H$59 -> 9
B61: =FREQUENCY($B$80:$B$179,$B$51) -> 100 | C61: =FREQUENCY($C$80:$C$179,$C$51) -> 100 | D61: =FREQUENCY($D$80:$D$179,$D$51) -> 100 | E61: =FREQUENCY($E$80:$E$179,$E$51) -> 100 | F61: =FREQUENCY($F$80:$F$179,$F$51) -> 100 | G61: =FREQUENCY($G$80:$G$179,$G$51) -> 100 | H61: =FREQUENCY($H$80:$H$179,$H$51) -> 100 | I61: =$B$61-$B$60 -> 4 | J61: =$C$61-$C$60 -> 4 | K61: =$D$61-$D$60 -> 4 | L61: =$E$61-$E$60 -> 4 | M61: =$F$61-$F$60 -> 4 | N61: =$G$61-$G$60 -> 4 | O61: =$H$61-$H$60 -> 4
B80: 4.60078466 | C80: 6.916784495 | D80: 3.608213302 | E80: 4.451783944 | F80: 7.973213302 | G80: 4.203927981 | H80: 3.012498623
